Workbook

Sheet CBA Tool details
A1: Greater Manchester Cost Benefit Analysis Tool
A3: Version | B3: v5.1.1 FINAL
A5: Release date | B5: September 2022
A7: Release notes | B7: Discount rates have been adjusted to reflect the latest publication of HMT's Green Book (March 2022), and the prepopulated outcomes have been refreshed in line with the V2.3 release of the Unit Cost Database. The tool now also incorporate BEIS & DfT guidance on the valuation of carbon, energy and greenhouse gases - please see the "Proposition Summary" tab to access the new worksheets.
A9: Supporting documents | B9: Unit Cost Database v2.3.1 Low Carbon and Energy Benefits Roadmap v1.4
A12: Workbook structure | B12: Blue tab | C12: Input
B13: Green tab | C13: Reference
B14: Orange tab | C14: Outputs/charts
B15: Indigo tab | C15: Carbon & Energy
B16: Purple tab | C16: User changeable assumptions
A19: User Support | B19: User support and guidance can be provided by the GM Cost Benefit Analysis team at the Greater Manchester Combined Authority If you are encountering issues with VBA Macros, please ensure you have macros enabled following the guidance provided here:
B20: https://support.office.com/en-gb/article/enable-or-disable-macros-in-office-files-12b036fd-d140-4e74-b45e-16fed1a7e5c6
B22: For all other queries, please contact:
B23: cba@greatermanchester-ca.gov.uk

Sheet Proposition Summary
A1: Summary Sheet
A3: Include carbon and energy calculators? | B3: Yes
A5: Title
A7: Outline description
A10: Comments
A13: Caveats
A17: Next steps

Sheet Agency list
A1: Agency Selection
B3: Agencies | C3: Included | E3: Shortlisted agencies
A4: 1 | B4: Local Authority | C4: Yes | D4: =INDEX($B$4:$B$23,SMALL(IF($C$4:$C$23="Yes",ROW($B$4:$B$23)-ROW($B$4)+1),ROWS(D$4:D4)),COLUMNS($D4:D4)) -> Local Authority | E4: =IF(ISERR(D4),"",D4) -> Local Authority | H4: Instructions:
A5: 2 | B5: NHS | C5: Yes | D5: =INDEX($B$4:$B$23,SMALL(IF($C$4:$C$23="Yes",ROW($B$4:$B$23)-ROW($B$4)+1),ROWS(D$4:D5)),COLUMNS($D5:D5)) -> NHS | E5: =IF(ISERR(D5),"",D5) -> NHS
A6: 3 | B6: Police | C6: Yes | D6: =INDEX($B$4:$B$23,SMALL(IF($C$4:$C$23="Yes",ROW($B$4:$B$23)-ROW($B$4)+1),ROWS(D$4:D6)),COLUMNS($D6:D6)) -> Police | E6: Police | H6: 1. Select which agencies in the green column are important either in the delivery of the project or receive benefits from improved outcomes
A7: 4 | B7: Probation | C7: Yes | D7: =INDEX($B$4:$B$23,SMALL(IF($C$4:$C$23="Yes",ROW($B$4:$B$23)-ROW($B$4)+1),ROWS(D$4:D7)),COLUMNS($D7:D7)) -> Probation | E7: Probation
A8: 5 | B8: Courts/Legal aid | C8: Yes | D8: =INDEX($B$4:$B$23,SMALL(IF($C$4:$C$23="Yes",ROW($B$4:$B$23)-ROW($B$4)+1),ROWS(D$4:D8)),COLUMNS($D8:D8)) -> Courts/Legal aid | E8: Courts/Legal aid | H8: 2. For those included use the Yes flag, which will allow the drop downs, graphs, agency split calculations and cashability calculations to work
A9: 6 | B9: Prisons | C9: Yes | D9: =INDEX($B$4:$B$23,SMALL(IF($C$4:$C$23="Yes",ROW($B$4:$B$23)-ROW($B$4)+1),ROWS(D$4:D9)),COLUMNS($D9:D9)) -> Prisons | E9: Prisons
A10: 7 | B10: Other CJS | C10: Yes | D10: =INDEX($B$4:$B$23,SMALL(IF($C$4:$C$23="Yes",ROW($B$4:$B$23)-ROW($B$4)+1),ROWS(D$4:D10)),COLUMNS($D10:D10)) -> Other CJS | E10: Other CJS | H10: 3. It is possible to give more specific names to the agencies (e.g. Change local authority to "Stockport MBC"), but don't change the type of agency, otherwise the lookups will work incorrectly.
A11: 8 | B11: DWP (AME) | C11: Yes | D11: =INDEX($B$4:$B$23,SMALL(IF($C$4:$C$23="Yes",ROW($B$4:$B$23)-ROW($B$4)+1),ROWS(D$4:D11)),COLUMNS($D11:D11)) -> DWP (AME) | E11: DWP (AME)
A12: 9 | B12: HMRC | C12: Yes | D12: =INDEX($B$4:$B$23,SMALL(IF($C$4:$C$23="Yes",ROW($B$4:$B$23)-ROW($B$4)+1),ROWS(D$4:D12)),COLUMNS($D12:D12)) -> HMRC | E12: HMRC | H12: 4. If there are more agencies that are delivery partners, then use the Spare categories and overwrite these.
A13: 10 | B13: Schools | C13: Yes | D13: =INDEX($B$4:$B$23,SMALL(IF($C$4:$C$23="Yes",ROW($B$4:$B$23)-ROW($B$4)+1),ROWS(D$4:D13)),COLUMNS($D13:D13)) -> Schools | E13: Schools
A14: 11 | B14: Housing providers | C14: Yes | D14: =INDEX($B$4:$B$23,SMALL(IF($C$4:$C$23="Yes",ROW($B$4:$B$23)-ROW($B$4)+1),ROWS(D$4:D14)),COLUMNS($D14:D14)) -> Housing providers | E14: Housing providers | H14: 5.If new outcomes are added in the Spare Outcomes rows on the benefits tab, resulting in other beneficiaries, the agency percentages and cashability tabs should also be updated to reflect the split to these agencies
A15: 12 | B15: Victims services | C15: Yes | D15: =INDEX($B$4:$B$23,SMALL(IF($C$4:$C$23="Yes",ROW($B$4:$B$23)-ROW($B$4)+1),ROWS(D$4:D15)),COLUMNS($D15:D15)) -> Victims services | E15: Victims services
A16: 13 | B16: Local Business | C16: Yes | D16: =INDEX($B$4:$B$23,SMALL(IF($C$4:$C$23="Yes",ROW($B$4:$B$23)-ROW($B$4)+1),ROWS(D$4:D16)),COLUMNS($D16:D16)) -> Local Business | E16: Local Business
A17: 14 | B17: Spare1 | C17: No | D17: =INDEX($B$4:$B$23,SMALL(IF($C$4:$C$23="Yes",ROW($B$4:$B$23)-ROW($B$4)+1),ROWS(D$4:D17)),COLUMNS($D17:D17)) -> 
A18: 15 | B18: Spare2 | C18: No | D18: =INDEX($B$4:$B$23,SMALL(IF($C$4:$C$23="Yes",ROW($B$4:$B$23)-ROW($B$4)+1),ROWS(D$4:D18)),COLUMNS($D18:D18)) -> 
A19: 16 | B19: Spare3 | C19: No | D19: =INDEX($B$4:$B$23,SMALL(IF($C$4:$C$23="Yes",ROW($B$4:$B$23)-ROW($B$4)+1),ROWS(D$4:D19)),COLUMNS($D19:D19)) -> 
A20: 17 | B20: Spare4 | C20: No | D20: =INDEX($B$4:$B$23,SMALL(IF($C$4:$C$23="Yes",ROW($B$4:$B$23)-ROW($B$4)+1),ROWS(D$4:D20)),COLUMNS($D20:D20)) -> 
A21: 18 | B21: Spare5 | C21: No | D21: =INDEX($B$4:$B$23,SMALL(IF($C$4:$C$23="Yes",ROW($B$4:$B$23)-ROW($B$4)+1),ROWS(D$4:D21)),COLUMNS($D21:D21)) -> 
A22: 19 | B22: Spare6 | C22: No | D22: =INDEX($B$4:$B$23,SMALL(IF($C$4:$C$23="Yes",ROW($B$4:$B$23)-ROW($B$4)+1),ROWS(D$4:D22)),COLUMNS($D22:D22)) -> 
A23: 20 | B23: Spare7 | C23: No | D23: =INDEX($B$4:$B$23,SMALL(IF($C$4:$C$23="Yes",ROW($B$4:$B$23)-ROW($B$4)+1),ROWS(D$4:D23)),COLUMNS($D23:D23)) -> 

Sheet Parameters
B1: Timeframe
B4: Project Start Year | D4: 2022
B6: Project Duration | D6: 10
B12: Standard Discount Rate
B13: 2020 | C13: 2021 | D13: 2022 | E13: 2023 | F13: 2024 | G13: 2025 | H13: 2026 | I13: 2027 | J13: 2028 | K13: 2029 | L13: 2030 | M13: 2031 | N13: 2032 | O13: 2033 | P13: 2034 | Q13: 2035 | R13: 2036 | S13: 2037 | T13: 2038 | U13: 2039 | V13: 2040 | W13: 2041 | X13: 2042 | Y13: 2043 | Z13: 2044 | AA13: 2045 | AB13: 2046 | AC13: 2047 | AD13: 2048 | AE13: 2049 | AF13: 2050 | AG13: 2051 | AH13: 2052 | AI13: 2053 | AJ13: 2054 | AK13: 2055 | AL13: 2056 | AM13: 2057 | AN13: 2058 | AO13: 2059 | AP13: 2060 | AQ13: 2061 | AR13: 2062 | AS13: 2063 | AT13: 2064 | AU13: 2065 | AV13: 2066 | AW13: 2067 | AX13: 2068 | AY13: 2069 | AZ13: 2070 | BA13: 2071 | BB13: 2072 | BC13: 2073 | BD13: 2074 | BE13: 2075 | BF13: 2076 | BG13: 2077 | BH13: 2078 | BI13: 2079 | BJ13: 2080 | BK13: 2081 | BL13: 2082 | BM13: 2083 | BN13: 2084 | BO13: 2085 | BP13: 2086 | BQ13: 2087 | BR13: 2088 | BS13: 2089 | BT13: 2090 | BU13: 2091 | BV13: 2092 | BW13: 2093 | BX13: 2094 | BY13: 2095 | BZ13: 2096 | CA13: 2097 | CB13: 2098 | CC13: 2099 | CD13: 2100
B14: 0 | C14: 0 | D14: 0.035 | E14: 0.035 | F14: 0.035 | G14: 0.035 | H14: 0.035 | I14: 0.035 | J14: 0.035 | K14: 0.035 | L14: 0.035 | M14: 0.035 | N14: 0.035 | O14: 0.035 | P14: 0.035 | Q14: 0.035 | R14: 0.035 | S14: 0.035 | T14: 0.035 | U14: 0.035 | V14: 0.035 | W14: 0.035 | X14: 0.035 | Y14: 0.035 | Z14: 0.035 | AA14: 0.035 | AB14: 0.035 | AC14: 0.035 | AD14: 0.035 | AE14: 0.035 | AF14: 0.035 | AG14: 0.035 | AH14: 0.03 | AI14: 0.03 | AJ14: 0.03 | AK14: 0.03 | AL14: 0.03 | AM14: 0.03 | AN14: 0.03 | AO14: 0.03 | AP14: 0.03 | AQ14: 0.03 | AR14: 0.03 | AS14: 0.03 | AT14: 0.03 | AU14: 0.03 | AV14: 0.03 | AW14: 0.03 | AX14: 0.03 | AY14: 0.03 | AZ14: 0.03 | BA14: 0.03 | BB14: 0.03 | BC14: 0.03 | BD14: 0.03 | BE14: 0.03 | BF14: 0.03 | BG14: 0.03 | BH14: 0.03 | BI14: 0.03 | BJ14: 0.03 | BK14: 0.03 | BL14: 0.03 | BM14: 0.03 | BN14: 0.03 | BO14: 0.03 | BP14: 0.03 | BQ14: 0.03 | BR14: 0.03 | BS14: 0.03 | BT14: 0.03 | BU14: 0.03 | BV14: 0.03 | BW14: 0.03 | BX14: 0.03 | BY14: 0.03 | BZ14: 0.03 | CA14: 0.025 | CB14: 0.025 | CC14: 0.025 | CD14: 0.025
B16: Health Discount Rate
B17: 2020 | C17: 2021 | D17: 2022 | E17: 2023 | F17: 2024 | G17: 2025 | H17: 2026 | I17: 2027 | J17: 2028 | K17: 2029 | L17: 2030 | M17: 2031 | N17: 2032 | O17: 2033 | P17: 2034 | Q17: 2035 | R17: 2036 | S17: 2037 | T17: 2038 | U17: 2039 | V17: 2040 | W17: 2041 | X17: 2042 | Y17: 2043 | Z17: 2044 | AA17: 2045 | AB17: 2046 | AC17: 2047 | AD17: 2048 | AE17: 2049 | AF17: 2050 | AG17: 2051 | AH17: 2052 | AI17: 2053 | AJ17: 2054 | AK17: 2055 | AL17: 2056 | AM17: 2057 | AN17: 2058 | AO17: 2059 | AP17: 2060 | AQ17: 2061 | AR17: 2062 | AS17: 2063 | AT17: 2064 | AU17: 2065 | AV17: 2066 | AW17: 2067 | AX17: 2068 | AY17: 2069 | AZ17: 2070 | BA17: 2071 | BB17: 2072 | BC17: 2073 | BD17: 2074 | BE17: 2075 | BF17: 2076 | BG17: 2077 | BH17: 2078 | BI17: 2079 | BJ17: 2080 | BK17: 2081 | BL17: 2082 | BM17: 2083 | BN17: 2084 | BO17: 2085 | BP17: 2086 | BQ17: 2087 | BR17: 2088 | BS17: 2089 | BT17: 2090 | BU17: 2091 | BV17: 2092 | BW17: 2093 | BX17: 2094 | BY17: 2095 | BZ17: 2096 | CA17: 2097 | CB17: 2098 | CC17: 2099 | CD17: 2100
B18: 0 | C18: 0 | D18: 0.015 | E18: 0.015 | F18: 0.015 | G18: 0.015 | H18: 0.015 | I18: 0.015 | J18: 0.015 | K18: 0.015 | L18: 0.015 | M18: 0.015 | N18: 0.015 | O18: 0.015 | P18: 0.015 | Q18: 0.015 | R18: 0.015 | S18: 0.015 | T18: 0.015 | U18: 0.015 | V18: 0.015 | W18: 0.015 | X18: 0.015 | Y18: 0.015 | Z18: 0.015 | AA18: 0.015 | AB18: 0.015 | AC18: 0.015 | AD18: 0.015 | AE18: 0.015 | AF18: 0.015 | AG18: 0.015 | AH18: 0.01285714286 | AI18: 0.01285714286 | AJ18: 0.01285714286 | AK18: 0.01285714286 | AL18: 0.01285714286 | AM18: 0.01285714286 | AN18: 0.01285714286 | AO18: 0.01285714286 | AP18: 0.01285714286 | AQ18: 0.01285714286 | AR18: 0.01285714286 | AS18: 0.01285714286 | AT18: 0.01285714286 | AU18: 0.01285714286 | AV18: 0.01285714286 | AW18: 0.01285714286 | AX18: 0.01285714286 | AY18: 0.01285714286 | AZ18: 0.01285714286 | BA18: 0.01285714286 | BB18: 0.01285714286 | BC18: 0.01285714286 | BD18: 0.01285714286 | BE18: 0.01285714286 | BF18: 0.01285714286 | BG18: 0.01285714286 | BH18: 0.01285714286 | BI18: 0.01285714286 | BJ18: 0.01285714286 | BK18: 0.01285714286 | BL18: 0.01285714286 | BM18: 0.01285714286 | BN18: 0.01285714286 | BO18: 0.01285714286 | BP18: 0.01285714286 | BQ18: 0.01285714286 | BR18: 0.01285714286 | BS18: 0.01285714286 | BT18: 0.01285714286 | BU18: 0.01285714286 | BV18: 0.01285714286 | BW18: 0.01285714286 | BX18: 0.01285714286 | BY18: 0.01285714286 | BZ18: 0.01285714286 | CA18: 0.01071428571 | CB18: 0.01071428571 | CC18: 0.01071428571 | CD18: 0.01071428571
B20: 1 | C20: =B20/(1+B14) -> 1 | D20: =C20/(1+C14) -> 1 | E20: 0.9661835749 | F20: 0.9335107004 | G20: 0.9019427057 | H20: 0.8714422277 | I20: 0.8419731669 | J20: 0.8135006443 | K20: 0.7859909607 | L20: 0.7594115562 | M20: 0.7337309722 | N20: 0.7089188137 | O20: 0.6849457137 | P20: 0.6617832983 | Q20: 0.6394041529 | R20: 0.6177817903 | S20: 0.5968906186 | T20: 0.5767059117 | U20: 0.5572037794 | V20: 0.5383611396 | W20: 0.5201556904 | X20: 0.5025658844 | Y20: 0.4855709028 | Z20: 0.4691506308 | AA20: 0.4532856336 | AB20: 0.4379571339 | AC20: 0.4231469893 | AD20: 0.4088376708 | AE20: 0.3950122423 | AF20: 0.3816543404 | AG20: 0.368748155 | AH20: 0.3562784106 | AI20: 0.3459013695 | AJ20: 0.3358265723 | AK20: 0.3260452159 | AL20: 0.3165487533 | AM20: 0.3073288867 | AN20: 0.2983775599 | AO20: 0.2896869513 | AP20: 0.2812494673 | AQ20: 0.2730577353 | AR20: 0.2651045973 | AS20: 0.2573831042 | AT20: 0.2498865089 | AU20: 0.2426082611 | AV20: 0.2355420011 | AW20: 0.2286815544 | AX20: 0.2220209266 | AY20: 0.2155542977 | AZ20: 0.2092760172 | BA20: 0.2031805992 | BB20: 0.1972627177 | BC20: 0.1915172016 | BD20: 0.1859390307 | BE20: 0.1805233308 | BF20: 0.1752653697 | BG20: 0.1701605531 | BH20: 0.1652044205 | BI20: 0.1603926413 | BJ20: 0.1557210109 | BK20: 0.1511854475 | BL20: 0.1467819879 | BM20: 0.1425067843 | BN20: 0.1383561013 | BO20: 0.1343263119 | BP20: =BO20/(1+BO14) -> 0.1304138951 | BQ20: 0.1266154321 | BR20: 0.122927604 | BS20: 0.1193471884 | BT20: 0.1158710567 | BU20: 0.1124961715 | BV20: 0.109219584 | BW20: 0.1060384311 | BX20: 0.1029499331 | BY20: 0.09995139133 | BZ20: 0.09704018575 | CA20: 0.09421377258 | CB20: 0.09191587568 | CC20: 0.08967402506 | CD20: 0.08748685372 | CE20: =CD20/(1+BZ14) -> 0.08493869293 | CF20: 0.08286701749 | CG20: 0.08084587072 | CH20: 0.07887402022
B21: 1 | C21: =B21/(1+B18) -> 1 | D21: =C21/(1+C18) -> 1 | E21: 0.9852216749 | F21: 0.9706617486 | G21: 0.9563169937 | H21: 0.9421842303 | I21: 0.9282603254 | J21: 0.9145421925 | K21: 0.9010267907 | L21: 0.8877111238 | M21: 0.8745922402 | N21: 0.8616672317 | O21: 0.8489332332 | P21: 0.8363874219 | Q21: 0.8240270166 | R21: 0.8118492775 | S21: 0.7998515049 | T21: 0.7880310393 | U21: 0.7763852604 | V21: 0.7649115866 | W21: 0.7536074745 | X21: 0.7424704182 | Y21: 0.731497949 | Z21: 0.7206876345 | AA21: 0.7100370783 | AB21: 0.6995439195 | AC21: 0.689205832 | AD21: 0.6790205242 | AE21: 0.6689857381 | AF21: 0.6590992494 | AG21: 0.6493588664 | AH21: 0.6397624299 | AI21: 0.6316413271 | AJ21: 0.6236233131 | AK21: 0.6157070792 | AL21: 0.6078913335 | AM21: 0.6001748004 | AN21: 0.5925562204 | AO21: 0.5850343502 | AP21: 0.5776079621 | AQ21: 0.5702758441 | AR21: 0.5630367995 | AS21: 0.5558896469 | AT21: 0.5488332198 | AU21: 0.5418663665 | AV21: 0.53498795 | AW21: 0.5281968477 | AX21: 0.5214919512 | AY21: 0.5148721662 | AZ21: 0.5083364123 | BA21: 0.5018836229 | BB21: 0.4955127447 | BC21: 0.4892227381 | BD21: 0.4830125764 | BE21: 0.4768812461 | BF21: 0.4708277465 | BG21: 0.4648510896 | BH21: 0.4589503001 | BI21: 0.4531244147 | BJ21: 0.4473724828 | BK21: 0.4416935655 | BL21: 0.4360867361 | BM21: 0.4305510793 | BN21: 0.4250856919 | BO21: 0.4196896817 | BP21: =BO21/(1+BO18) -> 0.4143621681 | BQ21: 0.4091022816 | BR21: 0.4039091638 | BS21: 0.3987819671 | BT21: 0.3937198547 | BU21: 0.3887220004 | BV21: 0.3837875885 | BW21: 0.3789158138 | BX21: 0.374105881 | BY21: 0.3693570052 | BZ21: 0.3646684114 | CA21: 0.3600393342 | CB21: 0.3562226628 | CC21: 0.3524464508 | CD21: 0.3487102694 | CE21: =CD21/(1+BZ18) -> 0.3442837639 | CF21: 0.3406341126 | CG21: 0.3370231503 | CH21: 0.3334504668

Sheet Benefits
A1: Project title: | B1: =Title -> 0
AH2: 1 | AI2: 2 | AJ2: 3 | AK2: 4 | AL2: 5 | AM2: 6 | AN2: 7 | AO2: 8 | AP2: 9 | AQ2: 10 | AR2: 11 | AS2: 12 | AT2: 13 | AU2: 14 | AV2: 15 | AW2: 16 | AX2: 17 | AY2: 18 | AZ2: 19 | BA2: 20 | BB2: 21 | BC2: 22 | BD2: 23 | BE2: 24 | BF2: 25 | BG2: 26 | BH2: 27 | BI2: 28 | BJ2: 29 | BK2: 30 | BL2: 31 | BM2: 32 | BN2: 33 | BO2: 34 | BP2: 35 | BQ2: 36 | BR2: 37 | BS2: 38 | BT2: 39 | BU2: 40 | BV2: 41 | BW2: 42 | BX2: 43 | BY2: 44 | BZ2: 45 | CA2: 46 | CB2: 47 | CC2: 48 | CD2: 49 | CE2: 50 | CF2: 51 | CG2: 52 | CH2: 53 | CI2: 54 | CJ2: 55 | CK2: 56 | CL2: 57 | CM2: 58 | CN2: 59 | CO2: 60 | CP2: 61 | CQ2: 62 | CR2: 63 | CS2: 64 | CT2: 65 | CU2: 66 | CV2: 67 | CW2: 68 | CX2: 69 | CY2: 70 | CZ2: 71 | DA2: 72 | DB2: 73 | DC2: 74 | DD2: 75 | DE2: 76 | DF2: 77 | DG2: 78 | DH2: 79 | DI2: 80 | DJ2: 81 | DK2: 82 | DL2: 83 | DM2: 84 | DN2: 85 | DP2: 1 | DQ2: 2 | DR2: 3 | DS2: 4 | DT2: 5 | DU2: 6 | DV2: 7 | DW2: 8 | DX2: 9 | DY2: 10 | DZ2: 11 | EA2: 12 | EB2: 13 | EC2: 14 | ED2: 15 | EE2: 16 | EF2: 17 | EG2: 18 | EH2: 19 | EI2: 20 | EJ2: 21 | EK2: 22 | EL2: 23 | EM2: 24 | EN2: 25 | EO2: 26 | EP2: 27 | EQ2: 28 | ER2: 29 | ES2: 30 | ET2: 31 | EU2: 32 | EV2: 33 | EW2: 34 | EX2: 35 | EY2: 36 | EZ2: 37 | FA2: 38 | FB2: 39 | FC2: 40 | FD2: 41 | FE2: 42 | FF2: 43 | FG2: 44 | FH2: 45 | FI2: 46 | FJ2: 47 | FK2: 48 | FL2: 49 | FM2: 50 | FN2: 51 | FO2: 52 | FP2: 53 | FQ2: 54 | FR2: 55 | FS2: 56 | FT2: 57 | FU2: 58 | FV2: 59 | FW2: 60 | FX2: 61 | FY2: 62 | FZ2: 63 | GA2: 64 | GB2: 65 | GC2: 66 | GD2: 67 | GE2: 68 | GF2: 69 | GG2: 70 | GH2: 71 | GI2: 72 | GJ2: 73 | GK2: 74 | GL2: 75 | GM2: 76 | GN2: 77 | GO2: 78 | GP2: 79 | GQ2: 80 | GR2: 81 | GS2: 82 | GT2: 83 | GU2: 84 | GV2: 85 | GY2: 1 | GZ2: 2 | HA2: 3 | HB2: 4 | HC2: 5 | HD2: 6 | HE2: 7 | HF2: 8 | HG2: 9 | HH2: 10 | HI2: 11 | HJ2: 12 | HK2: 13 | HL2: 14 | HM2: 15 | HN2: 16 | HO2: 17 | HP2: 18 | HQ2: 19 | HR2: 20 | HS2: 21 | HT2: 22 | HU2: 23 | HV2: 24 | HW2: 25 | HX2: 26 | HY2: 27 | HZ2: 28 | IA2: 29 | IB2: 30 | IC2: 31 | ID2: 32 | IE2: 33 | IF2: 34 | IG2: 35 | IH2: 36 | II2: 37 | IJ2: 38 | IK2: 39 | IL2: 40 | IM2: 41 | IN2: 42 | IO2: 43 | IP2: 44 | IQ2: 45 | IR2: 46 | IS2: 47 | IT2: 48 | IU2: 49 | IV2: 50 | IW2: 51 | IX2: 52 | IY2: 53 | IZ2: 54 | JA2: 55 | JB2: 56 | JC2: 57 | JD2: 58 | JE2: 59 | JF2: 60 | JG2: 61 | JH2: 62 | JI2: 63 | JJ2: 64 | JK2: 65 | JL2: 66 | JM2: 67 | JN2: 68 | JO2: 69 | JP2: 70 | JQ2: 71 | JR2: 72 | JS2: 73 | JT2: 74 | JU2: 75 | JV2: 76 | JW2: 77 | JX2: 78 | JY2: 79 | JZ2: 80 | KA2: 81 | KB2: 82 | KC2: 83 | KD2: 84 | KE2: 85 | KH2: 1 | KI2: 2 | KJ2: 3 | KK2: 4 | KL2: 5 | KM2: 6 | KN2: 7 | KO2: 8 | KP2: 9 | KQ2: 10 | KR2: 11 | KS2: 12 | KT2: 13 | KU2: 14 | KV2: 15 | KW2: 16 | KX2: 17 | KY2: 18 | KZ2: 19 | LA2: 20 | LB2: 21 | LC2: 22 | LD2: 23 | LE2: 24 | LF2: 25 | LG2: 26 | LH2: 27 | LI2: 28 | LJ2: 29 | LK2: 30 | LL2: 31 | LM2: 32 | LN2: 33 | LO2: 34 | LP2: 35 | LQ2: 36 | LR2: 37 | LS2: 38 | LT2: 39 | LU2: 40 | LV2: 41 | LW2: 42 | LX2: 43 | LY2: 44 | LZ2: 45 | MA2: 46 | MB2: 47 | MC2: 48 | MD2: 49 | ME2: 50 | MF2: 51 | MG2: 52 | MH2: 53 | MI2: 54 | MJ2: 55 | MK2: 56 | ML2: 57 | MM2: 58 | MN2: 59 | MO2: 60 | MP2: 61 | MQ2: 62 | MR2: 63 | MS2: 64 | MT2: 65 | MU2: 66 | MV2: 67 | MW2: 68 | MX2: 69 | MY2: 70 | MZ2: 71 | NA2: 72 | NB2: 73 | NC2: 74 | ND2: 75 | NE2: 76 | NF2: 77 | NG2: 78 | NH2: 79 | NI2: 80 | NJ2: 81 | NK2: 82 | NL2: 83 | NM2: 84 | NN2: 85 | NQ2: Agencies benefiting - % split | OL2: Agencies - % short term cashability | PG2: Agencies benefiting - % long term cashability | QB2: Agencies benefiting - £ - Overall gross total | QW2: Agencies benefiting - £ - Overall short term cashable savings | RT2: Agencies benefiting - £ - Overall at scale cashable savings total
A3: Benefits | S3: Public Value | DP3: Fiscal Value | GY3: Economic Value | KH3: Social Value | NQ3: 1 | NR3: =IF((20-COUNTIF(Agencieslist,""))>NQ3,NQ3+1,"") -> 2 | NS3: 3 | NT3: 4 | NU3: 5 | NV3: 6 | NW3: 7 | NX3: 8 | NY3: 9 | NZ3: 10 | OA3: 11 | OB3: 12 | OC3: 13 | OL3: 1 | OM3: =IF((20-COUNTIF(Agencieslist,""))>OL3,OL3+1,"") -> 2 | ON3: 3 | OO3: 4 | OP3: 5 | OQ3: 6 | OR3: 7 | OS3: 8 | OT3: 9 | OU3: 10 | OV3: 11 | OW3: 12 | OX3: 13 | PG3: 1 | PH3: =IF((20-COUNTIF(Agencieslist,""))>PG3,PG3+1,"") -> 2 | PI3: 3 | PJ3: 4 | PK3: 5 | PL3: 6 | PM3: 7 | PN3: 8 | PO3: 9 | PP3: 10 | PQ3: 11 | PR3: 12 | PS3: 13 | QB3: 1 | QC3: =IF((20-COUNTIF(Agencieslist,""))>QB3,QB3+1,"") -> 2 | QD3: 3 | QE3: 4 | QF3: 5 | QG3: 6 | QH3: 7 | QI3: 8 | QJ3: 9 | QK3: 10 | QL3: 11 | QM3: 12 | QN3: 13 | QW3: 1 | QX3: =IF((20-COUNTIF(Agencieslist,""))>QW3,QW3+1,"") -> 2 | QY3: 3 | QZ3: 4 | RA3: 5 | RB3: 6 | RC3: 7 | RD3: 8 | RE3: 9 | RF3: 10 | RG3: 11 | RH3: 12 | RI3: 13 | RT3: 1 | RU3: =IF((20-COUNTIF(Agencieslist,""))>RT3,RT3+1,"") -> 2 | RV3: 3 | RW3: 4 | RX3: 5 | RY3: 6 | RZ3: 7 | SA3: 8 | SB3: 9 | SC3: 10 | SD3: 11 | SE3: 12 | SF3: 13
A4: Ref. | B4: Outcomes | C4: Included outcome? | D4: Benefits | E4: Who does benefit accrue to? | F4: Target population | G4: Pop notes/ assumptions | H4: Affected population / Predicted incidents | I4: Affected pop notes/ assumptions | J4: Level of engagement with the affected population (%) | K4: % engagement notes / assumptions | L4: Retention rate (%) | M4: % retention notes / assumptions | N4: % impact (effectiveness of changing skills / attitudes / behaviours) | O4: % impact notes / assumptions / sources | P4: % deadweight | Q4: % deadweight notes / assumptions | R4: Unit fiscal benefit (£) | S4: Unit public value (fiscal) benefit (£) | T4: Unit public value (economic) benefit (£) | U4: Unit public value (social) benefit (£) | V4: Unit public value (total) benefit (£) | W4: Monetisation evidence financial year | X4: GDP deflator compared to price base year | Y4: Unit cost notes /assumptions | Z4: Optimism bias correction | AA4: Discount Rate | AB4: Fiscal Benefit | AC4: Economic Benefit | AD4: Social Benefit | AE4: Overall Public Value Benefit | AF4: Assumptions on impact lag and drop-off | AH4: % Impact year 1 | AI4: % Impact year 2 | AJ4: % Impact year 3 | AK4: % Impact year 4 | AL4: % Impact year 5 | AM4: % Impact year 6 | AN4: % Impact year 7 | AO4: % Impact year 8 | AP4: % Impact year 9 | AQ4: % Impact year 10 | AR4: % Impact year 11 | AS4: % Impact year 12 | AT4: % Impact year 13 | AU4: % Impact year 14 | AV4: % Impact year 15 | AW4: % Impact year 16 | AX4: % Impact year 17 | AY4: % Impact year 18 | AZ4: % Impact year 19 | BA4: % Impact year 20 | BB4: % Impact year 21 | BC4: % Impact year 22 | BD4: % Impact year 23 | BE4: % Impact year 24 | BF4: % Impact year 25 | BG4: % Impact year 26 | BH4: % Impact year 27 | BI4: % Impact year 28 | BJ4: % Impact year 29 | BK4: % Impact year 30 | BL4: % Impact year 31 | BM4: % Impact year 32 | BN4: % Impact year 33 | BO4: % Impact year 34 | BP4: % Impact year 35 | BQ4: % Impact year 36 | BR4: % Impact year 37 | BS4: % Impact year 38 | BT4: % Impact year 39 | BU4: % Impact year 40 | BV4: % Impact year 41 | BW4: % Impact year 42 | BX4: % Impact year 43 | BY4: % Impact year 44 | BZ4: % Impact year 45 | CA4: % Impact year 46 | CB4: % Impact year 47 | CC4: % Impact year 48 | CD4: % Impact year 49 | CE4: % Impact year 50 | CF4: % Impact year 51 | CG4: % Impact year 52 | CH4: % Impact year 53 | CI4: % Impact year 54 | CJ4: % Impact year 55 | CK4: % Impact year 56 | CL4: % Impact year 57 | CM4: % Impact year 58 | CN4: % Impact year 59 | CO4: % Impact year 60 | CP4: % Impact year 61 | CQ4: % Impact year 62 | CR4: % Impact year 63 | CS4: % Impact year 64 | CT4: % Impact year 65 | CU4: % Impact year 66 | CV4: % Impact year 67 | CW4: % Impact year 68 | CX4: % Impact year 69 | CY4: % Impact year 70 | CZ4: % Impact year 71 | DA4: % Impact year 72 | DB4: % Impact year 73 | DC4: % Impact year 74 | DD4: % Impact year 75 | DE4: % Impact year 76 | DF4: % Impact year 77 | DG4: % Impact year 78 | DH4: % Impact year 79 | DI4: % Impact year 80 | DJ4: % Impact year 81 | DK4: % Impact year 82 | DL4: % Impact year 83 | DM4: % Impact year 84 | DN4: % Impact year 85 | DP4: Impact year 1 | DQ4: Impact year 2 | DR4: Impact year 3 | DS4: Impact year 4 | DT4: Impact year 5 | DU4: Impact year 6 | DV4: Impact year 7 | DW4: Impact year 8 | DX4: Impact year 9 | DY4: Impact year 10 | DZ4: Impact year 11 | EA4: Impact year 12 | EB4: Impact year 13 | EC4: Impact year 14 | ED4: Impact year 15 | EE4: Impact year 16 | EF4: Impact year 17 | EG4: Impact year 18 | EH4: Impact year 19 | EI4: Impact year 20 | EJ4: Impact year 21 | EK4: Impact year 22 | EL4: Impact year 23 | EM4: Impact year 24 | EN4: Impact year 25 | EO4: Impact year 26 | EP4: Impact year 27 | EQ4: Impact year 28 | ER4: Impact year 29 | ES4: Impact year 30 | ET4: Impact year 31 | EU4: Impact year 32 | EV4: Impact year 33 | EW4: Impact year 34 | EX4: Impact year 35 | EY4: Impact year 36 | EZ4: Impact year 37 | FA4: Impact year 38 | FB4: Impact year 39 | FC4: Impact year 40 | FD4: Impact year 41 | FE4: Impact year 42 | FF4: Impact year 43 | FG4: Impact year 44 | FH4: Impact year 45 | FI4: Impact year 46 | FJ4: Impact year 47 | FK4: Impact year 48 | FL4: Impact year 49 | FM4: Impact year 50 | FN4: Impact year 51 | FO4: Impact year 52 | FP4: Impact year 53 | FQ4: Impact year 54 | FR4: Impact year 55 | FS4: Impact year 56 | FT4: Impact year 57 | FU4: Impact year 58 | FV4: Impact year 59 | FW4: Impact year 60 | FX4: Impact year 61 | FY4: Impact year 62 | FZ4: Impact year 63 | GA4: Impact year 64 | GB4: Impact year 65 | GC4: Impact year 66 | GD4: Impact year 67 | GE4: Impact year 68 | GF4: Impact year 69 | GG4: Impact year 70 | GH4: Impact year 71 | GI4: Impact year 72 | GJ4: Impact year 73 | GK4: Impact year 74 | GL4: Impact year 75 | GM4: Impact year 76 | GN4: Impact year 77 | GO4: Impact year 78 | GP4: Impact year 79 | GQ4: Impact year 80 | GR4: Impact year 81 | GS4: Impact year 82 | GT4: Impact year 83 | GU4: Impact year 84 | GV4: Impact year 85 | GW4: Overall gross fiscal benefit | GY4: Impact year 1 | GZ4: Impact year 2 | HA4: Impact year 3 | HB4: Impact year 4 | HC4: Impact year 5 | HD4: Impact year 6 | HE4: Impact year 7 | HF4: Impact year 8 | HG4: Impact year 9 | HH4: Impact year 10 | HI4: Impact year 11 | HJ4: Impact year 12 | HK4: Impact year 13 | HL4: Impact year 14 | HM4: Impact year 15 | HN4: Impact year 16 | HO4: Impact year 17 | HP4: Impact year 18 | HQ4: Impact year 19 | HR4: Impact year 20 | HS4: Impact year 21 | HT4: Impact year 22 | HU4: Impact year 23 | HV4: Impact year 24 | HW4: Impact year 25 | HX4: Impact year 26 | HY4: Impact year 27 | HZ4: Impact year 28 | IA4: Impact year 29 | IB4: Impact year 30 | IC4: Impact year 31 | ID4: Impact year 32 | IE4: Impact year 33 | IF4: Impact year 34 | IG4: Impact year 35 | IH4: Impact year 36 | II4: Impact year 37 | IJ4: Impact year 38 | IK4: Impact year 39 | IL4: Impact year 40 | IM4: Impact year 41 | IN4: Impact year 42 | IO4: Impact year 43 | IP4: Impact year 44 | IQ4: Impact year 45 | IR4: Impact year 46 | IS4: Impact year 47 | IT4: Impact year 48 | IU4: Impact year 49 | IV4: Impact year 50 | IW4: Impact year 51 | IX4: Impact year 52 | IY4: Impact year 53 | IZ4: Impact year 54 | JA4: Impact year 55 | JB4: Impact year 56 | JC4: Impact year 57 | JD4: Impact year 58 | JE4: Impact year 59 | JF4: Impact year 60 | JG4: Impact year 61 | JH4: Impact year 62 | JI4: Impact year 63 | JJ4: Impact year 64 | JK4: Impact year 65 | JL4: Impact year 66 | JM4: Impact year 67 | JN4: Impact year 68 | JO4: Impact year 69 | JP4: Impact year 70 | JQ4: Impact year 71 | JR4: Impact year 72 | JS4: Impact year 73 | JT4: Impact year 74 | JU4: Impact year 75 | JV4: Impact year 76 | JW4: Impact year 77 | JX4: Impact year 78 | JY4: Impact year 79 | JZ4: Impact year 80 | KA4: Impact year 81 | KB4: Impact year 82 | KC4: Impact year 83 | KD4: Impact year 84 | KE4: Impact year 85 | KF4: Overall economic benefit | KH4: Impact year 1 | KI4: Impact year 2 | KJ4: Impact year 3 | KK4: Impact year 4 | KL4: Impact year 5 | KM4: Impact year 6 | KN4: Impact year 7 | KO4: Impact year 8 | KP4: Impact year 9 | KQ4: Impact year 10 | KR4: Impact year 11 | KS4: Impact year 12 | KT4: Impact year 13 | KU4: Impact year 14 | KV4: Impact year 15 | KW4: Impact year 16 | KX4: Impact year 17 | KY4: Impact year 18 | KZ4: Impact year 19 | LA4: Impact year 20 | LB4: Impact year 21 | LC4: Impact year 22 | LD4: Impact year 23 | LE4: Impact year 24 | LF4: Impact year 25 | LG4: Impact year 26 | LH4: Impact year 27 | LI4: Impact year 28 | LJ4: Impact year 29 | LK4: Impact year 30 | LL4: Impact year 31 | LM4: Impact year 32 | LN4: Impact year 33 | LO4: Impact year 34 | LP4: Impact year 35 | LQ4: Impact year 36 | LR4: Impact year 37 | LS4: Impact year 38 | LT4: Impact year 39 | LU4: Impact year 40 | LV4: Impact year 41 | LW4: Impact year 42 | LX4: Impact year 43 | LY4: Impact year 44 | LZ4: Impact year 45 | MA4: Impact year 46 | MB4: Impact year 47 | MC4: Impact year 48 | MD4: Impact year 49 | ME4: Impact year 50 | MF4: Impact year 51 | MG4: Impact year 52 | MH4: Impact year 53 | MI4: Impact year 54 | MJ4: Impact year 55 | MK4: Impact year 56 | ML4: Impact year 57 | MM4: Impact year 58 | MN4: Impact year 59 | MO4: Impact year 60 | MP4: Impact year 61 | MQ4: Impact year 62 | MR4: Impact year 63 | MS4: Impact year 64 | MT4: Impact year 65 | MU4: Impact year 66 | MV4: Impact year 67 | MW4: Impact year 68 | MX4: Impact year 69 | MY4: Impact year 70 | MZ4: Impact year 71 | NA4: Impact year 72 | NB4: Impact year 73 | NC4: Impact year 74 | ND4: Impact year 75 | NE4: Impact year 76 | NF4: Impact year 77 | NG4: Impact year 78 | NH4: Impact year 79 | NI4: Impact year 80 | NJ4: Impact year 81 | NK4: Impact year 82 | NL4: Impact year 83 | NM4: Impact year 84 | NN4: Impact year 85 | NO4: Overall social benefit | NQ4: =IF(NQ$3<>"",INDEX(Agencieslist,NQ$3),"") -> Local Authority | NR4: NHS | NS4: Police | NT4: Probation | NU4: Courts/Legal aid | NV4: Prisons | NW4: Other CJS | NX4: DWP (AME) | NY4: HMRC | NZ4: Schools | OA4: Housing providers | OB4: Victims services | OC4: Local Business | OL4: Local Authority | OM4: NHS | ON4: Police | OO4: Probation | OP4: Courts/Legal aid | OQ4: Prisons | OR4: Other CJS | OS4: DWP (AME) | OT4: HMRC | OU4: Schools | OV4: Housing providers | OW4: Victims services | OX4: Local Business | PG4: Local Authority | PH4: NHS | PI4: Police | PJ4: Probation | PK4: Courts/Legal aid | PL4: Prisons | PM4: Other CJS | PN4: DWP (AME) | PO4: HMRC | PP4: Schools | PQ4: Housing providers | PR4: Victims services | PS4: Local Business | QB4: =IF(QB$3<>0,INDEX(Agencieslist,QB$3),"") -> Local Authority | QC4: =IF(QC$3<>"",INDEX(Agencieslist,QC$3),"") -> NHS | QD4: Police | QE4: Probation | QF4: Courts/Legal aid | QG4: Prisons | QH4: Other CJS | QI4: DWP (AME) | QJ4: HMRC | QK4: Schools | QL4: Housing providers | QM4: Victims services | QN4: Local Business | QW4: =IF(QW$3<>0,INDEX(Agencieslist,QW$3),"") -> Local Authority | QX4: =IF(QX$3<>"",INDEX(Agencieslist,QX$3),"") -> NHS | QY4: Police | QZ4: Probation | RA4: Courts/Legal aid | RB4: Prisons | RC4: Other CJS | RD4: DWP (AME) | RE4: HMRC | RF4: Schools | RG4: Housing providers | RH4: Victims services | RI4: Local Business | RR4: Overall Short term cashability | RT4: =IF(RT$3<>0,INDEX(Agencieslist,RT$3),"") -> Local Authority | RU4: =IF(RU$3<>"",INDEX(Agencieslist,RU$3),"") -> NHS | RV4: Police | RW4: Probation | RX4: Courts/Legal aid | RY4: Prisons | RZ4: Other CJS | SA4: DWP (AME) | SB4: HMRC | SC4: Schools | SD4: Housing providers | SE4: Victims services | SF4: Local Business | SO4: Overall long term/large scale cashability
A5: B1 | B5: Increased employment (reduced benefits payments and health impact) | C5: Yes | D5: 1) Fiscal benefit of moving people off benefits and into work 2) Improved health outcomes 3) Increased income | E5: 1) DWP/HMT 2) DH 3) Individuals | I5: Jobseeker's Allowance (JSA) | R5: 12657 | S5: =1148+585 -> 1733 | T5: 17420 | V5: =S5+T5+U5 -> 19153 | W5: 2017 | X5: =VLOOKUP(W5,'GDP Deflators'!$B$6:$D$106,3,FALSE) -> 90.16508977 | Y5: DWP modelling (unpublished) | AA5: Standard Rate | AB5: =IF($C5="Yes",($H5*$J5*$L5*($N5-$P5)*R5*100*(1+$Z5)/$X5),0) -> 0 | AC5: =IF($C5="Yes",($H5*$J5*$L5*($N5-$P5)*(T5)*100*(1+$Z5)/$X5),0) -> 0 | AD5: =IF($C5="Yes",($H5*$J5*$L5*($N5-$P5)*U5*100*(1+$Z5)/$X5),0) -> 0 | AE5: =IF($C5="Yes",($H5*$J5*$L5*($N5-$P5)*V5*100*(1+$Z5)/$X5),0) -> 0 | DP5: =IF(DP$2<=time_frame,$AB5*AH5,"") -> 0 | DQ5: =IF(DQ$2<=time_frame,$AB5*AI5,"") -> 0 | DR5: =IF(DR$2<=time_frame,$AB5*AJ5,"") -> 0 | DS5: =IF(DS$2<=time_frame,$AB5*AK5,"") -> 0 | DT5: =IF(DT$2<=time_frame,$AB5*AL5,"") -> 0 | DU5: =IF(DU$2<=time_frame,$AB5*AM5,"") -> 0 | DV5: =IF(DV$2<=time_frame,$AB5*AN5,"") -> 0 | DW5: =IF(DW$2<=time_frame,$AB5*AO5,"") -> 0 | DX5: =IF(DX$2<=time_frame,$AB5*AP5,"") -> 0 | DY5: =IF(DY$2<=time_frame,$AB5*AQ5,"") -> 0 | DZ5: =IF(DZ$2<=time_frame,$AB5*AR5,"") ->  | EA5: =IF(EA$2<=time_frame,$AB5*AS5,"") ->  | EB5: =IF(EB$2<=time_frame,$AB5*AT5,"") ->  | EC5: =IF(EC$2<=time_frame,$AB5*AU5,"") ->  | ED5: =IF(ED$2<=time_frame,$AB5*AV5,"") ->  | EE5: =IF(EE$2<=time_frame,$AB5*AW5,"") ->  | EF5: =IF(EF$2<=time_frame,$AB5*AX5,"") ->  | EG5: =IF(EG$2<=time_frame,$AB5*AY5,"") ->  | EH5: =IF(EH$2<=time_frame,$AB5*AZ5,"") ->  | EI5: =IF(EI$2<=time_frame,$AB5*BA5,"") ->  | EJ5: =IF(EJ$2<=time_frame,$AB5*BB5,"") ->  | EK5: =IF(EK$2<=time_frame,$AB5*BC5,"") ->  | EL5: =IF(EL$2<=time_frame,$AB5*BD5,"") ->  | EM5: =IF(EM$2<=time_frame,$AB5*BE5,"") ->  | EN5: =IF(EN$2<=time_frame,$AB5*BF5,"") ->  | EO5: =IF(EO$2<=time_frame,$AB5*BG5,"") ->  | EP5: =IF(EP$2<=time_frame,$AB5*BH5,"") ->  | EQ5: =IF(EQ$2<=time_frame,$AB5*BI5,"") ->  | ER5: =IF(ER$2<=time_frame,$AB5*BJ5,"") ->  | ES5: =IF(ES$2<=time_frame,$AB5*BK5,"") ->  | ET5: =IF(ET$2<=time_frame,$AB5*BL5,"") ->  | EU5: =IF(EU$2<=time_frame,$AB5*BM5,"") ->  | EV5: =IF(EV$2<=time_frame,$AB5*BN5,"") ->  | EW5: =IF(EW$2<=time_frame,$AB5*BO5,"") ->  | EX5: =IF(EX$2<=time_frame,$AB5*BP5,"") ->  | EY5: =IF(EY$2<=time_frame,$AB5*BQ5,"") ->  | EZ5: =IF(EZ$2<=time_frame,$AB5*BR5,"") ->  | FA5: =IF(FA$2<=time_frame,$AB5*BS5,"") ->  | FB5: =IF(FB$2<=time_frame,$AB5*BT5,"") ->  | FC5: =IF(FC$2<=time_frame,$AB5*BU5,"") ->  | FD5: =IF(FD$2<=time_frame,$AB5*BV5,"") ->  | FE5: =IF(FE$2<=time_frame,$AB5*BW5,"") ->  | FF5: =IF(FF$2<=time_frame,$AB5*BX5,"") ->  | FG5: =IF(FG$2<=time_frame,$AB5*BY5,"") ->  | FH5: =IF(FH$2<=time_frame,$AB5*BZ5,"") ->  | FI5: =IF(FI$2<=time_frame,$AB5*CA5,"") ->  | FJ5: =IF(FJ$2<=time_frame,$AB5*CB5,"") ->  | FK5: =IF(FK$2<=time_frame,$AB5*CC5,"") ->  | FL5: =IF(FL$2<=time_frame,$AB5*CD5,"") ->  | FM5: =IF(FM$2<=time_frame,$AB5*CE5,"") ->  | FN5: =IF(FN$2<=time_frame,$AB5*CF5,"") ->  | FO5: =IF(FO$2<=time_frame,$AB5*CG5,"") ->  | FP5: =IF(FP$2<=time_frame,$AB5*CH5,"") ->  | FQ5: =IF(FQ$2<=time_frame,$AB5*CI5,"") ->  | FR5: =IF(FR$2<=time_frame,$AB5*CJ5,"") ->  | FS5: =IF(FS$2<=time_frame,$AB5*CK5,"") ->  | FT5: =IF(FT$2<=time_frame,$AB5*CL5,"") ->  | FU5: =IF(FU$2<=time_frame,$AB5*CM5,"") ->  | FV5: =IF(FV$2<=time_frame,$AB5*CN5,"") ->  | FW5: =IF(FW$2<=time_frame,$AB5*CO5,"") ->  | FX5: =IF(FX$2<=time_frame,$AB5*CP5,"") ->  | FY5: =IF(FY$2<=time_frame,$AB5*CQ5,"") ->  | FZ5: =IF(FZ$2<=time_frame,$AB5*CR5,"") ->  | GA5: =IF(GA$2<=time_frame,$AB5*CS5,"") ->  | GB5: =IF(GB$2<=time_frame,$AB5*CT5,"") ->  | GC5: =IF(GC$2<=time_frame,$AB5*CU5,"") ->  | GD5: =IF(GD$2<=time_frame,$AB5*CV5,"") ->  | GE5: =IF(GE$2<=time_frame,$AB5*CW5,"") ->  | GF5: =IF(GF$2<=time_frame,$AB5*CX5,"") ->  | GG5: =IF(GG$2<=time_frame,$AB5*CY5,"") ->  | GH5: =IF(GH$2<=time_frame,$AB5*CZ5,"") ->  | GI5: =IF(GI$2<=time_frame,$AB5*DA5,"") ->  | GJ5: =IF(GJ$2<=time_frame,$AB5*DB5,"") ->  | GK5: =IF(GK$2<=time_frame,$AB5*DC5,"") ->  | GL5: =IF(GL$2<=time_frame,$AB5*DD5,"") ->  | GM5: =IF(GM$2<=time_frame,$AB5*DE5,"") ->  | GN5: =IF(GN$2<=time_frame,$AB5*DF5,"") ->  | GO5: =IF(GO$2<=time_frame,$AB5*DG5,"") ->  | GP5: =IF(GP$2<=time_frame,$AB5*DH5,"") ->  | GQ5: =IF(GQ$2<=time_frame,$AB5*DI5,"") ->  | GR5: =IF(GR$2<=time_frame,$AB5*DJ5,"") ->  | GS5: =IF(GS$2<=time_frame,$AB5*DK5,"") ->  | GT5: =IF(GT$2<=time_frame,$AB5*DL5,"") ->  | GU5: =IF(GU$2<=time_frame,$AB5*DN5,"") ->  | GW5: =SUM(DP5:GU5) -> 0 | GY5: =IF(GY$2<=time_frame,$AC5*AH5,"") -> 0 | GZ5: =IF(GZ$2<=time_frame,$AC5*AI5,"") -> 0 | HA5: =IF(HA$2<=time_frame,$AC5*AJ5,"") -> 0 | HB5: =IF(HB$2<=time_frame,$AC5*AK5,"") -> 0 | HC5: =IF(HC$2<=time_frame,$AC5*AL5,"") -> 0 | HD5: =IF(HD$2<=time_frame,$AC5*AM5,"") -> 0 | HE5: =IF(HE$2<=time_frame,$AC5*AN5,"") -> 0 | HF5: =IF(HF$2<=time_frame,$AC5*AO5,"") -> 0 | HG5: =IF(HG$2<=time_frame,$AC5*AP5,"") -> 0 | HH5: =IF(HH$2<=time_frame,$AC5*AQ5,"") -> 0 | HI5: =IF(HI$2<=time_frame,$AC5*AR5,"") ->  | HJ5: =IF(HJ$2<=time_frame,$AC5*AS5,"") ->  | HK5: =IF(HK$2<=time_frame,$AC5*AT5,"") ->  | HL5: =IF(HL$2<=time_frame,$AC5*AU5,"") ->  | HM5: =IF(HM$2<=time_frame,$AC5*AV5,"") ->  | HN5: =IF(HN$2<=time_frame,$AC5*AW5,"") ->  | HO5: =IF(HO$2<=time_frame,$AC5*AX5,"") ->  | HP5: =IF(HP$2<=time_frame,$AC5*AY5,"") ->  | HQ5: =IF(HQ$2<=time_frame,$AC5*AZ5,"") ->  | HR5: =IF(HR$2<=time_frame,$AC5*BA5,"") ->  | HS5: =IF(HS$2<=time_frame,$AC5*BB5,"") ->  | HT5: =IF(HT$2<=time_frame,$AC5*BC5,"") ->  | HU5: =IF(HU$2<=time_frame,$AC5*BD5,"") ->  | HV5: =IF(HV$2<=time_frame,$AC5*BE5,"") ->  | HW5: =IF(HW$2<=time_frame,$AC5*BF5,"") ->  | HX5: =IF(HX$2<=time_frame,$AC5*BG5,"") ->  | HY5: =IF(HY$2<=time_frame,$AC5*BH5,"") ->  | HZ5: =IF(HZ$2<=time_frame,$AC5*BI5,"") ->  | IA5: =IF(IA$2<=time_frame,$AC5*BJ5,"") ->  | IB5: =IF(IB$2<=time_frame,$AC5*BK5,"") ->  | IC5: =IF(IC$2<=time_frame,$AC5*BL5,"") ->  | ID5: =IF(ID$2<=time_frame,$AC5*BM5,"") ->  | IE5: =IF(IE$2<=time_frame,$AC5*BN5,"") ->  | IF5: =IF(IF$2<=time_frame,$AC5*BO5,"") ->  | IG5: =IF(IG$2<=time_frame,$AC5*BP5,"") ->  | IH5: =IF(IH$2<=time_frame,$AC5*BQ5,"") ->  | II5: =IF(II$2<=time_frame,$AC5*BR5,"") ->  | IJ5: =IF(IJ$2<=time_frame,$AC5*BS5,"") ->  | IK5: =IF(IK$2<=time_frame,$AC5*BT5,"") ->  | IL5: =IF(IL$2<=time_frame,$AC5*BU5,"") ->  | IM5: =IF(IM$2<=time_frame,$AC5*BV5,"") ->  | IN5: =IF(IN$2<=time_frame,$AC5*BW5,"") ->  | IO5: =IF(IO$2<=time_frame,$AC5*BX5,"") ->  | IP5: =IF(IP$2<=time_frame,$AC5*BY5,"") ->  | IQ5: =IF(IQ$2<=time_frame,$AC5*BZ5,"") ->  | IR5: =IF(IR$2<=time_frame,$AC5*CA5,"") ->  | IS5: =IF(IS$2<=time_frame,$AC5*CB5,"") ->  | IT5: =IF(IT$2<=time_frame,$AC5*CC5,"") ->  | IU5: =IF(IU$2<=time_frame,$AC5*CD5,"") ->  | IV5: =IF(IV$2<=time_frame,$AC5*CE5,"") ->  | IW5: =IF(IW$2<=time_frame,$AC5*CF5,"") ->  | IX5: =IF(IX$2<=time_frame,$AC5*CG5,"") ->  | IY5: =IF(IY$2<=time_frame,$AC5*CH5,"") ->  | IZ5: =IF(IZ$2<=time_frame,$AC5*CI5,"") ->  | JA5: =IF(JA$2<=time_frame,$AC5*CJ5,"") ->  | JB5: =IF(JB$2<=time_frame,$AC5*CK5,"") ->  | JC5: =IF(JC$2<=time_frame,$AC5*CL5,"") ->  | JD5: =IF(JD$2<=time_frame,$AC5*CM5,"") ->  | JE5: =IF(JE$2<=time_frame,$AC5*CN5,"") ->  | JF5: =IF(JF$2<=time_frame,$AC5*CO5,"") ->  | JG5: =IF(JG$2<=time_frame,$AC5*CP5,"") ->  | JH5: =IF(JH$2<=time_frame,$AC5*CQ5,"") ->  | JI5: =IF(JI$2<=time_frame,$AC5*CR5,"") ->  | JJ5: =IF(JJ$2<=time_frame,$AC5*CS5,"") ->  | JK5: =IF(JK$2<=time_frame,$AC5*CT5,"") ->  | JL5: =IF(JL$2<=time_frame,$AC5*CU5,"") ->  | JM5: =IF(JM$2<=time_frame,$AC5*CV5,"") ->  | JN5: =IF(JN$2<=time_frame,$AC5*CW5,"") ->  | JO5: =IF(JO$2<=time_frame,$AC5*CX5,"") ->  | JP5: =IF(JP$2<=time_frame,$AC5*CY5,"") ->  | JQ5: =IF(JQ$2<=time_frame,$AC5*CZ5,"") ->  | JR5: =IF(JR$2<=time_frame,$AC5*DA5,"") ->  | JS5: =IF(JS$2<=time_frame,$AC5*DB5,"") ->  | JT5: =IF(JT$2<=time_frame,$AC5*DC5,"") ->  | JU5: =IF(JU$2<=time_frame,$AC5*DD5,"") ->  | JV5: =IF(JV$2<=time_frame,$AC5*DE5,"") ->  | JW5: =IF(JW$2<=time_frame,$AC5*DF5,"") ->  | JX5: =IF(JX$2<=time_frame,$AC5*DG5,"") ->  | JY5: =IF(JY$2<=time_frame,$AC5*DH5,"") ->  | JZ5: =IF(JZ$2<=time_frame,$AC5*DI5,"") ->  | KA5: =IF(KA$2<=time_frame,$AC5*DJ5,"") ->  | KB5: =IF(KB$2<=time_frame,$AC5*DK5,"") ->  | KC5: =IF(KC$2<=time_frame,$AC5*DL5,"") ->  | KD5: =IF(KD$2<=time_frame,$AC5*DN5,"") ->  | KF5: =SUM(GY5:KE5) -> 0 | KH5: =IF(KH$2<=time_frame,$AD5*AH5,"") -> 0 | KI5: =IF(KI$2<=time_frame,$AD5*AI5,"") -> 0 | KJ5: =IF(KJ$2<=time_frame,$AD5*AJ5,"") -> 0 | KK5: =IF(KK$2<=time_frame,$AD5*AK5,"") -> 0 | KL5: =IF(KL$2<=time_frame,$AD5*AL5,"") -> 0 | KM5: =IF(KM$2<=time_frame,$AD5*AM5,"") -> 0 | KN5: =IF(KN$2<=time_frame,$AD5*AN5,"") -> 0 | KO5: =IF(KO$2<=time_frame,$AD5*AO5,"") -> 0 | KP5: =IF(KP$2<=time_frame,$AD5*AP5,"") -> 0 | KQ5: =IF(KQ$2<=time_frame,$AD5*AQ5,"") -> 0 | KR5: =IF(KR$2<=time_frame,$AD5*AR5,"") ->  | KS5: =IF(KS$2<=time_frame,$AD5*AS5,"") ->  | KT5: =IF(KT$2<=time_frame,$AD5*AT5,"") ->  | KU5: =IF(KU$2<=time_frame,$AD5*AU5,"") ->  | KV5: =IF(KV$2<=time_frame,$AD5*AV5,"") ->  | KW5: =IF(KW$2<=time_frame,$AD5*AW5,"") ->  | KX5: =IF(KX$2<=time_frame,$AD5*AX5,"") ->  | KY5: =IF(KY$2<=time_frame,$AD5*AY5,"") ->  | KZ5: =IF(KZ$2<=time_frame,$AD5*AZ5,"") ->  | LA5: =IF(LA$2<=time_frame,$AD5*BA5,"") ->  | LB5: =IF(LB$2<=time_frame,$AD5*BB5,"") ->  | LC5: =IF(LC$2<=time_frame,$AD5*BC5,"") ->  | LD5: =IF(LD$2<=time_frame,$AD5*BD5,"") ->  | LE5: =IF(LE$2<=time_frame,$AD5*BE5,"") ->  | LF5: =IF(LF$2<=time_frame,$AD5*BF5,"") ->  | LG5: =IF(LG$2<=time_frame,$AD5*BG5,"") ->  | LH5: =IF(LH$2<=time_frame,$AD5*BH5,"") ->  | LI5: =IF(LI$2<=time_frame,$AD5*BI5,"") ->  | LJ5: =IF(LJ$2<=time_frame,$AD5*BJ5,"") ->  | LK5: =IF(LK$2<=time_frame,$AD5*BK5,"") ->  | LL5: =IF(LL$2<=time_frame,$AD5*BL5,"") ->  | LM5: =IF(LM$2<=time_frame,$AD5*BM5,"") ->  | LN5: =IF(LN$2<=time_frame,$AD5*BN5,"") ->  | LO5: =IF(LO$2<=time_frame,$AD5*BO5,"") ->  | LP5: =IF(LP$2<=time_frame,$AD5*BP5,"") ->  | LQ5: =IF(LQ$2<=time_frame,$AD5*BQ5,"") ->  | LR5: =IF(LR$2<=time_frame,$AD5*BR5,"") ->  | LS5: =IF(LS$2<=time_frame,$AD5*BS5,"") ->  | LT5: =IF(LT$2<=time_frame,$AD5*BT5,"") ->  | LU5: =IF(LU$2<=time_frame,$AD5*BU5,"") ->  | LV5: =IF(LV$2<=time_frame,$AD5*BV5,"") ->  | LW5: =IF(LW$2<=time_frame,$AD5*BW5,"") ->  | LX5: =IF(LX$2<=time_frame,$AD5*BX5,"") ->  | LY5: =IF(LY$2<=time_frame,$AD5*BY5,"") ->  | LZ5: =IF(LZ$2<=time_frame,$AD5*BZ5,"") ->  | MA5: =IF(MA$2<=time_frame,$AD5*CA5,"") ->  | MB5: =IF(MB$2<=time_frame,$AD5*CB5,"") ->  | MC5: =IF(MC$2<=time_frame,$AD5*CC5,"") ->  | MD5: =IF(MD$2<=time_frame,$AD5*CD5,"") ->  | ME5: =IF(ME$2<=time_frame,$AD5*CE5,"") ->  | MF5: =IF(MF$2<=time_frame,$AD5*CF5,"") ->  | MG5: =IF(MG$2<=time_frame,$AD5*CG5,"") ->  | MH5: =IF(MH$2<=time_frame,$AD5*CH5,"") ->  | MI5: =IF(MI$2<=time_frame,$AD5*CI5,"") ->  | MJ5: =IF(MJ$2<=time_frame,$AD5*CJ5,"") ->  | MK5: =IF(MK$2<=time_frame,$AD5*CK5,"") ->  | ML5: =IF(ML$2<=time_frame,$AD5*CL5,"") ->  | MM5: =IF(MM$2<=time_frame,$AD5*CM5,"") ->  | MN5: =IF(MN$2<=time_frame,$AD5*CN5,"") ->  | MO5: =IF(MO$2<=time_frame,$AD5*CO5,"") ->  | MP5: =IF(MP$2<=time_frame,$AD5*CP5,"") ->  | MQ5: =IF(MQ$2<=time_frame,$AD5*CQ5,"") ->  | MR5: =IF(MR$2<=time_frame,$AD5*CR5,"") ->  | MS5: =IF(MS$2<=time_frame,$AD5*CS5,"") ->  | MT5: =IF(MT$2<=time_frame,$AD5*CT5,"") ->  | MU5: =IF(MU$2<=time_frame,$AD5*CU5,"") ->  | MV5: =IF(MV$2<=time_frame,$AD5*CV5,"") ->  | MW5: =IF(MW$2<=time_frame,$AD5*CW5,"") ->  | MX5: =IF(MX$2<=time_frame,$AD5*CX5,"") ->  | MY5: =IF(MY$2<=time_frame,$AD5*CY5,"") ->  | MZ5: =IF(MZ$2<=time_frame,$AD5*CZ5,"") ->  | NA5: =IF(NA$2<=time_frame,$AD5*DA5,"") ->  | NB5: =IF(NB$2<=time_frame,$AD5*DB5,"") ->  | NC5: =IF(NC$2<=time_frame,$AD5*DC5,"") ->  | ND5: =IF(ND$2<=time_frame,$AD5*DD5,"") ->  | NE5: =IF(NE$2<=time_frame,$AD5*DE5,"") ->  | NF5: =IF(NF$2<=time_frame,$AD5*DF5,"") ->  | NG5: =IF(NG$2<=time_frame,$AD5*DG5,"") ->  | NH5: =IF(NH$2<=time_frame,$AD5*DH5,"") ->  | NI5: =IF(NI$2<=time_frame,$AD5*DI5,"") ->  | NJ5: =IF(NJ$2<=time_frame,$AD5*DJ5,"") ->  | NK5: =IF(NK$2<=time_frame,$AD5*DK5,"") ->  | NL5: =IF(NL$2<=time_frame,$AD5*DL5,"") ->  | NM5: =IF(NM$2<=time_frame,$AD5*DM5,"") ->  | NN5: =IF(NN$2<=time_frame,$AD5*DN5,"") ->  | NO5: =SUM(KH5:NN5) -> 0 | NQ5: =IF(NQ$3<>"",VLOOKUP($A5,'Agency percentages'!$A$6:$X$71,(3+MATCH(NQ$4,'Agency percentages'!$D$5:$W$5,0)),FALSE),"") -> 0 | NR5: =IF(NR$3<>"",VLOOKUP($A5,'Agency percentages'!$A$6:$X$71,(3+MATCH(NR$4,'Agency percentages'!$D$5:$W$5,0)),FALSE),"") -> 0.06 | NS5: =IF(NS$3<>"",VLOOKUP($A5,'Agency percentages'!$A$6:$X$71,(3+MATCH(NS$4,'Agency percentages'!$D$5:$W$5,0)),FALSE),"") -> 0 | NT5: =IF(NT$3<>"",VLOOKUP($A5,'Agency percentages'!$A$6:$X$71,(3+MATCH(NT$4,'Agency percentages'!$D$5:$W$5,0)),FALSE),"") -> 0 | NU5: =IF(NU$3<>"",VLOOKUP($A5,'Agency percentages'!$A$6:$X$71,(3+MATCH(NU$4,'Agency percentages'!$D$5:$W$5,0)),FALSE),"") -> 0 | NV5: =IF(NV$3<>"",VLOOKUP($A5,'Agency percentages'!$A$6:$X$71,(3+MATCH(NV$4,'Agency percentages'!$D$5:$W$5,0)),FALSE),"") -> 0 | NW5: =IF(NW$3<>"",VLOOKUP($A5,'Agency percentages'!$A$6:$X$71,(3+MATCH(NW$4,'Agency percentages'!$D$5:$W$5,0)),FALSE),"") -> 0 | NX5: =IF(NX$3<>"",VLOOKUP($A5,'Agency percentages'!$A$6:$X$71,(3+MATCH(NX$4,'Agency percentages'!$D$5:$W$5,0)),FALSE),"") -> 0.94 | NY5: =IF(NY$3<>"",VLOOKUP($A5,'Agency percentages'!$A$6:$X$71,(3+MATCH(NY$4,'Agency percentages'!$D$5:$W$5,0)),FALSE),"") -> 0 | NZ5: =IF(NZ$3<>"",VLOOKUP($A5,'Agency percentages'!$A$6:$X$71,(3+MATCH(NZ$4,'Agency percentages'!$D$5:$W$5,0)),FALSE),"") -> 0 | OA5: =IF(OA$3<>"",VLOOKUP($A5,'Agency percentages'!$A$6:$X$71,(3+MATCH(OA$4,'Agency percentages'!$D$5:$W$5,0)),FALSE),"") -> 0 | OB5: =IF(OB$3<>"",VLOOKUP($A5,'Agency percentages'!$A$6:$X$71,(3+MATCH(OB$4,'Agency percentages'!$D$5:$W$5,0)),FALSE),"") -> 0 | OC5: =IF(OC$3<>"",VLOOKUP($A5,'Agency percentages'!$A$6:$X$71,(3+MATCH(OC$4,'Agency percentages'!$D$5:$W$5,0)),FALSE),"") -> 0 | OD5: =IF(OD$3<>"",VLOOKUP($A5,'Agency percentages'!$A$6:$X$71,(3+MATCH(OD$4,'Agency percentages'!$D$5:$W$5,0)),FALSE),"") ->  | OE5: =IF(OE$3<>"",VLOOKUP($A5,'Agency percentages'!$A$6:$X$71,(3+MATCH(OE$4,'Agency percentages'!$D$5:$W$5,0)),FALSE),"") ->  | OF5: =IF(OF$3<>"",VLOOKUP($A5,'Agency percentages'!$A$6:$X$71,(3+MATCH(OF$4,'Agency percentages'!$D$5:$W$5,0)),FALSE),"") ->  | OG5: =IF(OG$3<>"",VLOOKUP($A5,'Agency percentages'!$A$6:$X$71,(3+MATCH(OG$4,'Agency percentages'!$D$5:$W$5,0)),FALSE),"") ->  | OH5: =IF(OH$3<>"",VLOOKUP($A5,'Agency percentages'!$A$6:$X$71,(3+MATCH(OH$4,'Agency percentages'!$D$5:$W$5,0)),FALSE),"") ->  | OI5: =IF(OI$3<>"",VLOOKUP($A5,'Agency percentages'!$A$6:$X$71,(3+MATCH(OI$4,'Agency percentages'!$D$5:$W$5,0)),FALSE),"") ->  | OJ5: =IF(OJ$3<>"",VLOOKUP($A5,'Agency percentages'!$A$6:$X$71,(3+MATCH(OJ$4,'Agency percentages'!$D$5:$W$5,0)),FALSE),"") ->  | OL5: =IF(AND(OL$3<>"",NQ5<>0),HLOOKUP(OL$4,'Agency cashability'!$B$3:$U$5,2,0),0) -> 0 | OM5: =IF(AND(OM$3<>"",NR5<>0),HLOOKUP(OM$4,'Agency cashability'!$B$3:$U$5,2,0),0) -> 0.2 | ON5: =IF(AND(ON$3<>"",NS5<>0),HLOOKUP(ON$4,'Agency cashability'!$B$3:$U$5,2,0),0) -> 0 | OO5: =IF(AND(OO$3<>"",NT5<>0),HLOOKUP(OO$4,'Agency cashability'!$B$3:$U$5,2,0),0) -> 0 | OP5: =IF(AND(OP$3<>"",NU5<>0),HLOOKUP(OP$4,'Agency cashability'!$B$3:$U$5,2,0),0) -> 0 | OQ5: =IF(AND(OQ$3<>"",NV5<>0),HLOOKUP(OQ$4,'Agency cashability'!$B$3:$U$5,2,0),0) -> 0 | OR5: =IF(AND(OR$3<>"",NW5<>0),HLOOKUP(OR$4,'Agency cashability'!$B$3:$U$5,2,0),0) -> 0 | OS5: =IF(AND(OS$3<>"",NX5<>0),HLOOKUP(OS$4,'Agency cashability'!$B$3:$U$5,2,0),0) -> 0.95 | OT5: =IF(AND(OT$3<>"",NY5<>0),HLOOKUP(OT$4,'Agency cashability'!$B$3:$U$5,2,0),0) -> 0 | OU5: =IF(AND(OU$3<>"",NZ5<>0),HLOOKUP(OU$4,'Agency cashability'!$B$3:$U$5,2,0),0) -> 0 | OV5: =IF(AND(OV$3<>"",OA5<>0),HLOOKUP(OV$4,'Agency cashability'!$B$3:$U$5,2,0),0) -> 0 | OW5: =IF(AND(OW$3<>"",OB5<>0),HLOOKUP(OW$4,'Agency cashability'!$B$3:$U$5,2,0),0) -> 0 | OX5: =IF(AND(OX$3<>"",OC5<>0),HLOOKUP(OX$4,'Agency cashability'!$B$3:$U$5,2,0),0) -> 0 | OY5: =IF(AND(OY$3<>"",OD5<>0),HLOOKUP(OY$4,'Agency cashability'!$B$3:$U$5,2,0),0) -> 0 | OZ5: =IF(AND(OZ$3<>"",OE5<>0),HLOOKUP(OZ$4,'Agency cashability'!$B$3:$U$5,2,0),0) -> 0 | PA5: =IF(AND(PA$3<>"",OF5<>0),HLOOKUP(PA$4,'Agency cashability'!$B$3:$U$5,2,0),0) -> 0 | PB5: =IF(AND(PB$3<>"",OG5<>0),HLOOKUP(PB$4,'Agency cashability'!$B$3:$U$5,2,0),0) -> 0 | PC5: =IF(AND(PC$3<>"",OH5<>0),HLOOKUP(PC$4,'Agency cashability'!$B$3:$U$5,2,0),0) -> 0 | PD5: =IF(AND(PD$3<>"",OI5<>0),HLOOKUP(PD$4,'Agency cashability'!$B$3:$U$5,2,0),0) -> 0 | PE5: =IF(AND(PE$3<>"",OJ5<>0),HLOOKUP(PE$4,'Agency cashability'!$B$3:$U$5,2,0),0) -> 0 | PG5: =IF(AND(PG$3<>"",NQ5<>0),HLOOKUP(PG$4,'Agency cashability'!$B$3:$U$5,3,0),0) -> 0 | PH5: =IF(AND(PH$3<>"",NR5<>0),HLOOKUP(PH$4,'Agency cashability'!$B$3:$U$5,3,0),0) -> 0.5 | PI5: =IF(AND(PI$3<>"",NS5<>0),HLOOKUP(PI$4,'Agency cashability'!$B$3:$U$5,3,0),0) -> 0 | PJ5: =IF(AND(PJ$3<>"",NT5<>0),HLOOKUP(PJ$4,'Agency cashability'!$B$3:$U$5,3,0),0) -> 0 | PK5: =IF(AND(PK$3<>"",NU5<>0),HLOOKUP(PK$4,'Agency cashability'!$B$3:$U$5,3,0),0) -> 0 | PL5: =IF(AND(PL$3<>"",NV5<>0),HLOOKUP(PL$4,'Agency cashability'!$B$3:$U$5,3,0),0) -> 0 | PM5: =IF(AND(PM$3<>"",NW5<>0),HLOOKUP(PM$4,'Agency cashability'!$B$3:$U$5,3,0),0) -> 0 | PN5: =IF(AND(PN$3<>"",NX5<>0),HLOOKUP(PN$4,'Agency cashability'!$B$3:$U$5,3,0),0) -> 1 | PO5: =IF(AND(PO$3<>"",NY5<>0),HLOOKUP(PO$4,'Agency cashability'!$B$3:$U$5,3,0),0) -> 0 | PP5: =IF(AND(PP$3<>"",NZ5<>0),HLOOKUP(PP$4,'Agency cashability'!$B$3:$U$5,3,0),0) -> 0 | PQ5: =IF(AND(PQ$3<>"",OA5<>0),HLOOKUP(PQ$4,'Agency cashability'!$B$3:$U$5,3,0),0) -> 0 | PR5: =IF(AND(PR$3<>"",OB5<>0),HLOOKUP(PR$4,'Agency cashability'!$B$3:$U$5,3,0),0) -> 0 | PS5: =IF(AND(PS$3<>"",OC5<>0),HLOOKUP(PS$4,'Agency cashability'!$B$3:$U$5,3,0),0) -> 0 | PT5: =IF(AND(PT$3<>"",OD5<>0),HLOOKUP(PT$4,'Agency cashability'!$B$3:$U$5,3,0),0) -> 0 | PU5: =IF(AND(PU$3<>"",OE5<>0),HLOOKUP(PU$4,'Agency cashability'!$B$3:$U$5,3,0),0) -> 0 | PV5: =IF(AND(PV$3<>"",OF5<>0),HLOOKUP(PV$4,'Agency cashability'!$B$3:$U$5,3,0),0) -> 0 | PW5: =IF(AND(PW$3<>"",OG5<>0),HLOOKUP(PW$4,'Agency cashability'!$B$3:$U$5,3,0),0) -> 0 | PX5: =IF(AND(PX$3<>"",OH5<>0),HLOOKUP(PX$4,'Agency cashability'!$B$3:$U$5,3,0),0) -> 0 | PY5: =IF(AND(PY$3<>"",OI5<>0),HLOOKUP(PY$4,'Agency cashability'!$B$3:$U$5,3,0),0) -> 0 | PZ5: =IF(AND(PZ$3<>"",OJ5<>0),HLOOKUP(PZ$4,'Agency cashability'!$B$3:$U$5,3,0),0) -> 0 | QB5: =IF((QB$3<>""),NQ5*$GW5,"") -> 0 | QC5: =IF((QC$3<>""),NR5*$GW5,"") -> 0 | QD5: 0 | QE5: 0 | QF5: 0 | QG5: 0 | QH5: 0 | QI5: 0 | QJ5: 0 | QK5: 0 | QL5: 0 | QM5: 0 | QN5: 0 | QW5: =IF((QW$3<>""),OL5*QB5,"") -> 0 | QX5: 0 | QY5: 0 | QZ5: 0 | RA5: 0 | RB5: 0 | RC5: 0 | RD5: 0 | RE5: 0 | RF5: 0 | RG5: =IF((RG$3<>""),OV5*QL5,"") -> 0 | RH5: 0 | RI5: 0 | RR5: =SUM(QW5:RP5)/SUM(QB5:QU5) ->  | RT5: =IF((RT$3<>""),PG5*QB5,"") -> 0 | RU5: 0 | RV5: 0 | RW5: 0 | RX5: 0 | RY5: 0 | RZ5: 0 | SA5: 0 | SB5: 0 | SC5: 0 | SD5: =IF((SD$3<>""),PQ5*QL5,"") -> 0 | SE5: 0 | SF5: 0 | SO5: =SUM(RT5:SM5)/SUM(QB5:QU5) -> 
A6: B2 | C6: Yes | I6: Employment and Support Allowance (ESA) | R6: 12818 | S6: =1169+442 -> 1611 | T6: 14352 | V6: =S6+T6+U6 -> 15963 | W6: 2017 | X6: =VLOOKUP(W6,'GDP Deflators'!$B$6:$D$106,3,FALSE) -> 90.16508977 | Y6: DWP modelling (unpublished) | AA6: Standard Rate | AB6: =IF($C6="Yes",($H6*$J6*$L6*($N6-$P6)*R6*100*(1+$Z6)/$X6),0) -> 0 | AC6: =IF($C6="Yes",($H6*$J6*$L6*($N6-$P6)*(T6)*100*(1+$Z6)/$X6),0) -> 0 | AD6: =IF($C6="Yes",($H6*$J6*$L6*($N6-$P6)*U6*100*(1+$Z6)/$X6),0) -> 0 | AE6: =IF($C6="Yes",($H6*$J6*$L6*($N6-$P6)*V6*100*(1+$Z6)/$X6),0) -> 0 | DP6: 0 | DQ6: 0 | DR6: 0 | DS6: 0 | DT6: 0 | DU6: 0 | DV6: 0 | DW6: 0 | DX6: 0 | DY6: 0 | GW6: =SUM(DP6:GU6) -> 0 | GY6: 0 | GZ6: 0 | HA6: 0 | HB6: 0 | HC6: 0 | HD6: 0 | HE6: 0 | HF6: 0 | HG6: 0 | HH6: 0 | KF6: =SUM(GY6:KE6) -> 0 | KH6: 0 | KI6: 0 | KJ6: 0 | KK6: 0 | KL6: 0 | KM6: 0 | KN6: 0 | KO6: 0 | KP6: 0 | KQ6: 0 | NO6: =SUM(KH6:NN6) -> 0 | NQ6: =IF(NQ$3<>"",VLOOKUP($A6,'Agency percentages'!$A$6:$X$71,(3+MATCH(NQ$4,'Agency percentages'!$D$5:$W$5,0)),FALSE),"") -> 0 | NR6: =IF(NR$3<>"",VLOOKUP($A6,'Agency percentages'!$A$6:$X$71,(3+MATCH(NR$4,'Agency percentages'!$D$5:$W$5,0)),FALSE),"") -> 0.13 | NS6: =IF(NS$3<>"",VLOOKUP($A6,'Agency percentages'!$A$6:$X$71,(3+MATCH(NS$4,'Agency percentages'!$D$5:$W$5,0)),FALSE),"") -> 0 | NT6: =IF(NT$3<>"",VLOOKUP($A6,'Agency percentages'!$A$6:$X$71,(3+MATCH(NT$4,'Agency percentages'!$D$5:$W$5,0)),FALSE),"") -> 0 | NU6: =IF(NU$3<>"",VLOOKUP($A6,'Agency percentages'!$A$6:$X$71,(3+MATCH(NU$4,'Agency percentages'!$D$5:$W$5,0)),FALSE),"") -> 0 | NV6: =IF(NV$3<>"",VLOOKUP($A6,'Agency percentages'!$A$6:$X$71,(3+MATCH(NV$4,'Agency percentages'!$D$5:$W$5,0)),FALSE),"") -> 0 | NW6: =IF(NW$3<>"",VLOOKUP($A6,'Agency percentages'!$A$6:$X$71,(3+MATCH(NW$4,'Agency percentages'!$D$5:$W$5,0)),FALSE),"") -> 0 | NX6: =IF(NX$3<>"",VLOOKUP($A6,'Agency percentages'!$A$6:$X$71,(3+MATCH(NX$4,'Agency percentages'!$D$5:$W$5,0)),FALSE),"") -> 0.87 | NY6: =IF(NY$3<>"",VLOOKUP($A6,'Agency percentages'!$A$6:$X$71,(3+MATCH(NY$4,'Agency percentages'!$D$5:$W$5,0)),FALSE),"") -> 0 | NZ6: =IF(NZ$3<>"",VLOOKUP($A6,'Agency percentages'!$A$6:$X$71,(3+MATCH(NZ$4,'Agency percentages'!$D$5:$W$5,0)),FALSE),"") -> 0 | OA6: =IF(OA$3<>"",VLOOKUP($A6,'Agency percentages'!$A$6:$X$71,(3+MATCH(OA$4,'Agency percentages'!$D$5:$W$5,0)),FALSE),"") -> 0 | OB6: =IF(OB$3<>"",VLOOKUP($A6,'Agency percentages'!$A$6:$X$71,(3+MATCH(OB$4,'Agency percentages'!$D$5:$W$5,0)),FALSE),"") -> 0 | OC6: =IF(OC$3<>"",VLOOKUP($A6,'Agency percentages'!$A$6:$X$71,(3+MATCH(OC$4,'Agency percentages'!$D$5:$W$5,0)),FALSE),"") -> 0 | OD6: =IF(OD$3<>"",VLOOKUP($A6,'Agency percentages'!$A$6:$X$71,(3+MATCH(OD$4,'Agency percentages'!$D$5:$W$5,0)),FALSE),"") ->  | OE6: =IF(OE$3<>"",VLOOKUP($A6,'Agency percentages'!$A$6:$X$71,(3+MATCH(OE$4,'Agency percentages'!$D$5:$W$5,0)),FALSE),"") ->  | OF6: =IF(OF$3<>"",VLOOKUP($A6,'Agency percentages'!$A$6:$X$71,(3+MATCH(OF$4,'Agency percentages'!$D$5:$W$5,0)),FALSE),"") ->  | OG6: =IF(OG$3<>"",VLOOKUP($A6,'Agency percentages'!$A$6:$X$71,(3+MATCH(OG$4,'Agency percentages'!$D$5:$W$5,0)),FALSE),"") ->  | OH6: =IF(OH$3<>"",VLOOKUP($A6,'Agency percentages'!$A$6:$X$71,(3+MATCH(OH$4,'Agency percentages'!$D$5:$W$5,0)),FALSE),"") ->  | OI6: =IF(OI$3<>"",VLOOKUP($A6,'Agency percentages'!$A$6:$X$71,(3+MATCH(OI$4,'Agency percentages'!$D$5:$W$5,0)),FALSE),"") ->  | OJ6: =IF(OJ$3<>"",VLOOKUP($A6,'Agency percentages'!$A$6:$X$71,(3+MATCH(OJ$4,'Agency percentages'!$D$5:$W$5,0)),FALSE),"") ->  | OL6: =IF(AND(OL$3<>"",NQ6<>0),HLOOKUP(OL$4,'Agency cashability'!$B$3:$U$5,2,0),0) -> 0 | OM6: =IF(AND(OM$3<>"",NR6<>0),HLOOKUP(OM$4,'Agency cashability'!$B$3:$U$5,2,0),0) -> 0.2 | ON6: =IF(AND(ON$3<>"",NS6<>0),HLOOKUP(ON$4,'Agency cashability'!$B$3:$U$5,2,0),0) -> 0 | OO6: =IF(AND(OO$3<>"",NT6<>0),HLOOKUP(OO$4,'Agency cashability'!$B$3:$U$5,2,0),0) -> 0 | OP6: =IF(AND(OP$3<>"",NU6<>0),HLOOKUP(OP$4,'Agency cashability'!$B$3:$U$5,2,0),0) -> 0 | OQ6: =IF(AND(OQ$3<>"",NV6<>0),HLOOKUP(OQ$4,'Agency cashability'!$B$3:$U$5,2,0),0) -> 0 | OR6: =IF(AND(OR$3<>"",NW6<>0),HLOOKUP(OR$4,'Agency cashability'!$B$3:$U$5,2,0),0) -> 0 | OS6: =IF(AND(OS$3<>"",NX6<>0),HLOOKUP(OS$4,'Agency cashability'!$B$3:$U$5,2,0),0) -> 0.95 | OT6: =IF(AND(OT$3<>"",NY6<>0),HLOOKUP(OT$4,'Agency cashability'!$B$3:$U$5,2,0),0) -> 0 | OU6: =IF(AND(OU$3<>"",NZ6<>0),HLOOKUP(OU$4,'Agency cashability'!$B$3:$U$5,2,0),0) -> 0 | OV6: =IF(AND(OV$3<>"",OA6<>0),HLOOKUP(OV$4,'Agency cashability'!$B$3:$U$5,2,0),0) -> 0 | OW6: =IF(AND(OW$3<>"",OB6<>0),HLOOKUP(OW$4,'Agency cashability'!$B$3:$U$5,2,0),0) -> 0 | OX6: =IF(AND(OX$3<>"",OC6<>0),HLOOKUP(OX$4,'Agency cashability'!$B$3:$U$5,2,0),0) -> 0 | OY6: =IF(AND(OY$3<>"",OD6<>0),HLOOKUP(OY$4,'Agency cashability'!$B$3:$U$5,2,0),0) -> 0 | OZ6: =IF(AND(OZ$3<>"",OE6<>0),HLOOKUP(OZ$4,'Agency cashability'!$B$3:$U$5,2,0),0) -> 0 | PA6: =IF(AND(PA$3<>"",OF6<>0),HLOOKUP(PA$4,'Agency cashability'!$B$3:$U$5,2,0),0) -> 0 | PB6: =IF(AND(PB$3<>"",OG6<>0),HLOOKUP(PB$4,'Agency cashability'!$B$3:$U$5,2,0),0) -> 0 | PC6: =IF(AND(PC$3<>"",OH6<>0),HLOOKUP(PC$4,'Agency cashability'!$B$3:$U$5,2,0),0) -> 0 | PD6: =IF(AND(PD$3<>"",OI6<>0),HLOOKUP(PD$4,'Agency cashability'!$B$3:$U$5,2,0),0) -> 0 | PE6: =IF(AND(PE$3<>"",OJ6<>0),HLOOKUP(PE$4,'Agency cashability'!$B$3:$U$5,2,0),0) -> 0 | PG6: =IF(AND(PG$3<>"",NQ6<>0),HLOOKUP(PG$4,'Agency cashability'!$B$3:$U$5,3,0),0) -> 0 | PH6: =IF(AND(PH$3<>"",NR6<>0),HLOOKUP(PH$4,'Agency cashability'!$B$3:$U$5,3,0),0) -> 0.5 | PI6: =IF(AND(PI$3<>"",NS6<>0),HLOOKUP(PI$4,'Agency cashability'!$B$3:$U$5,3,0),0) -> 0 | PJ6: =IF(AND(PJ$3<>"",NT6<>0),HLOOKUP(PJ$4,'Agency cashability'!$B$3:$U$5,3,0),0) -> 0 | PK6: =IF(AND(PK$3<>"",NU6<>0),HLOOKUP(PK$4,'Agency cashability'!$B$3:$U$5,3,0),0) -> 0 | PL6: =IF(AND(PL$3<>"",NV6<>0),HLOOKUP(PL$4,'Agency cashability'!$B$3:$U$5,3,0),0) -> 0 | PM6: =IF(AND(PM$3<>"",NW6<>0),HLOOKUP(PM$4,'Agency cashability'!$B$3:$U$5,3,0),0) -> 0 | PN6: =IF(AND(PN$3<>"",NX6<>0),HLOOKUP(PN$4,'Agency cashability'!$B$3:$U$5,3,0),0) -> 1 | PO6: =IF(AND(PO$3<>"",NY6<>0),HLOOKUP(PO$4,'Agency cashability'!$B$3:$U$5,3,0),0) -> 0 | PP6: =IF(AND(PP$3<>"",NZ6<>0),HLOOKUP(PP$4,'Agency cashability'!$B$3:$U$5,3,0),0) -> 0 | PQ6: =IF(AND(PQ$3<>"",OA6<>0),HLOOKUP(PQ$4,'Agency cashability'!$B$3:$U$5,3,0),0) -> 0 | PR6: =IF(AND(PR$3<>"",OB6<>0),HLOOKUP(PR$4,'Agency cashability'!$B$3:$U$5,3,0),0) -> 0 | PS6: =IF(AND(PS$3<>"",OC6<>0),HLOOKUP(PS$4,'Agency cashability'!$B$3:$U$5,3,0),0) -> 0 | PT6: =IF(AND(PT$3<>"",OD6<>0),HLOOKUP(PT$4,'Agency cashability'!$B$3:$U$5,3,0),0) -> 0 | PU6: =IF(AND(PU$3<>"",OE6<>0),HLOOKUP(PU$4,'Agency cashability'!$B$3:$U$5,3,0),0) -> 0 | PV6: =IF(AND(PV$3<>"",OF6<>0),HLOOKUP(PV$4,'Agency cashability'!$B$3:$U$5,3,0),0) -> 0 | PW6: =IF(AND(PW$3<>"",OG6<>0),HLOOKUP(PW$4,'Agency cashability'!$B$3:$U$5,3,0),0) -> 0 | PX6: =IF(AND(PX$3<>"",OH6<>0),HLOOKUP(PX$4,'Agency cashability'!$B$3:$U$5,3,0),0) -> 0 | PY6: =IF(AND(PY$3<>"",OI6<>0),HLOOKUP(PY$4,'Agency cashability'!$B$3:$U$5,3,0),0) -> 0 | PZ6: =IF(AND(PZ$3<>"",OJ6<>0),HLOOKUP(PZ$4,'Agency cashability'!$B$3:$U$5,3,0),0) -> 0 | QB6: =IF((QB$3<>""),NQ6*$GW6,"") -> 0 | QC6: =IF((QC$3<>""),NR6*$GW6,"") -> 0 | QD6: =IF((QD$3<>""),NS6*$GW6,"") -> 0 | QE6: =IF((QE$3<>""),NT6*$GW6,"") -> 0 | QF6: =IF((QF$3<>""),NU6*$GW6,"") -> 0 | QG6: =IF((QG$3<>""),NV6*$GW6,"") -> 0 | QH6: =IF((QH$3<>""),NW6*$GW6,"") -> 0 | QI6: =IF((QI$3<>""),NX6*$GW6,"") -> 0 | QJ6: =IF((QJ$3<>""),NY6*$GW6,"") -> 0 | QK6: =IF((QK$3<>""),NZ6*$GW6,"") -> 0 | QL6: =IF((QL$3<>""),OA6*$GW6,"") -> 0 | QM6: =IF((QM$3<>""),OB6*$GW6,"") -> 0 | QN6: =IF((QN$3<>""),OC6*$GW6,"") -> 0 | QO6: =IF((QO$3<>""),OD6*$GW6,"") ->  | QP6: =IF((QP$3<>""),OE6*$GW6,"") ->  | QQ6: =IF((QQ$3<>""),OF6*$GW6,"") ->  | QR6: =IF((QR$3<>""),OG6*$GW6,"") ->  | QS6: =IF((QS$3<>""),OH6*$GW6,"") ->  | QT6: =IF((QT$3<>""),OI6*$GW6,"") ->  | QU6: =IF((QU$3<>""),OJ6*$GW6,"") ->  | QW6: =IF((QW$3<>""),OL6*QB6,"") -> 0 | QX6: 0 | QY6: 0 | QZ6: 0 | RA6: 0 | RB6: 0 | RC6: 0 | RD6: 0 | RE6: 0 | RF6: 0 | RG6: 0 | RH6: 0 | RI6: 0 | RT6: =IF((RT$3<>""),PG6*QB6,"") -> 0 | RU6: 0 | RV6: 0 | RW6: 0 | RX6: 0 | RY6: 0 | RZ6: 0 | SA6: 0 | SB6: 0 | SC6: 0 | SD6: 0 | SE6: 0 | SF6: 0
A7: B3 | C7: Yes | I7: Income support (IS) | R7: 5932 | S7: 956 | T7: 9548 | V7: 10504 | W7: 2017 | X7: =VLOOKUP(W7,'GDP Deflators'!$B$6:$D$106,3,FALSE) -> 90.16508977 | Y7: DWP modelling (unpublished) | AA7: Standard Rate | AB7: 0 | AC7: 0 | AD7: 0 | AE7: 0 | DP7: 0 | DQ7: 0 | DR7: 0 | DS7: 0 | DT7: 0 | DU7: 0 | DV7: 0 | DW7: 0 | DX7: 0 | DY7: 0 | GW7: 0 | GY7: 0 | GZ7: 0 | HA7: 0 | HB7: 0 | HC7: 0 | HD7: 0 | HE7: 0 | HF7: 0 | HG7: 0 | HH7: 0 | KF7: 0 | KH7: 0 | KI7: 0 | KJ7: 0 | KK7: 0 | KL7: 0 | KM7: 0 | KN7: 0 | KO7: 0 | KP7: 0 | KQ7: 0 | NO7: 0 | NQ7: =IF(NQ$3<>"",VLOOKUP($A7,'Agency percentages'!$A$6:$X$71,(3+MATCH(NQ$4,'Agency percentages'!$D$5:$W$5,0)),FALSE),"") -> 0 | NR7: =IF(NR$3<>"",VLOOKUP($A7,'Agency percentages'!$A$6:$X$71,(3+MATCH(NR$4,'Agency percentages'!$D$5:$W$5,0)),FALSE),"") -> 0.07 | NS7: =IF(NS$3<>"",VLOOKUP($A7,'Agency percentages'!$A$6:$X$71,(3+MATCH(NS$4,'Agency percentages'!$D$5:$W$5,0)),FALSE),"") -> 0 | NT7: =IF(NT$3<>"",VLOOKUP($A7,'Agency percentages'!$A$6:$X$71,(3+MATCH(NT$4,'Agency percentages'!$D$5:$W$5,0)),FALSE),"") -> 0 | NU7: =IF(NU$3<>"",VLOOKUP($A7,'Agency percentages'!$A$6:$X$71,(3+MATCH(NU$4,'Agency percentages'!$D$5:$W$5,0)),FALSE),"") -> 0 | NV7: =IF(NV$3<>"",VLOOKUP($A7,'Agency percentages'!$A$6:$X$71,(3+MATCH(NV$4,'Agency percentages'!$D$5:$W$5,0)),FALSE),"") -> 0 | NW7: =IF(NW$3<>"",VLOOKUP($A7,'Agency percentages'!$A$6:$X$71,(3+MATCH(NW$4,'Agency percentages'!$D$5:$W$5,0)),FALSE),"") -> 0 | NX7: =IF(NX$3<>"",VLOOKUP($A7,'Agency percentages'!$A$6:$X$71,(3+MATCH(NX$4,'Agency percentages'!$D$5:$W$5,0)),FALSE),"") -> 0.93 | NY7: =IF(NY$3<>"",VLOOKUP($A7,'Agency percentages'!$A$6:$X$71,(3+MATCH(NY$4,'Agency percentages'!$D$5:$W$5,0)),FALSE),"") -> 0 | NZ7: =IF(NZ$3<>"",VLOOKUP($A7,'Agency percentages'!$A$6:$X$71,(3+MATCH(NZ$4,'Agency percentages'!$D$5:$W$5,0)),FALSE),"") -> 0 | OA7: =IF(OA$3<>"",VLOOKUP($A7,'Agency percentages'!$A$6:$X$71,(3+MATCH(OA$4,'Agency percentages'!$D$5:$W$5,0)),FALSE),"") -> 0 | OB7: =IF(OB$3<>"",VLOOKUP($A7,'Agency percentages'!$A$6:$X$71,(3+MATCH(OB$4,'Agency percentages'!$D$5:$W$5,0)),FALSE),"") -> 0 | OC7: =IF(OC$3<>"",VLOOKUP($A7,'Agency percentages'!$A$6:$X$71,(3+MATCH(OC$4,'Agency percentages'!$D$5:$W$5,0)),FALSE),"") -> 0 | OD7: =IF(OD$3<>"",VLOOKUP($A7,'Agency percentages'!$A$6:$X$71,(3+MATCH(OD$4,'Agency percentages'!$D$5:$W$5,0)),FALSE),"") ->  | OE7: =IF(OE$3<>"",VLOOKUP($A7,'Agency percentages'!$A$6:$X$71,(3+MATCH(OE$4,'Agency percentages'!$D$5:$W$5,0)),FALSE),"") ->  | OF7: =IF(OF$3<>"",VLOOKUP($A7,'Agency percentages'!$A$6:$X$71,(3+MATCH(OF$4,'Agency percentages'!$D$5:$W$5,0)),FALSE),"") ->  | OG7: =IF(OG$3<>"",VLOOKUP($A7,'Agency percentages'!$A$6:$X$71,(3+MATCH(OG$4,'Agency percentages'!$D$5:$W$5,0)),FALSE),"") ->  | OH7: =IF(OH$3<>"",VLOOKUP($A7,'Agency percentages'!$A$6:$X$71,(3+MATCH(OH$4,'Agency percentages'!$D$5:$W$5,0)),FALSE),"") ->  | OI7: =IF(OI$3<>"",VLOOKUP($A7,'Agency percentages'!$A$6:$X$71,(3+MATCH(OI$4,'Agency percentages'!$D$5:$W$5,0)),FALSE),"") ->  | OJ7: =IF(OJ$3<>"",VLOOKUP($A7,'Agency percentages'!$A$6:$X$71,(3+MATCH(OJ$4,'Agency percentages'!$D$5:$W$5,0)),FALSE),"") ->  | OL7: =IF(AND(OL$3<>"",NQ7<>0),HLOOKUP(OL$4,'Agency cashability'!$B$3:$U$5,2,0),0) -> 0 | OM7: =IF(AND(OM$3<>"",NR7<>0),HLOOKUP(OM$4,'Agency cashability'!$B$3:$U$5,2,0),0) -> 0.2 | ON7: =IF(AND(ON$3<>"",NS7<>0),HLOOKUP(ON$4,'Agency cashability'!$B$3:$U$5,2,0),0) -> 0 | OO7: =IF(AND(OO$3<>"",NT7<>0),HLOOKUP(OO$4,'Agency cashability'!$B$3:$U$5,2,0),0) -> 0 | OP7: =IF(AND(OP$3<>"",NU7<>0),HLOOKUP(OP$4,'Agency cashability'!$B$3:$U$5,2,0),0) -> 0 | OQ7: =IF(AND(OQ$3<>"",NV7<>0),HLOOKUP(OQ$4,'Agency cashability'!$B$3:$U$5,2,0),0) -> 0 | OR7: =IF(AND(OR$3<>"",NW7<>0),HLOOKUP(OR$4,'Agency cashability'!$B$3:$U$5,2,0),0) -> 0 | OS7: =IF(AND(OS$3<>"",NX7<>0),HLOOKUP(OS$4,'Agency cashability'!$B$3:$U$5,2,0),0) -> 0.95 | OT7: =IF(AND(OT$3<>"",NY7<>0),HLOOKUP(OT$4,'Agency cashability'!$B$3:$U$5,2,0),0) -> 0 | OU7: =IF(AND(OU$3<>"",NZ7<>0),HLOOKUP(OU$4,'Agency cashability'!$B$3:$U$5,2,0),0) -> 0 | OV7: =IF(AND(OV$3<>"",OA7<>0),HLOOKUP(OV$4,'Agency cashability'!$B$3:$U$5,2,0),0) -> 0 | OW7: =IF(AND(OW$3<>"",OB7<>0),HLOOKUP(OW$4,'Agency cashability'!$B$3:$U$5,2,0),0) -> 0 | OX7: =IF(AND(OX$3<>"",OC7<>0),HLOOKUP(OX$4,'Agency cashability'!$B$3:$U$5,2,0),0) -> 0 | OY7: =IF(AND(OY$3<>"",OD7<>0),HLOOKUP(OY$4,'Agency cashability'!$B$3:$U$5,2,0),0) -> 0 | OZ7: =IF(AND(OZ$3<>"",OE7<>0),HLOOKUP(OZ$4,'Agency cashability'!$B$3:$U$5,2,0),0) -> 0 | PA7: =IF(AND(PA$3<>"",OF7<>0),HLOOKUP(PA$4,'Agency cashability'!$B$3:$U$5,2,0),0) -> 0 | PB7: =IF(AND(PB$3<>"",OG7<>0),HLOOKUP(PB$4,'Agency cashability'!$B$3:$U$5,2,0),0) -> 0 | PC7: =IF(AND(PC$3<>"",OH7<>0),HLOOKUP(PC$4,'Agency cashability'!$B$3:$U$5,2,0),0) -> 0 | PD7: =IF(AND(PD$3<>"",OI7<>0),HLOOKUP(PD$4,'Agency cashability'!$B$3:$U$5,2,0),0) -> 0 | PE7: =IF(AND(PE$3<>"",OJ7<>0),HLOOKUP(PE$4,'Agency cashability'!$B$3:$U$5,2,0),0) -> 0 | PG7: =IF(AND(PG$3<>"",NQ7<>0),HLOOKUP(PG$4,'Agency cashability'!$B$3:$U$5,3,0),0) -> 0 | PH7: =IF(AND(PH$3<>"",NR7<>0),HLOOKUP(PH$4,'Agency cashability'!$B$3:$U$5,3,0),0) -> 0.5 | PI7: =IF(AND(PI$3<>"",NS7<>0),HLOOKUP(PI$4,'Agency cashability'!$B$3:$U$5,3,0),0) -> 0 | PJ7: =IF(AND(PJ$3<>"",NT7<>0),HLOOKUP(PJ$4,'Agency cashability'!$B$3:$U$5,3,0),0) -> 0 | PK7: =IF(AND(PK$3<>"",NU7<>0),HLOOKUP(PK$4,'Agency cashability'!$B$3:$U$5,3,0),0) -> 0 | PL7: =IF(AND(PL$3<>"",NV7<>0),HLOOKUP(PL$4,'Agency cashability'!$B$3:$U$5,3,0),0) -> 0 | PM7: =IF(AND(PM$3<>"",NW7<>0),HLOOKUP(PM$4,'Agency cashability'!$B$3:$U$5,3,0),0) -> 0 | PN7: =IF(AND(PN$3<>"",NX7<>0),HLOOKUP(PN$4,'Agency cashability'!$B$3:$U$5,3,0),0) -> 1 | PO7: =IF(AND(PO$3<>"",NY7<>0),HLOOKUP(PO$4,'Agency cashability'!$B$3:$U$5,3,0),0) -> 0 | PP7: =IF(AND(PP$3<>"",NZ7<>0),HLOOKUP(PP$4,'Agency cashability'!$B$3:$U$5,3,0),0) -> 0 | PQ7: =IF(AND(PQ$3<>"",OA7<>0),HLOOKUP(PQ$4,'Agency cashability'!$B$3:$U$5,3,0),0) -> 0 | PR7: =IF(AND(PR$3<>"",OB7<>0),HLOOKUP(PR$4,'Agency cashability'!$B$3:$U$5,3,0),0) -> 0 | PS7: =IF(AND(PS$3<>"",OC7<>0),HLOOKUP(PS$4,'Agency cashability'!$B$3:$U$5,3,0),0) -> 0 | PT7: =IF(AND(PT$3<>"",OD7<>0),HLOOKUP(PT$4,'Agency cashability'!$B$3:$U$5,3,0),0) -> 0 | PU7: =IF(AND(PU$3<>"",OE7<>0),HLOOKUP(PU$4,'Agency cashability'!$B$3:$U$5,3,0),0) -> 0 | PV7: =IF(AND(PV$3<>"",OF7<>0),HLOOKUP(PV$4,'Agency cashability'!$B$3:$U$5,3,0),0) -> 0 | PW7: =IF(AND(PW$3<>"",OG7<>0),HLOOKUP(PW$4,'Agency cashability'!$B$3:$U$5,3,0),0) -> 0 | PX7: =IF(AND(PX$3<>"",OH7<>0),HLOOKUP(PX$4,'Agency cashability'!$B$3:$U$5,3,0),0) -> 0 | PY7: =IF(AND(PY$3<>"",OI7<>0),HLOOKUP(PY$4,'Agency cashability'!$B$3:$U$5,3,0),0) -> 0 | PZ7: =IF(AND(PZ$3<>"",OJ7<>0),HLOOKUP(PZ$4,'Agency cashability'!$B$3:$U$5,3,0),0) -> 0 | QB7: 0 | QC7: 0 | QD7: 0 | QE7: 0 | QF7: 0 | QG7: 0 | QH7: 0 | QI7: 0 | QJ7: 0 | QK7: 0 | QL7: 0 | QM7: 0 | QN7: 0 | QW7: 0 | QX7: 0 | QY7: 0 | QZ7: 0 | RA7: 0 | RB7: 0 | RC7: 0 | RD7: 0 | RE7: 0 | RF7: 0 | RG7: 0 | RH7: 0 | RI7: 0 | RT7: 0 | RU7: 0 | RV7: 0 | RW7: 0 | RX7: 0 | RY7: 0 | RZ7: 0 | SA7: 0 | SB7: 0 | SC7: 0 | SD7: 0 | SE7: 0 | SF7: 0
A8: B4a | B8: Improved skill levels | C8: Yes | D8: Increase in earnings amongst residents achieving Level 2 NVQ | E8: Population without Level 2 qualifications | I8: Population without Level 2 qualifications | R8: 83 | T8: 443 | V8: =S8+T8+U8 -> 443 | W8: 2010 | X8: =VLOOKUP(W8,'GDP Deflators'!$B$6:$D$106,3,FALSE) -> 80.45867339 | Y8: BIS (2011): Returns to vocational qualifications. Research Paper 53 pg9-10; and IER (2008): Net Benefits of Training Study 2008 p62-64 | AA8: Standard Rate | AB8: 0 | AC8: 0 | AD8: 0 | AE8: 0 | DP8: 0 | DQ8: 0 | DR8: 0 | DS8: 0 | DT8: 0 | DU8: 0 | DV8: 0 | DW8: 0 | DX8: 0 | DY8: 0 | GW8: 0 | GY8: 0 | GZ8: 0 | HA8: 0 | HB8: 0 | HC8: 0 | HD8: 0 | HE8: 0 | HF8: 0 | HG8: 0 | HH8: 0 | KF8: 0 | KH8: 0 | KI8: 0 | KJ8: 0 | KK8: 0 | KL8: 0 | KM8: 0 | KN8: 0 | KO8: 0 | KP8: 0 | KQ8: 0 | NO8: 0 | NQ8: =IF(NQ$3<>"",VLOOKUP($A8,'Agency percentages'!$A$6:$X$71,(3+MATCH(NQ$4,'Agency percentages'!$D$5:$W$5,0)),FALSE),"") -> 0 | NR8: =IF(NR$3<>"",VLOOKUP($A8,'Agency percentages'!$A$6:$X$71,(3+MATCH(NR$4,'Agency percentages'!$D$5:$W$5,0)),FALSE),"") -> 0 | NS8: =IF(NS$3<>"",VLOOKUP($A8,'Agency percentages'!$A$6:$X$71,(3+MATCH(NS$4,'Agency percentages'!$D$5:$W$5,0)),FALSE),"") -> 0 | NT8: =IF(NT$3<>"",VLOOKUP($A8,'Agency percentages'!$A$6:$X$71,(3+MATCH(NT$4,'Agency percentages'!$D$5:$W$5,0)),FALSE),"") -> 0 | NU8: =IF(NU$3<>"",VLOOKUP($A8,'Agency percentages'!$A$6:$X$71,(3+MATCH(NU$4,'Agency percentages'!$D$5:$W$5,0)),FALSE),"") -> 0 | NV8: =IF(NV$3<>"",VLOOKUP($A8,'Agency percentages'!$A$6:$X$71,(3+MATCH(NV$4,'Agency percentages'!$D$5:$W$5,0)),FALSE),"") -> 0 | NW8: =IF(NW$3<>"",VLOOKUP($A8,'Agency percentages'!$A$6:$X$71,(3+MATCH(NW$4,'Agency percentages'!$D$5:$W$5,0)),FALSE),"") -> 0 | NX8: =IF(NX$3<>"",VLOOKUP($A8,'Agency percentages'!$A$6:$X$71,(3+MATCH(NX$4,'Agency percentages'!$D$5:$W$5,0)),FALSE),"") -> 0 | NY8: =IF(NY$3<>"",VLOOKUP($A8,'Agency percentages'!$A$6:$X$71,(3+MATCH(NY$4,'Agency percentages'!$D$5:$W$5,0)),FALSE),"") -> 1 | NZ8: =IF(NZ$3<>"",VLOOKUP($A8,'Agency percentages'!$A$6:$X$71,(3+MATCH(NZ$4,'Agency percentages'!$D$5:$W$5,0)),FALSE),"") -> 0 | OA8: =IF(OA$3<>"",VLOOKUP($A8,'Agency percentages'!$A$6:$X$71,(3+MATCH(OA$4,'Agency percentages'!$D$5:$W$5,0)),FALSE),"") -> 0 | OB8: =IF(OB$3<>"",VLOOKUP($A8,'Agency percentages'!$A$6:$X$71,(3+MATCH(OB$4,'Agency percentages'!$D$5:$W$5,0)),FALSE),"") -> 0 | OC8: =IF(OC$3<>"",VLOOKUP($A8,'Agency percentages'!$A$6:$X$71,(3+MATCH(OC$4,'Agency percentages'!$D$5:$W$5,0)),FALSE),"") -> 0 | OD8: =IF(OD$3<>"",VLOOKUP($A8,'Agency percentages'!$A$6:$X$71,(3+MATCH(OD$4,'Agency percentages'!$D$5:$W$5,0)),FALSE),"") ->  | OE8: =IF(OE$3<>"",VLOOKUP($A8,'Agency percentages'!$A$6:$X$71,(3+MATCH(OE$4,'Agency percentages'!$D$5:$W$5,0)),FALSE),"") ->  | OF8: =IF(OF$3<>"",VLOOKUP($A8,'Agency percentages'!$A$6:$X$71,(3+MATCH(OF$4,'Agency percentages'!$D$5:$W$5,0)),FALSE),"") ->  | OG8: =IF(OG$3<>"",VLOOKUP($A8,'Agency percentages'!$A$6:$X$71,(3+MATCH(OG$4,'Agency percentages'!$D$5:$W$5,0)),FALSE),"") ->  | OH8: =IF(OH$3<>"",VLOOKUP($A8,'Agency percentages'!$A$6:$X$71,(3+MATCH(OH$4,'Agency percentages'!$D$5:$W$5,0)),FALSE),"") ->  | OI8: =IF(OI$3<>"",VLOOKUP($A8,'Agency percentages'!$A$6:$X$71,(3+MATCH(OI$4,'Agency percentages'!$D$5:$W$5,0)),FALSE),"") ->  | OJ8: =IF(OJ$3<>"",VLOOKUP($A8,'Agency percentages'!$A$6:$X$71,(3+MATCH(OJ$4,'Agency percentages'!$D$5:$W$5,0)),FALSE),"") ->  | OL8: =IF(AND(OL$3<>"",NQ8<>0),HLOOKUP(OL$4,'Agency cashability'!$B$3:$U$5,2,0),0) -> 0 | OM8: =IF(AND(OM$3<>"",NR8<>0),HLOOKUP(OM$4,'Agency cashability'!$B$3:$U$5,2,0),0) -> 0 | ON8: =IF(AND(ON$3<>"",NS8<>0),HLOOKUP(ON$4,'Agency cashability'!$B$3:$U$5,2,0),0) -> 0 | OO8: =IF(AND(OO$3<>"",NT8<>0),HLOOKUP(OO$4,'Agency cashability'!$B$3:$U$5,2,0),0) -> 0 | OP8: =IF(AND(OP$3<>"",NU8<>0),HLOOKUP(OP$4,'Agency cashability'!$B$3:$U$5,2,0),0) -> 0 | OQ8: =IF(AND(OQ$3<>"",NV8<>0),HLOOKUP(OQ$4,'Agency cashability'!$B$3:$U$5,2,0),0) -> 0 | OR8: =IF(AND(OR$3<>"",NW8<>0),HLOOKUP(OR$4,'Agency cashability'!$B$3:$U$5,2,0),0) -> 0 | OS8: =IF(AND(OS$3<>"",NX8<>0),HLOOKUP(OS$4,'Agency cashability'!$B$3:$U$5,2,0),0) -> 0 | OT8: =IF(AND(OT$3<>"",NY8<>0),HLOOKUP(OT$4,'Agency cashability'!$B$3:$U$5,2,0),0) -> 1 | OU8: =IF(AND(OU$3<>"",NZ8<>0),HLOOKUP(OU$4,'Agency cashability'!$B$3:$U$5,2,0),0) -> 0 | OV8: =IF(AND(OV$3<>"",OA8<>0),HLOOKUP(OV$4,'Agency cashability'!$B$3:$U$5,2,0),0) -> 0 | OW8: =IF(AND(OW$3<>"",OB8<>0),HLOOKUP(OW$4,'Agency cashability'!$B$3:$U$5,2,0),0) -> 0 | OX8: =IF(AND(OX$3<>"",OC8<>0),HLOOKUP(OX$4,'Agency cashability'!$B$3:$U$5,2,0),0) -> 0 | OY8: =IF(AND(OY$3<>"",OD8<>0),HLOOKUP(OY$4,'Agency cashability'!$B$3:$U$5,2,0),0) -> 0 | OZ8: =IF(AND(OZ$3<>"",OE8<>0),HLOOKUP(OZ$4,'Agency cashability'!$B$3:$U$5,2,0),0) -> 0 | PA8: =IF(AND(PA$3<>"",OF8<>0),HLOOKUP(PA$4,'Agency cashability'!$B$3:$U$5,2,0),0) -> 0 | PB8: =IF(AND(PB$3<>"",OG8<>0),HLOOKUP(PB$4,'Agency cashability'!$B$3:$U$5,2,0),0) -> 0 | PC8: =IF(AND(PC$3<>"",OH8<>0),HLOOKUP(PC$4,'Agency cashability'!$B$3:$U$5,2,0),0) -> 0 | PD8: =IF(AND(PD$3<>"",OI8<>0),HLOOKUP(PD$4,'Agency cashability'!$B$3:$U$5,2,0),0) -> 0 | PE8: =IF(AND(PE$3<>"",OJ8<>0),HLOOKUP(PE$4,'Agency cashability'!$B$3:$U$5,2,0),0) -> 0 | PG8: =IF(AND(PG$3<>"",NQ8<>0),HLOOKUP(PG$4,'Agency cashability'!$B$3:$U$5,3,0),0) -> 0 | PH8: =IF(AND(PH$3<>"",NR8<>0),HLOOKUP(PH$4,'Agency cashability'!$B$3:$U$5,3,0),0) -> 0 | PI8: =IF(AND(PI$3<>"",NS8<>0),HLOOKUP(PI$4,'Agency cashability'!$B$3:$U$5,3,0),0) -> 0 | PJ8: =IF(AND(PJ$3<>"",NT8<>0),HLOOKUP(PJ$4,'Agency cashability'!$B$3:$U$5,3,0),0) -> 0 | PK8: =IF(AND(PK$3<>"",NU8<>0),HLOOKUP(PK$4,'Agency cashability'!$B$3:$U$5,3,0),0) -> 0 | PL8: =IF(AND(PL$3<>"",NV8<>0),HLOOKUP(PL$4,'Agency cashability'!$B$3:$U$5,3,0),0) -> 0 | PM8: =IF(AND(PM$3<>"",NW8<>0),HLOOKUP(PM$4,'Agency cashability'!$B$3:$U$5,3,0),0) -> 0 | PN8: =IF(AND(PN$3<>"",NX8<>0),HLOOKUP(PN$4,'Agency cashability'!$B$3:$U$5,3,0),0) -> 0 | PO8: =IF(AND(PO$3<>"",NY8<>0),HLOOKUP(PO$4,'Agency cashability'!$B$3:$U$5,3,0),0) -> 1 | PP8: =IF(AND(PP$3<>"",NZ8<>0),HLOOKUP(PP$4,'Agency cashability'!$B$3:$U$5,3,0),0) -> 0 | PQ8: =IF(AND(PQ$3<>"",OA8<>0),HLOOKUP(PQ$4,'Agency cashability'!$B$3:$U$5,3,0),0) -> 0 | PR8: =IF(AND(PR$3<>"",OB8<>0),HLOOKUP(PR$4,'Agency cashability'!$B$3:$U$5,3,0),0) -> 0 | PS8: =IF(AND(PS$3<>"",OC8<>0),HLOOKUP(PS$4,'Agency cashability'!$B$3:$U$5,3,0),0) -> 0 | PT8: =IF(AND(PT$3<>"",OD8<>0),HLOOKUP(PT$4,'Agency cashability'!$B$3:$U$5,3,0),0) -> 0 | PU8: =IF(AND(PU$3<>"",OE8<>0),HLOOKUP(PU$4,'Agency cashability'!$B$3:$U$5,3,0),0) -> 0 | PV8: =IF(AND(PV$3<>"",OF8<>0),HLOOKUP(PV$4,'Agency cashability'!$B$3:$U$5,3,0),0) -> 0 | PW8: =IF(AND(PW$3<>"",OG8<>0),HLOOKUP(PW$4,'Agency cashability'!$B$3:$U$5,3,0),0) -> 0 | PX8: =IF(AND(PX$3<>"",OH8<>0),HLOOKUP(PX$4,'Agency cashability'!$B$3:$U$5,3,0),0) -> 0 | PY8: =IF(AND(PY$3<>"",OI8<>0),HLOOKUP(PY$4,'Agency cashability'!$B$3:$U$5,3,0),0) -> 0 | PZ8: =IF(AND(PZ$3<>"",OJ8<>0),HLOOKUP(PZ$4,'Agency cashability'!$B$3:$U$5,3,0),0) -> 0 | QB8: 0 | QC8: 0 | QD8: 0 | QE8: 0 | QF8: 0 | QG8: 0 | QH8: 0 | QI8: 0 | QJ8: 0 | QK8: 0 | QL8: 0 | QM8: 0 | QN8: 0 | QW8: =IF((QW$3<>""),OL8*QB8,"") -> 0 | QX8: 0 | QY8: 0 | QZ8: 0 | RA8: 0 | RB8: 0 | RC8: 0 | RD8: 0 | RE8: 0 | RF8: 0 | RG8: =IF((RG$3<>""),OV8*QL8,"") -> 0 | RH8: 0 | RI8: 0 | RT8: =IF((RT$3<>""),PG8*QB8,"") -> 0 | RU8: 0 | RV8: 0 | RW8: 0 | RX8: 0 | RY8: 0 | RZ8: 0 | SA8: 0 | SB8: 0 | SC8: 0 | SD8: =IF((SD$3<>""),PQ8*QL8,"") -> 0 | SE8: 0 | SF8: 0
A9: B4b | C9: Yes | D9: Increase in earnings amongst residents achieving Level 3 NVQ progressing from Level 2 | E9: Population qualified to Level 2 but not qualified to Level 3+ | I9: Population qualified to Level 2 but not qualified to Level 3+ | R9: 513 | T9: 921 | V9: 921 | W9: 2010 | X9: =VLOOKUP(W9,'GDP Deflators'!$B$6:$D$106,3,FALSE) -> 80.45867339 | Y9: BIS (2011): Returns to vocational qualifications. Research Paper 53 pg9-10; and IER (2008): Net Benefits of Training Study 2008 p62-64 | AA9: Standard Rate | AB9: 0 | AC9: 0 | AD9: 0 | AE9: 0 | DP9: 0 | DQ9: 0 | DR9: 0 | DS9: 0 | DT9: 0 | DU9: 0 | DV9: 0 | DW9: 0 | DX9: 0 | DY9: 0 | GW9: 0 | GY9: 0 | GZ9: 0 | HA9: 0 | HB9: 0 | HC9: 0 | HD9: 0 | HE9: 0 | HF9: 0 | HG9: 0 | HH9: 0 | KF9: 0 | KH9: 0 | KI9: 0 | KJ9: 0 | KK9: 0 | KL9: 0 | KM9: 0 | KN9: 0 | KO9: 0 | KP9: 0 | KQ9: 0 | NO9: 0 | NQ9: =IF(NQ$3<>"",VLOOKUP($A9,'Agency percentages'!$A$6:$X$71,(3+MATCH(NQ$4,'Agency percentages'!$D$5:$W$5,0)),FALSE),"") -> 0 | NR9: =IF(NR$3<>"",VLOOKUP($A9,'Agency percentages'!$A$6:$X$71,(3+MATCH(NR$4,'Agency percentages'!$D$5:$W$5,0)),FALSE),"") -> 0 | NS9: =IF(NS$3<>"",VLOOKUP($A9,'Agency percentages'!$A$6:$X$71,(3+MATCH(NS$4,'Agency percentages'!$D$5:$W$5,0)),FALSE),"") -> 0 | NT9: =IF(NT$3<>"",VLOOKUP($A9,'Agency percentages'!$A$6:$X$71,(3+MATCH(NT$4,'Agency percentages'!$D$5:$W$5,0)),FALSE),"") -> 0 | NU9: =IF(NU$3<>"",VLOOKUP($A9,'Agency percentages'!$A$6:$X$71,(3+MATCH(NU$4,'Agency percentages'!$D$5:$W$5,0)),FALSE),"") -> 0 | NV9: =IF(NV$3<>"",VLOOKUP($A9,'Agency percentages'!$A$6:$X$71,(3+MATCH(NV$4,'Agency percentages'!$D$5:$W$5,0)),FALSE),"") -> 0 | NW9: =IF(NW$3<>"",VLOOKUP($A9,'Agency percentages'!$A$6:$X$71,(3+MATCH(NW$4,'Agency percentages'!$D$5:$W$5,0)),FALSE),"") -> 0 | NX9: =IF(NX$3<>"",VLOOKUP($A9,'Agency percentages'!$A$6:$X$71,(3+MATCH(NX$4,'Agency percentages'!$D$5:$W$5,0)),FALSE),"") -> 0 | NY9: =IF(NY$3<>"",VLOOKUP($A9,'Agency percentages'!$A$6:$X$71,(3+MATCH(NY$4,'Agency percentages'!$D$5:$W$5,0)),FALSE),"") -> 1 | NZ9: =IF(NZ$3<>"",VLOOKUP($A9,'Agency percentages'!$A$6:$X$71,(3+MATCH(NZ$4,'Agency percentages'!$D$5:$W$5,0)),FALSE),"") -> 0 | OA9: =IF(OA$3<>"",VLOOKUP($A9,'Agency percentages'!$A$6:$X$71,(3+MATCH(OA$4,'Agency percentages'!$D$5:$W$5,0)),FALSE),"") -> 0 | OB9: =IF(OB$3<>"",VLOOKUP($A9,'Agency percentages'!$A$6:$X$71,(3+MATCH(OB$4,'Agency percentages'!$D$5:$W$5,0)),FALSE),"") -> 0 | OC9: =IF(OC$3<>"",VLOOKUP($A9,'Agency percentages'!$A$6:$X$71,(3+MATCH(OC$4,'Agency percentages'!$D$5:$W$5,0)),FALSE),"") -> 0 | OD9: =IF(OD$3<>"",VLOOKUP($A9,'Agency percentages'!$A$6:$X$71,(3+MATCH(OD$4,'Agency percentages'!$D$5:$W$5,0)),FALSE),"") ->  | OE9: =IF(OE$3<>"",VLOOKUP($A9,'Agency percentages'!$A$6:$X$71,(3+MATCH(OE$4,'Agency percentages'!$D$5:$W$5,0)),FALSE),"") ->  | OF9: =IF(OF$3<>"",VLOOKUP($A9,'Agency percentages'!$A$6:$X$71,(3+MATCH(OF$4,'Agency percentages'!$D$5:$W$5,0)),FALSE),"") ->  | OG9: =IF(OG$3<>"",VLOOKUP($A9,'Agency percentages'!$A$6:$X$71,(3+MATCH(OG$4,'Agency percentages'!$D$5:$W$5,0)),FALSE),"") ->  | OH9: =IF(OH$3<>"",VLOOKUP($A9,'Agency percentages'!$A$6:$X$71,(3+MATCH(OH$4,'Agency percentages'!$D$5:$W$5,0)),FALSE),"") ->  | OI9: =IF(OI$3<>"",VLOOKUP($A9,'Agency percentages'!$A$6:$X$71,(3+MATCH(OI$4,'Agency percentages'!$D$5:$W$5,0)),FALSE),"") ->  | OJ9: =IF(OJ$3<>"",VLOOKUP($A9,'Agency percentages'!$A$6:$X$71,(3+MATCH(OJ$4,'Agency percentages'!$D$5:$W$5,0)),FALSE),"") ->  | OL9: =IF(AND(OL$3<>"",NQ9<>0),HLOOKUP(OL$4,'Agency cashability'!$B$3:$U$5,2,0),0) -> 0 | OM9: =IF(AND(OM$3<>"",NR9<>0),HLOOKUP(OM$4,'Agency cashability'!$B$3:$U$5,2,0),0) -> 0 | ON9: =IF(AND(ON$3<>"",NS9<>0),HLOOKUP(ON$4,'Agency cashability'!$B$3:$U$5,2,0),0) -> 0 | OO9: =IF(AND(OO$3<>"",NT9<>0),HLOOKUP(OO$4,'Agency cashability'!$B$3:$U$5,2,0),0) -> 0 | OP9: =IF(AND(OP$3<>"",NU9<>0),HLOOKUP(OP$4,'Agency cashability'!$B$3:$U$5,2,0),0) -> 0 | OQ9: =IF(AND(OQ$3<>"",NV9<>0),HLOOKUP(OQ$4,'Agency cashability'!$B$3:$U$5,2,0),0) -> 0 | OR9: =IF(AND(OR$3<>"",NW9<>0),HLOOKUP(OR$4,'Agency cashability'!$B$3:$U$5,2,0),0) -> 0 | OS9: =IF(AND(OS$3<>"",NX9<>0),HLOOKUP(OS$4,'Agency cashability'!$B$3:$U$5,2,0),0) -> 0 | OT9: =IF(AND(OT$3<>"",NY9<>0),HLOOKUP(OT$4,'Agency cashability'!$B$3:$U$5,2,0),0) -> 1 | OU9: =IF(AND(OU$3<>"",NZ9<>0),HLOOKUP(OU$4,'Agency cashability'!$B$3:$U$5,2,0),0) -> 0 | OV9: =IF(AND(OV$3<>"",OA9<>0),HLOOKUP(OV$4,'Agency cashability'!$B$3:$U$5,2,0),0) -> 0 | OW9: =IF(AND(OW$3<>"",OB9<>0),HLOOKUP(OW$4,'Agency cashability'!$B$3:$U$5,2,0),0) -> 0 | OX9: =IF(AND(OX$3<>"",OC9<>0),HLOOKUP(OX$4,'Agency cashability'!$B$3:$U$5,2,0),0) -> 0 | OY9: =IF(AND(OY$3<>"",OD9<>0),HLOOKUP(OY$4,'Agency cashability'!$B$3:$U$5,2,0),0) -> 0 | OZ9: =IF(AND(OZ$3<>"",OE9<>0),HLOOKUP(OZ$4,'Agency cashability'!$B$3:$U$5,2,0),0) -> 0 | PA9: =IF(AND(PA$3<>"",OF9<>0),HLOOKUP(PA$4,'Agency cashability'!$B$3:$U$5,2,0),0) -> 0 | PB9: =IF(AND(PB$3<>"",OG9<>0),HLOOKUP(PB$4,'Agency cashability'!$B$3:$U$5,2,0),0) -> 0 | PC9: =IF(AND(PC$3<>"",OH9<>0),HLOOKUP(PC$4,'Agency cashability'!$B$3:$U$5,2,0),0) -> 0 | PD9: =IF(AND(PD$3<>"",OI9<>0),HLOOKUP(PD$4,'Agency cashability'!$B$3:$U$5,2,0),0) -> 0 | PE9: =IF(AND(PE$3<>"",OJ9<>0),HLOOKUP(PE$4,'Agency cashability'!$B$3:$U$5,2,0),0) -> 0 | PG9: =IF(AND(PG$3<>"",NQ9<>0),HLOOKUP(PG$4,'Agency cashability'!$B$3:$U$5,3,0),0) -> 0 | PH9: =IF(AND(PH$3<>"",NR9<>0),HLOOKUP(PH$4,'Agency cashability'!$B$3:$U$5,3,0),0) -> 0 | PI9: =IF(AND(PI$3<>"",NS9<>0),HLOOKUP(PI$4,'Agency cashability'!$B$3:$U$5,3,0),0) -> 0 | PJ9: =IF(AND(PJ$3<>"",NT9<>0),HLOOKUP(PJ$4,'Agency cashability'!$B$3:$U$5,3,0),0) -> 0 | PK9: =IF(AND(PK$3<>"",NU9<>0),HLOOKUP(PK$4,'Agency cashability'!$B$3:$U$5,3,0),0) -> 0 | PL9: =IF(AND(PL$3<>"",NV9<>0),HLOOKUP(PL$4,'Agency cashability'!$B$3:$U$5,3,0),0) -> 0 | PM9: =IF(AND(PM$3<>"",NW9<>0),HLOOKUP(PM$4,'Agency cashability'!$B$3:$U$5,3,0),0) -> 0 | PN9: =IF(AND(PN$3<>"",NX9<>0),HLOOKUP(PN$4,'Agency cashability'!$B$3:$U$5,3,0),0) -> 0 | PO9: =IF(AND(PO$3<>"",NY9<>0),HLOOKUP(PO$4,'Agency cashability'!$B$3:$U$5,3,0),0) -> 1 | PP9: =IF(AND(PP$3<>"",NZ9<>0),HLOOKUP(PP$4,'Agency cashability'!$B$3:$U$5,3,0),0) -> 0 | PQ9: =IF(AND(PQ$3<>"",OA9<>0),HLOOKUP(PQ$4,'Agency cashability'!$B$3:$U$5,3,0),0) -> 0 | PR9: =IF(AND(PR$3<>"",OB9<>0),HLOOKUP(PR$4,'Agency cashability'!$B$3:$U$5,3,0),0) -> 0 | PS9: =IF(AND(PS$3<>"",OC9<>0),HLOOKUP(PS$4,'Agency cashability'!$B$3:$U$5,3,0),0) -> 0 | PT9: =IF(AND(PT$3<>"",OD9<>0),HLOOKUP(PT$4,'Agency cashability'!$B$3:$U$5,3,0),0) -> 0 | PU9: =IF(AND(PU$3<>"",OE9<>0),HLOOKUP(PU$4,'Agency cashability'!$B$3:$U$5,3,0),0) -> 0 | PV9: =IF(AND(PV$3<>"",OF9<>0),HLOOKUP(PV$4,'Agency cashability'!$B$3:$U$5,3,0),0) -> 0 | PW9: =IF(AND(PW$3<>"",OG9<>0),HLOOKUP(PW$4,'Agency cashability'!$B$3:$U$5,3,0),0) -> 0 | PX9: =IF(AND(PX$3<>"",OH9<>0),HLOOKUP(PX$4,'Agency cashability'!$B$3:$U$5,3,0),0) -> 0 | PY9: =IF(AND(PY$3<>"",OI9<>0),HLOOKUP(PY$4,'Agency cashability'!$B$3:$U$5,3,0),0) -> 0 | PZ9: =IF(AND(PZ$3<>"",OJ9<>0),HLOOKUP(PZ$4,'Agency cashability'!$B$3:$U$5,3,0),0) -> 0 | QB9: 0 | QC9: 0 | QD9: 0 | QE9: 0 | QF9: 0 | QG9: 0 | QH9: 0 | QI9: 0 | QJ9: 0 | QK9: 0 | QL9: 0 | QM9: 0 | QN9: 0 | QW9: 0 | QX9: 0 | QY9: 0 | QZ9: 0 | RA9: 0 | RB9: 0 | RC9: 0 | RD9: 0 | RE9: 0 | RF9: 0 | RG9: 0 | RH9: 0 | RI9: 0 | RT9: 0 | RU9: 0 | RV9: 0 | RW9: 0 | RX9: 0 | RY9: 0 | RZ9: 0 | SA9: 0 | SB9: 0 | SC9: 0 | SD9: 0 | SE9: 0 | SF9: 0
A10: B5 | B10: Mental health | C10: Yes | D10: Reduced health cost of interventions | E10: NHS/Individuals | R10: 830 | S10: 830 | T10: ='Mental Health'!G6 -> 3840.909091 | V10: 4670.909091 | W10: 2007 | X10: =VLOOKUP(W10,'GDP Deflators'!$B$6:$D$106,3,FALSE) -> 74.84293742 | Y10: “Paying the Price - The cost of mental health care in England to 2026” - Kings Fund, 2008 | AA10: Standard Rate | AB10: 0 | AC10: 0 | AD10: 0 | AE10: 0 | DP10: 0 | DQ10: 0 | DR10: 0 | DS10: 0 | DT10: 0 | DU10: 0 | DV10: 0 | DW10: 0 | DX10: 0 | DY10: 0 | GW10: 0 | GY10: 0 | GZ10: 0 | HA10: 0 | HB10: 0 | HC10: 0 | HD10: 0 | HE10: 0 | HF10: 0 | HG10: 0 | HH10: 0 | KF10: 0 | KH10: 0 | KI10: 0 | KJ10: 0 | KK10: 0 | KL10: 0 | KM10: 0 | KN10: 0 | KO10: 0 | KP10: 0 | KQ10: 0 | NO10: 0 | NQ10: =IF(NQ$3<>"",VLOOKUP($A10,'Agency percentages'!$A$6:$X$71,(3+MATCH(NQ$4,'Agency percentages'!$D$5:$W$5,0)),FALSE),"") -> 0.08 | NR10: =IF(NR$3<>"",VLOOKUP($A10,'Agency percentages'!$A$6:$X$71,(3+MATCH(NR$4,'Agency percentages'!$D$5:$W$5,0)),FALSE),"") -> 0.92 | NS10: =IF(NS$3<>"",VLOOKUP($A10,'Agency percentages'!$A$6:$X$71,(3+MATCH(NS$4,'Agency percentages'!$D$5:$W$5,0)),FALSE),"") -> 0 | NT10: =IF(NT$3<>"",VLOOKUP($A10,'Agency percentages'!$A$6:$X$71,(3+MATCH(NT$4,'Agency percentages'!$D$5:$W$5,0)),FALSE),"") -> 0 | NU10: =IF(NU$3<>"",VLOOKUP($A10,'Agency percentages'!$A$6:$X$71,(3+MATCH(NU$4,'Agency percentages'!$D$5:$W$5,0)),FALSE),"") -> 0 | NV10: =IF(NV$3<>"",VLOOKUP($A10,'Agency percentages'!$A$6:$X$71,(3+MATCH(NV$4,'Agency percentages'!$D$5:$W$5,0)),FALSE),"") -> 0 | NW10: =IF(NW$3<>"",VLOOKUP($A10,'Agency percentages'!$A$6:$X$71,(3+MATCH(NW$4,'Agency percentages'!$D$5:$W$5,0)),FALSE),"") -> 0 | NX10: =IF(NX$3<>"",VLOOKUP($A10,'Agency percentages'!$A$6:$X$71,(3+MATCH(NX$4,'Agency percentages'!$D$5:$W$5,0)),FALSE),"") -> 0 | NY10: =IF(NY$3<>"",VLOOKUP($A10,'Agency percentages'!$A$6:$X$71,(3+MATCH(NY$4,'Agency percentages'!$D$5:$W$5,0)),FALSE),"") -> 0 | NZ10: =IF(NZ$3<>"",VLOOKUP($A10,'Agency percentages'!$A$6:$X$71,(3+MATCH(NZ$4,'Agency percentages'!$D$5:$W$5,0)),FALSE),"") -> 0 | OA10: =IF(OA$3<>"",VLOOKUP($A10,'Agency percentages'!$A$6:$X$71,(3+MATCH(OA$4,'Agency percentages'!$D$5:$W$5,0)),FALSE),"") -> 0 | OB10: =IF(OB$3<>"",VLOOKUP($A10,'Agency percentages'!$A$6:$X$71,(3+MATCH(OB$4,'Agency percentages'!$D$5:$W$5,0)),FALSE),"") -> 0 | OC10: =IF(OC$3<>"",VLOOKUP($A10,'Agency percentages'!$A$6:$X$71,(3+MATCH(OC$4,'Agency percentages'!$D$5:$W$5,0)),FALSE),"") -> 0 | OD10: =IF(OD$3<>"",VLOOKUP($A10,'Agency percentages'!$A$6:$X$71,(3+MATCH(OD$4,'Agency percentages'!$D$5:$W$5,0)),FALSE),"") ->  | OE10: =IF(OE$3<>"",VLOOKUP($A10,'Agency percentages'!$A$6:$X$71,(3+MATCH(OE$4,'Agency percentages'!$D$5:$W$5,0)),FALSE),"") ->  | OF10: =IF(OF$3<>"",VLOOKUP($A10,'Agency percentages'!$A$6:$X$71,(3+MATCH(OF$4,'Agency percentages'!$D$5:$W$5,0)),FALSE),"") ->  | OG10: =IF(OG$3<>"",VLOOKUP($A10,'Agency percentages'!$A$6:$X$71,(3+MATCH(OG$4,'Agency percentages'!$D$5:$W$5,0)),FALSE),"") ->  | OH10: =IF(OH$3<>"",VLOOKUP($A10,'Agency percentages'!$A$6:$X$71,(3+MATCH(OH$4,'Agency percentages'!$D$5:$W$5,0)),FALSE),"") ->  | OI10: =IF(OI$3<>"",VLOOKUP($A10,'Agency percentages'!$A$6:$X$71,(3+MATCH(OI$4,'Agency percentages'!$D$5:$W$5,0)),FALSE),"") ->  | OJ10: =IF(OJ$3<>"",VLOOKUP($A10,'Agency percentages'!$A$6:$X$71,(3+MATCH(OJ$4,'Agency percentages'!$D$5:$W$5,0)),FALSE),"") ->  | OL10: =IF(AND(OL$3<>"",NQ10<>0),HLOOKUP(OL$4,'Agency cashability'!$B$3:$U$5,2,0),0) -> 0.5 | OM10: =IF(AND(OM$3<>"",NR10<>0),HLOOKUP(OM$4,'Agency cashability'!$B$3:$U$5,2,0),0) -> 0.2 | ON10: =IF(AND(ON$3<>"",NS10<>0),HLOOKUP(ON$4,'Agency cashability'!$B$3:$U$5,2,0),0) -> 0 | OO10: =IF(AND(OO$3<>"",NT10<>0),HLOOKUP(OO$4,'Agency cashability'!$B$3:$U$5,2,0),0) -> 0 | OP10: =IF(AND(OP$3<>"",NU10<>0),HLOOKUP(OP$4,'Agency cashability'!$B$3:$U$5,2,0),0) -> 0 | OQ10: =IF(AND(OQ$3<>"",NV10<>0),HLOOKUP(OQ$4,'Agency cashability'!$B$3:$U$5,2,0),0) -> 0 | OR10: =IF(AND(OR$3<>"",NW10<>0),HLOOKUP(OR$4,'Agency cashability'!$B$3:$U$5,2,0),0) -> 0 | OS10: =IF(AND(OS$3<>"",NX10<>0),HLOOKUP(OS$4,'Agency cashability'!$B$3:$U$5,2,0),0) -> 0 | OT10: =IF(AND(OT$3<>"",NY10<>0),HLOOKUP(OT$4,'Agency cashability'!$B$3:$U$5,2,0),0) -> 0 | OU10: =IF(AND(OU$3<>"",NZ10<>0),HLOOKUP(OU$4,'Agency cashability'!$B$3:$U$5,2,0),0) -> 0 | OV10: =IF(AND(OV$3<>"",OA10<>0),HLOOKUP(OV$4,'Agency cashability'!$B$3:$U$5,2,0),0) -> 0 | OW10: =IF(AND(OW$3<>"",OB10<>0),HLOOKUP(OW$4,'Agency cashability'!$B$3:$U$5,2,0),0) -> 0 | OX10: =IF(AND(OX$3<>"",OC10<>0),HLOOKUP(OX$4,'Agency cashability'!$B$3:$U$5,2,0),0) -> 0 | OY10: =IF(AND(OY$3<>"",OD10<>0),HLOOKUP(OY$4,'Agency cashability'!$B$3:$U$5,2,0),0) -> 0 | OZ10: =IF(AND(OZ$3<>"",OE10<>0),HLOOKUP(OZ$4,'Agency cashability'!$B$3:$U$5,2,0),0) -> 0 | PA10: =IF(AND(PA$3<>"",OF10<>0),HLOOKUP(PA$4,'Agency cashability'!$B$3:$U$5,2,0),0) -> 0 | PB10: =IF(AND(PB$3<>"",OG10<>0),HLOOKUP(PB$4,'Agency cashability'!$B$3:$U$5,2,0),0) -> 0 | PC10: =IF(AND(PC$3<>"",OH10<>0),HLOOKUP(PC$4,'Agency cashability'!$B$3:$U$5,2,0),0) -> 0 | PD10: =IF(AND(PD$3<>"",OI10<>0),HLOOKUP(PD$4,'Agency cashability'!$B$3:$U$5,2,0),0) -> 0 | PE10: =IF(AND(PE$3<>"",OJ10<>0),HLOOKUP(PE$4,'Agency cashability'!$B$3:$U$5,2,0),0) -> 0 | PG10: =IF(AND(PG$3<>"",NQ10<>0),HLOOKUP(PG$4,'Agency cashability'!$B$3:$U$5,3,0),0) -> 0.9 | PH10: =IF(AND(PH$3<>"",NR10<>0),HLOOKUP(PH$4,'Agency cashability'!$B$3:$U$5,3,0),0) -> 0.5 | PI10: =IF(AND(PI$3<>"",NS10<>0),HLOOKUP(PI$4,'Agency cashability'!$B$3:$U$5,3,0),0) -> 0 | PJ10: =IF(AND(PJ$3<>"",NT10<>0),HLOOKUP(PJ$4,'Agency cashability'!$B$3:$U$5,3,0),0) -> 0 | PK10: =IF(AND(PK$3<>"",NU10<>0),HLOOKUP(PK$4,'Agency cashability'!$B$3:$U$5,3,0),0) -> 0 | PL10: =IF(AND(PL$3<>"",NV10<>0),HLOOKUP(PL$4,'Agency cashability'!$B$3:$U$5,3,0),0) -> 0 | PM10: =IF(AND(PM$3<>"",NW10<>0),HLOOKUP(PM$4,'Agency cashability'!$B$3:$U$5,3,0),0) -> 0 | PN10: =IF(AND(PN$3<>"",NX10<>0),HLOOKUP(PN$4,'Agency cashability'!$B$3:$U$5,3,0),0) -> 0 | PO10: =IF(AND(PO$3<>"",NY10<>0),HLOOKUP(PO$4,'Agency cashability'!$B$3:$U$5,3,0),0) -> 0 | PP10: =IF(AND(PP$3<>"",NZ10<>0),HLOOKUP(PP$4,'Agency cashability'!$B$3:$U$5,3,0),0) -> 0 | PQ10: =IF(AND(PQ$3<>"",OA10<>0),HLOOKUP(PQ$4,'Agency cashability'!$B$3:$U$5,3,0),0) -> 0 | PR10: =IF(AND(PR$3<>"",OB10<>0),HLOOKUP(PR$4,'Agency cashability'!$B$3:$U$5,3,0),0) -> 0 | PS10: =IF(AND(PS$3<>"",OC10<>0),HLOOKUP(PS$4,'Agency cashability'!$B$3:$U$5,3,0),0) -> 0 | PT10: =IF(AND(PT$3<>"",OD10<>0),HLOOKUP(PT$4,'Agency cashability'!$B$3:$U$5,3,0),0) -> 0 | PU10: =IF(AND(PU$3<>"",OE10<>0),HLOOKUP(PU$4,'Agency cashability'!$B$3:$U$5,3,0),0) -> 0 | PV10: =IF(AND(PV$3<>"",OF10<>0),HLOOKUP(PV$4,'Agency cashability'!$B$3:$U$5,3,0),0) -> 0 | PW10: =IF(AND(PW$3<>"",OG10<>0),HLOOKUP(PW$4,'Agency cashability'!$B$3:$U$5,3,0),0) -> 0 | PX10: =IF(AND(PX$3<>"",OH10<>0),HLOOKUP(PX$4,'Agency cashability'!$B$3:$U$5,3,0),0) -> 0 | PY10: =IF(AND(PY$3<>"",OI10<>0),HLOOKUP(PY$4,'Agency cashability'!$B$3:$U$5,3,0),0) -> 0 | PZ10: =IF(AND(PZ$3<>"",OJ10<>0),HLOOKUP(PZ$4,'Agency cashability'!$B$3:$U$5,3,0),0) -> 0 | QB10: 0 | QC10: 0 | QD10: 0 | QE10: 0 | QF10: 0 | QG10: 0 | QH10: 0 | QI10: 0 | QJ10: 0 | QK10: 0 | QL10: 0 | QM10: 0 | QN10: 0 | QW10: =IF((QW$3<>""),OL10*QB10,"") -> 0 | QX10: 0 | QY10: 0 | QZ10: 0 | RA10: 0 | RB10: 0 | RC10: 0 | RD10: 0 | RE10: 0 | RF10: 0 | RG10: 0 | RH10: 0 | RI10: 0 | RT10: =IF((RT$3<>""),PG10*QB10,"") -> 0 | RU10: 0 | RV10: 0 | RW10: 0 | RX10: 0 | RY10: 0 | RZ10: 0 | SA10: 0 | SB10: 0 | SC10: 0 | SD10: 0 | SE10: 0 | SF10: 0
A11: B6 | B11: A&E attendance | C11: Yes | D11: Reduced cost of unnecessary attendance | E11: NHS | R11: 134 | S11: =R11 -> 134 | V11: 134 | W11: 2020 | X11: =VLOOKUP(W11,'GDP Deflators'!$B$6:$D$106,3,FALSE) -> 95.63193925 | Y11: National Cost Collection: National Schedule of Reference Costs - Year 2020-21 - NHS trusts and NHS foundation trusts (weighted average of values against HRG code, sheet AE VB11Z) | AA11: Standard Rate | AB11: 0 | AC11: 0 | AD11: 0 | AE11: 0 | DP11: 0 | DQ11: 0 | DR11: 0 | DS11: 0 | DT11: 0 | DU11: 0 | DV11: 0 | DW11: 0 | DX11: 0 | DY11: 0 | GW11: 0 | GY11: 0 | GZ11: 0 | HA11: 0 | HB11: 0 | HC11: 0 | HD11: 0 | HE11: 0 | HF11: 0 | HG11: 0 | HH11: 0 | KF11: 0 | KH11: 0 | KI11: 0 | KJ11: 0 | KK11: 0 | KL11: 0 | KM11: 0 | KN11: 0 | KO11: 0 | KP11: 0 | KQ11: 0 | NO11: 0 | NQ11: =IF(NQ$3<>"",VLOOKUP($A11,'Agency percentages'!$A$6:$X$71,(3+MATCH(NQ$4,'Agency percentages'!$D$5:$W$5,0)),FALSE),"") -> 0 | NR11: =IF(NR$3<>"",VLOOKUP($A11,'Agency percentages'!$A$6:$X$71,(3+MATCH(NR$4,'Agency percentages'!$D$5:$W$5,0)),FALSE),"") -> 1 | NS11: =IF(NS$3<>"",VLOOKUP($A11,'Agency percentages'!$A$6:$X$71,(3+MATCH(NS$4,'Agency percentages'!$D$5:$W$5,0)),FALSE),"") -> 0 | NT11: =IF(NT$3<>"",VLOOKUP($A11,'Agency percentages'!$A$6:$X$71,(3+MATCH(NT$4,'Agency percentages'!$D$5:$W$5,0)),FALSE),"") -> 0 | NU11: =IF(NU$3<>"",VLOOKUP($A11,'Agency percentages'!$A$6:$X$71,(3+MATCH(NU$4,'Agency percentages'!$D$5:$W$5,0)),FALSE),"") -> 0 | NV11: =IF(NV$3<>"",VLOOKUP($A11,'Agency percentages'!$A$6:$X$71,(3+MATCH(NV$4,'Agency percentages'!$D$5:$W$5,0)),FALSE),"") -> 0 | NW11: =IF(NW$3<>"",VLOOKUP($A11,'Agency percentages'!$A$6:$X$71,(3+MATCH(NW$4,'Agency percentages'!$D$5:$W$5,0)),FALSE),"") -> 0 | NX11: =IF(NX$3<>"",VLOOKUP($A11,'Agency percentages'!$A$6:$X$71,(3+MATCH(NX$4,'Agency percentages'!$D$5:$W$5,0)),FALSE),"") -> 0 | NY11: =IF(NY$3<>"",VLOOKUP($A11,'Agency percentages'!$A$6:$X$71,(3+MATCH(NY$4,'Agency percentages'!$D$5:$W$5,0)),FALSE),"") -> 0 | NZ11: =IF(NZ$3<>"",VLOOKUP($A11,'Agency percentages'!$A$6:$X$71,(3+MATCH(NZ$4,'Agency percentages'!$D$5:$W$5,0)),FALSE),"") -> 0 | OA11: =IF(OA$3<>"",VLOOKUP($A11,'Agency percentages'!$A$6:$X$71,(3+MATCH(OA$4,'Agency percentages'!$D$5:$W$5,0)),FALSE),"") -> 0 | OB11: =IF(OB$3<>"",VLOOKUP($A11,'Agency percentages'!$A$6:$X$71,(3+MATCH(OB$4,'Agency percentages'!$D$5:$W$5,0)),FALSE),"") -> 0 | OC11: =IF(OC$3<>"",VLOOKUP($A11,'Agency percentages'!$A$6:$X$71,(3+MATCH(OC$4,'Agency percentages'!$D$5:$W$5,0)),FALSE),"") -> 0 | OD11: =IF(OD$3<>"",VLOOKUP($A11,'Agency percentages'!$A$6:$X$71,(3+MATCH(OD$4,'Agency percentages'!$D$5:$W$5,0)),FALSE),"") ->  | OE11: =IF(OE$3<>"",VLOOKUP($A11,'Agency percentages'!$A$6:$X$71,(3+MATCH(OE$4,'Agency percentages'!$D$5:$W$5,0)),FALSE),"") ->  | OF11: =IF(OF$3<>"",VLOOKUP($A11,'Agency percentages'!$A$6:$X$71,(3+MATCH(OF$4,'Agency percentages'!$D$5:$W$5,0)),FALSE),"") ->  | OG11: =IF(OG$3<>"",VLOOKUP($A11,'Agency percentages'!$A$6:$X$71,(3+MATCH(OG$4,'Agency percentages'!$D$5:$W$5,0)),FALSE),"") ->  | OH11: =IF(OH$3<>"",VLOOKUP($A11,'Agency percentages'!$A$6:$X$71,(3+MATCH(OH$4,'Agency percentages'!$D$5:$W$5,0)),FALSE),"") ->  | OI11: =IF(OI$3<>"",VLOOKUP($A11,'Agency percentages'!$A$6:$X$71,(3+MATCH(OI$4,'Agency percentages'!$D$5:$W$5,0)),FALSE),"") ->  | OJ11: =IF(OJ$3<>"",VLOOKUP($A11,'Agency percentages'!$A$6:$X$71,(3+MATCH(OJ$4,'Agency percentages'!$D$5:$W$5,0)),FALSE),"") ->  | OL11: =IF(AND(OL$3<>"",NQ11<>0),HLOOKUP(OL$4,'Agency cashability'!$B$3:$U$5,2,0),0) -> 0 | OM11: =IF(AND(OM$3<>"",NR11<>0),HLOOKUP(OM$4,'Agency cashability'!$B$3:$U$5,2,0),0) -> 0.2 | ON11: =IF(AND(ON$3<>"",NS11<>0),HLOOKUP(ON$4,'Agency cashability'!$B$3:$U$5,2,0),0) -> 0 | OO11: =IF(AND(OO$3<>"",NT11<>0),HLOOKUP(OO$4,'Agency cashability'!$B$3:$U$5,2,0),0) -> 0 | OP11: =IF(AND(OP$3<>"",NU11<>0),HLOOKUP(OP$4,'Agency cashability'!$B$3:$U$5,2,0),0) -> 0 | OQ11: =IF(AND(OQ$3<>"",NV11<>0),HLOOKUP(OQ$4,'Agency cashability'!$B$3:$U$5,2,0),0) -> 0 | OR11: =IF(AND(OR$3<>"",NW11<>0),HLOOKUP(OR$4,'Agency cashability'!$B$3:$U$5,2,0),0) -> 0 | OS11: =IF(AND(OS$3<>"",NX11<>0),HLOOKUP(OS$4,'Agency cashability'!$B$3:$U$5,2,0),0) -> 0 | OT11: =IF(AND(OT$3<>"",NY11<>0),HLOOKUP(OT$4,'Agency cashability'!$B$3:$U$5,2,0),0) -> 0 | OU11: =IF(AND(OU$3<>"",NZ11<>0),HLOOKUP(OU$4,'Agency cashability'!$B$3:$U$5,2,0),0) -> 0 | OV11: =IF(AND(OV$3<>"",OA11<>0),HLOOKUP(OV$4,'Agency cashability'!$B$3:$U$5,2,0),0) -> 0 | OW11: =IF(AND(OW$3<>"",OB11<>0),HLOOKUP(OW$4,'Agency cashability'!$B$3:$U$5,2,0),0) -> 0 | OX11: =IF(AND(OX$3<>"",OC11<>0),HLOOKUP(OX$4,'Agency cashability'!$B$3:$U$5,2,0),0) -> 0 | OY11: =IF(AND(OY$3<>"",OD11<>0),HLOOKUP(OY$4,'Agency cashability'!$B$3:$U$5,2,0),0) -> 0 | OZ11: =IF(AND(OZ$3<>"",OE11<>0),HLOOKUP(OZ$4,'Agency cashability'!$B$3:$U$5,2,0),0) -> 0 | PA11: =IF(AND(PA$3<>"",OF11<>0),HLOOKUP(PA$4,'Agency cashability'!$B$3:$U$5,2,0),0) -> 0 | PB11: =IF(AND(PB$3<>"",OG11<>0),HLOOKUP(PB$4,'Agency cashability'!$B$3:$U$5,2,0),0) -> 0 | PC11: =IF(AND(PC$3<>"",OH11<>0),HLOOKUP(PC$4,'Agency cashability'!$B$3:$U$5,2,0),0) -> 0 | PD11: =IF(AND(PD$3<>"",OI11<>0),HLOOKUP(PD$4,'Agency cashability'!$B$3:$U$5,2,0),0) -> 0 | PE11: =IF(AND(PE$3<>"",OJ11<>0),HLOOKUP(PE$4,'Agency cashability'!$B$3:$U$5,2,0),0) -> 0 | PG11: =IF(AND(PG$3<>"",NQ11<>0),HLOOKUP(PG$4,'Agency cashability'!$B$3:$U$5,3,0),0) -> 0 | PH11: =IF(AND(PH$3<>"",NR11<>0),HLOOKUP(PH$4,'Agency cashability'!$B$3:$U$5,3,0),0) -> 0.5 | PI11: =IF(AND(PI$3<>"",NS11<>0),HLOOKUP(PI$4,'Agency cashability'!$B$3:$U$5,3,0),0) -> 0 | PJ11: =IF(AND(PJ$3<>"",NT11<>0),HLOOKUP(PJ$4,'Agency cashability'!$B$3:$U$5,3,0),0) -> 0 | PK11: =IF(AND(PK$3<>"",NU11<>0),HLOOKUP(PK$4,'Agency cashability'!$B$3:$U$5,3,0),0) -> 0 | PL11: =IF(AND(PL$3<>"",NV11<>0),HLOOKUP(PL$4,'Agency cashability'!$B$3:$U$5,3,0),0) -> 0 | PM11: =IF(AND(PM$3<>"",NW11<>0),HLOOKUP(PM$4,'Agency cashability'!$B$3:$U$5,3,0),0) -> 0 | PN11: =IF(AND(PN$3<>"",NX11<>0),HLOOKUP(PN$4,'Agency cashability'!$B$3:$U$5,3,0),0) -> 0 | PO11: =IF(AND(PO$3<>"",NY11<>0),HLOOKUP(PO$4,'Agency cashability'!$B$3:$U$5,3,0),0) -> 0 | PP11: =IF(AND(PP$3<>"",NZ11<>0),HLOOKUP(PP$4,'Agency cashability'!$B$3:$U$5,3,0),0) -> 0 | PQ11: =IF(AND(PQ$3<>"",OA11<>0),HLOOKUP(PQ$4,'Agency cashability'!$B$3:$U$5,3,0),0) -> 0 | PR11: =IF(AND(PR$3<>"",OB11<>0),HLOOKUP(PR$4,'Agency cashability'!$B$3:$U$5,3,0),0) -> 0 | PS11: =IF(AND(PS$3<>"",OC11<>0),HLOOKUP(PS$4,'Agency cashability'!$B$3:$U$5,3,0),0) -> 0 | PT11: =IF(AND(PT$3<>"",OD11<>0),HLOOKUP(PT$4,'Agency cashability'!$B$3:$U$5,3,0),0) -> 0 | PU11: =IF(AND(PU$3<>"",OE11<>0),HLOOKUP(PU$4,'Agency cashability'!$B$3:$U$5,3,0),0) -> 0 | PV11: =IF(AND(PV$3<>"",OF11<>0),HLOOKUP(PV$4,'Agency cashability'!$B$3:$U$5,3,0),0) -> 0 | PW11: =IF(AND(PW$3<>"",OG11<>0),HLOOKUP(PW$4,'Agency cashability'!$B$3:$U$5,3,0),0) -> 0 | PX11: =IF(AND(PX$3<>"",OH11<>0),HLOOKUP(PX$4,'Agency cashability'!$B$3:$U$5,3,0),0) -> 0 | PY11: =IF(AND(PY$3<>"",OI11<>0),HLOOKUP(PY$4,'Agency cashability'!$B$3:$U$5,3,0),0) -> 0 | PZ11: =IF(AND(PZ$3<>"",OJ11<>0),HLOOKUP(PZ$4,'Agency cashability'!$B$3:$U$5,3,0),0) -> 0 | QB11: 0 | QC11: 0 | QD11: 0 | QE11: 0 | QF11: 0 | QG11: 0 | QH11: 0 | QI11: 0 | QJ11: 0 | QK11: 0 | QL11: 0 | QM11: 0 | QN11: 0 | QW11: =IF((QW$3<>""),OL11*QB11,"") -> 0 | QX11: 0 | QY11: 0 | QZ11: 0 | RA11: 0 | RB11: 0 | RC11: 0 | RD11: 0 | RE11: 0 | RF11: 0 | RG11: 0 | RH11: 0 | RI11: 0 | RT11: =IF((RT$3<>""),PG11*QB11,"") -> 0 | RU11: 0 | RV11: 0 | RW11: 0 | RX11: 0 | RY11: 0 | RZ11: 0 | SA11: 0 | SB11: 0 | SC11: 0 | SD11: 0 | SE11: 0 | SF11: 0
A12: B7 | B12: Reduced incidents of domestic violence | C12: Yes | D12: Reduced health and criminal justice costs | E12: NHS, LA, CJS | R12: 2470 | S12: 2470 | T12: 1473 | U12: 6795 | V12: 10738 | W12: 2008 | X12: =VLOOKUP(W12,'GDP Deflators'!$B$6:$D$106,3,FALSE) -> 76.93487503 | Y12: Based on Silvia Walby paper “The Cost of Domestic Violence: Up-date 2009” | AA12: Standard Rate | AB12: 0 | AC12: 0 | AD12: 0 | AE12: 0 | DP12: 0 | DQ12: 0 | DR12: 0 | DS12: 0 | DT12: 0 | DU12: 0 | DV12: 0 | DW12: 0 | DX12: 0 | DY12: 0 | GW12: 0 | GY12: 0 | GZ12: 0 | HA12: 0 | HB12: 0 | HC12: 0 | HD12: 0 | HE12: 0 | HF12: 0 | HG12: 0 | HH12: 0 | KF12: 0 | KH12: 0 | KI12: 0 | KJ12: 0 | KK12: 0 | KL12: 0 | KM12: 0 | KN12: 0 | KO12: 0 | KP12: 0 | KQ12: 0 | NO12: 0 | NQ12: =IF(NQ$3<>"",VLOOKUP($A12,'Agency percentages'!$A$6:$X$71,(3+MATCH(NQ$4,'Agency percentages'!$D$5:$W$5,0)),FALSE),"") -> 0.12 | NR12: =IF(NR$3<>"",VLOOKUP($A12,'Agency percentages'!$A$6:$X$71,(3+MATCH(NR$4,'Agency percentages'!$D$5:$W$5,0)),FALSE),"") -> 0.47 | NS12: =IF(NS$3<>"",VLOOKUP($A12,'Agency percentages'!$A$6:$X$71,(3+MATCH(NS$4,'Agency percentages'!$D$5:$W$5,0)),FALSE),"") -> 0.17 | NT12: =IF(NT$3<>"",VLOOKUP($A12,'Agency percentages'!$A$6:$X$71,(3+MATCH(NT$4,'Agency percentages'!$D$5:$W$5,0)),FALSE),"") -> 0.008275862069 | NU12: =IF(NU$3<>"",VLOOKUP($A12,'Agency percentages'!$A$6:$X$71,(3+MATCH(NU$4,'Agency percentages'!$D$5:$W$5,0)),FALSE),"") -> 0.1655172414 | NV12: =IF(NV$3<>"",VLOOKUP($A12,'Agency percentages'!$A$6:$X$71,(3+MATCH(NV$4,'Agency percentages'!$D$5:$W$5,0)),FALSE),"") -> 0.05793103448 | NW12: =IF(NW$3<>"",VLOOKUP($A12,'Agency percentages'!$A$6:$X$71,(3+MATCH(NW$4,'Agency percentages'!$D$5:$W$5,0)),FALSE),"") -> 0.008275862069 | NX12: =IF(NX$3<>"",VLOOKUP($A12,'Agency percentages'!$A$6:$X$71,(3+MATCH(NX$4,'Agency percentages'!$D$5:$W$5,0)),FALSE),"") -> 0 | NY12: =IF(NY$3<>"",VLOOKUP($A12,'Agency percentages'!$A$6:$X$71,(3+MATCH(NY$4,'Agency percentages'!$D$5:$W$5,0)),FALSE),"") -> 0 | NZ12: =IF(NZ$3<>"",VLOOKUP($A12,'Agency percentages'!$A$6:$X$71,(3+MATCH(NZ$4,'Agency percentages'!$D$5:$W$5,0)),FALSE),"") -> 0 | OA12: =IF(OA$3<>"",VLOOKUP($A12,'Agency percentages'!$A$6:$X$71,(3+MATCH(OA$4,'Agency percentages'!$D$5:$W$5,0)),FALSE),"") -> 0 | OB12: =IF(OB$3<>"",VLOOKUP($A12,'Agency percentages'!$A$6:$X$71,(3+MATCH(OB$4,'Agency percentages'!$D$5:$W$5,0)),FALSE),"") -> 0 | OC12: =IF(OC$3<>"",VLOOKUP($A12,'Agency percentages'!$A$6:$X$71,(3+MATCH(OC$4,'Agency percentages'!$D$5:$W$5,0)),FALSE),"") -> 0 | OD12: =IF(OD$3<>"",VLOOKUP($A12,'Agency percentages'!$A$6:$X$71,(3+MATCH(OD$4,'Agency percentages'!$D$5:$W$5,0)),FALSE),"") ->  | OE12: =IF(OE$3<>"",VLOOKUP($A12,'Agency percentages'!$A$6:$X$71,(3+MATCH(OE$4,'Agency percentages'!$D$5:$W$5,0)),FALSE),"") ->  | OF12: =IF(OF$3<>"",VLOOKUP($A12,'Agency percentages'!$A$6:$X$71,(3+MATCH(OF$4,'Agency percentages'!$D$5:$W$5,0)),FALSE),"") ->  | OG12: =IF(OG$3<>"",VLOOKUP($A12,'Agency percentages'!$A$6:$X$71,(3+MATCH(OG$4,'Agency percentages'!$D$5:$W$5,0)),FALSE),"") ->  | OH12: =IF(OH$3<>"",VLOOKUP($A12,'Agency percentages'!$A$6:$X$71,(3+MATCH(OH$4,'Agency percentages'!$D$5:$W$5,0)),FALSE),"") ->  | OI12: =IF(OI$3<>"",VLOOKUP($A12,'Agency percentages'!$A$6:$X$71,(3+MATCH(OI$4,'Agency percentages'!$D$5:$W$5,0)),FALSE),"") ->  | OJ12: =IF(OJ$3<>"",VLOOKUP($A12,'Agency percentages'!$A$6:$X$71,(3+MATCH(OJ$4,'Agency percentages'!$D$5:$W$5,0)),FALSE),"") ->  | OL12: =IF(AND(OL$3<>"",NQ12<>0),HLOOKUP(OL$4,'Agency cashability'!$B$3:$U$5,2,0),0) -> 0.5 | OM12: =IF(AND(OM$3<>"",NR12<>0),HLOOKUP(OM$4,'Agency cashability'!$B$3:$U$5,2,0),0) -> 0.2 | ON12: =IF(AND(ON$3<>"",NS12<>0),HLOOKUP(ON$4,'Agency cashability'!$B$3:$U$5,2,0),0) -> 0.3 | OO12: =IF(AND(OO$3<>"",NT12<>0),HLOOKUP(OO$4,'Agency cashability'!$B$3:$U$5,2,0),0) -> 0.2 | OP12: =IF(AND(OP$3<>"",NU12<>0),HLOOKUP(OP$4,'Agency cashability'!$B$3:$U$5,2,0),0) -> 0.2 | OQ12: =IF(AND(OQ$3<>"",NV12<>0),HLOOKUP(OQ$4,'Agency cashability'!$B$3:$U$5,2,0),0) -> 0.2 | OR12: =IF(AND(OR$3<>"",NW12<>0),HLOOKUP(OR$4,'Agency cashability'!$B$3:$U$5,2,0),0) -> 0.2 | OS12: =IF(AND(OS$3<>"",NX12<>0),HLOOKUP(OS$4,'Agency cashability'!$B$3:$U$5,2,0),0) -> 0 | OT12: =IF(AND(OT$3<>"",NY12<>0),HLOOKUP(OT$4,'Agency cashability'!$B$3:$U$5,2,0),0) -> 0 | OU12: =IF(AND(OU$3<>"",NZ12<>0),HLOOKUP(OU$4,'Agency cashability'!$B$3:$U$5,2,0),0) -> 0 | OV12: =IF(AND(OV$3<>"",OA12<>0),HLOOKUP(OV$4,'Agency cashability'!$B$3:$U$5,2,0),0) -> 0 | OW12: =IF(AND(OW$3<>"",OB12<>0),HLOOKUP(OW$4,'Agency cashability'!$B$3:$U$5,2,0),0) -> 0 | OX12: =IF(AND(OX$3<>"",OC12<>0),HLOOKUP(OX$4,'Agency cashability'!$B$3:$U$5,2,0),0) -> 0 | OY12: =IF(AND(OY$3<>"",OD12<>0),HLOOKUP(OY$4,'Agency cashability'!$B$3:$U$5,2,0),0) -> 0 | OZ12: =IF(AND(OZ$3<>"",OE12<>0),HLOOKUP(OZ$4,'Agency cashability'!$B$3:$U$5,2,0),0) -> 0 | PA12: =IF(AND(PA$3<>"",OF12<>0),HLOOKUP(PA$4,'Agency cashability'!$B$3:$U$5,2,0),0) -> 0 | PB12: =IF(AND(PB$3<>"",OG12<>0),HLOOKUP(PB$4,'Agency cashability'!$B$3:$U$5,2,0),0) -> 0 | PC12: =IF(AND(PC$3<>"",OH12<>0),HLOOKUP(PC$4,'Agency cashability'!$B$3:$U$5,2,0),0) -> 0 | PD12: =IF(AND(PD$3<>"",OI12<>0),HLOOKUP(PD$4,'Agency cashability'!$B$3:$U$5,2,0),0) -> 0 | PE12: =IF(AND(PE$3<>"",OJ12<>0),HLOOKUP(PE$4,'Agency cashability'!$B$3:$U$5,2,0),0) -> 0 | PG12: =IF(AND(PG$3<>"",NQ12<>0),HLOOKUP(PG$4,'Agency cashability'!$B$3:$U$5,3,0),0) -> 0.9 | PH12: =IF(AND(PH$3<>"",NR12<>0),HLOOKUP(PH$4,'Agency cashability'!$B$3:$U$5,3,0),0) -> 0.5 | PI12: =IF(AND(PI$3<>"",NS12<>0),HLOOKUP(PI$4,'Agency cashability'!$B$3:$U$5,3,0),0) -> 0.6 | PJ12: =IF(AND(PJ$3<>"",NT12<>0),HLOOKUP(PJ$4,'Agency cashability'!$B$3:$U$5,3,0),0) -> 0.5 | PK12: =IF(AND(PK$3<>"",NU12<>0),HLOOKUP(PK$4,'Agency cashability'!$B$3:$U$5,3,0),0) -> 0.5 | PL12: =IF(AND(PL$3<>"",NV12<>0),HLOOKUP(PL$4,'Agency cashability'!$B$3:$U$5,3,0),0) -> 0.5 | PM12: =IF(AND(PM$3<>"",NW12<>0),HLOOKUP(PM$4,'Agency cashability'!$B$3:$U$5,3,0),0) -> 0.5 | PN12: =IF(AND(PN$3<>"",NX12<>0),HLOOKUP(PN$4,'Agency cashability'!$B$3:$U$5,3,0),0) -> 0 | PO12: =IF(AND(PO$3<>"",NY12<>0),HLOOKUP(PO$4,'Agency cashability'!$B$3:$U$5,3,0),0) -> 0 | PP12: =IF(AND(PP$3<>"",NZ12<>0),HLOOKUP(PP$4,'Agency cashability'!$B$3:$U$5,3,0),0) -> 0 | PQ12: =IF(AND(PQ$3<>"",OA12<>0),HLOOKUP(PQ$4,'Agency cashability'!$B$3:$U$5,3,0),0) -> 0 | PR12: =IF(AND(PR$3<>"",OB12<>0),HLOOKUP(PR$4,'Agency cashability'!$B$3:$U$5,3,0),0) -> 0 | PS12: =IF(AND(PS$3<>"",OC12<>0),HLOOKUP(PS$4,'Agency cashability'!$B$3:$U$5,3,0),0) -> 0 | PT12: =IF(AND(PT$3<>"",OD12<>0),HLOOKUP(PT$4,'Agency cashability'!$B$3:$U$5,3,0),0) -> 0 | PU12: =IF(AND(PU$3<>"",OE12<>0),HLOOKUP(PU$4,'Agency cashability'!$B$3:$U$5,3,0),0) -> 0 | PV12: =IF(AND(PV$3<>"",OF12<>0),HLOOKUP(PV$4,'Agency cashability'!$B$3:$U$5,3,0),0) -> 0 | PW12: =IF(AND(PW$3<>"",OG12<>0),HLOOKUP(PW$4,'Agency cashability'!$B$3:$U$5,3,0),0) -> 0 | PX12: =IF(AND(PX$3<>"",OH12<>0),HLOOKUP(PX$4,'Agency cashability'!$B$3:$U$5,3,0),0) -> 0 | PY12: =IF(AND(PY$3<>"",OI12<>0),HLOOKUP(PY$4,'Agency cashability'!$B$3:$U$5,3,0),0) -> 0 | PZ12: =IF(AND(PZ$3<>"",OJ12<>0),HLOOKUP(PZ$4,'Agency cashability'!$B$3:$U$5,3,0),0) -> 0 | QB12: 0 | QC12: 0 | QD12: 0 | QE12: 0 | QF12: 0 | QG12: 0 | QH12: 0 | QI12: 0 | QJ12: 0 | QK12: 0 | QL12: 0 | QM12: 0 | QN12: 0 | QW12: =IF((QW$3<>""),OL12*QB12,"") -> 0 | QX12: 0 | QY12: 0 | QZ12: 0 | RA12: 0 | RB12: 0 | RC12: 0 | RD12: 0 | RE12: 0 | RF12: 0 | RG12: 0 | RH12: 0 | RI12: 0 | RT12: =IF((RT$3<>""),PG12*QB12,"") -> 0 | RU12: 0 | RV12: 0 | RW12: 0 | RX12: 0 | RY12: 0 | RZ12: 0 | SA12: 0 | SB12: 0 | SC12: 0 | SD12: 0 | SE12: 0 | SF12: 0
A13: B8a | B13: Reduced ASB | C13: Yes | D13: Reduced incident requiring no further action | E13: Police, Neighbourhood teams | R13: 35 | S13: 35 | U13: 118 | V13: 153 | W13: 2002 | X13: =VLOOKUP(W13,'GDP Deflators'!$B$6:$D$106,3,FALSE) -> 65.47161558 | Y13: LSE Report into cost of ASB 2003 | AA13: Standard Rate | AB13: 0 | AC13: 0 | AD13: 0 | AE13: 0 | DP13: 0 | DQ13: 0 | DR13: 0 | DS13: 0 | DT13: 0 | DU13: 0 | DV13: 0 | DW13: 0 | DX13: 0 | DY13: 0 | GW13: 0 | GY13: 0 | GZ13: 0 | HA13: 0 | HB13: 0 | HC13: 0 | HD13: 0 | HE13: 0 | HF13: 0 | HG13: 0 | HH13: 0 | KF13: 0 | KH13: 0 | KI13: 0 | KJ13: 0 | KK13: 0 | KL13: 0 | KM13: 0 | KN13: 0 | KO13: 0 | KP13: 0 | KQ13: 0 | NO13: 0 | NQ13: =IF(NQ$3<>"",VLOOKUP($A13,'Agency percentages'!$A$6:$X$71,(3+MATCH(NQ$4,'Agency percentages'!$D$5:$W$5,0)),FALSE),"") -> 0.3 | NR13: =IF(NR$3<>"",VLOOKUP($A13,'Agency percentages'!$A$6:$X$71,(3+MATCH(NR$4,'Agency percentages'!$D$5:$W$5,0)),FALSE),"") -> 0 | NS13: =IF(NS$3<>"",VLOOKUP($A13,'Agency percentages'!$A$6:$X$71,(3+MATCH(NS$4,'Agency percentages'!$D$5:$W$5,0)),FALSE),"") -> 0.4 | NT13: =IF(NT$3<>"",VLOOKUP($A13,'Agency percentages'!$A$6:$X$71,(3+MATCH(NT$4,'Agency percentages'!$D$5:$W$5,0)),FALSE),"") -> 0 | NU13: =IF(NU$3<>"",VLOOKUP($A13,'Agency percentages'!$A$6:$X$71,(3+MATCH(NU$4,'Agency percentages'!$D$5:$W$5,0)),FALSE),"") -> 0 | NV13: =IF(NV$3<>"",VLOOKUP($A13,'Agency percentages'!$A$6:$X$71,(3+MATCH(NV$4,'Agency percentages'!$D$5:$W$5,0)),FALSE),"") -> 0 | NW13: =IF(NW$3<>"",VLOOKUP($A13,'Agency percentages'!$A$6:$X$71,(3+MATCH(NW$4,'Agency percentages'!$D$5:$W$5,0)),FALSE),"") -> 0 | NX13: =IF(NX$3<>"",VLOOKUP($A13,'Agency percentages'!$A$6:$X$71,(3+MATCH(NX$4,'Agency percentages'!$D$5:$W$5,0)),FALSE),"") -> 0 | NY13: =IF(NY$3<>"",VLOOKUP($A13,'Agency percentages'!$A$6:$X$71,(3+MATCH(NY$4,'Agency percentages'!$D$5:$W$5,0)),FALSE),"") -> 0 | NZ13: =IF(NZ$3<>"",VLOOKUP($A13,'Agency percentages'!$A$6:$X$71,(3+MATCH(NZ$4,'Agency percentages'!$D$5:$W$5,0)),FALSE),"") -> 0 | OA13: =IF(OA$3<>"",VLOOKUP($A13,'Agency percentages'!$A$6:$X$71,(3+MATCH(OA$4,'Agency percentages'!$D$5:$W$5,0)),FALSE),"") -> 0.3 | OB13: =IF(OB$3<>"",VLOOKUP($A13,'Agency percentages'!$A$6:$X$71,(3+MATCH(OB$4,'Agency percentages'!$D$5:$W$5,0)),FALSE),"") -> 0 | OC13: =IF(OC$3<>"",VLOOKUP($A13,'Agency percentages'!$A$6:$X$71,(3+MATCH(OC$4,'Agency percentages'!$D$5:$W$5,0)),FALSE),"") -> 0 | OD13: =IF(OD$3<>"",VLOOKUP($A13,'Agency percentages'!$A$6:$X$71,(3+MATCH(OD$4,'Agency percentages'!$D$5:$W$5,0)),FALSE),"") ->  | OE13: =IF(OE$3<>"",VLOOKUP($A13,'Agency percentages'!$A$6:$X$71,(3+MATCH(OE$4,'Agency percentages'!$D$5:$W$5,0)),FALSE),"") ->  | OF13: =IF(OF$3<>"",VLOOKUP($A13,'Agency percentages'!$A$6:$X$71,(3+MATCH(OF$4,'Agency percentages'!$D$5:$W$5,0)),FALSE),"") ->  | OG13: =IF(OG$3<>"",VLOOKUP($A13,'Agency percentages'!$A$6:$X$71,(3+MATCH(OG$4,'Agency percentages'!$D$5:$W$5,0)),FALSE),"") ->  | OH13: =IF(OH$3<>"",VLOOKUP($A13,'Agency percentages'!$A$6:$X$71,(3+MATCH(OH$4,'Agency percentages'!$D$5:$W$5,0)),FALSE),"") ->  | OI13: =IF(OI$3<>"",VLOOKUP($A13,'Agency percentages'!$A$6:$X$71,(3+MATCH(OI$4,'Agency percentages'!$D$5:$W$5,0)),FALSE),"") ->  | OJ13: =IF(OJ$3<>"",VLOOKUP($A13,'Agency percentages'!$A$6:$X$71,(3+MATCH(OJ$4,'Agency percentages'!$D$5:$W$5,0)),FALSE),"") ->  | OL13: =IF(AND(OL$3<>"",NQ13<>0),HLOOKUP(OL$4,'Agency cashability'!$B$3:$U$5,2,0),0) -> 0.5 | OM13: =IF(AND(OM$3<>"",NR13<>0),HLOOKUP(OM$4,'Agency cashability'!$B$3:$U$5,2,0),0) -> 0 | ON13: =IF(AND(ON$3<>"",NS13<>0),HLOOKUP(ON$4,'Agency cashability'!$B$3:$U$5,2,0),0) -> 0.3 | OO13: =IF(AND(OO$3<>"",NT13<>0),HLOOKUP(OO$4,'Agency cashability'!$B$3:$U$5,2,0),0) -> 0 | OP13: =IF(AND(OP$3<>"",NU13<>0),HLOOKUP(OP$4,'Agency cashability'!$B$3:$U$5,2,0),0) -> 0 | OQ13: =IF(AND(OQ$3<>"",NV13<>0),HLOOKUP(OQ$4,'Agency cashability'!$B$3:$U$5,2,0),0) -> 0 | OR13: =IF(AND(OR$3<>"",NW13<>0),HLOOKUP(OR$4,'Agency cashability'!$B$3:$U$5,2,0),0) -> 0 | OS13: =IF(AND(OS$3<>"",NX13<>0),HLOOKUP(OS$4,'Agency cashability'!$B$3:$U$5,2,0),0) -> 0 | OT13: =IF(AND(OT$3<>"",NY13<>0),HLOOKUP(OT$4,'Agency cashability'!$B$3:$U$5,2,0),0) -> 0 | OU13: =IF(AND(OU$3<>"",NZ13<>0),HLOOKUP(OU$4,'Agency cashability'!$B$3:$U$5,2,0),0) -> 0 | OV13: =IF(AND(OV$3<>"",OA13<>0),HLOOKUP(OV$4,'Agency cashability'!$B$3:$U$5,2,0),0) -> 0.8 | OW13: =IF(AND(OW$3<>"",OB13<>0),HLOOKUP(OW$4,'Agency cashability'!$B$3:$U$5,2,0),0) -> 0 | OX13: =IF(AND(OX$3<>"",OC13<>0),HLOOKUP(OX$4,'Agency cashability'!$B$3:$U$5,2,0),0) -> 0 | OY13: =IF(AND(OY$3<>"",OD13<>0),HLOOKUP(OY$4,'Agency cashability'!$B$3:$U$5,2,0),0) -> 0 | OZ13: =IF(AND(OZ$3<>"",OE13<>0),HLOOKUP(OZ$4,'Agency cashability'!$B$3:$U$5,2,0),0) -> 0 | PA13: =IF(AND(PA$3<>"",OF13<>0),HLOOKUP(PA$4,'Agency cashability'!$B$3:$U$5,2,0),0) -> 0 | PB13: =IF(AND(PB$3<>"",OG13<>0),HLOOKUP(PB$4,'Agency cashability'!$B$3:$U$5,2,0),0) -> 0 | PC13: =IF(AND(PC$3<>"",OH13<>0),HLOOKUP(PC$4,'Agency cashability'!$B$3:$U$5,2,0),0) -> 0 | PD13: =IF(AND(PD$3<>"",OI13<>0),HLOOKUP(PD$4,'Agency cashability'!$B$3:$U$5,2,0),0) -> 0 | PE13: =IF(AND(PE$3<>"",OJ13<>0),HLOOKUP(PE$4,'Agency cashability'!$B$3:$U$5,2,0),0) -> 0 | PG13: =IF(AND(PG$3<>"",NQ13<>0),HLOOKUP(PG$4,'Agency cashability'!$B$3:$U$5,3,0),0) -> 0.9 | PH13: =IF(AND(PH$3<>"",NR13<>0),HLOOKUP(PH$4,'Agency cashability'!$B$3:$U$5,3,0),0) -> 0 | PI13: =IF(AND(PI$3<>"",NS13<>0),HLOOKUP(PI$4,'Agency cashability'!$B$3:$U$5,3,0),0) -> 0.6 | PJ13: =IF(AND(PJ$3<>"",NT13<>0),HLOOKUP(PJ$4,'Agency cashability'!$B$3:$U$5,3,0),0) -> 0 | PK13: =IF(AND(PK$3<>"",NU13<>0),HLOOKUP(PK$4,'Agency cashability'!$B$3:$U$5,3,0),0) -> 0 | PL13: =IF(AND(PL$3<>"",NV13<>0),HLOOKUP(PL$4,'Agency cashability'!$B$3:$U$5,3,0),0) -> 0 | PM13: =IF(AND(PM$3<>"",NW13<>0),HLOOKUP(PM$4,'Agency cashability'!$B$3:$U$5,3,0),0) -> 0 | PN13: =IF(AND(PN$3<>"",NX13<>0),HLOOKUP(PN$4,'Agency cashability'!$B$3:$U$5,3,0),0) -> 0 | PO13: =IF(AND(PO$3<>"",NY13<>0),HLOOKUP(PO$4,'Agency cashability'!$B$3:$U$5,3,0),0) -> 0 | PP13: =IF(AND(PP$3<>"",NZ13<>0),HLOOKUP(PP$4,'Agency cashability'!$B$3:$U$5,3,0),0) -> 0 | PQ13: =IF(AND(PQ$3<>"",OA13<>0),HLOOKUP(PQ$4,'Agency cashability'!$B$3:$U$5,3,0),0) -> 0.9 | PR13: =IF(AND(PR$3<>"",OB13<>0),HLOOKUP(PR$4,'Agency cashability'!$B$3:$U$5,3,0),0) -> 0 | PS13: =IF(AND(PS$3<>"",OC13<>0),HLOOKUP(PS$4,'Agency cashability'!$B$3:$U$5,3,0),0) -> 0 | PT13: =IF(AND(PT$3<>"",OD13<>0),HLOOKUP(PT$4,'Agency cashability'!$B$3:$U$5,3,0),0) -> 0 | PU13: =IF(AND(PU$3<>"",OE13<>0),HLOOKUP(PU$4,'Agency cashability'!$B$3:$U$5,3,0),0) -> 0 | PV13: =IF(AND(PV$3<>"",OF13<>0),HLOOKUP(PV$4,'Agency cashability'!$B$3:$U$5,3,0),0) -> 0 | PW13: =IF(AND(PW$3<>"",OG13<>0),HLOOKUP(PW$4,'Agency cashability'!$B$3:$U$5,3,0),0) -> 0 | PX13: =IF(AND(PX$3<>"",OH13<>0),HLOOKUP(PX$4,'Agency cashability'!$B$3:$U$5,3,0),0) -> 0 | PY13: =IF(AND(PY$3<>"",OI13<>0),HLOOKUP(PY$4,'Agency cashability'!$B$3:$U$5,3,0),0) -> 0 | PZ13: =IF(AND(PZ$3<>"",OJ13<>0),HLOOKUP(PZ$4,'Agency cashability'!$B$3:$U$5,3,0),0) -> 0 | QB13: 0 | QC13: 0 | QD13: 0 | QE13: 0 | QF13: 0 | QG13: 0 | QH13: 0 | QI13: 0 | QJ13: 0 | QK13: 0 | QL13: 0 | QM13: 0 | QN13: 0 | QW13: =IF((QW$3<>""),OL13*QB13,"") -> 0 | QX13: 0 | QY13: 0 | QZ13: 0 | RA13: 0 | RB13: 0 | RC13: 0 | RD13: 0 | RE13: 0 | RF13: 0 | RG13: =IF((RG$3<>""),OV13*QL13,"") -> 0 | RH13: 0 | RI13: 0 | RT13: =IF((RT$3<>""),PG13*QB13,"") -> 0 | RU13: 0 | RV13: 0 | RW13: 0 | RX13: 0 | RY13: 0 | RZ13: 0 | SA13: 0 | SB13: 0 | SC13: 0 | SD13: =IF((SD$3<>""),PQ13*QL13,"") -> 0 | SE13: 0 | SF13: 0
A14: B8b | C14: Yes | D14: Reduced incidents requiring further action | E14: Police, Neighbourhood teams | R14: 500 | S14: 500 | U14: 118 | V14: 618 | W14: 2002 | X14: =VLOOKUP(W14,'GDP Deflators'!$B$6:$D$106,3,FALSE) -> 65.47161558 | Y14: LSE Report into cost of ASB 2003 | AA14: Standard Rate | AB14: 0 | AC14: 0 | AD14: 0 | AE14: 0 | DP14: 0 | DQ14: 0 | DR14: 0 | DS14: 0 | DT14: 0 | DU14: 0 | DV14: 0 | DW14: 0 | DX14: 0 | DY14: 0 | GW14: 0 | GY14: 0 | GZ14: 0 | HA14: 0 | HB14: 0 | HC14: 0 | HD14: 0 | HE14: 0 | HF14: 0 | HG14: 0 | HH14: 0 | KF14: 0 | KH14: 0 | KI14: 0 | KJ14: 0 | KK14: 0 | KL14: 0 | KM14: 0 | KN14: 0 | KO14: 0 | KP14: 0 | KQ14: 0 | NO14: 0 | NQ14: =IF(NQ$3<>"",VLOOKUP($A14,'Agency percentages'!$A$6:$X$71,(3+MATCH(NQ$4,'Agency percentages'!$D$5:$W$5,0)),FALSE),"") -> 0.3 | NR14: =IF(NR$3<>"",VLOOKUP($A14,'Agency percentages'!$A$6:$X$71,(3+MATCH(NR$4,'Agency percentages'!$D$5:$W$5,0)),FALSE),"") -> 0 | NS14: =IF(NS$3<>"",VLOOKUP($A14,'Agency percentages'!$A$6:$X$71,(3+MATCH(NS$4,'Agency percentages'!$D$5:$W$5,0)),FALSE),"") -> 0.4 | NT14: =IF(NT$3<>"",VLOOKUP($A14,'Agency percentages'!$A$6:$X$71,(3+MATCH(NT$4,'Agency percentages'!$D$5:$W$5,0)),FALSE),"") -> 0 | NU14: =IF(NU$3<>"",VLOOKUP($A14,'Agency percentages'!$A$6:$X$71,(3+MATCH(NU$4,'Agency percentages'!$D$5:$W$5,0)),FALSE),"") -> 0 | NV14: =IF(NV$3<>"",VLOOKUP($A14,'Agency percentages'!$A$6:$X$71,(3+MATCH(NV$4,'Agency percentages'!$D$5:$W$5,0)),FALSE),"") -> 0 | NW14: =IF(NW$3<>"",VLOOKUP($A14,'Agency percentages'!$A$6:$X$71,(3+MATCH(NW$4,'Agency percentages'!$D$5:$W$5,0)),FALSE),"") -> 0 | NX14: =IF(NX$3<>"",VLOOKUP($A14,'Agency percentages'!$A$6:$X$71,(3+MATCH(NX$4,'Agency percentages'!$D$5:$W$5,0)),FALSE),"") -> 0 | NY14: =IF(NY$3<>"",VLOOKUP($A14,'Agency percentages'!$A$6:$X$71,(3+MATCH(NY$4,'Agency percentages'!$D$5:$W$5,0)),FALSE),"") -> 0 | NZ14: =IF(NZ$3<>"",VLOOKUP($A14,'Agency percentages'!$A$6:$X$71,(3+MATCH(NZ$4,'Agency percentages'!$D$5:$W$5,0)),FALSE),"") -> 0 | OA14: =IF(OA$3<>"",VLOOKUP($A14,'Agency percentages'!$A$6:$X$71,(3+MATCH(OA$4,'Agency percentages'!$D$5:$W$5,0)),FALSE),"") -> 0.3 | OB14: =IF(OB$3<>"",VLOOKUP($A14,'Agency percentages'!$A$6:$X$71,(3+MATCH(OB$4,'Agency percentages'!$D$5:$W$5,0)),FALSE),"") -> 0 | OC14: =IF(OC$3<>"",VLOOKUP($A14,'Agency percentages'!$A$6:$X$71,(3+MATCH(OC$4,'Agency percentages'!$D$5:$W$5,0)),FALSE),"") -> 0 | OD14: =IF(OD$3<>"",VLOOKUP($A14,'Agency percentages'!$A$6:$X$71,(3+MATCH(OD$4,'Agency percentages'!$D$5:$W$5,0)),FALSE),"") ->  | OE14: =IF(OE$3<>"",VLOOKUP($A14,'Agency percentages'!$A$6:$X$71,(3+MATCH(OE$4,'Agency percentages'!$D$5:$W$5,0)),FALSE),"") ->  | OF14: =IF(OF$3<>"",VLOOKUP($A14,'Agency percentages'!$A$6:$X$71,(3+MATCH(OF$4,'Agency percentages'!$D$5:$W$5,0)),FALSE),"") ->  | OG14: =IF(OG$3<>"",VLOOKUP($A14,'Agency percentages'!$A$6:$X$71,(3+MATCH(OG$4,'Agency percentages'!$D$5:$W$5,0)),FALSE),"") ->  | OH14: =IF(OH$3<>"",VLOOKUP($A14,'Agency percentages'!$A$6:$X$71,(3+MATCH(OH$4,'Agency percentages'!$D$5:$W$5,0)),FALSE),"") ->  | OI14: =IF(OI$3<>"",VLOOKUP($A14,'Agency percentages'!$A$6:$X$71,(3+MATCH(OI$4,'Agency percentages'!$D$5:$W$5,0)),FALSE),"") ->  | OJ14: =IF(OJ$3<>"",VLOOKUP($A14,'Agency percentages'!$A$6:$X$71,(3+MATCH(OJ$4,'Agency percentages'!$D$5:$W$5,0)),FALSE),"") ->  | OL14: =IF(AND(OL$3<>"",NQ14<>0),HLOOKUP(OL$4,'Agency cashability'!$B$3:$U$5,2,0),0) -> 0.5 | OM14: =IF(AND(OM$3<>"",NR14<>0),HLOOKUP(OM$4,'Agency cashability'!$B$3:$U$5,2,0),0) -> 0 | ON14: =IF(AND(ON$3<>"",NS14<>0),HLOOKUP(ON$4,'Agency cashability'!$B$3:$U$5,2,0),0) -> 0.3 | OO14: =IF(AND(OO$3<>"",NT14<>0),HLOOKUP(OO$4,'Agency cashability'!$B$3:$U$5,2,0),0) -> 0 | OP14: =IF(AND(OP$3<>"",NU14<>0),HLOOKUP(OP$4,'Agency cashability'!$B$3:$U$5,2,0),0) -> 0 | OQ14: =IF(AND(OQ$3<>"",NV14<>0),HLOOKUP(OQ$4,'Agency cashability'!$B$3:$U$5,2,0),0) -> 0 | OR14: =IF(AND(OR$3<>"",NW14<>0),HLOOKUP(OR$4,'Agency cashability'!$B$3:$U$5,2,0),0) -> 0 | OS14: =IF(AND(OS$3<>"",NX14<>0),HLOOKUP(OS$4,'Agency cashability'!$B$3:$U$5,2,0),0) -> 0 | OT14: =IF(AND(OT$3<>"",NY14<>0),HLOOKUP(OT$4,'Agency cashability'!$B$3:$U$5,2,0),0) -> 0 | OU14: =IF(AND(OU$3<>"",NZ14<>0),HLOOKUP(OU$4,'Agency cashability'!$B$3:$U$5,2,0),0) -> 0 | OV14: =IF(AND(OV$3<>"",OA14<>0),HLOOKUP(OV$4,'Agency cashability'!$B$3:$U$5,2,0),0) -> 0.8 | OW14: =IF(AND(OW$3<>"",OB14<>0),HLOOKUP(OW$4,'Agency cashability'!$B$3:$U$5,2,0),0) -> 0 | OX14: =IF(AND(OX$3<>"",OC14<>0),HLOOKUP(OX$4,'Agency cashability'!$B$3:$U$5,2,0),0) -> 0 | OY14: =IF(AND(OY$3<>"",OD14<>0),HLOOKUP(OY$4,'Agency cashability'!$B$3:$U$5,2,0),0) -> 0 | OZ14: =IF(AND(OZ$3<>"",OE14<>0),HLOOKUP(OZ$4,'Agency cashability'!$B$3:$U$5,2,0),0) -> 0 | PA14: =IF(AND(PA$3<>"",OF14<>0),HLOOKUP(PA$4,'Agency cashability'!$B$3:$U$5,2,0),0) -> 0 | PB14: =IF(AND(PB$3<>"",OG14<>0),HLOOKUP(PB$4,'Agency cashability'!$B$3:$U$5,2,0),0) -> 0 | PC14: =IF(AND(PC$3<>"",OH14<>0),HLOOKUP(PC$4,'Agency cashability'!$B$3:$U$5,2,0),0) -> 0 | PD14: =IF(AND(PD$3<>"",OI14<>0),HLOOKUP(PD$4,'Agency cashability'!$B$3:$U$5,2,0),0) -> 0 | PE14: =IF(AND(PE$3<>"",OJ14<>0),HLOOKUP(PE$4,'Agency cashability'!$B$3:$U$5,2,0),0) -> 0 | PG14: =IF(AND(PG$3<>"",NQ14<>0),HLOOKUP(PG$4,'Agency cashability'!$B$3:$U$5,3,0),0) -> 0.9 | PH14: =IF(AND(PH$3<>"",NR14<>0),HLOOKUP(PH$4,'Agency cashability'!$B$3:$U$5,3,0),0) -> 0 | PI14: =IF(AND(PI$3<>"",NS14<>0),HLOOKUP(PI$4,'Agency cashability'!$B$3:$U$5,3,0),0) -> 0.6 | PJ14: =IF(AND(PJ$3<>"",NT14<>0),HLOOKUP(PJ$4,'Agency cashability'!$B$3:$U$5,3,0),0) -> 0 | PK14: =IF(AND(PK$3<>"",NU14<>0),HLOOKUP(PK$4,'Agency cashability'!$B$3:$U$5,3,0),0) -> 0 | PL14: =IF(AND(PL$3<>"",NV14<>0),HLOOKUP(PL$4,'Agency cashability'!$B$3:$U$5,3,0),0) -> 0 | PM14: =IF(AND(PM$3<>"",NW14<>0),HLOOKUP(PM$4,'Agency cashability'!$B$3:$U$5,3,0),0) -> 0 | PN14: =IF(AND(PN$3<>"",NX14<>0),HLOOKUP(PN$4,'Agency cashability'!$B$3:$U$5,3,0),0) -> 0 | PO14: =IF(AND(PO$3<>"",NY14<>0),HLOOKUP(PO$4,'Agency cashability'!$B$3:$U$5,3,0),0) -> 0 | PP14: =IF(AND(PP$3<>"",NZ14<>0),HLOOKUP(PP$4,'Agency cashability'!$B$3:$U$5,3,0),0) -> 0 | PQ14: =IF(AND(PQ$3<>"",OA14<>0),HLOOKUP(PQ$4,'Agency cashability'!$B$3:$U$5,3,0),0) -> 0.9 | PR14: =IF(AND(PR$3<>"",OB14<>0),HLOOKUP(PR$4,'Agency cashability'!$B$3:$U$5,3,0),0) -> 0 | PS14: =IF(AND(PS$3<>"",OC14<>0),HLOOKUP(PS$4,'Agency cashability'!$B$3:$U$5,3,0),0) -> 0 | PT14: =IF(AND(PT$3<>"",OD14<>0),HLOOKUP(PT$4,'Agency cashability'!$B$3:$U$5,3,0),0) -> 0 | PU14: =IF(AND(PU$3<>"",OE14<>0),HLOOKUP(PU$4,'Agency cashability'!$B$3:$U$5,3,0),0) -> 0 | PV14: =IF(AND(PV$3<>"",OF14<>0),HLOOKUP(PV$4,'Agency cashability'!$B$3:$U$5,3,0),0) -> 0 | PW14: =IF(AND(PW$3<>"",OG14<>0),HLOOKUP(PW$4,'Agency cashability'!$B$3:$U$5,3,0),0) -> 0 | PX14: =IF(AND(PX$3<>"",OH14<>0),HLOOKUP(PX$4,'Agency cashability'!$B$3:$U$5,3,0),0) -> 0 | PY14: =IF(AND(PY$3<>"",OI14<>0),HLOOKUP(PY$4,'Agency cashability'!$B$3:$U$5,3,0),0) -> 0 | PZ14: =IF(AND(PZ$3<>"",OJ14<>0),HLOOKUP(PZ$4,'Agency cashability'!$B$3:$U$5,3,0),0) -> 0 | QB14: 0 | QC14: 0 | QD14: 0 | QE14: 0 | QF14: 0 | QG14: 0 | QH14: 0 | QI14: 0 | QJ14: 0 | QK14: 0 | QL14: 0 | QM14: 0 | QN14: 0 | QW14: 0 | QX14: 0 | QY14: 0 | QZ14: 0 | RA14: 0 | RB14: 0 | RC14: 0 | RD14: 0 | RE14: 0 | RF14: 0 | RG14: 0 | RH14: 0 | RI14: 0 | RT14: 0 | RU14: 0 | RV14: 0 | RW14: 0 | RX14: 0 | RY14: 0 | RZ14: 0 | SA14: 0 | SB14: 0 | SC14: 0 | SD14: 0 | SE14: 0 | SF14: 0
A15: B9 | B15: Reduced incidents of crime (all crimes) | C15: Yes | D15: Reduced police, other criminal justice costs, health costs per actual crime (N.B. Use multipliers to convert from recorded crime or convictions) | E15: Police, CJS, NHS | R15: 979 | S15: =R15 -> 979 | T15: 1111 | U15: 1407 | V15: 3497 | W15: 2016 | X15: =VLOOKUP(W15,'GDP Deflators'!$B$6:$D$106,3,FALSE) -> 88.19270512 | Y15: The Economic and Social cost of Crime, Second Edition (Home Office 2018) | AA15: Standard Rate | AB15: 0 | AC15: 0 | AD15: 0 | AE15: 0 | DP15: 0 | DQ15: 0 | DR15: 0 | DS15: 0 | DT15: 0 | DU15: 0 | DV15: 0 | DW15: 0 | DX15: 0 | DY15: 0 | GW15: 0 | GY15: 0 | GZ15: 0 | HA15: 0 | HB15: 0 | HC15: 0 | HD15: 0 | HE15: 0 | HF15: 0 | HG15: 0 | HH15: 0 | KF15: 0 | KH15: 0 | KI15: 0 | KJ15: 0 | KK15: 0 | KL15: 0 | KM15: 0 | KN15: 0 | KO15: 0 | KP15: 0 | KQ15: 0 | NO15: 0 | NQ15: =IF(NQ$3<>"",VLOOKUP($A15,'Agency percentages'!$A$6:$X$71,(3+MATCH(NQ$4,'Agency percentages'!$D$5:$W$5,0)),FALSE),"") -> 0 | NR15: =IF(NR$3<>"",VLOOKUP($A15,'Agency percentages'!$A$6:$X$71,(3+MATCH(NR$4,'Agency percentages'!$D$5:$W$5,0)),FALSE),"") -> 0.1773516466 | NS15: =IF(NS$3<>"",VLOOKUP($A15,'Agency percentages'!$A$6:$X$71,(3+MATCH(NS$4,'Agency percentages'!$D$5:$W$5,0)),FALSE),"") -> 0.3015976524 | NT15: =IF(NT$3<>"",VLOOKUP($A15,'Agency percentages'!$A$6:$X$71,(3+MATCH(NT$4,'Agency percentages'!$D$5:$W$5,0)),FALSE),"") -> 0.04762389958 | NU15: =IF(NU$3<>"",VLOOKUP($A15,'Agency percentages'!$A$6:$X$71,(3+MATCH(NU$4,'Agency percentages'!$D$5:$W$5,0)),FALSE),"") -> 0.3648312683 | NV15: =IF(NV$3<>"",VLOOKUP($A15,'Agency percentages'!$A$6:$X$71,(3+MATCH(NV$4,'Agency percentages'!$D$5:$W$5,0)),FALSE),"") -> 0.07718250734 | NW15: =IF(NW$3<>"",VLOOKUP($A15,'Agency percentages'!$A$6:$X$71,(3+MATCH(NW$4,'Agency percentages'!$D$5:$W$5,0)),FALSE),"") -> 0.02942614933 | NX15: =IF(NX$3<>"",VLOOKUP($A15,'Agency percentages'!$A$6:$X$71,(3+MATCH(NX$4,'Agency percentages'!$D$5:$W$5,0)),FALSE),"") -> 0 | NY15: =IF(NY$3<>"",VLOOKUP($A15,'Agency percentages'!$A$6:$X$71,(3+MATCH(NY$4,'Agency percentages'!$D$5:$W$5,0)),FALSE),"") -> 0 | NZ15: =IF(NZ$3<>"",VLOOKUP($A15,'Agency percentages'!$A$6:$X$71,(3+MATCH(NZ$4,'Agency percentages'!$D$5:$W$5,0)),FALSE),"") -> 0 | OA15: =IF(OA$3<>"",VLOOKUP($A15,'Agency percentages'!$A$6:$X$71,(3+MATCH(OA$4,'Agency percentages'!$D$5:$W$5,0)),FALSE),"") -> 0 | OB15: =IF(OB$3<>"",VLOOKUP($A15,'Agency percentages'!$A$6:$X$71,(3+MATCH(OB$4,'Agency percentages'!$D$5:$W$5,0)),FALSE),"") -> 0.001986876426 | OC15: =IF(OC$3<>"",VLOOKUP($A15,'Agency percentages'!$A$6:$X$71,(3+MATCH(OC$4,'Agency percentages'!$D$5:$W$5,0)),FALSE),"") -> 0 | OD15: =IF(OD$3<>"",VLOOKUP($A15,'Agency percentages'!$A$6:$X$71,(3+MATCH(OD$4,'Agency percentages'!$D$5:$W$5,0)),FALSE),"") ->  | OE15: =IF(OE$3<>"",VLOOKUP($A15,'Agency percentages'!$A$6:$X$71,(3+MATCH(OE$4,'Agency percentages'!$D$5:$W$5,0)),FALSE),"") ->  | OF15: =IF(OF$3<>"",VLOOKUP($A15,'Agency percentages'!$A$6:$X$71,(3+MATCH(OF$4,'Agency percentages'!$D$5:$W$5,0)),FALSE),"") ->  | OG15: =IF(OG$3<>"",VLOOKUP($A15,'Agency percentages'!$A$6:$X$71,(3+MATCH(OG$4,'Agency percentages'!$D$5:$W$5,0)),FALSE),"") ->  | OH15: =IF(OH$3<>"",VLOOKUP($A15,'Agency percentages'!$A$6:$X$71,(3+MATCH(OH$4,'Agency percentages'!$D$5:$W$5,0)),FALSE),"") ->  | OI15: =IF(OI$3<>"",VLOOKUP($A15,'Agency percentages'!$A$6:$X$71,(3+MATCH(OI$4,'Agency percentages'!$D$5:$W$5,0)),FALSE),"") ->  | OJ15: =IF(OJ$3<>"",VLOOKUP($A15,'Agency percentages'!$A$6:$X$71,(3+MATCH(OJ$4,'Agency percentages'!$D$5:$W$5,0)),FALSE),"") ->  | OL15: =IF(AND(OL$3<>"",NQ15<>0),HLOOKUP(OL$4,'Agency cashability'!$B$3:$U$5,2,0),0) -> 0 | OM15: =IF(AND(OM$3<>"",NR15<>0),HLOOKUP(OM$4,'Agency cashability'!$B$3:$U$5,2,0),0) -> 0.2 | ON15: =IF(AND(ON$3<>"",NS15<>0),HLOOKUP(ON$4,'Agency cashability'!$B$3:$U$5,2,0),0) -> 0.3 | OO15: =IF(AND(OO$3<>"",NT15<>0),HLOOKUP(OO$4,'Agency cashability'!$B$3:$U$5,2,0),0) -> 0.2 | OP15: =IF(AND(OP$3<>"",NU15<>0),HLOOKUP(OP$4,'Agency cashability'!$B$3:$U$5,2,0),0) -> 0.2 | OQ15: =IF(AND(OQ$3<>"",NV15<>0),HLOOKUP(OQ$4,'Agency cashability'!$B$3:$U$5,2,0),0) -> 0.2 | OR15: =IF(AND(OR$3<>"",NW15<>0),HLOOKUP(OR$4,'Agency cashability'!$B$3:$U$5,2,0),0) -> 0.2 | OS15: =IF(AND(OS$3<>"",NX15<>0),HLOOKUP(OS$4,'Agency cashability'!$B$3:$U$5,2,0),0) -> 0 | OT15: =IF(AND(OT$3<>"",NY15<>0),HLOOKUP(OT$4,'Agency cashability'!$B$3:$U$5,2,0),0) -> 0 | OU15: =IF(AND(OU$3<>"",NZ15<>0),HLOOKUP(OU$4,'Agency cashability'!$B$3:$U$5,2,0),0) -> 0 | OV15: =IF(AND(OV$3<>"",OA15<>0),HLOOKUP(OV$4,'Agency cashability'!$B$3:$U$5,2,0),0) -> 0 | OW15: =IF(AND(OW$3<>"",OB15<>0),HLOOKUP(OW$4,'Agency cashability'!$B$3:$U$5,2,0),0) -> 0 | OX15: =IF(AND(OX$3<>"",OC15<>0),HLOOKUP(OX$4,'Agency cashability'!$B$3:$U$5,2,0),0) -> 0 | OY15: =IF(AND(OY$3<>"",OD15<>0),HLOOKUP(OY$4,'Agency cashability'!$B$3:$U$5,2,0),0) -> 0 | OZ15: =IF(AND(OZ$3<>"",OE15<>0),HLOOKUP(OZ$4,'Agency cashability'!$B$3:$U$5,2,0),0) -> 0 | PA15: =IF(AND(PA$3<>"",OF15<>0),HLOOKUP(PA$4,'Agency cashability'!$B$3:$U$5,2,0),0) -> 0 | PB15: =IF(AND(PB$3<>"",OG15<>0),HLOOKUP(PB$4,'Agency cashability'!$B$3:$U$5,2,0),0) -> 0 | PC15: =IF(AND(PC$3<>"",OH15<>0),HLOOKUP(PC$4,'Agency cashability'!$B$3:$U$5,2,0),0) -> 0 | PD15: =IF(AND(PD$3<>"",OI15<>0),HLOOKUP(PD$4,'Agency cashability'!$B$3:$U$5,2,0),0) -> 0 | PE15: =IF(AND(PE$3<>"",OJ15<>0),HLOOKUP(PE$4,'Agency cashability'!$B$3:$U$5,2,0),0) -> 0 | PG15: =IF(AND(PG$3<>"",NQ15<>0),HLOOKUP(PG$4,'Agency cashability'!$B$3:$U$5,3,0),0) -> 0 | PH15: =IF(AND(PH$3<>"",NR15<>0),HLOOKUP(PH$4,'Agency cashability'!$B$3:$U$5,3,0),0) -> 0.5 | PI15: =IF(AND(PI$3<>"",NS15<>0),HLOOKUP(PI$4,'Agency cashability'!$B$3:$U$5,3,0),0) -> 0.6 | PJ15: =IF(AND(PJ$3<>"",NT15<>0),HLOOKUP(PJ$4,'Agency cashability'!$B$3:$U$5,3,0),0) -> 0.5 | PK15: =IF(AND(PK$3<>"",NU15<>0),HLOOKUP(PK$4,'Agency cashability'!$B$3:$U$5,3,0),0) -> 0.5 | PL15: =IF(AND(PL$3<>"",NV15<>0),HLOOKUP(PL$4,'Agency cashability'!$B$3:$U$5,3,0),0) -> 0.5 | PM15: =IF(AND(PM$3<>"",NW15<>0),HLOOKUP(PM$4,'Agency cashability'!$B$3:$U$5,3,0),0) -> 0.5 | PN15: =IF(AND(PN$3<>"",NX15<>0),HLOOKUP(PN$4,'Agency cashability'!$B$3:$U$5,3,0),0) -> 0 | PO15: =IF(AND(PO$3<>"",NY15<>0),HLOOKUP(PO$4,'Agency cashability'!$B$3:$U$5,3,0),0) -> 0 | PP15: =IF(AND(PP$3<>"",NZ15<>0),HLOOKUP(PP$4,'Agency cashability'!$B$3:$U$5,3,0),0) -> 0 | PQ15: =IF(AND(PQ$3<>"",OA15<>0),HLOOKUP(PQ$4,'Agency cashability'!$B$3:$U$5,3,0),0) -> 0 | PR15: =IF(AND(PR$3<>"",OB15<>0),HLOOKUP(PR$4,'Agency cashability'!$B$3:$U$5,3,0),0) -> 0 | PS15: =IF(AND(PS$3<>"",OC15<>0),HLOOKUP(PS$4,'Agency cashability'!$B$3:$U$5,3,0),0) -> 0 | PT15: =IF(AND(PT$3<>"",OD15<>0),HLOOKUP(PT$4,'Agency cashability'!$B$3:$U$5,3,0),0) -> 0 | PU15: =IF(AND(PU$3<>"",OE15<>0),HLOOKUP(PU$4,'Agency cashability'!$B$3:$U$5,3,0),0) -> 0 | PV15: =IF(AND(PV$3<>"",OF15<>0),HLOOKUP(PV$4,'Agency cashability'!$B$3:$U$5,3,0),0) -> 0 | PW15: =IF(AND(PW$3<>"",OG15<>0),HLOOKUP(PW$4,'Agency cashability'!$B$3:$U$5,3,0),0) -> 0 | PX15: =IF(AND(PX$3<>"",OH15<>0),HLOOKUP(PX$4,'Agency cashability'!$B$3:$U$5,3,0),0) -> 0 | PY15: =IF(AND(PY$3<>"",OI15<>0),HLOOKUP(PY$4,'Agency cashability'!$B$3:$U$5,3,0),0) -> 0 | PZ15: =IF(AND(PZ$3<>"",OJ15<>0),HLOOKUP(PZ$4,'Agency cashability'!$B$3:$U$5,3,0),0) -> 0 | QB15: 0 | QC15: 0 | QD15: 0 | QE15: 0 | QF15: 0 | QG15: 0 | QH15: 0 | QI15: 0 | QJ15: 0 | QK15: 0 | QL15: 0 | QM15: 0 | QN15: 0 | QW15: =IF((QW$3<>""),OL15*QB15,"") -> 0 | QX15: 0 | QY15: 0 | QZ15: 0 | RA15: 0 | RB15: 0 | RC15: 0 | RD15: 0 | RE15: 0 | RF15: 0 | RG15: 0 | RH15: 0 | RI15: 0 | RT15: =IF((RT$3<>""),PG15*QB15,"") -> 0 | RU15: 0 | RV15: 0 | RW15: 0 | RX15: 0 | RY15: 0 | RZ15: 0 | SA15: 0 | SB15: 0 | SC15: 0 | SD15: 0 | SE15: 0 | SF15: 0
A16: B9a | B16: Reduced incidents of crime - homicide | C16: No | D16: Reduced police, other criminal justice costs, health costs per actual crime (N.B. Use multipliers to convert from recorded crime or convictions) | E16: Police, CJS, NHS | R16: 819530 | S16: 819530 | T16: 315780 | U16: 2082430 | V16: 3217740 | W16: 2016 | X16: =VLOOKUP(W16,'GDP Deflators'!$B$6:$D$106,3,FALSE) -> 88.19270512 | Y16: The Economic and Social cost of Crime, Second Edition (Home Office 2018) | AA16: Standard Rate | AB16: 0 | AC16: 0 | AD16: 0 | AE16: 0 | DP16: 0 | DQ16: 0 | DR16: 0 | DS16: 0 | DT16: 0 | DU16: 0 | DV16: 0 | DW16: 0 | DX16: 0 | DY16: 0 | GW16: 0 | GY16: 0 | GZ16: 0 | HA16: 0 | HB16: 0 | HC16: 0 | HD16: 0 | HE16: 0 | HF16: 0 | HG16: 0 | HH16: 0 | KF16: 0 | KH16: 0 | KI16: 0 | KJ16: 0 | KK16: 0 | KL16: 0 | KM16: 0 | KN16: 0 | KO16: 0 | KP16: 0 | KQ16: 0 | NO16: 0 | NQ16: =IF(NQ$3<>"",VLOOKUP($A16,'Agency percentages'!$A$6:$X$71,(3+MATCH(NQ$4,'Agency percentages'!$D$5:$W$5,0)),FALSE),"") -> 0 | NR16: =IF(NR$3<>"",VLOOKUP($A16,'Agency percentages'!$A$6:$X$71,(3+MATCH(NR$4,'Agency percentages'!$D$5:$W$5,0)),FALSE),"") -> 0.001354451386 | NS16: =IF(NS$3<>"",VLOOKUP($A16,'Agency percentages'!$A$6:$X$71,(3+MATCH(NS$4,'Agency percentages'!$D$5:$W$5,0)),FALSE),"") -> 0.01459390863 | NT16: =IF(NT$3<>"",VLOOKUP($A16,'Agency percentages'!$A$6:$X$71,(3+MATCH(NT$4,'Agency percentages'!$D$5:$W$5,0)),FALSE),"") -> 0.04384273721 | NU16: =IF(NU$3<>"",VLOOKUP($A16,'Agency percentages'!$A$6:$X$71,(3+MATCH(NU$4,'Agency percentages'!$D$5:$W$5,0)),FALSE),"") -> 0.485942991 | NV16: =IF(NV$3<>"",VLOOKUP($A16,'Agency percentages'!$A$6:$X$71,(3+MATCH(NV$4,'Agency percentages'!$D$5:$W$5,0)),FALSE),"") -> 0.3883248731 | NW16: =IF(NW$3<>"",VLOOKUP($A16,'Agency percentages'!$A$6:$X$71,(3+MATCH(NW$4,'Agency percentages'!$D$5:$W$5,0)),FALSE),"") -> 0.05925419758 | NX16: =IF(NX$3<>"",VLOOKUP($A16,'Agency percentages'!$A$6:$X$71,(3+MATCH(NX$4,'Agency percentages'!$D$5:$W$5,0)),FALSE),"") -> 0 | NY16: =IF(NY$3<>"",VLOOKUP($A16,'Agency percentages'!$A$6:$X$71,(3+MATCH(NY$4,'Agency percentages'!$D$5:$W$5,0)),FALSE),"") -> 0 | NZ16: =IF(NZ$3<>"",VLOOKUP($A16,'Agency percentages'!$A$6:$X$71,(3+MATCH(NZ$4,'Agency percentages'!$D$5:$W$5,0)),FALSE),"") -> 0 | OA16: =IF(OA$3<>"",VLOOKUP($A16,'Agency percentages'!$A$6:$X$71,(3+MATCH(OA$4,'Agency percentages'!$D$5:$W$5,0)),FALSE),"") -> 0 | OB16: =IF(OB$3<>"",VLOOKUP($A16,'Agency percentages'!$A$6:$X$71,(3+MATCH(OB$4,'Agency percentages'!$D$5:$W$5,0)),FALSE),"") -> 0.006686841078 | OC16: =IF(OC$3<>"",VLOOKUP($A16,'Agency percentages'!$A$6:$X$71,(3+MATCH(OC$4,'Agency percentages'!$D$5:$W$5,0)),FALSE),"") -> 0 | OD16: =IF(OD$3<>"",VLOOKUP($A16,'Agency percentages'!$A$6:$X$71,(3+MATCH(OD$4,'Agency percentages'!$D$5:$W$5,0)),FALSE),"") ->  | OE16: =IF(OE$3<>"",VLOOKUP($A16,'Agency percentages'!$A$6:$X$71,(3+MATCH(OE$4,'Agency percentages'!$D$5:$W$5,0)),FALSE),"") ->  | OF16: =IF(OF$3<>"",VLOOKUP($A16,'Agency percentages'!$A$6:$X$71,(3+MATCH(OF$4,'Agency percentages'!$D$5:$W$5,0)),FALSE),"") ->  | OG16: =IF(OG$3<>"",VLOOKUP($A16,'Agency percentages'!$A$6:$X$71,(3+MATCH(OG$4,'Agency percentages'!$D$5:$W$5,0)),FALSE),"") ->  | OH16: =IF(OH$3<>"",VLOOKUP($A16,'Agency percentages'!$A$6:$X$71,(3+MATCH(OH$4,'Agency percentages'!$D$5:$W$5,0)),FALSE),"") ->  | OI16: =IF(OI$3<>"",VLOOKUP($A16,'Agency percentages'!$A$6:$X$71,(3+MATCH(OI$4,'Agency percentages'!$D$5:$W$5,0)),FALSE),"") ->  | OJ16: =IF(OJ$3<>"",VLOOKUP($A16,'Agency percentages'!$A$6:$X$71,(3+MATCH(OJ$4,'Agency percentages'!$D$5:$W$5,0)),FALSE),"") ->  | OL16: =IF(AND(OL$3<>"",NQ16<>0),HLOOKUP(OL$4,'Agency cashability'!$B$3:$U$5,2,0),0) -> 0 | OM16: =IF(AND(OM$3<>"",NR16<>0),HLOOKUP(OM$4,'Agency cashability'!$B$3:$U$5,2,0),0) -> 0.2 | ON16: =IF(AND(ON$3<>"",NS16<>0),HLOOKUP(ON$4,'Agency cashability'!$B$3:$U$5,2,0),0) -> 0.3 | OO16: =IF(AND(OO$3<>"",NT16<>0),HLOOKUP(OO$4,'Agency cashability'!$B$3:$U$5,2,0),0) -> 0.2 | OP16: =IF(AND(OP$3<>"",NU16<>0),HLOOKUP(OP$4,'Agency cashability'!$B$3:$U$5,2,0),0) -> 0.2 | OQ16: =IF(AND(OQ$3<>"",NV16<>0),HLOOKUP(OQ$4,'Agency cashability'!$B$3:$U$5,2,0),0) -> 0.2 | OR16: =IF(AND(OR$3<>"",NW16<>0),HLOOKUP(OR$4,'Agency cashability'!$B$3:$U$5,2,0),0) -> 0.2 | OS16: =IF(AND(OS$3<>"",NX16<>0),HLOOKUP(OS$4,'Agency cashability'!$B$3:$U$5,2,0),0) -> 0 | OT16: =IF(AND(OT$3<>"",NY16<>0),HLOOKUP(OT$4,'Agency cashability'!$B$3:$U$5,2,0),0) -> 0 | OU16: =IF(AND(OU$3<>"",NZ16<>0),HLOOKUP(OU$4,'Agency cashability'!$B$3:$U$5,2,0),0) -> 0 | OV16: =IF(AND(OV$3<>"",OA16<>0),HLOOKUP(OV$4,'Agency cashability'!$B$3:$U$5,2,0),0) -> 0 | OW16: =IF(AND(OW$3<>"",OB16<>0),HLOOKUP(OW$4,'Agency cashability'!$B$3:$U$5,2,0),0) -> 0 | OX16: =IF(AND(OX$3<>"",OC16<>0),HLOOKUP(OX$4,'Agency cashability'!$B$3:$U$5,2,0),0) -> 0 | OY16: =IF(AND(OY$3<>"",OD16<>0),HLOOKUP(OY$4,'Agency cashability'!$B$3:$U$5,2,0),0) -> 0 | OZ16: =IF(AND(OZ$3<>"",OE16<>0),HLOOKUP(OZ$4,'Agency cashability'!$B$3:$U$5,2,0),0) -> 0 | PA16: =IF(AND(PA$3<>"",OF16<>0),HLOOKUP(PA$4,'Agency cashability'!$B$3:$U$5,2,0),0) -> 0 | PB16: =IF(AND(PB$3<>"",OG16<>0),HLOOKUP(PB$4,'Agency cashability'!$B$3:$U$5,2,0),0) -> 0 | PC16: =IF(AND(PC$3<>"",OH16<>0),HLOOKUP(PC$4,'Agency cashability'!$B$3:$U$5,2,0),0) -> 0 | PD16: =IF(AND(PD$3<>"",OI16<>0),HLOOKUP(PD$4,'Agency cashability'!$B$3:$U$5,2,0),0) -> 0 | PE16: =IF(AND(PE$3<>"",OJ16<>0),HLOOKUP(PE$4,'Agency cashability'!$B$3:$U$5,2,0),0) -> 0 | PG16: =IF(AND(PG$3<>"",NQ16<>0),HLOOKUP(PG$4,'Agency cashability'!$B$3:$U$5,3,0),0) -> 0 | PH16: =IF(AND(PH$3<>"",NR16<>0),HLOOKUP(PH$4,'Agency cashability'!$B$3:$U$5,3,0),0) -> 0.5 | PI16: =IF(AND(PI$3<>"",NS16<>0),HLOOKUP(PI$4,'Agency cashability'!$B$3:$U$5,3,0),0) -> 0.6 | PJ16: =IF(AND(PJ$3<>"",NT16<>0),HLOOKUP(PJ$4,'Agency cashability'!$B$3:$U$5,3,0),0) -> 0.5 | PK16: =IF(AND(PK$3<>"",NU16<>0),HLOOKUP(PK$4,'Agency cashability'!$B$3:$U$5,3,0),0) -> 0.5 | PL16: =IF(AND(PL$3<>"",NV16<>0),HLOOKUP(PL$4,'Agency cashability'!$B$3:$U$5,3,0),0) -> 0.5 | PM16: =IF(AND(PM$3<>"",NW16<>0),HLOOKUP(PM$4,'Agency cashability'!$B$3:$U$5,3,0),0) -> 0.5 | PN16: =IF(AND(PN$3<>"",NX16<>0),HLOOKUP(PN$4,'Agency cashability'!$B$3:$U$5,3,0),0) -> 0 | PO16: =IF(AND(PO$3<>"",NY16<>0),HLOOKUP(PO$4,'Agency cashability'!$B$3:$U$5,3,0),0) -> 0 | PP16: =IF(AND(PP$3<>"",NZ16<>0),HLOOKUP(PP$4,'Agency cashability'!$B$3:$U$5,3,0),0) -> 0 | PQ16: =IF(AND(PQ$3<>"",OA16<>0),HLOOKUP(PQ$4,'Agency cashability'!$B$3:$U$5,3,0),0) -> 0 | PR16: =IF(AND(PR$3<>"",OB16<>0),HLOOKUP(PR$4,'Agency cashability'!$B$3:$U$5,3,0),0) -> 0 | PS16: =IF(AND(PS$3<>"",OC16<>0),HLOOKUP(PS$4,'Agency cashability'!$B$3:$U$5,3,0),0) -> 0 | PT16: =IF(AND(PT$3<>"",OD16<>0),HLOOKUP(PT$4,'Agency cashability'!$B$3:$U$5,3,0),0) -> 0 | PU16: =IF(AND(PU$3<>"",OE16<>0),HLOOKUP(PU$4,'Agency cashability'!$B$3:$U$5,3,0),0) -> 0 | PV16: =IF(AND(PV$3<>"",OF16<>0),HLOOKUP(PV$4,'Agency cashability'!$B$3:$U$5,3,0),0) -> 0 | PW16: =IF(AND(PW$3<>"",OG16<>0),HLOOKUP(PW$4,'Agency cashability'!$B$3:$U$5,3,0),0) -> 0 | PX16: =IF(AND(PX$3<>"",OH16<>0),HLOOKUP(PX$4,'Agency cashability'!$B$3:$U$5,3,0),0) -> 0 | PY16: =IF(AND(PY$3<>"",OI16<>0),HLOOKUP(PY$4,'Agency cashability'!$B$3:$U$5,3,0),0) -> 0 | PZ16: =IF(AND(PZ$3<>"",OJ16<>0),HLOOKUP(PZ$4,'Agency cashability'!$B$3:$U$5,3,0),0) -> 0 | QB16: 0 | QC16: 0 | QD16: 0 | QE16: 0 | QF16: 0 | QG16: 0 | QH16: 0 | QI16: 0 | QJ16: 0 | QK16: 0 | QL16: 0 | QM16: 0 | QN16: 0 | QW16: =IF((QW$3<>""),OL16*QB16,"") -> 0 | QX16: 0 | QY16: 0 | QZ16: 0 | RA16: 0 | RB16: 0 | RC16: 0 | RD16: 0 | RE16: 0 | RF16: 0 | RG16: 0 | RH16: 0 | RI16: 0 | RT16: =IF((RT$3<>""),PG16*QB16,"") -> 0 | RU16: 0 | RV16: 0 | RW16: 0 | RX16: 0 | RY16: 0 | RZ16: 0 | SA16: 0 | SB16: 0 | SC16: 0 | SD16: 0 | SE16: 0 | SF16: 0
A17: B9b | B17: Reduced incidents of crime - violence with injury | C17: No | D17: Reduced police, other criminal justice costs, health costs per actual crime (N.B. Use multipliers to convert from recorded crime or convictions) | E17: Police, CJS, NHS | R17: 3420 | S17: 3420 | T17: 2400 | U17: 8240 | V17: 14060 | W17: 2016 | X17: =VLOOKUP(W17,'GDP Deflators'!$B$6:$D$106,3,FALSE) -> 88.19270512 | Y17: The Economic and Social cost of Crime, Second Edition (Home Office 2018) | AA17: Standard Rate | AB17: 0 | AC17: 0 | AD17: 0 | AE17: 0 | DP17: 0 | DQ17: 0 | DR17: 0 | DS17: 0 | DT17: 0 | DU17: 0 | DV17: 0 | DW17: 0 | DX17: 0 | DY17: 0 | GW17: 0 | GY17: 0 | GZ17: 0 | HA17: 0 | HB17: 0 | HC17: 0 | HD17: 0 | HE17: 0 | HF17: 0 | HG17: 0 | HH17: 0 | KF17: 0 | KH17: 0 | KI17: 0 | KJ17: 0 | KK17: 0 | KL17: 0 | KM17: 0 | KN17: 0 | KO17: 0 | KP17: 0 | KQ17: 0 | NO17: 0 | NQ17: =IF(NQ$3<>"",VLOOKUP($A17,'Agency percentages'!$A$6:$X$71,(3+MATCH(NQ$4,'Agency percentages'!$D$5:$W$5,0)),FALSE),"") -> 0 | NR17: =IF(NR$3<>"",VLOOKUP($A17,'Agency percentages'!$A$6:$X$71,(3+MATCH(NR$4,'Agency percentages'!$D$5:$W$5,0)),FALSE),"") -> 0.2674418605 | NS17: =IF(NS$3<>"",VLOOKUP($A17,'Agency percentages'!$A$6:$X$71,(3+MATCH(NS$4,'Agency percentages'!$D$5:$W$5,0)),FALSE),"") -> 0.3284883721 | NT17: =IF(NT$3<>"",VLOOKUP($A17,'Agency percentages'!$A$6:$X$71,(3+MATCH(NT$4,'Agency percentages'!$D$5:$W$5,0)),FALSE),"") -> 0.01744186047 | NU17: =IF(NU$3<>"",VLOOKUP($A17,'Agency percentages'!$A$6:$X$71,(3+MATCH(NU$4,'Agency percentages'!$D$5:$W$5,0)),FALSE),"") -> 0.3168604651 | NV17: =IF(NV$3<>"",VLOOKUP($A17,'Agency percentages'!$A$6:$X$71,(3+MATCH(NV$4,'Agency percentages'!$D$5:$W$5,0)),FALSE),"") -> 0.05523255814 | NW17: =IF(NW$3<>"",VLOOKUP($A17,'Agency percentages'!$A$6:$X$71,(3+MATCH(NW$4,'Agency percentages'!$D$5:$W$5,0)),FALSE),"") -> 0.01453488372 | NX17: =IF(NX$3<>"",VLOOKUP($A17,'Agency percentages'!$A$6:$X$71,(3+MATCH(NX$4,'Agency percentages'!$D$5:$W$5,0)),FALSE),"") -> 0 | NY17: =IF(NY$3<>"",VLOOKUP($A17,'Agency percentages'!$A$6:$X$71,(3+MATCH(NY$4,'Agency percentages'!$D$5:$W$5,0)),FALSE),"") -> 0 | NZ17: =IF(NZ$3<>"",VLOOKUP($A17,'Agency percentages'!$A$6:$X$71,(3+MATCH(NZ$4,'Agency percentages'!$D$5:$W$5,0)),FALSE),"") -> 0 | OA17: =IF(OA$3<>"",VLOOKUP($A17,'Agency percentages'!$A$6:$X$71,(3+MATCH(OA$4,'Agency percentages'!$D$5:$W$5,0)),FALSE),"") -> 0 | OB17: =IF(OB$3<>"",VLOOKUP($A17,'Agency percentages'!$A$6:$X$71,(3+MATCH(OB$4,'Agency percentages'!$D$5:$W$5,0)),FALSE),"") -> 0 | OC17: =IF(OC$3<>"",VLOOKUP($A17,'Agency percentages'!$A$6:$X$71,(3+MATCH(OC$4,'Agency percentages'!$D$5:$W$5,0)),FALSE),"") -> 0 | OD17: =IF(OD$3<>"",VLOOKUP($A17,'Agency percentages'!$A$6:$X$71,(3+MATCH(OD$4,'Agency percentages'!$D$5:$W$5,0)),FALSE),"") ->  | OE17: =IF(OE$3<>"",VLOOKUP($A17,'Agency percentages'!$A$6:$X$71,(3+MATCH(OE$4,'Agency percentages'!$D$5:$W$5,0)),FALSE),"") ->  | OF17: =IF(OF$3<>"",VLOOKUP($A17,'Agency percentages'!$A$6:$X$71,(3+MATCH(OF$4,'Agency percentages'!$D$5:$W$5,0)),FALSE),"") ->  | OG17: =IF(OG$3<>"",VLOOKUP($A17,'Agency percentages'!$A$6:$X$71,(3+MATCH(OG$4,'Agency percentages'!$D$5:$W$5,0)),FALSE),"") ->  | OH17: =IF(OH$3<>"",VLOOKUP($A17,'Agency percentages'!$A$6:$X$71,(3+MATCH(OH$4,'Agency percentages'!$D$5:$W$5,0)),FALSE),"") ->  | OI17: =IF(OI$3<>"",VLOOKUP($A17,'Agency percentages'!$A$6:$X$71,(3+MATCH(OI$4,'Agency percentages'!$D$5:$W$5,0)),FALSE),"") ->  | OJ17: =IF(OJ$3<>"",VLOOKUP($A17,'Agency percentages'!$A$6:$X$71,(3+MATCH(OJ$4,'Agency percentages'!$D$5:$W$5,0)),FALSE),"") ->  | OL17: =IF(AND(OL$3<>"",NQ17<>0),HLOOKUP(OL$4,'Agency cashability'!$B$3:$U$5,2,0),0) -> 0 | OM17: =IF(AND(OM$3<>"",NR17<>0),HLOOKUP(OM$4,'Agency cashability'!$B$3:$U$5,2,0),0) -> 0.2 | ON17: =IF(AND(ON$3<>"",NS17<>0),HLOOKUP(ON$4,'Agency cashability'!$B$3:$U$5,2,0),0) -> 0.3 | OO17: =IF(AND(OO$3<>"",NT17<>0),HLOOKUP(OO$4,'Agency cashability'!$B$3:$U$5,2,0),0) -> 0.2 | OP17: =IF(AND(OP$3<>"",NU17<>0),HLOOKUP(OP$4,'Agency cashability'!$B$3:$U$5,2,0),0) -> 0.2 | OQ17: =IF(AND(OQ$3<>"",NV17<>0),HLOOKUP(OQ$4,'Agency cashability'!$B$3:$U$5,2,0),0) -> 0.2 | OR17: =IF(AND(OR$3<>"",NW17<>0),HLOOKUP(OR$4,'Agency cashability'!$B$3:$U$5,2,0),0) -> 0.2 | OS17: =IF(AND(OS$3<>"",NX17<>0),HLOOKUP(OS$4,'Agency cashability'!$B$3:$U$5,2,0),0) -> 0 | OT17: =IF(AND(OT$3<>"",NY17<>0),HLOOKUP(OT$4,'Agency cashability'!$B$3:$U$5,2,0),0) -> 0 | OU17: =IF(AND(OU$3<>"",NZ17<>0),HLOOKUP(OU$4,'Agency cashability'!$B$3:$U$5,2,0),0) -> 0 | OV17: =IF(AND(OV$3<>"",OA17<>0),HLOOKUP(OV$4,'Agency cashability'!$B$3:$U$5,2,0),0) -> 0 | OW17: =IF(AND(OW$3<>"",OB17<>0),HLOOKUP(OW$4,'Agency cashability'!$B$3:$U$5,2,0),0) -> 0 | OX17: =IF(AND(OX$3<>"",OC17<>0),HLOOKUP(OX$4,'Agency cashability'!$B$3:$U$5,2,0),0) -> 0 | OY17: =IF(AND(OY$3<>"",OD17<>0),HLOOKUP(OY$4,'Agency cashability'!$B$3:$U$5,2,0),0) -> 0 | OZ17: =IF(AND(OZ$3<>"",OE17<>0),HLOOKUP(OZ$4,'Agency cashability'!$B$3:$U$5,2,0),0) -> 0 | PA17: =IF(AND(PA$3<>"",OF17<>0),HLOOKUP(PA$4,'Agency cashability'!$B$3:$U$5,2,0),0) -> 0 | PB17: =IF(AND(PB$3<>"",OG17<>0),HLOOKUP(PB$4,'Agency cashability'!$B$3:$U$5,2,0),0) -> 0 | PC17: =IF(AND(PC$3<>"",OH17<>0),HLOOKUP(PC$4,'Agency cashability'!$B$3:$U$5,2,0),0) -> 0 | PD17: =IF(AND(PD$3<>"",OI17<>0),HLOOKUP(PD$4,'Agency cashability'!$B$3:$U$5,2,0),0) -> 0 | PE17: =IF(AND(PE$3<>"",OJ17<>0),HLOOKUP(PE$4,'Agency cashability'!$B$3:$U$5,2,0),0) -> 0 | PG17: =IF(AND(PG$3<>"",NQ17<>0),HLOOKUP(PG$4,'Agency cashability'!$B$3:$U$5,3,0),0) -> 0 | PH17: =IF(AND(PH$3<>"",NR17<>0),HLOOKUP(PH$4,'Agency cashability'!$B$3:$U$5,3,0),0) -> 0.5 | PI17: =IF(AND(PI$3<>"",NS17<>0),HLOOKUP(PI$4,'Agency cashability'!$B$3:$U$5,3,0),0) -> 0.6 | PJ17: =IF(AND(PJ$3<>"",NT17<>0),HLOOKUP(PJ$4,'Agency cashability'!$B$3:$U$5,3,0),0) -> 0.5 | PK17: =IF(AND(PK$3<>"",NU17<>0),HLOOKUP(PK$4,'Agency cashability'!$B$3:$U$5,3,0),0) -> 0.5 | PL17: =IF(AND(PL$3<>"",NV17<>0),HLOOKUP(PL$4,'Agency cashability'!$B$3:$U$5,3,0),0) -> 0.5 | PM17: =IF(AND(PM$3<>"",NW17<>0),HLOOKUP(PM$4,'Agency cashability'!$B$3:$U$5,3,0),0) -> 0.5 | PN17: =IF(AND(PN$3<>"",NX17<>0),HLOOKUP(PN$4,'Agency cashability'!$B$3:$U$5,3,0),0) -> 0 | PO17: =IF(AND(PO$3<>"",NY17<>0),HLOOKUP(PO$4,'Agency cashability'!$B$3:$U$5,3,0),0) -> 0 | PP17: =IF(AND(PP$3<>"",NZ17<>0),HLOOKUP(PP$4,'Agency cashability'!$B$3:$U$5,3,0),0) -> 0 | PQ17: =IF(AND(PQ$3<>"",OA17<>0),HLOOKUP(PQ$4,'Agency cashability'!$B$3:$U$5,3,0),0) -> 0 | PR17: =IF(AND(PR$3<>"",OB17<>0),HLOOKUP(PR$4,'Agency cashability'!$B$3:$U$5,3,0),0) -> 0 | PS17: =IF(AND(PS$3<>"",OC17<>0),HLOOKUP(PS$4,'Agency cashability'!$B$3:$U$5,3,0),0) -> 0 | PT17: =IF(AND(PT$3<>"",OD17<>0),HLOOKUP(PT$4,'Agency cashability'!$B$3:$U$5,3,0),0) -> 0 | PU17: =IF(AND(PU$3<>"",OE17<>0),HLOOKUP(PU$4,'Agency cashability'!$B$3:$U$5,3,0),0) -> 0 | PV17: =IF(AND(PV$3<>"",OF17<>0),HLOOKUP(PV$4,'Agency cashability'!$B$3:$U$5,3,0),0) -> 0 | PW17: =IF(AND(PW$3<>"",OG17<>0),HLOOKUP(PW$4,'Agency cashability'!$B$3:$U$5,3,0),0) -> 0 | PX17: =IF(AND(PX$3<>"",OH17<>0),HLOOKUP(PX$4,'Agency cashability'!$B$3:$U$5,3,0),0) -> 0 | PY17: =IF(AND(PY$3<>"",OI17<>0),HLOOKUP(PY$4,'Agency cashability'!$B$3:$U$5,3,0),0) -> 0 | PZ17: =IF(AND(PZ$3<>"",OJ17<>0),HLOOKUP(PZ$4,'Agency cashability'!$B$3:$U$5,3,0),0) -> 0 | QB17: 0 | QC17: 0 | QD17: 0 | QE17: 0 | QF17: 0 | QG17: 0 | QH17: 0 | QI17: 0 | QJ17: 0 | QK17: 0 | QL17: 0 | QM17: 0 | QN17: 0 | QW17: =IF((QW$3<>""),OL17*QB17,"") -> 0 | QX17: 0 | QY17: 0 | QZ17: 0 | RA17: 0 | RB17: 0 | RC17: 0 | RD17: 0 | RE17: 0 | RF17: 0 | RG17: 0 | RH17: 0 | RI17: 0 | RT17: =IF((RT$3<>""),PG17*QB17,"") -> 0 | RU17: 0 | RV17: 0 | RW17: 0 | RX17: 0 | RY17: 0 | RZ17: 0 | SA17: 0 | SB17: 0 | SC17: 0 | SD17: 0 | SE17: 0 | SF17: 0
A18: B9c | B18: Reduced incidents of crime - violence without injury | C18: No | D18: Reduced police, other criminal justice costs, health costs per actual crime (N.B. Use multipliers to convert from recorded crime or convictions) | E18: Police, CJS, NHS | R18: 2340 | S18: 2340 | T18: 790 | U18: 2810 | V18: 5940 | W18: 2016 | X18: =VLOOKUP(W18,'GDP Deflators'!$B$6:$D$106,3,FALSE) -> 88.19270512 | Y18: The Economic and Social cost of Crime, Second Edition (Home Office 2018) | AA18: Standard Rate | AB18: 0 | AC18: 0 | AD18: 0 | AE18: 0 | DP18: 0 | DQ18: 0 | DR18: 0 | DS18: 0 | DT18: 0 | DU18: 0 | DV18: 0 | DW18: 0 | DX18: 0 | DY18: 0 | GW18: 0 | GY18: 0 | GZ18: 0 | HA18: 0 | HB18: 0 | HC18: 0 | HD18: 0 | HE18: 0 | HF18: 0 | HG18: 0 | HH18: 0 | KF18: 0 | KH18: 0 | KI18: 0 | KJ18: 0 | KK18: 0 | KL18: 0 | KM18: 0 | KN18: 0 | KO18: 0 | KP18: 0 | KQ18: 0 | NO18: 0 | NQ18: =IF(NQ$3<>"",VLOOKUP($A18,'Agency percentages'!$A$6:$X$71,(3+MATCH(NQ$4,'Agency percentages'!$D$5:$W$5,0)),FALSE),"") -> 0 | NR18: =IF(NR$3<>"",VLOOKUP($A18,'Agency percentages'!$A$6:$X$71,(3+MATCH(NR$4,'Agency percentages'!$D$5:$W$5,0)),FALSE),"") -> 0.1158798283 | NS18: =IF(NS$3<>"",VLOOKUP($A18,'Agency percentages'!$A$6:$X$71,(3+MATCH(NS$4,'Agency percentages'!$D$5:$W$5,0)),FALSE),"") -> 0.347639485 | NT18: =IF(NT$3<>"",VLOOKUP($A18,'Agency percentages'!$A$6:$X$71,(3+MATCH(NT$4,'Agency percentages'!$D$5:$W$5,0)),FALSE),"") -> 0.09871244635 | NU18: =IF(NU$3<>"",VLOOKUP($A18,'Agency percentages'!$A$6:$X$71,(3+MATCH(NU$4,'Agency percentages'!$D$5:$W$5,0)),FALSE),"") -> 0.3819742489 | NV18: =IF(NV$3<>"",VLOOKUP($A18,'Agency percentages'!$A$6:$X$71,(3+MATCH(NV$4,'Agency percentages'!$D$5:$W$5,0)),FALSE),"") -> 0.01287553648 | NW18: =IF(NW$3<>"",VLOOKUP($A18,'Agency percentages'!$A$6:$X$71,(3+MATCH(NW$4,'Agency percentages'!$D$5:$W$5,0)),FALSE),"") -> 0.03862660944 | NX18: =IF(NX$3<>"",VLOOKUP($A18,'Agency percentages'!$A$6:$X$71,(3+MATCH(NX$4,'Agency percentages'!$D$5:$W$5,0)),FALSE),"") -> 0 | NY18: =IF(NY$3<>"",VLOOKUP($A18,'Agency percentages'!$A$6:$X$71,(3+MATCH(NY$4,'Agency percentages'!$D$5:$W$5,0)),FALSE),"") -> 0 | NZ18: =IF(NZ$3<>"",VLOOKUP($A18,'Agency percentages'!$A$6:$X$71,(3+MATCH(NZ$4,'Agency percentages'!$D$5:$W$5,0)),FALSE),"") -> 0 | OA18: =IF(OA$3<>"",VLOOKUP($A18,'Agency percentages'!$A$6:$X$71,(3+MATCH(OA$4,'Agency percentages'!$D$5:$W$5,0)),FALSE),"") -> 0 | OB18: =IF(OB$3<>"",VLOOKUP($A18,'Agency percentages'!$A$6:$X$71,(3+MATCH(OB$4,'Agency percentages'!$D$5:$W$5,0)),FALSE),"") -> 0.004291845494 | OC18: =IF(OC$3<>"",VLOOKUP($A18,'Agency percentages'!$A$6:$X$71,(3+MATCH(OC$4,'Agency percentages'!$D$5:$W$5,0)),FALSE),"") -> 0 | OD18: =IF(OD$3<>"",VLOOKUP($A18,'Agency percentages'!$A$6:$X$71,(3+MATCH(OD$4,'Agency percentages'!$D$5:$W$5,0)),FALSE),"") ->  | OE18: =IF(OE$3<>"",VLOOKUP($A18,'Agency percentages'!$A$6:$X$71,(3+MATCH(OE$4,'Agency percentages'!$D$5:$W$5,0)),FALSE),"") ->  | OF18: =IF(OF$3<>"",VLOOKUP($A18,'Agency percentages'!$A$6:$X$71,(3+MATCH(OF$4,'Agency percentages'!$D$5:$W$5,0)),FALSE),"") ->  | OG18: =IF(OG$3<>"",VLOOKUP($A18,'Agency percentages'!$A$6:$X$71,(3+MATCH(OG$4,'Agency percentages'!$D$5:$W$5,0)),FALSE),"") ->  | OH18: =IF(OH$3<>"",VLOOKUP($A18,'Agency percentages'!$A$6:$X$71,(3+MATCH(OH$4,'Agency percentages'!$D$5:$W$5,0)),FALSE),"") ->  | OI18: =IF(OI$3<>"",VLOOKUP($A18,'Agency percentages'!$A$6:$X$71,(3+MATCH(OI$4,'Agency percentages'!$D$5:$W$5,0)),FALSE),"") ->  | OJ18: =IF(OJ$3<>"",VLOOKUP($A18,'Agency percentages'!$A$6:$X$71,(3+MATCH(OJ$4,'Agency percentages'!$D$5:$W$5,0)),FALSE),"") ->  | OL18: =IF(AND(OL$3<>"",NQ18<>0),HLOOKUP(OL$4,'Agency cashability'!$B$3:$U$5,2,0),0) -> 0 | OM18: =IF(AND(OM$3<>"",NR18<>0),HLOOKUP(OM$4,'Agency cashability'!$B$3:$U$5,2,0),0) -> 0.2 | ON18: =IF(AND(ON$3<>"",NS18<>0),HLOOKUP(ON$4,'Agency cashability'!$B$3:$U$5,2,0),0) -> 0.3 | OO18: =IF(AND(OO$3<>"",NT18<>0),HLOOKUP(OO$4,'Agency cashability'!$B$3:$U$5,2,0),0) -> 0.2 | OP18: =IF(AND(OP$3<>"",NU18<>0),HLOOKUP(OP$4,'Agency cashability'!$B$3:$U$5,2,0),0) -> 0.2 | OQ18: =IF(AND(OQ$3<>"",NV18<>0),HLOOKUP(OQ$4,'Agency cashability'!$B$3:$U$5,2,0),0) -> 0.2 | OR18: =IF(AND(OR$3<>"",NW18<>0),HLOOKUP(OR$4,'Agency cashability'!$B$3:$U$5,2,0),0) -> 0.2 | OS18: =IF(AND(OS$3<>"",NX18<>0),HLOOKUP(OS$4,'Agency cashability'!$B$3:$U$5,2,0),0) -> 0 | OT18: =IF(AND(OT$3<>"",NY18<>0),HLOOKUP(OT$4,'Agency cashability'!$B$3:$U$5,2,0),0) -> 0 | OU18: =IF(AND(OU$3<>"",NZ18<>0),HLOOKUP(OU$4,'Agency cashability'!$B$3:$U$5,2,0),0) -> 0 | OV18: =IF(AND(OV$3<>"",OA18<>0),HLOOKUP(OV$4,'Agency cashability'!$B$3:$U$5,2,0),0) -> 0 | OW18: =IF(AND(OW$3<>"",OB18<>0),HLOOKUP(OW$4,'Agency cashability'!$B$3:$U$5,2,0),0) -> 0 | OX18: =IF(AND(OX$3<>"",OC18<>0),HLOOKUP(OX$4,'Agency cashability'!$B$3:$U$5,2,0),0) -> 0 | OY18: =IF(AND(OY$3<>"",OD18<>0),HLOOKUP(OY$4,'Agency cashability'!$B$3:$U$5,2,0),0) -> 0 | OZ18: =IF(AND(OZ$3<>"",OE18<>0),HLOOKUP(OZ$4,'Agency cashability'!$B$3:$U$5,2,0),0) -> 0 | PA18: =IF(AND(PA$3<>"",OF18<>0),HLOOKUP(PA$4,'Agency cashability'!$B$3:$U$5,2,0),0) -> 0 | PB18: =IF(AND(PB$3<>"",OG18<>0),HLOOKUP(PB$4,'Agency cashability'!$B$3:$U$5,2,0),0) -> 0 | PC18: =IF(AND(PC$3<>"",OH18<>0),HLOOKUP(PC$4,'Agency cashability'!$B$3:$U$5,2,0),0) -> 0 | PD18: =IF(AND(PD$3<>"",OI18<>0),HLOOKUP(PD$4,'Agency cashability'!$B$3:$U$5,2,0),0) -> 0 | PE18: =IF(AND(PE$3<>"",OJ18<>0),HLOOKUP(PE$4,'Agency cashability'!$B$3:$U$5,2,0),0) -> 0 | PG18: =IF(AND(PG$3<>"",NQ18<>0),HLOOKUP(PG$4,'Agency cashability'!$B$3:$U$5,3,0),0) -> 0 | PH18: =IF(AND(PH$3<>"",NR18<>0),HLOOKUP(PH$4,'Agency cashability'!$B$3:$U$5,3,0),0) -> 0.5 | PI18: =IF(AND(PI$3<>"",NS18<>0),HLOOKUP(PI$4,'Agency cashability'!$B$3:$U$5,3,0),0) -> 0.6 | PJ18: =IF(AND(PJ$3<>"",NT18<>0),HLOOKUP(PJ$4,'Agency cashability'!$B$3:$U$5,3,0),0) -> 0.5 | PK18: =IF(AND(PK$3<>"",NU18<>0),HLOOKUP(PK$4,'Agency cashability'!$B$3:$U$5,3,0),0) -> 0.5 | PL18: =IF(AND(PL$3<>"",NV18<>0),HLOOKUP(PL$4,'Agency cashability'!$B$3:$U$5,3,0),0) -> 0.5 | PM18: =IF(AND(PM$3<>"",NW18<>0),HLOOKUP(PM$4,'Agency cashability'!$B$3:$U$5,3,0),0) -> 0.5 | PN18: =IF(AND(PN$3<>"",NX18<>0),HLOOKUP(PN$4,'Agency cashability'!$B$3:$U$5,3,0),0) -> 0 | PO18: =IF(AND(PO$3<>"",NY18<>0),HLOOKUP(PO$4,'Agency cashability'!$B$3:$U$5,3,0),0) -> 0 | PP18: =IF(AND(PP$3<>"",NZ18<>0),HLOOKUP(PP$4,'Agency cashability'!$B$3:$U$5,3,0),0) -> 0 | PQ18: =IF(AND(PQ$3<>"",OA18<>0),HLOOKUP(PQ$4,'Agency cashability'!$B$3:$U$5,3,0),0) -> 0 | PR18: =IF(AND(PR$3<>"",OB18<>0),HLOOKUP(PR$4,'Agency cashability'!$B$3:$U$5,3,0),0) -> 0 | PS18: =IF(AND(PS$3<>"",OC18<>0),HLOOKUP(PS$4,'Agency cashability'!$B$3:$U$5,3,0),0) -> 0 | PT18: =IF(AND(PT$3<>"",OD18<>0),HLOOKUP(PT$4,'Agency cashability'!$B$3:$U$5,3,0),0) -> 0 | PU18: =IF(AND(PU$3<>"",OE18<>0),HLOOKUP(PU$4,'Agency cashability'!$B$3:$U$5,3,0),0) -> 0 | PV18: =IF(AND(PV$3<>"",OF18<>0),HLOOKUP(PV$4,'Agency cashability'!$B$3:$U$5,3,0),0) -> 0 | PW18: =IF(AND(PW$3<>"",OG18<>0),HLOOKUP(PW$4,'Agency cashability'!$B$3:$U$5,3,0),0) -> 0 | PX18: =IF(AND(PX$3<>"",OH18<>0),HLOOKUP(PX$4,'Agency cashability'!$B$3:$U$5,3,0),0) -> 0 | PY18: =IF(AND(PY$3<>"",OI18<>0),HLOOKUP(PY$4,'Agency cashability'!$B$3:$U$5,3,0),0) -> 0 | PZ18: =IF(AND(PZ$3<>"",OJ18<>0),HLOOKUP(PZ$4,'Agency cashability'!$B$3:$U$5,3,0),0) -> 0 | QB18: 0 | QC18: 0 | QD18: 0 | QE18: 0 | QF18: 0 | QG18: 0 | QH18: 0 | QI18: 0 | QJ18: 0 | QK18: 0 | QL18: 0 | QM18: 0 | QN18: 0 | QW18: =IF((QW$3<>""),OL18*QB18,"") -> 0 | QX18: 0 | QY18: 0 | QZ18: 0 | RA18: 0 | RB18: 0 | RC18: 0 | RD18: 0 | RE18: 0 | RF18: 0 | RG18: 0 | RH18: 0 | RI18: 0 | RT18: =IF((RT$3<>""),PG18*QB18,"") -> 0 | RU18: 0 | RV18: 0 | RW18: 0 | RX18: 0 | RY18: 0 | RZ18: 0 | SA18: 0 | SB18: 0 | SC18: 0 | SD18: 0 | SE18: 0 | SF18: 0
A19: B9d | B19: Reduced incidents of crime - rape | C19: No | D19: Reduced police, other criminal justice costs, health costs per actual crime (N.B. Use multipliers to convert from recorded crime or convictions) | E19: Police, CJS, NHS | R19: 8090 | S19: 8090 | T19: 6880 | U19: 24390 | V19: 39360 | W19: 2016 | X19: =VLOOKUP(W19,'GDP Deflators'!$B$6:$D$106,3,FALSE) -> 88.19270512 | Y19: The Economic and Social cost of Crime, Second Edition (Home Office 2018) | AA19: Standard Rate | AB19: 0 | AC19: 0 | AD19: 0 | AE19: 0 | DP19: 0 | DQ19: 0 | DR19: 0 | DS19: 0 | DT19: 0 | DU19: 0 | DV19: 0 | DW19: 0 | DX19: 0 | DY19: 0 | GW19: 0 | GY19: 0 | GZ19: 0 | HA19: 0 | HB19: 0 | HC19: 0 | HD19: 0 | HE19: 0 | HF19: 0 | HG19: 0 | HH19: 0 | KF19: 0 | KH19: 0 | KI19: 0 | KJ19: 0 | KK19: 0 | KL19: 0 | KM19: 0 | KN19: 0 | KO19: 0 | KP19: 0 | KQ19: 0 | NO19: 0 | NQ19: =IF(NQ$3<>"",VLOOKUP($A19,'Agency percentages'!$A$6:$X$71,(3+MATCH(NQ$4,'Agency percentages'!$D$5:$W$5,0)),FALSE),"") -> 0 | NR19: =IF(NR$3<>"",VLOOKUP($A19,'Agency percentages'!$A$6:$X$71,(3+MATCH(NR$4,'Agency percentages'!$D$5:$W$5,0)),FALSE),"") -> 0.1372064277 | NS19: =IF(NS$3<>"",VLOOKUP($A19,'Agency percentages'!$A$6:$X$71,(3+MATCH(NS$4,'Agency percentages'!$D$5:$W$5,0)),FALSE),"") -> 0.7861557478 | NT19: =IF(NT$3<>"",VLOOKUP($A19,'Agency percentages'!$A$6:$X$71,(3+MATCH(NT$4,'Agency percentages'!$D$5:$W$5,0)),FALSE),"") -> 0.002472187886 | NU19: =IF(NU$3<>"",VLOOKUP($A19,'Agency percentages'!$A$6:$X$71,(3+MATCH(NU$4,'Agency percentages'!$D$5:$W$5,0)),FALSE),"") -> 0.04944375773 | NV19: =IF(NV$3<>"",VLOOKUP($A19,'Agency percentages'!$A$6:$X$71,(3+MATCH(NV$4,'Agency percentages'!$D$5:$W$5,0)),FALSE),"") -> 0.0173053152 | NW19: =IF(NW$3<>"",VLOOKUP($A19,'Agency percentages'!$A$6:$X$71,(3+MATCH(NW$4,'Agency percentages'!$D$5:$W$5,0)),FALSE),"") -> 0.002472187886 | NX19: =IF(NX$3<>"",VLOOKUP($A19,'Agency percentages'!$A$6:$X$71,(3+MATCH(NX$4,'Agency percentages'!$D$5:$W$5,0)),FALSE),"") -> 0 | NY19: =IF(NY$3<>"",VLOOKUP($A19,'Agency percentages'!$A$6:$X$71,(3+MATCH(NY$4,'Agency percentages'!$D$5:$W$5,0)),FALSE),"") -> 0 | NZ19: =IF(NZ$3<>"",VLOOKUP($A19,'Agency percentages'!$A$6:$X$71,(3+MATCH(NZ$4,'Agency percentages'!$D$5:$W$5,0)),FALSE),"") -> 0 | OA19: =IF(OA$3<>"",VLOOKUP($A19,'Agency percentages'!$A$6:$X$71,(3+MATCH(OA$4,'Agency percentages'!$D$5:$W$5,0)),FALSE),"") -> 0 | OB19: =IF(OB$3<>"",VLOOKUP($A19,'Agency percentages'!$A$6:$X$71,(3+MATCH(OB$4,'Agency percentages'!$D$5:$W$5,0)),FALSE),"") -> 0.004944375773 | OC19: =IF(OC$3<>"",VLOOKUP($A19,'Agency percentages'!$A$6:$X$71,(3+MATCH(OC$4,'Agency percentages'!$D$5:$W$5,0)),FALSE),"") -> 0 | OD19: =IF(OD$3<>"",VLOOKUP($A19,'Agency percentages'!$A$6:$X$71,(3+MATCH(OD$4,'Agency percentages'!$D$5:$W$5,0)),FALSE),"") ->  | OE19: =IF(OE$3<>"",VLOOKUP($A19,'Agency percentages'!$A$6:$X$71,(3+MATCH(OE$4,'Agency percentages'!$D$5:$W$5,0)),FALSE),"") ->  | OF19: =IF(OF$3<>"",VLOOKUP($A19,'Agency percentages'!$A$6:$X$71,(3+MATCH(OF$4,'Agency percentages'!$D$5:$W$5,0)),FALSE),"") ->  | OG19: =IF(OG$3<>"",VLOOKUP($A19,'Agency percentages'!$A$6:$X$71,(3+MATCH(OG$4,'Agency percentages'!$D$5:$W$5,0)),FALSE),"") ->  | OH19: =IF(OH$3<>"",VLOOKUP($A19,'Agency percentages'!$A$6:$X$71,(3+MATCH(OH$4,'Agency percentages'!$D$5:$W$5,0)),FALSE),"") ->  | OI19: =IF(OI$3<>"",VLOOKUP($A19,'Agency percentages'!$A$6:$X$71,(3+MATCH(OI$4,'Agency percentages'!$D$5:$W$5,0)),FALSE),"") ->  | OJ19: =IF(OJ$3<>"",VLOOKUP($A19,'Agency percentages'!$A$6:$X$71,(3+MATCH(OJ$4,'Agency percentages'!$D$5:$W$5,0)),FALSE),"") ->  | OL19: =IF(AND(OL$3<>"",NQ19<>0),HLOOKUP(OL$4,'Agency cashability'!$B$3:$U$5,2,0),0) -> 0 | OM19: =IF(AND(OM$3<>"",NR19<>0),HLOOKUP(OM$4,'Agency cashability'!$B$3:$U$5,2,0),0) -> 0.2 | ON19: =IF(AND(ON$3<>"",NS19<>0),HLOOKUP(ON$4,'Agency cashability'!$B$3:$U$5,2,0),0) -> 0.3 | OO19: =IF(AND(OO$3<>"",NT19<>0),HLOOKUP(OO$4,'Agency cashability'!$B$3:$U$5,2,0),0) -> 0.2 | OP19: =IF(AND(OP$3<>"",NU19<>0),HLOOKUP(OP$4,'Agency cashability'!$B$3:$U$5,2,0),0) -> 0.2 | OQ19: =IF(AND(OQ$3<>"",NV19<>0),HLOOKUP(OQ$4,'Agency cashability'!$B$3:$U$5,2,0),0) -> 0.2 | OR19: =IF(AND(OR$3<>"",NW19<>0),HLOOKUP(OR$4,'Agency cashability'!$B$3:$U$5,2,0),0) -> 0.2 | OS19: =IF(AND(OS$3<>"",NX19<>0),HLOOKUP(OS$4,'Agency cashability'!$B$3:$U$5,2,0),0) -> 0 | OT19: =IF(AND(OT$3<>"",NY19<>0),HLOOKUP(OT$4,'Agency cashability'!$B$3:$U$5,2,0),0) -> 0 | OU19: =IF(AND(OU$3<>"",NZ19<>0),HLOOKUP(OU$4,'Agency cashability'!$B$3:$U$5,2,0),0) -> 0 | OV19: =IF(AND(OV$3<>"",OA19<>0),HLOOKUP(OV$4,'Agency cashability'!$B$3:$U$5,2,0),0) -> 0 | OW19: =IF(AND(OW$3<>"",OB19<>0),HLOOKUP(OW$4,'Agency cashability'!$B$3:$U$5,2,0),0) -> 0 | OX19: =IF(AND(OX$3<>"",OC19<>0),HLOOKUP(OX$4,'Agency cashability'!$B$3:$U$5,2,0),0) -> 0 | OY19: =IF(AND(OY$3<>"",OD19<>0),HLOOKUP(OY$4,'Agency cashability'!$B$3:$U$5,2,0),0) -> 0 | OZ19: =IF(AND(OZ$3<>"",OE19<>0),HLOOKUP(OZ$4,'Agency cashability'!$B$3:$U$5,2,0),0) -> 0 | PA19: =IF(AND(PA$3<>"",OF19<>0),HLOOKUP(PA$4,'Agency cashability'!$B$3:$U$5,2,0),0) -> 0 | PB19: =IF(AND(PB$3<>"",OG19<>0),HLOOKUP(PB$4,'Agency cashability'!$B$3:$U$5,2,0),0) -> 0 | PC19: =IF(AND(PC$3<>"",OH19<>0),HLOOKUP(PC$4,'Agency cashability'!$B$3:$U$5,2,0),0) -> 0 | PD19: =IF(AND(PD$3<>"",OI19<>0),HLOOKUP(PD$4,'Agency cashability'!$B$3:$U$5,2,0),0) -> 0 | PE19: =IF(AND(PE$3<>"",OJ19<>0),HLOOKUP(PE$4,'Agency cashability'!$B$3:$U$5,2,0),0) -> 0 | PG19: =IF(AND(PG$3<>"",NQ19<>0),HLOOKUP(PG$4,'Agency cashability'!$B$3:$U$5,3,0),0) -> 0 | PH19: =IF(AND(PH$3<>"",NR19<>0),HLOOKUP(PH$4,'Agency cashability'!$B$3:$U$5,3,0),0) -> 0.5 | PI19: =IF(AND(PI$3<>"",NS19<>0),HLOOKUP(PI$4,'Agency cashability'!$B$3:$U$5,3,0),0) -> 0.6 | PJ19: =IF(AND(PJ$3<>"",NT19<>0),HLOOKUP(PJ$4,'Agency cashability'!$B$3:$U$5,3,0),0) -> 0.5 | PK19: =IF(AND(PK$3<>"",NU19<>0),HLOOKUP(PK$4,'Agency cashability'!$B$3:$U$5,3,0),0) -> 0.5 | PL19: =IF(AND(PL$3<>"",NV19<>0),HLOOKUP(PL$4,'Agency cashability'!$B$3:$U$5,3,0),0) -> 0.5 | PM19: =IF(AND(PM$3<>"",NW19<>0),HLOOKUP(PM$4,'Agency cashability'!$B$3:$U$5,3,0),0) -> 0.5 | PN19: =IF(AND(PN$3<>"",NX19<>0),HLOOKUP(PN$4,'Agency cashability'!$B$3:$U$5,3,0),0) -> 0 | PO19: =IF(AND(PO$3<>"",NY19<>0),HLOOKUP(PO$4,'Agency cashability'!$B$3:$U$5,3,0),0) -> 0 | PP19: =IF(AND(PP$3<>"",NZ19<>0),HLOOKUP(PP$4,'Agency cashability'!$B$3:$U$5,3,0),0) -> 0 | PQ19: =IF(AND(PQ$3<>"",OA19<>0),HLOOKUP(PQ$4,'Agency cashability'!$B$3:$U$5,3,0),0) -> 0 | PR19: =IF(AND(PR$3<>"",OB19<>0),HLOOKUP(PR$4,'Agency cashability'!$B$3:$U$5,3,0),0) -> 0 | PS19: =IF(AND(PS$3<>"",OC19<>0),HLOOKUP(PS$4,'Agency cashability'!$B$3:$U$5,3,0),0) -> 0 | PT19: =IF(AND(PT$3<>"",OD19<>0),HLOOKUP(PT$4,'Agency cashability'!$B$3:$U$5,3,0),0) -> 0 | PU19: =IF(AND(PU$3<>"",OE19<>0),HLOOKUP(PU$4,'Agency cashability'!$B$3:$U$5,3,0),0) -> 0 | PV19: =IF(AND(PV$3<>"",OF19<>0),HLOOKUP(PV$4,'Agency cashability'!$B$3:$U$5,3,0),0) -> 0 | PW19: =IF(AND(PW$3<>"",OG19<>0),HLOOKUP(PW$4,'Agency cashability'!$B$3:$U$5,3,0),0) -> 0 | PX19: =IF(AND(PX$3<>"",OH19<>0),HLOOKUP(PX$4,'Agency cashability'!$B$3:$U$5,3,0),0) -> 0 | PY19: =IF(AND(PY$3<>"",OI19<>0),HLOOKUP(PY$4,'Agency cashability'!$B$3:$U$5,3,0),0) -> 0 | PZ19: =IF(AND(PZ$3<>"",OJ19<>0),HLOOKUP(PZ$4,'Agency cashability'!$B$3:$U$5,3,0),0) -> 0 | QB19: 0 | QC19: 0 | QD19: 0 | QE19: 0 | QF19: 0 | QG19: 0 | QH19: 0 | QI19: 0 | QJ19: 0 | QK19: 0 | QL19: 0 | QM19: 0 | QN19: 0 | QW19: =IF((QW$3<>""),OL19*QB19,"") -> 0 | QX19: 0 | QY19: 0 | QZ19: 0 | RA19: 0 | RB19: 0 | RC19: 0 | RD19: 0 | RE19: 0 | RF19: 0 | RG19: 0 | RH19: 0 | RI19: 0 | RT19: =IF((RT$3<>""),PG19*QB19,"") -> 0 | RU19: 0 | RV19: 0 | RW19: 0 | RX19: 0 | RY19: 0 | RZ19: 0 | SA19: 0 | SB19: 0 | SC19: 0 | SD19: 0 | SE19: 0 | SF19: 0
A20: B9e | B20: Reduced incidents of crime - other sexual offences | C20: No | D20: Reduced police, other criminal justice costs, health costs per actual crime (N.B. Use multipliers to convert from recorded crime or convictions) | E20: Police, CJS, NHS | R20: 1550 | S20: 1550 | T20: 1280 | U20: 3700 | V20: 6530 | W20: 2016 | X20: =VLOOKUP(W20,'GDP Deflators'!$B$6:$D$106,3,FALSE) -> 88.19270512 | Y20: The Economic and Social cost of Crime, Second Edition (Home Office 2018) | AA20: Standard Rate | AB20: 0 | AC20: 0 | AD20: 0 | AE20: 0 | DP20: 0 | DQ20: 0 | DR20: 0 | DS20: 0 | DT20: 0 | DU20: 0 | DV20: 0 | DW20: 0 | DX20: 0 | DY20: 0 | GW20: 0 | GY20: 0 | GZ20: 0 | HA20: 0 | HB20: 0 | HC20: 0 | HD20: 0 | HE20: 0 | HF20: 0 | HG20: 0 | HH20: 0 | KF20: 0 | KH20: 0 | KI20: 0 | KJ20: 0 | KK20: 0 | KL20: 0 | KM20: 0 | KN20: 0 | KO20: 0 | KP20: 0 | KQ20: 0 | NO20: 0 | NQ20: =IF(NQ$3<>"",VLOOKUP($A20,'Agency percentages'!$A$6:$X$71,(3+MATCH(NQ$4,'Agency percentages'!$D$5:$W$5,0)),FALSE),"") -> 0 | NR20: =IF(NR$3<>"",VLOOKUP($A20,'Agency percentages'!$A$6:$X$71,(3+MATCH(NR$4,'Agency percentages'!$D$5:$W$5,0)),FALSE),"") -> 0.2516129032 | NS20: =IF(NS$3<>"",VLOOKUP($A20,'Agency percentages'!$A$6:$X$71,(3+MATCH(NS$4,'Agency percentages'!$D$5:$W$5,0)),FALSE),"") -> 0.3677419355 | NT20: =IF(NT$3<>"",VLOOKUP($A20,'Agency percentages'!$A$6:$X$71,(3+MATCH(NT$4,'Agency percentages'!$D$5:$W$5,0)),FALSE),"") -> 0.01290322581 | NU20: =IF(NU$3<>"",VLOOKUP($A20,'Agency percentages'!$A$6:$X$71,(3+MATCH(NU$4,'Agency percentages'!$D$5:$W$5,0)),FALSE),"") -> 0.2580645161 | NV20: =IF(NV$3<>"",VLOOKUP($A20,'Agency percentages'!$A$6:$X$71,(3+MATCH(NV$4,'Agency percentages'!$D$5:$W$5,0)),FALSE),"") -> 0.09032258065 | NW20: =IF(NW$3<>"",VLOOKUP($A20,'Agency percentages'!$A$6:$X$71,(3+MATCH(NW$4,'Agency percentages'!$D$5:$W$5,0)),FALSE),"") -> 0.01290322581 | NX20: =IF(NX$3<>"",VLOOKUP($A20,'Agency percentages'!$A$6:$X$71,(3+MATCH(NX$4,'Agency percentages'!$D$5:$W$5,0)),FALSE),"") -> 0 | NY20: =IF(NY$3<>"",VLOOKUP($A20,'Agency percentages'!$A$6:$X$71,(3+MATCH(NY$4,'Agency percentages'!$D$5:$W$5,0)),FALSE),"") -> 0 | NZ20: =IF(NZ$3<>"",VLOOKUP($A20,'Agency percentages'!$A$6:$X$71,(3+MATCH(NZ$4,'Agency percentages'!$D$5:$W$5,0)),FALSE),"") -> 0 | OA20: =IF(OA$3<>"",VLOOKUP($A20,'Agency percentages'!$A$6:$X$71,(3+MATCH(OA$4,'Agency percentages'!$D$5:$W$5,0)),FALSE),"") -> 0 | OB20: =IF(OB$3<>"",VLOOKUP($A20,'Agency percentages'!$A$6:$X$71,(3+MATCH(OB$4,'Agency percentages'!$D$5:$W$5,0)),FALSE),"") -> 0.006451612903 | OC20: =IF(OC$3<>"",VLOOKUP($A20,'Agency percentages'!$A$6:$X$71,(3+MATCH(OC$4,'Agency percentages'!$D$5:$W$5,0)),FALSE),"") -> 0 | OD20: =IF(OD$3<>"",VLOOKUP($A20,'Agency percentages'!$A$6:$X$71,(3+MATCH(OD$4,'Agency percentages'!$D$5:$W$5,0)),FALSE),"") ->  | OE20: =IF(OE$3<>"",VLOOKUP($A20,'Agency percentages'!$A$6:$X$71,(3+MATCH(OE$4,'Agency percentages'!$D$5:$W$5,0)),FALSE),"") ->  | OF20: =IF(OF$3<>"",VLOOKUP($A20,'Agency percentages'!$A$6:$X$71,(3+MATCH(OF$4,'Agency percentages'!$D$5:$W$5,0)),FALSE),"") ->  | OG20: =IF(OG$3<>"",VLOOKUP($A20,'Agency percentages'!$A$6:$X$71,(3+MATCH(OG$4,'Agency percentages'!$D$5:$W$5,0)),FALSE),"") ->  | OH20: =IF(OH$3<>"",VLOOKUP($A20,'Agency percentages'!$A$6:$X$71,(3+MATCH(OH$4,'Agency percentages'!$D$5:$W$5,0)),FALSE),"") ->  | OI20: =IF(OI$3<>"",VLOOKUP($A20,'Agency percentages'!$A$6:$X$71,(3+MATCH(OI$4,'Agency percentages'!$D$5:$W$5,0)),FALSE),"") ->  | OJ20: =IF(OJ$3<>"",VLOOKUP($A20,'Agency percentages'!$A$6:$X$71,(3+MATCH(OJ$4,'Agency percentages'!$D$5:$W$5,0)),FALSE),"") ->  | OL20: =IF(AND(OL$3<>"",NQ20<>0),HLOOKUP(OL$4,'Agency cashability'!$B$3:$U$5,2,0),0) -> 0 | OM20: =IF(AND(OM$3<>"",NR20<>0),HLOOKUP(OM$4,'Agency cashability'!$B$3:$U$5,2,0),0) -> 0.2 | ON20: =IF(AND(ON$3<>"",NS20<>0),HLOOKUP(ON$4,'Agency cashability'!$B$3:$U$5,2,0),0) -> 0.3 | OO20: =IF(AND(OO$3<>"",NT20<>0),HLOOKUP(OO$4,'Agency cashability'!$B$3:$U$5,2,0),0) -> 0.2 | OP20: =IF(AND(OP$3<>"",NU20<>0),HLOOKUP(OP$4,'Agency cashability'!$B$3:$U$5,2,0),0) -> 0.2 | OQ20: =IF(AND(OQ$3<>"",NV20<>0),HLOOKUP(OQ$4,'Agency cashability'!$B$3:$U$5,2,0),0) -> 0.2 | OR20: =IF(AND(OR$3<>"",NW20<>0),HLOOKUP(OR$4,'Agency cashability'!$B$3:$U$5,2,0),0) -> 0.2 | OS20: =IF(AND(OS$3<>"",NX20<>0),HLOOKUP(OS$4,'Agency cashability'!$B$3:$U$5,2,0),0) -> 0 | OT20: =IF(AND(OT$3<>"",NY20<>0),HLOOKUP(OT$4,'Agency cashability'!$B$3:$U$5,2,0),0) -> 0 | OU20: =IF(AND(OU$3<>"",NZ20<>0),HLOOKUP(OU$4,'Agency cashability'!$B$3:$U$5,2,0),0) -> 0 | OV20: =IF(AND(OV$3<>"",OA20<>0),HLOOKUP(OV$4,'Agency cashability'!$B$3:$U$5,2,0),0) -> 0 | OW20: =IF(AND(OW$3<>"",OB20<>0),HLOOKUP(OW$4,'Agency cashability'!$B$3:$U$5,2,0),0) -> 0 | OX20: =IF(AND(OX$3<>"",OC20<>0),HLOOKUP(OX$4,'Agency cashability'!$B$3:$U$5,2,0),0) -> 0 | OY20: =IF(AND(OY$3<>"",OD20<>0),HLOOKUP(OY$4,'Agency cashability'!$B$3:$U$5,2,0),0) -> 0 | OZ20: =IF(AND(OZ$3<>"",OE20<>0),HLOOKUP(OZ$4,'Agency cashability'!$B$3:$U$5,2,0),0) -> 0 | PA20: =IF(AND(PA$3<>"",OF20<>0),HLOOKUP(PA$4,'Agency cashability'!$B$3:$U$5,2,0),0) -> 0 | PB20: =IF(AND(PB$3<>"",OG20<>0),HLOOKUP(PB$4,'Agency cashability'!$B$3:$U$5,2,0),0) -> 0 | PC20: =IF(AND(PC$3<>"",OH20<>0),HLOOKUP(PC$4,'Agency cashability'!$B$3:$U$5,2,0),0) -> 0 | PD20: =IF(AND(PD$3<>"",OI20<>0),HLOOKUP(PD$4,'Agency cashability'!$B$3:$U$5,2,0),0) -> 0 | PE20: =IF(AND(PE$3<>"",OJ20<>0),HLOOKUP(PE$4,'Agency cashability'!$B$3:$U$5,2,0),0) -> 0 | PG20: =IF(AND(PG$3<>"",NQ20<>0),HLOOKUP(PG$4,'Agency cashability'!$B$3:$U$5,3,0),0) -> 0 | PH20: =IF(AND(PH$3<>"",NR20<>0),HLOOKUP(PH$4,'Agency cashability'!$B$3:$U$5,3,0),0) -> 0.5 | PI20: =IF(AND(PI$3<>"",NS20<>0),HLOOKUP(PI$4,'Agency cashability'!$B$3:$U$5,3,0),0) -> 0.6 | PJ20: =IF(AND(PJ$3<>"",NT20<>0),HLOOKUP(PJ$4,'Agency cashability'!$B$3:$U$5,3,0),0) -> 0.5 | PK20: =IF(AND(PK$3<>"",NU20<>0),HLOOKUP(PK$4,'Agency cashability'!$B$3:$U$5,3,0),0) -> 0.5 | PL20: =IF(AND(PL$3<>"",NV20<>0),HLOOKUP(PL$4,'Agency cashability'!$B$3:$U$5,3,0),0) -> 0.5 | PM20: =IF(AND(PM$3<>"",NW20<>0),HLOOKUP(PM$4,'Agency cashability'!$B$3:$U$5,3,0),0) -> 0.5 | PN20: =IF(AND(PN$3<>"",NX20<>0),HLOOKUP(PN$4,'Agency cashability'!$B$3:$U$5,3,0),0) -> 0 | PO20: =IF(AND(PO$3<>"",NY20<>0),HLOOKUP(PO$4,'Agency cashability'!$B$3:$U$5,3,0),0) -> 0 | PP20: =IF(AND(PP$3<>"",NZ20<>0),HLOOKUP(PP$4,'Agency cashability'!$B$3:$U$5,3,0),0) -> 0 | PQ20: =IF(AND(PQ$3<>"",OA20<>0),HLOOKUP(PQ$4,'Agency cashability'!$B$3:$U$5,3,0),0) -> 0 | PR20: =IF(AND(PR$3<>"",OB20<>0),HLOOKUP(PR$4,'Agency cashability'!$B$3:$U$5,3,0),0) -> 0 | PS20: =IF(AND(PS$3<>"",OC20<>0),HLOOKUP(PS$4,'Agency cashability'!$B$3:$U$5,3,0),0) -> 0 | PT20: =IF(AND(PT$3<>"",OD20<>0),HLOOKUP(PT$4,'Agency cashability'!$B$3:$U$5,3,0),0) -> 0 | PU20: =IF(AND(PU$3<>"",OE20<>0),HLOOKUP(PU$4,'Agency cashability'!$B$3:$U$5,3,0),0) -> 0 | PV20: =IF(AND(PV$3<>"",OF20<>0),HLOOKUP(PV$4,'Agency cashability'!$B$3:$U$5,3,0),0) -> 0 | PW20: =IF(AND(PW$3<>"",OG20<>0),HLOOKUP(PW$4,'Agency cashability'!$B$3:$U$5,3,0),0) -> 0 | PX20: =IF(AND(PX$3<>"",OH20<>0),HLOOKUP(PX$4,'Agency cashability'!$B$3:$U$5,3,0),0) -> 0 | PY20: =IF(AND(PY$3<>"",OI20<>0),HLOOKUP(PY$4,'Agency cashability'!$B$3:$U$5,3,0),0) -> 0 | PZ20: =IF(AND(PZ$3<>"",OJ20<>0),HLOOKUP(PZ$4,'Agency cashability'!$B$3:$U$5,3,0),0) -> 0 | QB20: 0 | QC20: 0 | QD20: 0 | QE20: 0 | QF20: 0 | QG20: 0 | QH20: 0 | QI20: 0 | QJ20: 0 | QK20: 0 | QL20: 0 | QM20: 0 | QN20: 0 | QW20: =IF((QW$3<>""),OL20*QB20,"") -> 0 | QX20: 0 | QY20: 0 | QZ20: 0 | RA20: 0 | RB20: 0 | RC20: 0 | RD20: 0 | RE20: 0 | RF20: 0 | RG20: 0 | RH20: 0 | RI20: 0 | RT20: =IF((RT$3<>""),PG20*QB20,"") -> 0 | RU20: 0 | RV20: 0 | RW20: 0 | RX20: 0 | RY20: 0 | RZ20: 0 | SA20: 0 | SB20: 0 | SC20: 0 | SD20: 0 | SE20: 0 | SF20: 0
A21: B9f | B21: Reduced incidents of crime - robbery | C21: No | D21: Reduced police, other criminal justice costs, health costs per actual crime (N.B. Use multipliers to convert from recorded crime or convictions) | E21: Police, CJS, NHS | R21: 5450 | S21: 5450 | T21: 2280 | U21: 3590 | V21: 11320 | W21: 2016 | X21: =VLOOKUP(W21,'GDP Deflators'!$B$6:$D$106,3,FALSE) -> 88.19270512 | Y21: The Economic and Social cost of Crime, Second Edition (Home Office 2018) | AA21: Standard Rate | AB21: 0 | AC21: 0 | AD21: 0 | AE21: 0 | DP21: 0 | DQ21: 0 | DR21: 0 | DS21: 0 | DT21: 0 | DU21: 0 | DV21: 0 | DW21: 0 | DX21: 0 | DY21: 0 | GW21: 0 | GY21: 0 | GZ21: 0 | HA21: 0 | HB21: 0 | HC21: 0 | HD21: 0 | HE21: 0 | HF21: 0 | HG21: 0 | HH21: 0 | KF21: 0 | KH21: 0 | KI21: 0 | KJ21: 0 | KK21: 0 | KL21: 0 | KM21: 0 | KN21: 0 | KO21: 0 | KP21: 0 | KQ21: 0 | NO21: 0 | NQ21: =IF(NQ$3<>"",VLOOKUP($A21,'Agency percentages'!$A$6:$X$71,(3+MATCH(NQ$4,'Agency percentages'!$D$5:$W$5,0)),FALSE),"") -> 0 | NR21: =IF(NR$3<>"",VLOOKUP($A21,'Agency percentages'!$A$6:$X$71,(3+MATCH(NR$4,'Agency percentages'!$D$5:$W$5,0)),FALSE),"") -> 0.1391941392 | NS21: =IF(NS$3<>"",VLOOKUP($A21,'Agency percentages'!$A$6:$X$71,(3+MATCH(NS$4,'Agency percentages'!$D$5:$W$5,0)),FALSE),"") -> 0.184981685 | NT21: =IF(NT$3<>"",VLOOKUP($A21,'Agency percentages'!$A$6:$X$71,(3+MATCH(NT$4,'Agency percentages'!$D$5:$W$5,0)),FALSE),"") -> 0.03113553114 | NU21: =IF(NU$3<>"",VLOOKUP($A21,'Agency percentages'!$A$6:$X$71,(3+MATCH(NU$4,'Agency percentages'!$D$5:$W$5,0)),FALSE),"") -> 0.4304029304 | NV21: =IF(NV$3<>"",VLOOKUP($A21,'Agency percentages'!$A$6:$X$71,(3+MATCH(NV$4,'Agency percentages'!$D$5:$W$5,0)),FALSE),"") -> 0.173992674 | NW21: =IF(NW$3<>"",VLOOKUP($A21,'Agency percentages'!$A$6:$X$71,(3+MATCH(NW$4,'Agency percentages'!$D$5:$W$5,0)),FALSE),"") -> 0.03846153846 | NX21: =IF(NX$3<>"",VLOOKUP($A21,'Agency percentages'!$A$6:$X$71,(3+MATCH(NX$4,'Agency percentages'!$D$5:$W$5,0)),FALSE),"") -> 0 | NY21: =IF(NY$3<>"",VLOOKUP($A21,'Agency percentages'!$A$6:$X$71,(3+MATCH(NY$4,'Agency percentages'!$D$5:$W$5,0)),FALSE),"") -> 0 | NZ21: =IF(NZ$3<>"",VLOOKUP($A21,'Agency percentages'!$A$6:$X$71,(3+MATCH(NZ$4,'Agency percentages'!$D$5:$W$5,0)),FALSE),"") -> 0 | OA21: =IF(OA$3<>"",VLOOKUP($A21,'Agency percentages'!$A$6:$X$71,(3+MATCH(OA$4,'Agency percentages'!$D$5:$W$5,0)),FALSE),"") -> 0 | OB21: =IF(OB$3<>"",VLOOKUP($A21,'Agency percentages'!$A$6:$X$71,(3+MATCH(OB$4,'Agency percentages'!$D$5:$W$5,0)),FALSE),"") -> 0.001831501832 | OC21: =IF(OC$3<>"",VLOOKUP($A21,'Agency percentages'!$A$6:$X$71,(3+MATCH(OC$4,'Agency percentages'!$D$5:$W$5,0)),FALSE),"") -> 0 | OD21: =IF(OD$3<>"",VLOOKUP($A21,'Agency percentages'!$A$6:$X$71,(3+MATCH(OD$4,'Agency percentages'!$D$5:$W$5,0)),FALSE),"") ->  | OE21: =IF(OE$3<>"",VLOOKUP($A21,'Agency percentages'!$A$6:$X$71,(3+MATCH(OE$4,'Agency percentages'!$D$5:$W$5,0)),FALSE),"") ->  | OF21: =IF(OF$3<>"",VLOOKUP($A21,'Agency percentages'!$A$6:$X$71,(3+MATCH(OF$4,'Agency percentages'!$D$5:$W$5,0)),FALSE),"") ->  | OG21: =IF(OG$3<>"",VLOOKUP($A21,'Agency percentages'!$A$6:$X$71,(3+MATCH(OG$4,'Agency percentages'!$D$5:$W$5,0)),FALSE),"") ->  | OH21: =IF(OH$3<>"",VLOOKUP($A21,'Agency percentages'!$A$6:$X$71,(3+MATCH(OH$4,'Agency percentages'!$D$5:$W$5,0)),FALSE),"") ->  | OI21: =IF(OI$3<>"",VLOOKUP($A21,'Agency percentages'!$A$6:$X$71,(3+MATCH(OI$4,'Agency percentages'!$D$5:$W$5,0)),FALSE),"") ->  | OJ21: =IF(OJ$3<>"",VLOOKUP($A21,'Agency percentages'!$A$6:$X$71,(3+MATCH(OJ$4,'Agency percentages'!$D$5:$W$5,0)),FALSE),"") ->  | OL21: =IF(AND(OL$3<>"",NQ21<>0),HLOOKUP(OL$4,'Agency cashability'!$B$3:$U$5,2,0),0) -> 0 | OM21: =IF(AND(OM$3<>"",NR21<>0),HLOOKUP(OM$4,'Agency cashability'!$B$3:$U$5,2,0),0) -> 0.2 | ON21: =IF(AND(ON$3<>"",NS21<>0),HLOOKUP(ON$4,'Agency cashability'!$B$3:$U$5,2,0),0) -> 0.3 | OO21: =IF(AND(OO$3<>"",NT21<>0),HLOOKUP(OO$4,'Agency cashability'!$B$3:$U$5,2,0),0) -> 0.2 | OP21: =IF(AND(OP$3<>"",NU21<>0),HLOOKUP(OP$4,'Agency cashability'!$B$3:$U$5,2,0),0) -> 0.2 | OQ21: =IF(AND(OQ$3<>"",NV21<>0),HLOOKUP(OQ$4,'Agency cashability'!$B$3:$U$5,2,0),0) -> 0.2 | OR21: =IF(AND(OR$3<>"",NW21<>0),HLOOKUP(OR$4,'Agency cashability'!$B$3:$U$5,2,0),0) -> 0.2 | OS21: =IF(AND(OS$3<>"",NX21<>0),HLOOKUP(OS$4,'Agency cashability'!$B$3:$U$5,2,0),0) -> 0 | OT21: =IF(AND(OT$3<>"",NY21<>0),HLOOKUP(OT$4,'Agency cashability'!$B$3:$U$5,2,0),0) -> 0 | OU21: =IF(AND(OU$3<>"",NZ21<>0),HLOOKUP(OU$4,'Agency cashability'!$B$3:$U$5,2,0),0) -> 0 | OV21: =IF(AND(OV$3<>"",OA21<>0),HLOOKUP(OV$4,'Agency cashability'!$B$3:$U$5,2,0),0) -> 0 | OW21: =IF(AND(OW$3<>"",OB21<>0),HLOOKUP(OW$4,'Agency cashability'!$B$3:$U$5,2,0),0) -> 0 | OX21: =IF(AND(OX$3<>"",OC21<>0),HLOOKUP(OX$4,'Agency cashability'!$B$3:$U$5,2,0),0) -> 0 | OY21: =IF(AND(OY$3<>"",OD21<>0),HLOOKUP(OY$4,'Agency cashability'!$B$3:$U$5,2,0),0) -> 0 | OZ21: =IF(AND(OZ$3<>"",OE21<>0),HLOOKUP(OZ$4,'Agency cashability'!$B$3:$U$5,2,0),0) -> 0 | PA21: =IF(AND(PA$3<>"",OF21<>0),HLOOKUP(PA$4,'Agency cashability'!$B$3:$U$5,2,0),0) -> 0 | PB21: =IF(AND(PB$3<>"",OG21<>0),HLOOKUP(PB$4,'Agency cashability'!$B$3:$U$5,2,0),0) -> 0 | PC21: =IF(AND(PC$3<>"",OH21<>0),HLOOKUP(PC$4,'Agency cashability'!$B$3:$U$5,2,0),0) -> 0 | PD21: =IF(AND(PD$3<>"",OI21<>0),HLOOKUP(PD$4,'Agency cashability'!$B$3:$U$5,2,0),0) -> 0 | PE21: =IF(AND(PE$3<>"",OJ21<>0),HLOOKUP(PE$4,'Agency cashability'!$B$3:$U$5,2,0),0) -> 0 | PG21: =IF(AND(PG$3<>"",NQ21<>0),HLOOKUP(PG$4,'Agency cashability'!$B$3:$U$5,3,0),0) -> 0 | PH21: =IF(AND(PH$3<>"",NR21<>0),HLOOKUP(PH$4,'Agency cashability'!$B$3:$U$5,3,0),0) -> 0.5 | PI21: =IF(AND(PI$3<>"",NS21<>0),HLOOKUP(PI$4,'Agency cashability'!$B$3:$U$5,3,0),0) -> 0.6 | PJ21: =IF(AND(PJ$3<>"",NT21<>0),HLOOKUP(PJ$4,'Agency cashability'!$B$3:$U$5,3,0),0) -> 0.5 | PK21: =IF(AND(PK$3<>"",NU21<>0),HLOOKUP(PK$4,'Agency cashability'!$B$3:$U$5,3,0),0) -> 0.5 | PL21: =IF(AND(PL$3<>"",NV21<>0),HLOOKUP(PL$4,'Agency cashability'!$B$3:$U$5,3,0),0) -> 0.5 | PM21: =IF(AND(PM$3<>"",NW21<>0),HLOOKUP(PM$4,'Agency cashability'!$B$3:$U$5,3,0),0) -> 0.5 | PN21: =IF(AND(PN$3<>"",NX21<>0),HLOOKUP(PN$4,'Agency cashability'!$B$3:$U$5,3,0),0) -> 0 | PO21: =IF(AND(PO$3<>"",NY21<>0),HLOOKUP(PO$4,'Agency cashability'!$B$3:$U$5,3,0),0) -> 0 | PP21: =IF(AND(PP$3<>"",NZ21<>0),HLOOKUP(PP$4,'Agency cashability'!$B$3:$U$5,3,0),0) -> 0 | PQ21: =IF(AND(PQ$3<>"",OA21<>0),HLOOKUP(PQ$4,'Agency cashability'!$B$3:$U$5,3,0),0) -> 0 | PR21: =IF(AND(PR$3<>"",OB21<>0),HLOOKUP(PR$4,'Agency cashability'!$B$3:$U$5,3,0),0) -> 0 | PS21: =IF(AND(PS$3<>"",OC21<>0),HLOOKUP(PS$4,'Agency cashability'!$B$3:$U$5,3,0),0) -> 0 | PT21: =IF(AND(PT$3<>"",OD21<>0),HLOOKUP(PT$4,'Agency cashability'!$B$3:$U$5,3,0),0) -> 0 | PU21: =IF(AND(PU$3<>"",OE21<>0),HLOOKUP(PU$4,'Agency cashability'!$B$3:$U$5,3,0),0) -> 0 | PV21: =IF(AND(PV$3<>"",OF21<>0),HLOOKUP(PV$4,'Agency cashability'!$B$3:$U$5,3,0),0) -> 0 | PW21: =IF(AND(PW$3<>"",OG21<>0),HLOOKUP(PW$4,'Agency cashability'!$B$3:$U$5,3,0),0) -> 0 | PX21: =IF(AND(PX$3<>"",OH21<>0),HLOOKUP(PX$4,'Agency cashability'!$B$3:$U$5,3,0),0) -> 0 | PY21: =IF(AND(PY$3<>"",OI21<>0),HLOOKUP(PY$4,'Agency cashability'!$B$3:$U$5,3,0),0) -> 0 | PZ21: =IF(AND(PZ$3<>"",OJ21<>0),HLOOKUP(PZ$4,'Agency cashability'!$B$3:$U$5,3,0),0) -> 0 | QB21: 0 | QC21: 0 | QD21: 0 | QE21: 0 | QF21: 0 | QG21: 0 | QH21: 0 | QI21: 0 | QJ21: 0 | QK21: 0 | QL21: 0 | QM21: 0 | QN21: 0 | QW21: =IF((QW$3<>""),OL21*QB21,"") -> 0 | QX21: 0 | QY21: 0 | QZ21: 0 | RA21: 0 | RB21: 0 | RC21: 0 | RD21: 0 | RE21: 0 | RF21: 0 | RG21: 0 | RH21: 0 | RI21: 0 | RT21: =IF((RT$3<>""),PG21*QB21,"") -> 0 | RU21: 0 | RV21: 0 | RW21: 0 | RX21: 0 | RY21: 0 | RZ21: 0 | SA21: 0 | SB21: 0 | SC21: 0 | SD21: 0 | SE21: 0 | SF21: 0
A22: B9g | B22: Reduced incidents of crime - domestic burglary | C22: No | D22: Reduced police, other criminal justice costs, health costs per actual crime (N.B. Use multipliers to convert from recorded crime or convictions) | E22: Police, CJS, NHS | R22: 2180 | S22: 2180 | T22: 2550 | U22: 1190 | V22: 5920 | W22: 2016 | X22: =VLOOKUP(W22,'GDP Deflators'!$B$6:$D$106,3,FALSE) -> 88.19270512 | Y22: The Economic and Social cost of Crime, Second Edition (Home Office 2018) | AA22: Standard Rate | AB22: 0 | AC22: 0 | AD22: 0 | AE22: 0 | DP22: 0 | DQ22: 0 | DR22: 0 | DS22: 0 | DT22: 0 | DU22: 0 | DV22: 0 | DW22: 0 | DX22: 0 | DY22: 0 | GW22: 0 | GY22: 0 | GZ22: 0 | HA22: 0 | HB22: 0 | HC22: 0 | HD22: 0 | HE22: 0 | HF22: 0 | HG22: 0 | HH22: 0 | KF22: 0 | KH22: 0 | KI22: 0 | KJ22: 0 | KK22: 0 | KL22: 0 | KM22: 0 | KN22: 0 | KO22: 0 | KP22: 0 | KQ22: 0 | NO22: 0 | NQ22: =IF(NQ$3<>"",VLOOKUP($A22,'Agency percentages'!$A$6:$X$71,(3+MATCH(NQ$4,'Agency percentages'!$D$5:$W$5,0)),FALSE),"") -> 0 | NR22: =IF(NR$3<>"",VLOOKUP($A22,'Agency percentages'!$A$6:$X$71,(3+MATCH(NR$4,'Agency percentages'!$D$5:$W$5,0)),FALSE),"") -> 0.1743119266 | NS22: =IF(NS$3<>"",VLOOKUP($A22,'Agency percentages'!$A$6:$X$71,(3+MATCH(NS$4,'Agency percentages'!$D$5:$W$5,0)),FALSE),"") -> 0.2431192661 | NT22: =IF(NT$3<>"",VLOOKUP($A22,'Agency percentages'!$A$6:$X$71,(3+MATCH(NT$4,'Agency percentages'!$D$5:$W$5,0)),FALSE),"") -> 0.02752293578 | NU22: =IF(NU$3<>"",VLOOKUP($A22,'Agency percentages'!$A$6:$X$71,(3+MATCH(NU$4,'Agency percentages'!$D$5:$W$5,0)),FALSE),"") -> 0.3899082569 | NV22: =IF(NV$3<>"",VLOOKUP($A22,'Agency percentages'!$A$6:$X$71,(3+MATCH(NV$4,'Agency percentages'!$D$5:$W$5,0)),FALSE),"") -> 0.1330275229 | NW22: =IF(NW$3<>"",VLOOKUP($A22,'Agency percentages'!$A$6:$X$71,(3+MATCH(NW$4,'Agency percentages'!$D$5:$W$5,0)),FALSE),"") -> 0.03211009174 | NX22: =IF(NX$3<>"",VLOOKUP($A22,'Agency percentages'!$A$6:$X$71,(3+MATCH(NX$4,'Agency percentages'!$D$5:$W$5,0)),FALSE),"") -> 0 | NY22: =IF(NY$3<>"",VLOOKUP($A22,'Agency percentages'!$A$6:$X$71,(3+MATCH(NY$4,'Agency percentages'!$D$5:$W$5,0)),FALSE),"") -> 0 | NZ22: =IF(NZ$3<>"",VLOOKUP($A22,'Agency percentages'!$A$6:$X$71,(3+MATCH(NZ$4,'Agency percentages'!$D$5:$W$5,0)),FALSE),"") -> 0 | OA22: =IF(OA$3<>"",VLOOKUP($A22,'Agency percentages'!$A$6:$X$71,(3+MATCH(OA$4,'Agency percentages'!$D$5:$W$5,0)),FALSE),"") -> 0 | OB22: =IF(OB$3<>"",VLOOKUP($A22,'Agency percentages'!$A$6:$X$71,(3+MATCH(OB$4,'Agency percentages'!$D$5:$W$5,0)),FALSE),"") -> 0 | OC22: =IF(OC$3<>"",VLOOKUP($A22,'Agency percentages'!$A$6:$X$71,(3+MATCH(OC$4,'Agency percentages'!$D$5:$W$5,0)),FALSE),"") -> 0 | OD22: =IF(OD$3<>"",VLOOKUP($A22,'Agency percentages'!$A$6:$X$71,(3+MATCH(OD$4,'Agency percentages'!$D$5:$W$5,0)),FALSE),"") ->  | OE22: =IF(OE$3<>"",VLOOKUP($A22,'Agency percentages'!$A$6:$X$71,(3+MATCH(OE$4,'Agency percentages'!$D$5:$W$5,0)),FALSE),"") ->  | OF22: =IF(OF$3<>"",VLOOKUP($A22,'Agency percentages'!$A$6:$X$71,(3+MATCH(OF$4,'Agency percentages'!$D$5:$W$5,0)),FALSE),"") ->  | OG22: =IF(OG$3<>"",VLOOKUP($A22,'Agency percentages'!$A$6:$X$71,(3+MATCH(OG$4,'Agency percentages'!$D$5:$W$5,0)),FALSE),"") ->  | OH22: =IF(OH$3<>"",VLOOKUP($A22,'Agency percentages'!$A$6:$X$71,(3+MATCH(OH$4,'Agency percentages'!$D$5:$W$5,0)),FALSE),"") ->  | OI22: =IF(OI$3<>"",VLOOKUP($A22,'Agency percentages'!$A$6:$X$71,(3+MATCH(OI$4,'Agency percentages'!$D$5:$W$5,0)),FALSE),"") ->  | OJ22: =IF(OJ$3<>"",VLOOKUP($A22,'Agency percentages'!$A$6:$X$71,(3+MATCH(OJ$4,'Agency percentages'!$D$5:$W$5,0)),FALSE),"") ->  | OL22: =IF(AND(OL$3<>"",NQ22<>0),HLOOKUP(OL$4,'Agency cashability'!$B$3:$U$5,2,0),0) -> 0 | OM22: =IF(AND(OM$3<>"",NR22<>0),HLOOKUP(OM$4,'Agency cashability'!$B$3:$U$5,2,0),0) -> 0.2 | ON22: =IF(AND(ON$3<>"",NS22<>0),HLOOKUP(ON$4,'Agency cashability'!$B$3:$U$5,2,0),0) -> 0.3 | OO22: =IF(AND(OO$3<>"",NT22<>0),HLOOKUP(OO$4,'Agency cashability'!$B$3:$U$5,2,0),0) -> 0.2 | OP22: =IF(AND(OP$3<>"",NU22<>0),HLOOKUP(OP$4,'Agency cashability'!$B$3:$U$5,2,0),0) -> 0.2 | OQ22: =IF(AND(OQ$3<>"",NV22<>0),HLOOKUP(OQ$4,'Agency cashability'!$B$3:$U$5,2,0),0) -> 0.2 | OR22: =IF(AND(OR$3<>"",NW22<>0),HLOOKUP(OR$4,'Agency cashability'!$B$3:$U$5,2,0),0) -> 0.2 | OS22: =IF(AND(OS$3<>"",NX22<>0),HLOOKUP(OS$4,'Agency cashability'!$B$3:$U$5,2,0),0) -> 0 | OT22: =IF(AND(OT$3<>"",NY22<>0),HLOOKUP(OT$4,'Agency cashability'!$B$3:$U$5,2,0),0) -> 0 | OU22: =IF(AND(OU$3<>"",NZ22<>0),HLOOKUP(OU$4,'Agency cashability'!$B$3:$U$5,2,0),0) -> 0 | OV22: =IF(AND(OV$3<>"",OA22<>0),HLOOKUP(OV$4,'Agency cashability'!$B$3:$U$5,2,0),0) -> 0 | OW22: =IF(AND(OW$3<>"",OB22<>0),HLOOKUP(OW$4,'Agency cashability'!$B$3:$U$5,2,0),0) -> 0 | OX22: =IF(AND(OX$3<>"",OC22<>0),HLOOKUP(OX$4,'Agency cashability'!$B$3:$U$5,2,0),0) -> 0 | OY22: =IF(AND(OY$3<>"",OD22<>0),HLOOKUP(OY$4,'Agency cashability'!$B$3:$U$5,2,0),0) -> 0 | OZ22: =IF(AND(OZ$3<>"",OE22<>0),HLOOKUP(OZ$4,'Agency cashability'!$B$3:$U$5,2,0),0) -> 0 | PA22: =IF(AND(PA$3<>"",OF22<>0),HLOOKUP(PA$4,'Agency cashability'!$B$3:$U$5,2,0),0) -> 0 | PB22: =IF(AND(PB$3<>"",OG22<>0),HLOOKUP(PB$4,'Agency cashability'!$B$3:$U$5,2,0),0) -> 0 | PC22: =IF(AND(PC$3<>"",OH22<>0),HLOOKUP(PC$4,'Agency cashability'!$B$3:$U$5,2,0),0) -> 0 | PD22: =IF(AND(PD$3<>"",OI22<>0),HLOOKUP(PD$4,'Agency cashability'!$B$3:$U$5,2,0),0) -> 0 | PE22: =IF(AND(PE$3<>"",OJ22<>0),HLOOKUP(PE$4,'Agency cashability'!$B$3:$U$5,2,0),0) -> 0 | PG22: =IF(AND(PG$3<>"",NQ22<>0),HLOOKUP(PG$4,'Agency cashability'!$B$3:$U$5,3,0),0) -> 0 | PH22: =IF(AND(PH$3<>"",NR22<>0),HLOOKUP(PH$4,'Agency cashability'!$B$3:$U$5,3,0),0) -> 0.5 | PI22: =IF(AND(PI$3<>"",NS22<>0),HLOOKUP(PI$4,'Agency cashability'!$B$3:$U$5,3,0),0) -> 0.6 | PJ22: =IF(AND(PJ$3<>"",NT22<>0),HLOOKUP(PJ$4,'Agency cashability'!$B$3:$U$5,3,0),0) -> 0.5 | PK22: =IF(AND(PK$3<>"",NU22<>0),HLOOKUP(PK$4,'Agency cashability'!$B$3:$U$5,3,0),0) -> 0.5 | PL22: =IF(AND(PL$3<>"",NV22<>0),HLOOKUP(PL$4,'Agency cashability'!$B$3:$U$5,3,0),0) -> 0.5 | PM22: =IF(AND(PM$3<>"",NW22<>0),HLOOKUP(PM$4,'Agency cashability'!$B$3:$U$5,3,0),0) -> 0.5 | PN22: =IF(AND(PN$3<>"",NX22<>0),HLOOKUP(PN$4,'Agency cashability'!$B$3:$U$5,3,0),0) -> 0 | PO22: =IF(AND(PO$3<>"",NY22<>0),HLOOKUP(PO$4,'Agency cashability'!$B$3:$U$5,3,0),0) -> 0 | PP22: =IF(AND(PP$3<>"",NZ22<>0),HLOOKUP(PP$4,'Agency cashability'!$B$3:$U$5,3,0),0) -> 0 | PQ22: =IF(AND(PQ$3<>"",OA22<>0),HLOOKUP(PQ$4,'Agency cashability'!$B$3:$U$5,3,0),0) -> 0 | PR22: =IF(AND(PR$3<>"",OB22<>0),HLOOKUP(PR$4,'Agency cashability'!$B$3:$U$5,3,0),0) -> 0 | PS22: =IF(AND(PS$3<>"",OC22<>0),HLOOKUP(PS$4,'Agency cashability'!$B$3:$U$5,3,0),0) -> 0 | PT22: =IF(AND(PT$3<>"",OD22<>0),HLOOKUP(PT$4,'Agency cashability'!$B$3:$U$5,3,0),0) -> 0 | PU22: =IF(AND(PU$3<>"",OE22<>0),HLOOKUP(PU$4,'Agency cashability'!$B$3:$U$5,3,0),0) -> 0 | PV22: =IF(AND(PV$3<>"",OF22<>0),HLOOKUP(PV$4,'Agency cashability'!$B$3:$U$5,3,0),0) -> 0 | PW22: =IF(AND(PW$3<>"",OG22<>0),HLOOKUP(PW$4,'Agency cashability'!$B$3:$U$5,3,0),0) -> 0 | PX22: =IF(AND(PX$3<>"",OH22<>0),HLOOKUP(PX$4,'Agency cashability'!$B$3:$U$5,3,0),0) -> 0 | PY22: =IF(AND(PY$3<>"",OI22<>0),HLOOKUP(PY$4,'Agency cashability'!$B$3:$U$5,3,0),0) -> 0 | PZ22: =IF(AND(PZ$3<>"",OJ22<>0),HLOOKUP(PZ$4,'Agency cashability'!$B$3:$U$5,3,0),0) -> 0 | QB22: 0 | QC22: 0 | QD22: 0 | QE22: 0 | QF22: 0 | QG22: 0 | QH22: 0 | QI22: 0 | QJ22: 0 | QK22: 0 | QL22: 0 | QM22: 0 | QN22: 0 | QW22: =IF((QW$3<>""),OL22*QB22,"") -> 0 | QX22: 0 | QY22: 0 | QZ22: 0 | RA22: 0 | RB22: 0 | RC22: 0 | RD22: 0 | RE22: 0 | RF22: 0 | RG22: 0 | RH22: 0 | RI22: 0 | RT22: =IF((RT$3<>""),PG22*QB22,"") -> 0 | RU22: 0 | RV22: 0 | RW22: 0 | RX22: 0 | RY22: 0 | RZ22: 0 | SA22: 0 | SB22: 0 | SC22: 0 | SD22: 0 | SE22: 0 | SF22: 0
A23: B9h | B23: Reduced incidents of crime - theft from person | C23: No | D23: Reduced police, other criminal justice costs, health costs per actual crime (N.B. Use multipliers to convert from recorded crime or convictions) | E23: Police, CJS, NHS | R23: 640 | S23: 640 | T23: 330 | U23: 410 | V23: 1380 | W23: 2016 | X23: =VLOOKUP(W23,'GDP Deflators'!$B$6:$D$106,3,FALSE) -> 88.19270512 | Y23: The Economic and Social cost of Crime, Second Edition (Home Office 2018) | AA23: Standard Rate | AB23: 0 | AC23: 0 | AD23: 0 | AE23: 0 | DP23: 0 | DQ23: 0 | DR23: 0 | DS23: 0 | DT23: 0 | DU23: 0 | DV23: 0 | DW23: 0 | DX23: 0 | DY23: 0 | GW23: 0 | GY23: 0 | GZ23: 0 | HA23: 0 | HB23: 0 | HC23: 0 | HD23: 0 | HE23: 0 | HF23: 0 | HG23: 0 | HH23: 0 | KF23: 0 | KH23: 0 | KI23: 0 | KJ23: 0 | KK23: 0 | KL23: 0 | KM23: 0 | KN23: 0 | KO23: 0 | KP23: 0 | KQ23: 0 | NO23: 0 | NQ23: =IF(NQ$3<>"",VLOOKUP($A23,'Agency percentages'!$A$6:$X$71,(3+MATCH(NQ$4,'Agency percentages'!$D$5:$W$5,0)),FALSE),"") -> 0 | NR23: =IF(NR$3<>"",VLOOKUP($A23,'Agency percentages'!$A$6:$X$71,(3+MATCH(NR$4,'Agency percentages'!$D$5:$W$5,0)),FALSE),"") -> 0.328125 | NS23: =IF(NS$3<>"",VLOOKUP($A23,'Agency percentages'!$A$6:$X$71,(3+MATCH(NS$4,'Agency percentages'!$D$5:$W$5,0)),FALSE),"") -> 0.0625 | NT23: =IF(NT$3<>"",VLOOKUP($A23,'Agency percentages'!$A$6:$X$71,(3+MATCH(NT$4,'Agency percentages'!$D$5:$W$5,0)),FALSE),"") -> 0.0625 | NU23: =IF(NU$3<>"",VLOOKUP($A23,'Agency percentages'!$A$6:$X$71,(3+MATCH(NU$4,'Agency percentages'!$D$5:$W$5,0)),FALSE),"") -> 0.453125 | NV23: =IF(NV$3<>"",VLOOKUP($A23,'Agency percentages'!$A$6:$X$71,(3+MATCH(NV$4,'Agency percentages'!$D$5:$W$5,0)),FALSE),"") -> 0.046875 | NW23: =IF(NW$3<>"",VLOOKUP($A23,'Agency percentages'!$A$6:$X$71,(3+MATCH(NW$4,'Agency percentages'!$D$5:$W$5,0)),FALSE),"") -> 0.046875 | NX23: =IF(NX$3<>"",VLOOKUP($A23,'Agency percentages'!$A$6:$X$71,(3+MATCH(NX$4,'Agency percentages'!$D$5:$W$5,0)),FALSE),"") -> 0 | NY23: =IF(NY$3<>"",VLOOKUP($A23,'Agency percentages'!$A$6:$X$71,(3+MATCH(NY$4,'Agency percentages'!$D$5:$W$5,0)),FALSE),"") -> 0 | NZ23: =IF(NZ$3<>"",VLOOKUP($A23,'Agency percentages'!$A$6:$X$71,(3+MATCH(NZ$4,'Agency percentages'!$D$5:$W$5,0)),FALSE),"") -> 0 | OA23: =IF(OA$3<>"",VLOOKUP($A23,'Agency percentages'!$A$6:$X$71,(3+MATCH(OA$4,'Agency percentages'!$D$5:$W$5,0)),FALSE),"") -> 0 | OB23: =IF(OB$3<>"",VLOOKUP($A23,'Agency percentages'!$A$6:$X$71,(3+MATCH(OB$4,'Agency percentages'!$D$5:$W$5,0)),FALSE),"") -> 0 | OC23: =IF(OC$3<>"",VLOOKUP($A23,'Agency percentages'!$A$6:$X$71,(3+MATCH(OC$4,'Agency percentages'!$D$5:$W$5,0)),FALSE),"") -> 0 | OD23: =IF(OD$3<>"",VLOOKUP($A23,'Agency percentages'!$A$6:$X$71,(3+MATCH(OD$4,'Agency percentages'!$D$5:$W$5,0)),FALSE),"") ->  | OE23: =IF(OE$3<>"",VLOOKUP($A23,'Agency percentages'!$A$6:$X$71,(3+MATCH(OE$4,'Agency percentages'!$D$5:$W$5,0)),FALSE),"") ->  | OF23: =IF(OF$3<>"",VLOOKUP($A23,'Agency percentages'!$A$6:$X$71,(3+MATCH(OF$4,'Agency percentages'!$D$5:$W$5,0)),FALSE),"") ->  | OG23: =IF(OG$3<>"",VLOOKUP($A23,'Agency percentages'!$A$6:$X$71,(3+MATCH(OG$4,'Agency percentages'!$D$5:$W$5,0)),FALSE),"") ->  | OH23: =IF(OH$3<>"",VLOOKUP($A23,'Agency percentages'!$A$6:$X$71,(3+MATCH(OH$4,'Agency percentages'!$D$5:$W$5,0)),FALSE),"") ->  | OI23: =IF(OI$3<>"",VLOOKUP($A23,'Agency percentages'!$A$6:$X$71,(3+MATCH(OI$4,'Agency percentages'!$D$5:$W$5,0)),FALSE),"") ->  | OJ23: =IF(OJ$3<>"",VLOOKUP($A23,'Agency percentages'!$A$6:$X$71,(3+MATCH(OJ$4,'Agency percentages'!$D$5:$W$5,0)),FALSE),"") ->  | OL23: =IF(AND(OL$3<>"",NQ23<>0),HLOOKUP(OL$4,'Agency cashability'!$B$3:$U$5,2,0),0) -> 0 | OM23: =IF(AND(OM$3<>"",NR23<>0),HLOOKUP(OM$4,'Agency cashability'!$B$3:$U$5,2,0),0) -> 0.2 | ON23: =IF(AND(ON$3<>"",NS23<>0),HLOOKUP(ON$4,'Agency cashability'!$B$3:$U$5,2,0),0) -> 0.3 | OO23: =IF(AND(OO$3<>"",NT23<>0),HLOOKUP(OO$4,'Agency cashability'!$B$3:$U$5,2,0),0) -> 0.2 | OP23: =IF(AND(OP$3<>"",NU23<>0),HLOOKUP(OP$4,'Agency cashability'!$B$3:$U$5,2,0),0) -> 0.2 | OQ23: =IF(AND(OQ$3<>"",NV23<>0),HLOOKUP(OQ$4,'Agency cashability'!$B$3:$U$5,2,0),0) -> 0.2 | OR23: =IF(AND(OR$3<>"",NW23<>0),HLOOKUP(OR$4,'Agency cashability'!$B$3:$U$5,2,0),0) -> 0.2 | OS23: =IF(AND(OS$3<>"",NX23<>0),HLOOKUP(OS$4,'Agency cashability'!$B$3:$U$5,2,0),0) -> 0 | OT23: =IF(AND(OT$3<>"",NY23<>0),HLOOKUP(OT$4,'Agency cashability'!$B$3:$U$5,2,0),0) -> 0 | OU23: =IF(AND(OU$3<>"",NZ23<>0),HLOOKUP(OU$4,'Agency cashability'!$B$3:$U$5,2,0),0) -> 0 | OV23: =IF(AND(OV$3<>"",OA23<>0),HLOOKUP(OV$4,'Agency cashability'!$B$3:$U$5,2,0),0) -> 0 | OW23: =IF(AND(OW$3<>"",OB23<>0),HLOOKUP(OW$4,'Agency cashability'!$B$3:$U$5,2,0),0) -> 0 | OX23: =IF(AND(OX$3<>"",OC23<>0),HLOOKUP(OX$4,'Agency cashability'!$B$3:$U$5,2,0),0) -> 0 | OY23: =IF(AND(OY$3<>"",OD23<>0),HLOOKUP(OY$4,'Agency cashability'!$B$3:$U$5,2,0),0) -> 0 | OZ23: =IF(AND(OZ$3<>"",OE23<>0),HLOOKUP(OZ$4,'Agency cashability'!$B$3:$U$5,2,0),0) -> 0 | PA23: =IF(AND(PA$3<>"",OF23<>0),HLOOKUP(PA$4,'Agency cashability'!$B$3:$U$5,2,0),0) -> 0 | PB23: =IF(AND(PB$3<>"",OG23<>0),HLOOKUP(PB$4,'Agency cashability'!$B$3:$U$5,2,0),0) -> 0 | PC23: =IF(AND(PC$3<>"",OH23<>0),HLOOKUP(PC$4,'Agency cashability'!$B$3:$U$5,2,0),0) -> 0 | PD23: =IF(AND(PD$3<>"",OI23<>0),HLOOKUP(PD$4,'Agency cashability'!$B$3:$U$5,2,0),0) -> 0 | PE23: =IF(AND(PE$3<>"",OJ23<>0),HLOOKUP(PE$4,'Agency cashability'!$B$3:$U$5,2,0),0) -> 0 | PG23: =IF(AND(PG$3<>"",NQ23<>0),HLOOKUP(PG$4,'Agency cashability'!$B$3:$U$5,3,0),0) -> 0 | PH23: =IF(AND(PH$3<>"",NR23<>0),HLOOKUP(PH$4,'Agency cashability'!$B$3:$U$5,3,0),0) -> 0.5 | PI23: =IF(AND(PI$3<>"",NS23<>0),HLOOKUP(PI$4,'Agency cashability'!$B$3:$U$5,3,0),0) -> 0.6 | PJ23: =IF(AND(PJ$3<>"",NT23<>0),HLOOKUP(PJ$4,'Agency cashability'!$B$3:$U$5,3,0),0) -> 0.5 | PK23: =IF(AND(PK$3<>"",NU23<>0),HLOOKUP(PK$4,'Agency cashability'!$B$3:$U$5,3,0),0) -> 0.5 | PL23: =IF(AND(PL$3<>"",NV23<>0),HLOOKUP(PL$4,'Agency cashability'!$B$3:$U$5,3,0),0) -> 0.5 | PM23: =IF(AND(PM$3<>"",NW23<>0),HLOOKUP(PM$4,'Agency cashability'!$B$3:$U$5,3,0),0) -> 0.5 | PN23: =IF(AND(PN$3<>"",NX23<>0),HLOOKUP(PN$4,'Agency cashability'!$B$3:$U$5,3,0),0) -> 0 | PO23: =IF(AND(PO$3<>"",NY23<>0),HLOOKUP(PO$4,'Agency cashability'!$B$3:$U$5,3,0),0) -> 0 | PP23: =IF(AND(PP$3<>"",NZ23<>0),HLOOKUP(PP$4,'Agency cashability'!$B$3:$U$5,3,0),0) -> 0 | PQ23: =IF(AND(PQ$3<>"",OA23<>0),HLOOKUP(PQ$4,'Agency cashability'!$B$3:$U$5,3,0),0) -> 0 | PR23: =IF(AND(PR$3<>"",OB23<>0),HLOOKUP(PR$4,'Agency cashability'!$B$3:$U$5,3,0),0) -> 0 | PS23: =IF(AND(PS$3<>"",OC23<>0),HLOOKUP(PS$4,'Agency cashability'!$B$3:$U$5,3,0),0) -> 0 | PT23: =IF(AND(PT$3<>"",OD23<>0),HLOOKUP(PT$4,'Agency cashability'!$B$3:$U$5,3,0),0) -> 0 | PU23: =IF(AND(PU$3<>"",OE23<>0),HLOOKUP(PU$4,'Agency cashability'!$B$3:$U$5,3,0),0) -> 0 | PV23: =IF(AND(PV$3<>"",OF23<>0),HLOOKUP(PV$4,'Agency cashability'!$B$3:$U$5,3,0),0) -> 0 | PW23: =IF(AND(PW$3<>"",OG23<>0),HLOOKUP(PW$4,'Agency cashability'!$B$3:$U$5,3,0),0) -> 0 | PX23: =IF(AND(PX$3<>"",OH23<>0),HLOOKUP(PX$4,'Agency cashability'!$B$3:$U$5,3,0),0) -> 0 | PY23: =IF(AND(PY$3<>"",OI23<>0),HLOOKUP(PY$4,'Agency cashability'!$B$3:$U$5,3,0),0) -> 0 | PZ23: =IF(AND(PZ$3<>"",OJ23<>0),HLOOKUP(PZ$4,'Agency cashability'!$B$3:$U$5,3,0),0) -> 0 | QB23: 0 | QC23: 0 | QD23: 0 | QE23: 0 | QF23: 0 | QG23: 0 | QH23: 0 | QI23: 0 | QJ23: 0 | QK23: 0 | QL23: 0 | QM23: 0 | QN23: 0 | QW23: =IF((QW$3<>""),OL23*QB23,"") -> 0 | QX23: 0 | QY23: 0 | QZ23: 0 | RA23: 0 | RB23: 0 | RC23: 0 | RD23: 0 | RE23: 0 | RF23: 0 | RG23: 0 | RH23: 0 | RI23: 0 | RT23: =IF((RT$3<>""),PG23*QB23,"") -> 0 | RU23: 0 | RV23: 0 | RW23: 0 | RX23: 0 | RY23: 0 | RZ23: 0 | SA23: 0 | SB23: 0 | SC23: 0 | SD23: 0 | SE23: 0 | SF23: 0
A24: B9i | B24: Reduced incidents of crime - theft of vehicle | C24: No | D24: Reduced police, other criminal justice costs, health costs per actual crime (N.B. Use multipliers to convert from recorded crime or convictions) | E24: Police, CJS, NHS | R24: 4000 | S24: 4000 | T24: 6020 | U24: 270 | V24: 10290 | W24: 2016 | X24: =VLOOKUP(W24,'GDP Deflators'!$B$6:$D$106,3,FALSE) -> 88.19270512 | Y24: The Economic and Social cost of Crime, Second Edition (Home Office 2018) | AA24: Standard Rate | AB24: 0 | AC24: 0 | AD24: 0 | AE24: 0 | DP24: 0 | DQ24: 0 | DR24: 0 | DS24: 0 | DT24: 0 | DU24: 0 | DV24: 0 | DW24: 0 | DX24: 0 | DY24: 0 | GW24: 0 | GY24: 0 | GZ24: 0 | HA24: 0 | HB24: 0 | HC24: 0 | HD24: 0 | HE24: 0 | HF24: 0 | HG24: 0 | HH24: 0 | KF24: 0 | KH24: 0 | KI24: 0 | KJ24: 0 | KK24: 0 | KL24: 0 | KM24: 0 | KN24: 0 | KO24: 0 | KP24: 0 | KQ24: 0 | NO24: 0 | NQ24: =IF(NQ$3<>"",VLOOKUP($A24,'Agency percentages'!$A$6:$X$71,(3+MATCH(NQ$4,'Agency percentages'!$D$5:$W$5,0)),FALSE),"") -> 0 | NR24: =IF(NR$3<>"",VLOOKUP($A24,'Agency percentages'!$A$6:$X$71,(3+MATCH(NR$4,'Agency percentages'!$D$5:$W$5,0)),FALSE),"") -> 0.02512562814 | NS24: =IF(NS$3<>"",VLOOKUP($A24,'Agency percentages'!$A$6:$X$71,(3+MATCH(NS$4,'Agency percentages'!$D$5:$W$5,0)),FALSE),"") -> 0.5100502513 | NT24: =IF(NT$3<>"",VLOOKUP($A24,'Agency percentages'!$A$6:$X$71,(3+MATCH(NT$4,'Agency percentages'!$D$5:$W$5,0)),FALSE),"") -> 0.07537688442 | NU24: =IF(NU$3<>"",VLOOKUP($A24,'Agency percentages'!$A$6:$X$71,(3+MATCH(NU$4,'Agency percentages'!$D$5:$W$5,0)),FALSE),"") -> 0.324120603 | NV24: =IF(NV$3<>"",VLOOKUP($A24,'Agency percentages'!$A$6:$X$71,(3+MATCH(NV$4,'Agency percentages'!$D$5:$W$5,0)),FALSE),"") -> 0.03015075377 | NW24: =IF(NW$3<>"",VLOOKUP($A24,'Agency percentages'!$A$6:$X$71,(3+MATCH(NW$4,'Agency percentages'!$D$5:$W$5,0)),FALSE),"") -> 0.0351758794 | NX24: =IF(NX$3<>"",VLOOKUP($A24,'Agency percentages'!$A$6:$X$71,(3+MATCH(NX$4,'Agency percentages'!$D$5:$W$5,0)),FALSE),"") -> 0 | NY24: =IF(NY$3<>"",VLOOKUP($A24,'Agency percentages'!$A$6:$X$71,(3+MATCH(NY$4,'Agency percentages'!$D$5:$W$5,0)),FALSE),"") -> 0 | NZ24: =IF(NZ$3<>"",VLOOKUP($A24,'Agency percentages'!$A$6:$X$71,(3+MATCH(NZ$4,'Agency percentages'!$D$5:$W$5,0)),FALSE),"") -> 0 | OA24: =IF(OA$3<>"",VLOOKUP($A24,'Agency percentages'!$A$6:$X$71,(3+MATCH(OA$4,'Agency percentages'!$D$5:$W$5,0)),FALSE),"") -> 0 | OB24: =IF(OB$3<>"",VLOOKUP($A24,'Agency percentages'!$A$6:$X$71,(3+MATCH(OB$4,'Agency percentages'!$D$5:$W$5,0)),FALSE),"") -> 0 | OC24: =IF(OC$3<>"",VLOOKUP($A24,'Agency percentages'!$A$6:$X$71,(3+MATCH(OC$4,'Agency percentages'!$D$5:$W$5,0)),FALSE),"") -> 0 | OD24: =IF(OD$3<>"",VLOOKUP($A24,'Agency percentages'!$A$6:$X$71,(3+MATCH(OD$4,'Agency percentages'!$D$5:$W$5,0)),FALSE),"") ->  | OE24: =IF(OE$3<>"",VLOOKUP($A24,'Agency percentages'!$A$6:$X$71,(3+MATCH(OE$4,'Agency percentages'!$D$5:$W$5,0)),FALSE),"") ->  | OF24: =IF(OF$3<>"",VLOOKUP($A24,'Agency percentages'!$A$6:$X$71,(3+MATCH(OF$4,'Agency percentages'!$D$5:$W$5,0)),FALSE),"") ->  | OG24: =IF(OG$3<>"",VLOOKUP($A24,'Agency percentages'!$A$6:$X$71,(3+MATCH(OG$4,'Agency percentages'!$D$5:$W$5,0)),FALSE),"") ->  | OH24: =IF(OH$3<>"",VLOOKUP($A24,'Agency percentages'!$A$6:$X$71,(3+MATCH(OH$4,'Agency percentages'!$D$5:$W$5,0)),FALSE),"") ->  | OI24: =IF(OI$3<>"",VLOOKUP($A24,'Agency percentages'!$A$6:$X$71,(3+MATCH(OI$4,'Agency percentages'!$D$5:$W$5,0)),FALSE),"") ->  | OJ24: =IF(OJ$3<>"",VLOOKUP($A24,'Agency percentages'!$A$6:$X$71,(3+MATCH(OJ$4,'Agency percentages'!$D$5:$W$5,0)),FALSE),"") ->  | OL24: =IF(AND(OL$3<>"",NQ24<>0),HLOOKUP(OL$4,'Agency cashability'!$B$3:$U$5,2,0),0) -> 0 | OM24: =IF(AND(OM$3<>"",NR24<>0),HLOOKUP(OM$4,'Agency cashability'!$B$3:$U$5,2,0),0) -> 0.2 | ON24: =IF(AND(ON$3<>"",NS24<>0),HLOOKUP(ON$4,'Agency cashability'!$B$3:$U$5,2,0),0) -> 0.3 | OO24: =IF(AND(OO$3<>"",NT24<>0),HLOOKUP(OO$4,'Agency cashability'!$B$3:$U$5,2,0),0) -> 0.2 | OP24: =IF(AND(OP$3<>"",NU24<>0),HLOOKUP(OP$4,'Agency cashability'!$B$3:$U$5,2,0),0) -> 0.2 | OQ24: =IF(AND(OQ$3<>"",NV24<>0),HLOOKUP(OQ$4,'Agency cashability'!$B$3:$U$5,2,0),0) -> 0.2 | OR24: =IF(AND(OR$3<>"",NW24<>0),HLOOKUP(OR$4,'Agency cashability'!$B$3:$U$5,2,0),0) -> 0.2 | OS24: =IF(AND(OS$3<>"",NX24<>0),HLOOKUP(OS$4,'Agency cashability'!$B$3:$U$5,2,0),0) -> 0 | OT24: =IF(AND(OT$3<>"",NY24<>0),HLOOKUP(OT$4,'Agency cashability'!$B$3:$U$5,2,0),0) -> 0 | OU24: =IF(AND(OU$3<>"",NZ24<>0),HLOOKUP(OU$4,'Agency cashability'!$B$3:$U$5,2,0),0) -> 0 | OV24: =IF(AND(OV$3<>"",OA24<>0),HLOOKUP(OV$4,'Agency cashability'!$B$3:$U$5,2,0),0) -> 0 | OW24: =IF(AND(OW$3<>"",OB24<>0),HLOOKUP(OW$4,'Agency cashability'!$B$3:$U$5,2,0),0) -> 0 | OX24: =IF(AND(OX$3<>"",OC24<>0),HLOOKUP(OX$4,'Agency cashability'!$B$3:$U$5,2,0),0) -> 0 | OY24: =IF(AND(OY$3<>"",OD24<>0),HLOOKUP(OY$4,'Agency cashability'!$B$3:$U$5,2,0),0) -> 0 | OZ24: =IF(AND(OZ$3<>"",OE24<>0),HLOOKUP(OZ$4,'Agency cashability'!$B$3:$U$5,2,0),0) -> 0 | PA24: =IF(AND(PA$3<>"",OF24<>0),HLOOKUP(PA$4,'Agency cashability'!$B$3:$U$5,2,0),0) -> 0 | PB24: =IF(AND(PB$3<>"",OG24<>0),HLOOKUP(PB$4,'Agency cashability'!$B$3:$U$5,2,0),0) -> 0 | PC24: =IF(AND(PC$3<>"",OH24<>0),HLOOKUP(PC$4,'Agency cashability'!$B$3:$U$5,2,0),0) -> 0 | PD24: =IF(AND(PD$3<>"",OI24<>0),HLOOKUP(PD$4,'Agency cashability'!$B$3:$U$5,2,0),0) -> 0 | PE24: =IF(AND(PE$3<>"",OJ24<>0),HLOOKUP(PE$4,'Agency cashability'!$B$3:$U$5,2,0),0) -> 0 | PG24: =IF(AND(PG$3<>"",NQ24<>0),HLOOKUP(PG$4,'Agency cashability'!$B$3:$U$5,3,0),0) -> 0 | PH24: =IF(AND(PH$3<>"",NR24<>0),HLOOKUP(PH$4,'Agency cashability'!$B$3:$U$5,3,0),0) -> 0.5 | PI24: =IF(AND(PI$3<>"",NS24<>0),HLOOKUP(PI$4,'Agency cashability'!$B$3:$U$5,3,0),0) -> 0.6 | PJ24: =IF(AND(PJ$3<>"",NT24<>0),HLOOKUP(PJ$4,'Agency cashability'!$B$3:$U$5,3,0),0) -> 0.5 | PK24: =IF(AND(PK$3<>"",NU24<>0),HLOOKUP(PK$4,'Agency cashability'!$B$3:$U$5,3,0),0) -> 0.5 | PL24: =IF(AND(PL$3<>"",NV24<>0),HLOOKUP(PL$4,'Agency cashability'!$B$3:$U$5,3,0),0) -> 0.5 | PM24: =IF(AND(PM$3<>"",NW24<>0),HLOOKUP(PM$4,'Agency cashability'!$B$3:$U$5,3,0),0) -> 0.5 | PN24: =IF(AND(PN$3<>"",NX24<>0),HLOOKUP(PN$4,'Agency cashability'!$B$3:$U$5,3,0),0) -> 0 | PO24: =IF(AND(PO$3<>"",NY24<>0),HLOOKUP(PO$4,'Agency cashability'!$B$3:$U$5,3,0),0) -> 0 | PP24: =IF(AND(PP$3<>"",NZ24<>0),HLOOKUP(PP$4,'Agency cashability'!$B$3:$U$5,3,0),0) -> 0 | PQ24: =IF(AND(PQ$3<>"",OA24<>0),HLOOKUP(PQ$4,'Agency cashability'!$B$3:$U$5,3,0),0) -> 0 | PR24: =IF(AND(PR$3<>"",OB24<>0),HLOOKUP(PR$4,'Agency cashability'!$B$3:$U$5,3,0),0) -> 0 | PS24: =IF(AND(PS$3<>"",OC24<>0),HLOOKUP(PS$4,'Agency cashability'!$B$3:$U$5,3,0),0) -> 0 | PT24: =IF(AND(PT$3<>"",OD24<>0),HLOOKUP(PT$4,'Agency cashability'!$B$3:$U$5,3,0),0) -> 0 | PU24: =IF(AND(PU$3<>"",OE24<>0),HLOOKUP(PU$4,'Agency cashability'!$B$3:$U$5,3,0),0) -> 0 | PV24: =IF(AND(PV$3<>"",OF24<>0),HLOOKUP(PV$4,'Agency cashability'!$B$3:$U$5,3,0),0) -> 0 | PW24: =IF(AND(PW$3<>"",OG24<>0),HLOOKUP(PW$4,'Agency cashability'!$B$3:$U$5,3,0),0) -> 0 | PX24: =IF(AND(PX$3<>"",OH24<>0),HLOOKUP(PX$4,'Agency cashability'!$B$3:$U$5,3,0),0) -> 0 | PY24: =IF(AND(PY$3<>"",OI24<>0),HLOOKUP(PY$4,'Agency cashability'!$B$3:$U$5,3,0),0) -> 0 | PZ24: =IF(AND(PZ$3<>"",OJ24<>0),HLOOKUP(PZ$4,'Agency cashability'!$B$3:$U$5,3,0),0) -> 0 | QB24: 0 | QC24: 0 | QD24: 0 | QE24: 0 | QF24: 0 | QG24: 0 | QH24: 0 | QI24: 0 | QJ24: 0 | QK24: 0 | QL24: 0 | QM24: 0 | QN24: 0 | QW24: =IF((QW$3<>""),OL24*QB24,"") -> 0 | QX24: 0 | QY24: 0 | QZ24: 0 | RA24: 0 | RB24: 0 | RC24: 0 | RD24: 0 | RE24: 0 | RF24: 0 | RG24: 0 | RH24: 0 | RI24: 0 | RT24: =IF((RT$3<>""),PG24*QB24,"") -> 0 | RU24: 0 | RV24: 0 | RW24: 0 | RX24: 0 | RY24: 0 | RZ24: 0 | SA24: 0 | SB24: 0 | SC24: 0 | SD24: 0 | SE24: 0 | SF24: 0
A25: B9j | B25: Reduced incidents of crime - theft from vehicle | C25: No | D25: Reduced police, other criminal justice costs, health costs per actual crime (N.B. Use multipliers to convert from recorded crime or convictions) | E25: Police, CJS, NHS | R25: 220 | S25: 220 | T25: 530 | U25: 140 | V25: 890 | W25: 2016 | X25: =VLOOKUP(W25,'GDP Deflators'!$B$6:$D$106,3,FALSE) -> 88.19270512 | Y25: The Economic and Social cost of Crime, Second Edition (Home Office 2018) | AA25: Standard Rate | AB25: 0 | AC25: 0 | AD25: 0 | AE25: 0 | DP25: 0 | DQ25: 0 | DR25: 0 | DS25: 0 | DT25: 0 | DU25: 0 | DV25: 0 | DW25: 0 | DX25: 0 | DY25: 0 | GW25: 0 | GY25: 0 | GZ25: 0 | HA25: 0 | HB25: 0 | HC25: 0 | HD25: 0 | HE25: 0 | HF25: 0 | HG25: 0 | HH25: 0 | KF25: 0 | KH25: 0 | KI25: 0 | KJ25: 0 | KK25: 0 | KL25: 0 | KM25: 0 | KN25: 0 | KO25: 0 | KP25: 0 | KQ25: 0 | NO25: 0 | NQ25: =IF(NQ$3<>"",VLOOKUP($A25,'Agency percentages'!$A$6:$X$71,(3+MATCH(NQ$4,'Agency percentages'!$D$5:$W$5,0)),FALSE),"") -> 0 | NR25: =IF(NR$3<>"",VLOOKUP($A25,'Agency percentages'!$A$6:$X$71,(3+MATCH(NR$4,'Agency percentages'!$D$5:$W$5,0)),FALSE),"") -> 0.1818181818 | NS25: =IF(NS$3<>"",VLOOKUP($A25,'Agency percentages'!$A$6:$X$71,(3+MATCH(NS$4,'Agency percentages'!$D$5:$W$5,0)),FALSE),"") -> 0.3636363636 | NT25: =IF(NT$3<>"",VLOOKUP($A25,'Agency percentages'!$A$6:$X$71,(3+MATCH(NT$4,'Agency percentages'!$D$5:$W$5,0)),FALSE),"") -> 0.09090909091 | NU25: =IF(NU$3<>"",VLOOKUP($A25,'Agency percentages'!$A$6:$X$71,(3+MATCH(NU$4,'Agency percentages'!$D$5:$W$5,0)),FALSE),"") -> 0.2727272727 | NV25: =IF(NV$3<>"",VLOOKUP($A25,'Agency percentages'!$A$6:$X$71,(3+MATCH(NV$4,'Agency percentages'!$D$5:$W$5,0)),FALSE),"") -> 0.04545454545 | NW25: =IF(NW$3<>"",VLOOKUP($A25,'Agency percentages'!$A$6:$X$71,(3+MATCH(NW$4,'Agency percentages'!$D$5:$W$5,0)),FALSE),"") -> 0.04545454545 | NX25: =IF(NX$3<>"",VLOOKUP($A25,'Agency percentages'!$A$6:$X$71,(3+MATCH(NX$4,'Agency percentages'!$D$5:$W$5,0)),FALSE),"") -> 0 | NY25: =IF(NY$3<>"",VLOOKUP($A25,'Agency percentages'!$A$6:$X$71,(3+MATCH(NY$4,'Agency percentages'!$D$5:$W$5,0)),FALSE),"") -> 0 | NZ25: =IF(NZ$3<>"",VLOOKUP($A25,'Agency percentages'!$A$6:$X$71,(3+MATCH(NZ$4,'Agency percentages'!$D$5:$W$5,0)),FALSE),"") -> 0 | OA25: =IF(OA$3<>"",VLOOKUP($A25,'Agency percentages'!$A$6:$X$71,(3+MATCH(OA$4,'Agency percentages'!$D$5:$W$5,0)),FALSE),"") -> 0 | OB25: =IF(OB$3<>"",VLOOKUP($A25,'Agency percentages'!$A$6:$X$71,(3+MATCH(OB$4,'Agency percentages'!$D$5:$W$5,0)),FALSE),"") -> 0 | OC25: =IF(OC$3<>"",VLOOKUP($A25,'Agency percentages'!$A$6:$X$71,(3+MATCH(OC$4,'Agency percentages'!$D$5:$W$5,0)),FALSE),"") -> 0 | OD25: =IF(OD$3<>"",VLOOKUP($A25,'Agency percentages'!$A$6:$X$71,(3+MATCH(OD$4,'Agency percentages'!$D$5:$W$5,0)),FALSE),"") ->  | OE25: =IF(OE$3<>"",VLOOKUP($A25,'Agency percentages'!$A$6:$X$71,(3+MATCH(OE$4,'Agency percentages'!$D$5:$W$5,0)),FALSE),"") ->  | OF25: =IF(OF$3<>"",VLOOKUP($A25,'Agency percentages'!$A$6:$X$71,(3+MATCH(OF$4,'Agency percentages'!$D$5:$W$5,0)),FALSE),"") ->  | OG25: =IF(OG$3<>"",VLOOKUP($A25,'Agency percentages'!$A$6:$X$71,(3+MATCH(OG$4,'Agency percentages'!$D$5:$W$5,0)),FALSE),"") ->  | OH25: =IF(OH$3<>"",VLOOKUP($A25,'Agency percentages'!$A$6:$X$71,(3+MATCH(OH$4,'Agency percentages'!$D$5:$W$5,0)),FALSE),"") ->  | OI25: =IF(OI$3<>"",VLOOKUP($A25,'Agency percentages'!$A$6:$X$71,(3+MATCH(OI$4,'Agency percentages'!$D$5:$W$5,0)),FALSE),"") ->  | OJ25: =IF(OJ$3<>"",VLOOKUP($A25,'Agency percentages'!$A$6:$X$71,(3+MATCH(OJ$4,'Agency percentages'!$D$5:$W$5,0)),FALSE),"") ->  | OL25: =IF(AND(OL$3<>"",NQ25<>0),HLOOKUP(OL$4,'Agency cashability'!$B$3:$U$5,2,0),0) -> 0 | OM25: =IF(AND(OM$3<>"",NR25<>0),HLOOKUP(OM$4,'Agency cashability'!$B$3:$U$5,2,0),0) -> 0.2 | ON25: =IF(AND(ON$3<>"",NS25<>0),HLOOKUP(ON$4,'Agency cashability'!$B$3:$U$5,2,0),0) -> 0.3 | OO25: =IF(AND(OO$3<>"",NT25<>0),HLOOKUP(OO$4,'Agency cashability'!$B$3:$U$5,2,0),0) -> 0.2 | OP25: =IF(AND(OP$3<>"",NU25<>0),HLOOKUP(OP$4,'Agency cashability'!$B$3:$U$5,2,0),0) -> 0.2 | OQ25: =IF(AND(OQ$3<>"",NV25<>0),HLOOKUP(OQ$4,'Agency cashability'!$B$3:$U$5,2,0),0) -> 0.2 | OR25: =IF(AND(OR$3<>"",NW25<>0),HLOOKUP(OR$4,'Agency cashability'!$B$3:$U$5,2,0),0) -> 0.2 | OS25: =IF(AND(OS$3<>"",NX25<>0),HLOOKUP(OS$4,'Agency cashability'!$B$3:$U$5,2,0),0) -> 0 | OT25: =IF(AND(OT$3<>"",NY25<>0),HLOOKUP(OT$4,'Agency cashability'!$B$3:$U$5,2,0),0) -> 0 | OU25: =IF(AND(OU$3<>"",NZ25<>0),HLOOKUP(OU$4,'Agency cashability'!$B$3:$U$5,2,0),0) -> 0 | OV25: =IF(AND(OV$3<>"",OA25<>0),HLOOKUP(OV$4,'Agency cashability'!$B$3:$U$5,2,0),0) -> 0 | OW25: =IF(AND(OW$3<>"",OB25<>0),HLOOKUP(OW$4,'Agency cashability'!$B$3:$U$5,2,0),0) -> 0 | OX25: =IF(AND(OX$3<>"",OC25<>0),HLOOKUP(OX$4,'Agency cashability'!$B$3:$U$5,2,0),0) -> 0 | OY25: =IF(AND(OY$3<>"",OD25<>0),HLOOKUP(OY$4,'Agency cashability'!$B$3:$U$5,2,0),0) -> 0 | OZ25: =IF(AND(OZ$3<>"",OE25<>0),HLOOKUP(OZ$4,'Agency cashability'!$B$3:$U$5,2,0),0) -> 0 | PA25: =IF(AND(PA$3<>"",OF25<>0),HLOOKUP(PA$4,'Agency cashability'!$B$3:$U$5,2,0),0) -> 0 | PB25: =IF(AND(PB$3<>"",OG25<>0),HLOOKUP(PB$4,'Agency cashability'!$B$3:$U$5,2,0),0) -> 0 | PC25: =IF(AND(PC$3<>"",OH25<>0),HLOOKUP(PC$4,'Agency cashability'!$B$3:$U$5,2,0),0) -> 0 | PD25: =IF(AND(PD$3<>"",OI25<>0),HLOOKUP(PD$4,'Agency cashability'!$B$3:$U$5,2,0),0) -> 0 | PE25: =IF(AND(PE$3<>"",OJ25<>0),HLOOKUP(PE$4,'Agency cashability'!$B$3:$U$5,2,0),0) -> 0 | PG25: =IF(AND(PG$3<>"",NQ25<>0),HLOOKUP(PG$4,'Agency cashability'!$B$3:$U$5,3,0),0) -> 0 | PH25: =IF(AND(PH$3<>"",NR25<>0),HLOOKUP(PH$4,'Agency cashability'!$B$3:$U$5,3,0),0) -> 0.5 | PI25: =IF(AND(PI$3<>"",NS25<>0),HLOOKUP(PI$4,'Agency cashability'!$B$3:$U$5,3,0),0) -> 0.6 | PJ25: =IF(AND(PJ$3<>"",NT25<>0),HLOOKUP(PJ$4,'Agency cashability'!$B$3:$U$5,3,0),0) -> 0.5 | PK25: =IF(AND(PK$3<>"",NU25<>0),HLOOKUP(PK$4,'Agency cashability'!$B$3:$U$5,3,0),0) -> 0.5 | PL25: =IF(AND(PL$3<>"",NV25<>0),HLOOKUP(PL$4,'Agency cashability'!$B$3:$U$5,3,0),0) -> 0.5 | PM25: =IF(AND(PM$3<>"",NW25<>0),HLOOKUP(PM$4,'Agency cashability'!$B$3:$U$5,3,0),0) -> 0.5 | PN25: =IF(AND(PN$3<>"",NX25<>0),HLOOKUP(PN$4,'Agency cashability'!$B$3:$U$5,3,0),0) -> 0 | PO25: =IF(AND(PO$3<>"",NY25<>0),HLOOKUP(PO$4,'Agency cashability'!$B$3:$U$5,3,0),0) -> 0 | PP25: =IF(AND(PP$3<>"",NZ25<>0),HLOOKUP(PP$4,'Agency cashability'!$B$3:$U$5,3,0),0) -> 0 | PQ25: =IF(AND(PQ$3<>"",OA25<>0),HLOOKUP(PQ$4,'Agency cashability'!$B$3:$U$5,3,0),0) -> 0 | PR25: =IF(AND(PR$3<>"",OB25<>0),HLOOKUP(PR$4,'Agency cashability'!$B$3:$U$5,3,0),0) -> 0 | PS25: =IF(AND(PS$3<>"",OC25<>0),HLOOKUP(PS$4,'Agency cashability'!$B$3:$U$5,3,0),0) -> 0 | PT25: =IF(AND(PT$3<>"",OD25<>0),HLOOKUP(PT$4,'Agency cashability'!$B$3:$U$5,3,0),0) -> 0 | PU25: =IF(AND(PU$3<>"",OE25<>0),HLOOKUP(PU$4,'Agency cashability'!$B$3:$U$5,3,0),0) -> 0 | PV25: =IF(AND(PV$3<>"",OF25<>0),HLOOKUP(PV$4,'Agency cashability'!$B$3:$U$5,3,0),0) -> 0 | PW25: =IF(AND(PW$3<>"",OG25<>0),HLOOKUP(PW$4,'Agency cashability'!$B$3:$U$5,3,0),0) -> 0 | PX25: =IF(AND(PX$3<>"",OH25<>0),HLOOKUP(PX$4,'Agency cashability'!$B$3:$U$5,3,0),0) -> 0 | PY25: =IF(AND(PY$3<>"",OI25<>0),HLOOKUP(PY$4,'Agency cashability'!$B$3:$U$5,3,0),0) -> 0 | PZ25: =IF(AND(PZ$3<>"",OJ25<>0),HLOOKUP(PZ$4,'Agency cashability'!$B$3:$U$5,3,0),0) -> 0 | QB25: 0 | QC25: 0 | QD25: 0 | QE25: 0 | QF25: 0 | QG25: 0 | QH25: 0 | QI25: 0 | QJ25: 0 | QK25: 0 | QL25: 0 | QM25: 0 | QN25: 0 | QW25: =IF((QW$3<>""),OL25*QB25,"") -> 0 | QX25: 0 | QY25: 0 | QZ25: 0 | RA25: 0 | RB25: 0 | RC25: 0 | RD25: 0 | RE25: 0 | RF25: 0 | RG25: 0 | RH25: 0 | RI25: 0 | RT25: =IF((RT$3<>""),PG25*QB25,"") -> 0 | RU25: 0 | RV25: 0 | RW25: 0 | RX25: 0 | RY25: 0 | RZ25: 0 | SA25: 0 | SB25: 0 | SC25: 0 | SD25: 0 | SE25: 0 | SF25: 0
A26: B9k | B26: Reduced incidents of crime - arson | C26: No | D26: Reduced police, other criminal justice costs, health costs per actual crime (N.B. Use multipliers to convert from recorded crime or convictions) | E26: Police, CJS, NHS | R26: 5170 | S26: 5170 | T26: 2260 | U26: 980 | V26: 8410 | W26: 2016 | X26: =VLOOKUP(W26,'GDP Deflators'!$B$6:$D$106,3,FALSE) -> 88.19270512 | Y26: The Economic and Social cost of Crime, Second Edition (Home Office 2018) | AA26: Standard Rate | AB26: 0 | AC26: 0 | AD26: 0 | AE26: 0 | DP26: 0 | DQ26: 0 | DR26: 0 | DS26: 0 | DT26: 0 | DU26: 0 | DV26: 0 | DW26: 0 | DX26: 0 | DY26: 0 | GW26: 0 | GY26: 0 | GZ26: 0 | HA26: 0 | HB26: 0 | HC26: 0 | HD26: 0 | HE26: 0 | HF26: 0 | HG26: 0 | HH26: 0 | KF26: 0 | KH26: 0 | KI26: 0 | KJ26: 0 | KK26: 0 | KL26: 0 | KM26: 0 | KN26: 0 | KO26: 0 | KP26: 0 | KQ26: 0 | NO26: 0 | NQ26: =IF(NQ$3<>"",VLOOKUP($A26,'Agency percentages'!$A$6:$X$71,(3+MATCH(NQ$4,'Agency percentages'!$D$5:$W$5,0)),FALSE),"") -> 0 | NR26: =IF(NR$3<>"",VLOOKUP($A26,'Agency percentages'!$A$6:$X$71,(3+MATCH(NR$4,'Agency percentages'!$D$5:$W$5,0)),FALSE),"") -> 0.03474903475 | NS26: =IF(NS$3<>"",VLOOKUP($A26,'Agency percentages'!$A$6:$X$71,(3+MATCH(NS$4,'Agency percentages'!$D$5:$W$5,0)),FALSE),"") -> 0.2084942085 | NT26: =IF(NT$3<>"",VLOOKUP($A26,'Agency percentages'!$A$6:$X$71,(3+MATCH(NT$4,'Agency percentages'!$D$5:$W$5,0)),FALSE),"") -> 0.04247104247 | NU26: =IF(NU$3<>"",VLOOKUP($A26,'Agency percentages'!$A$6:$X$71,(3+MATCH(NU$4,'Agency percentages'!$D$5:$W$5,0)),FALSE),"") -> 0.4922779923 | NV26: =IF(NV$3<>"",VLOOKUP($A26,'Agency percentages'!$A$6:$X$71,(3+MATCH(NV$4,'Agency percentages'!$D$5:$W$5,0)),FALSE),"") -> 0.1756756757 | NW26: =IF(NW$3<>"",VLOOKUP($A26,'Agency percentages'!$A$6:$X$71,(3+MATCH(NW$4,'Agency percentages'!$D$5:$W$5,0)),FALSE),"") -> 0.0444015444 | NX26: =IF(NX$3<>"",VLOOKUP($A26,'Agency percentages'!$A$6:$X$71,(3+MATCH(NX$4,'Agency percentages'!$D$5:$W$5,0)),FALSE),"") -> 0 | NY26: =IF(NY$3<>"",VLOOKUP($A26,'Agency percentages'!$A$6:$X$71,(3+MATCH(NY$4,'Agency percentages'!$D$5:$W$5,0)),FALSE),"") -> 0 | NZ26: =IF(NZ$3<>"",VLOOKUP($A26,'Agency percentages'!$A$6:$X$71,(3+MATCH(NZ$4,'Agency percentages'!$D$5:$W$5,0)),FALSE),"") -> 0 | OA26: =IF(OA$3<>"",VLOOKUP($A26,'Agency percentages'!$A$6:$X$71,(3+MATCH(OA$4,'Agency percentages'!$D$5:$W$5,0)),FALSE),"") -> 0 | OB26: =IF(OB$3<>"",VLOOKUP($A26,'Agency percentages'!$A$6:$X$71,(3+MATCH(OB$4,'Agency percentages'!$D$5:$W$5,0)),FALSE),"") -> 0.001930501931 | OC26: =IF(OC$3<>"",VLOOKUP($A26,'Agency percentages'!$A$6:$X$71,(3+MATCH(OC$4,'Agency percentages'!$D$5:$W$5,0)),FALSE),"") -> 0 | OD26: =IF(OD$3<>"",VLOOKUP($A26,'Agency percentages'!$A$6:$X$71,(3+MATCH(OD$4,'Agency percentages'!$D$5:$W$5,0)),FALSE),"") ->  | OE26: =IF(OE$3<>"",VLOOKUP($A26,'Agency percentages'!$A$6:$X$71,(3+MATCH(OE$4,'Agency percentages'!$D$5:$W$5,0)),FALSE),"") ->  | OF26: =IF(OF$3<>"",VLOOKUP($A26,'Agency percentages'!$A$6:$X$71,(3+MATCH(OF$4,'Agency percentages'!$D$5:$W$5,0)),FALSE),"") ->  | OG26: =IF(OG$3<>"",VLOOKUP($A26,'Agency percentages'!$A$6:$X$71,(3+MATCH(OG$4,'Agency percentages'!$D$5:$W$5,0)),FALSE),"") ->  | OH26: =IF(OH$3<>"",VLOOKUP($A26,'Agency percentages'!$A$6:$X$71,(3+MATCH(OH$4,'Agency percentages'!$D$5:$W$5,0)),FALSE),"") ->  | OI26: =IF(OI$3<>"",VLOOKUP($A26,'Agency percentages'!$A$6:$X$71,(3+MATCH(OI$4,'Agency percentages'!$D$5:$W$5,0)),FALSE),"") ->  | OJ26: =IF(OJ$3<>"",VLOOKUP($A26,'Agency percentages'!$A$6:$X$71,(3+MATCH(OJ$4,'Agency percentages'!$D$5:$W$5,0)),FALSE),"") ->  | OL26: =IF(AND(OL$3<>"",NQ26<>0),HLOOKUP(OL$4,'Agency cashability'!$B$3:$U$5,2,0),0) -> 0 | OM26: =IF(AND(OM$3<>"",NR26<>0),HLOOKUP(OM$4,'Agency cashability'!$B$3:$U$5,2,0),0) -> 0.2 | ON26: =IF(AND(ON$3<>"",NS26<>0),HLOOKUP(ON$4,'Agency cashability'!$B$3:$U$5,2,0),0) -> 0.3 | OO26: =IF(AND(OO$3<>"",NT26<>0),HLOOKUP(OO$4,'Agency cashability'!$B$3:$U$5,2,0),0) -> 0.2 | OP26: =IF(AND(OP$3<>"",NU26<>0),HLOOKUP(OP$4,'Agency cashability'!$B$3:$U$5,2,0),0) -> 0.2 | OQ26: =IF(AND(OQ$3<>"",NV26<>0),HLOOKUP(OQ$4,'Agency cashability'!$B$3:$U$5,2,0),0) -> 0.2 | OR26: =IF(AND(OR$3<>"",NW26<>0),HLOOKUP(OR$4,'Agency cashability'!$B$3:$U$5,2,0),0) -> 0.2 | OS26: =IF(AND(OS$3<>"",NX26<>0),HLOOKUP(OS$4,'Agency cashability'!$B$3:$U$5,2,0),0) -> 0 | OT26: =IF(AND(OT$3<>"",NY26<>0),HLOOKUP(OT$4,'Agency cashability'!$B$3:$U$5,2,0),0) -> 0 | OU26: =IF(AND(OU$3<>"",NZ26<>0),HLOOKUP(OU$4,'Agency cashability'!$B$3:$U$5,2,0),0) -> 0 | OV26: =IF(AND(OV$3<>"",OA26<>0),HLOOKUP(OV$4,'Agency cashability'!$B$3:$U$5,2,0),0) -> 0 | OW26: =IF(AND(OW$3<>"",OB26<>0),HLOOKUP(OW$4,'Agency cashability'!$B$3:$U$5,2,0),0) -> 0 | OX26: =IF(AND(OX$3<>"",OC26<>0),HLOOKUP(OX$4,'Agency cashability'!$B$3:$U$5,2,0),0) -> 0 | OY26: =IF(AND(OY$3<>"",OD26<>0),HLOOKUP(OY$4,'Agency cashability'!$B$3:$U$5,2,0),0) -> 0 | OZ26: =IF(AND(OZ$3<>"",OE26<>0),HLOOKUP(OZ$4,'Agency cashability'!$B$3:$U$5,2,0),0) -> 0 | PA26: =IF(AND(PA$3<>"",OF26<>0),HLOOKUP(PA$4,'Agency cashability'!$B$3:$U$5,2,0),0) -> 0 | PB26: =IF(AND(PB$3<>"",OG26<>0),HLOOKUP(PB$4,'Agency cashability'!$B$3:$U$5,2,0),0) -> 0 | PC26: =IF(AND(PC$3<>"",OH26<>0),HLOOKUP(PC$4,'Agency cashability'!$B$3:$U$5,2,0),0) -> 0 | PD26: =IF(AND(PD$3<>"",OI26<>0),HLOOKUP(PD$4,'Agency cashability'!$B$3:$U$5,2,0),0) -> 0 | PE26: =IF(AND(PE$3<>"",OJ26<>0),HLOOKUP(PE$4,'Agency cashability'!$B$3:$U$5,2,0),0) -> 0 | PG26: =IF(AND(PG$3<>"",NQ26<>0),HLOOKUP(PG$4,'Agency cashability'!$B$3:$U$5,3,0),0) -> 0 | PH26: =IF(AND(PH$3<>"",NR26<>0),HLOOKUP(PH$4,'Agency cashability'!$B$3:$U$5,3,0),0) -> 0.5 | PI26: =IF(AND(PI$3<>"",NS26<>0),HLOOKUP(PI$4,'Agency cashability'!$B$3:$U$5,3,0),0) -> 0.6 | PJ26: =IF(AND(PJ$3<>"",NT26<>0),HLOOKUP(PJ$4,'Agency cashability'!$B$3:$U$5,3,0),0) -> 0.5 | PK26: =IF(AND(PK$3<>"",NU26<>0),HLOOKUP(PK$4,'Agency cashability'!$B$3:$U$5,3,0),0) -> 0.5 | PL26: =IF(AND(PL$3<>"",NV26<>0),HLOOKUP(PL$4,'Agency cashability'!$B$3:$U$5,3,0),0) -> 0.5 | PM26: =IF(AND(PM$3<>"",NW26<>0),HLOOKUP(PM$4,'Agency cashability'!$B$3:$U$5,3,0),0) -> 0.5 | PN26: =IF(AND(PN$3<>"",NX26<>0),HLOOKUP(PN$4,'Agency cashability'!$B$3:$U$5,3,0),0) -> 0 | PO26: =IF(AND(PO$3<>"",NY26<>0),HLOOKUP(PO$4,'Agency cashability'!$B$3:$U$5,3,0),0) -> 0 | PP26: =IF(AND(PP$3<>"",NZ26<>0),HLOOKUP(PP$4,'Agency cashability'!$B$3:$U$5,3,0),0) -> 0 | PQ26: =IF(AND(PQ$3<>"",OA26<>0),HLOOKUP(PQ$4,'Agency cashability'!$B$3:$U$5,3,0),0) -> 0 | PR26: =IF(AND(PR$3<>"",OB26<>0),HLOOKUP(PR$4,'Agency cashability'!$B$3:$U$5,3,0),0) -> 0 | PS26: =IF(AND(PS$3<>"",OC26<>0),HLOOKUP(PS$4,'Agency cashability'!$B$3:$U$5,3,0),0) -> 0 | PT26: =IF(AND(PT$3<>"",OD26<>0),HLOOKUP(PT$4,'Agency cashability'!$B$3:$U$5,3,0),0) -> 0 | PU26: =IF(AND(PU$3<>"",OE26<>0),HLOOKUP(PU$4,'Agency cashability'!$B$3:$U$5,3,0),0) -> 0 | PV26: =IF(AND(PV$3<>"",OF26<>0),HLOOKUP(PV$4,'Agency cashability'!$B$3:$U$5,3,0),0) -> 0 | PW26: =IF(AND(PW$3<>"",OG26<>0),HLOOKUP(PW$4,'Agency cashability'!$B$3:$U$5,3,0),0) -> 0 | PX26: =IF(AND(PX$3<>"",OH26<>0),HLOOKUP(PX$4,'Agency cashability'!$B$3:$U$5,3,0),0) -> 0 | PY26: =IF(AND(PY$3<>"",OI26<>0),HLOOKUP(PY$4,'Agency cashability'!$B$3:$U$5,3,0),0) -> 0 | PZ26: =IF(AND(PZ$3<>"",OJ26<>0),HLOOKUP(PZ$4,'Agency cashability'!$B$3:$U$5,3,0),0) -> 0 | QB26: 0 | QC26: 0 | QD26: 0 | QE26: 0 | QF26: 0 | QG26: 0 | QH26: 0 | QI26: 0 | QJ26: 0 | QK26: 0 | QL26: 0 | QM26: 0 | QN26: 0 | QW26: =IF((QW$3<>""),OL26*QB26,"") -> 0 | QX26: 0 | QY26: 0 | QZ26: 0 | RA26: 0 | RB26: 0 | RC26: 0 | RD26: 0 | RE26: 0 | RF26: 0 | RG26: 0 | RH26: 0 | RI26: 0 | RT26: =IF((RT$3<>""),PG26*QB26,"") -> 0 | RU26: 0 | RV26: 0 | RW26: 0 | RX26: 0 | RY26: 0 | RZ26: 0 | SA26: 0 | SB26: 0 | SC26: 0 | SD26: 0 | SE26: 0 | SF26: 0
A27: B9l | B27: Reduced incidents of crime - other criminal damage | C27: No | D27: Reduced police, other criminal justice costs, health costs per actual crime (N.B. Use multipliers to convert from recorded crime or convictions) | E27: Police, CJS, NHS | R27: 590 | S27: 590 | T27: 480 | U27: 270 | V27: 1340 | W27: 2016 | X27: =VLOOKUP(W27,'GDP Deflators'!$B$6:$D$106,3,FALSE) -> 88.19270512 | Y27: The Economic and Social cost of Crime, Second Edition (Home Office 2018) | AA27: Standard Rate | AB27: 0 | AC27: 0 | AD27: 0 | AE27: 0 | DP27: 0 | DQ27: 0 | DR27: 0 | DS27: 0 | DT27: 0 | DU27: 0 | DV27: 0 | DW27: 0 | DX27: 0 | DY27: 0 | GW27: 0 | GY27: 0 | GZ27: 0 | HA27: 0 | HB27: 0 | HC27: 0 | HD27: 0 | HE27: 0 | HF27: 0 | HG27: 0 | HH27: 0 | KF27: 0 | KH27: 0 | KI27: 0 | KJ27: 0 | KK27: 0 | KL27: 0 | KM27: 0 | KN27: 0 | KO27: 0 | KP27: 0 | KQ27: 0 | NO27: 0 | NQ27: =IF(NQ$3<>"",VLOOKUP($A27,'Agency percentages'!$A$6:$X$71,(3+MATCH(NQ$4,'Agency percentages'!$D$5:$W$5,0)),FALSE),"") -> 0 | NR27: =IF(NR$3<>"",VLOOKUP($A27,'Agency percentages'!$A$6:$X$71,(3+MATCH(NR$4,'Agency percentages'!$D$5:$W$5,0)),FALSE),"") -> 0.15 | NS27: =IF(NS$3<>"",VLOOKUP($A27,'Agency percentages'!$A$6:$X$71,(3+MATCH(NS$4,'Agency percentages'!$D$5:$W$5,0)),FALSE),"") -> 0.25 | NT27: =IF(NT$3<>"",VLOOKUP($A27,'Agency percentages'!$A$6:$X$71,(3+MATCH(NT$4,'Agency percentages'!$D$5:$W$5,0)),FALSE),"") -> 0.1 | NU27: =IF(NU$3<>"",VLOOKUP($A27,'Agency percentages'!$A$6:$X$71,(3+MATCH(NU$4,'Agency percentages'!$D$5:$W$5,0)),FALSE),"") -> 0.45 | NV27: =IF(NV$3<>"",VLOOKUP($A27,'Agency percentages'!$A$6:$X$71,(3+MATCH(NV$4,'Agency percentages'!$D$5:$W$5,0)),FALSE),"") -> 0 | NW27: =IF(NW$3<>"",VLOOKUP($A27,'Agency percentages'!$A$6:$X$71,(3+MATCH(NW$4,'Agency percentages'!$D$5:$W$5,0)),FALSE),"") -> 0.05 | NX27: =IF(NX$3<>"",VLOOKUP($A27,'Agency percentages'!$A$6:$X$71,(3+MATCH(NX$4,'Agency percentages'!$D$5:$W$5,0)),FALSE),"") -> 0 | NY27: =IF(NY$3<>"",VLOOKUP($A27,'Agency percentages'!$A$6:$X$71,(3+MATCH(NY$4,'Agency percentages'!$D$5:$W$5,0)),FALSE),"") -> 0 | NZ27: =IF(NZ$3<>"",VLOOKUP($A27,'Agency percentages'!$A$6:$X$71,(3+MATCH(NZ$4,'Agency percentages'!$D$5:$W$5,0)),FALSE),"") -> 0 | OA27: =IF(OA$3<>"",VLOOKUP($A27,'Agency percentages'!$A$6:$X$71,(3+MATCH(OA$4,'Agency percentages'!$D$5:$W$5,0)),FALSE),"") -> 0 | OB27: =IF(OB$3<>"",VLOOKUP($A27,'Agency percentages'!$A$6:$X$71,(3+MATCH(OB$4,'Agency percentages'!$D$5:$W$5,0)),FALSE),"") -> 0 | OC27: =IF(OC$3<>"",VLOOKUP($A27,'Agency percentages'!$A$6:$X$71,(3+MATCH(OC$4,'Agency percentages'!$D$5:$W$5,0)),FALSE),"") -> 0 | OD27: =IF(OD$3<>"",VLOOKUP($A27,'Agency percentages'!$A$6:$X$71,(3+MATCH(OD$4,'Agency percentages'!$D$5:$W$5,0)),FALSE),"") ->  | OE27: =IF(OE$3<>"",VLOOKUP($A27,'Agency percentages'!$A$6:$X$71,(3+MATCH(OE$4,'Agency percentages'!$D$5:$W$5,0)),FALSE),"") ->  | OF27: =IF(OF$3<>"",VLOOKUP($A27,'Agency percentages'!$A$6:$X$71,(3+MATCH(OF$4,'Agency percentages'!$D$5:$W$5,0)),FALSE),"") ->  | OG27: =IF(OG$3<>"",VLOOKUP($A27,'Agency percentages'!$A$6:$X$71,(3+MATCH(OG$4,'Agency percentages'!$D$5:$W$5,0)),FALSE),"") ->  | OH27: =IF(OH$3<>"",VLOOKUP($A27,'Agency percentages'!$A$6:$X$71,(3+MATCH(OH$4,'Agency percentages'!$D$5:$W$5,0)),FALSE),"") ->  | OI27: =IF(OI$3<>"",VLOOKUP($A27,'Agency percentages'!$A$6:$X$71,(3+MATCH(OI$4,'Agency percentages'!$D$5:$W$5,0)),FALSE),"") ->  | OJ27: =IF(OJ$3<>"",VLOOKUP($A27,'Agency percentages'!$A$6:$X$71,(3+MATCH(OJ$4,'Agency percentages'!$D$5:$W$5,0)),FALSE),"") ->  | OL27: =IF(AND(OL$3<>"",NQ27<>0),HLOOKUP(OL$4,'Agency cashability'!$B$3:$U$5,2,0),0) -> 0 | OM27: =IF(AND(OM$3<>"",NR27<>0),HLOOKUP(OM$4,'Agency cashability'!$B$3:$U$5,2,0),0) -> 0.2 | ON27: =IF(AND(ON$3<>"",NS27<>0),HLOOKUP(ON$4,'Agency cashability'!$B$3:$U$5,2,0),0) -> 0.3 | OO27: =IF(AND(OO$3<>"",NT27<>0),HLOOKUP(OO$4,'Agency cashability'!$B$3:$U$5,2,0),0) -> 0.2 | OP27: =IF(AND(OP$3<>"",NU27<>0),HLOOKUP(OP$4,'Agency cashability'!$B$3:$U$5,2,0),0) -> 0.2 | OQ27: =IF(AND(OQ$3<>"",NV27<>0),HLOOKUP(OQ$4,'Agency cashability'!$B$3:$U$5,2,0),0) -> 0 | OR27: =IF(AND(OR$3<>"",NW27<>0),HLOOKUP(OR$4,'Agency cashability'!$B$3:$U$5,2,0),0) -> 0.2 | OS27: =IF(AND(OS$3<>"",NX27<>0),HLOOKUP(OS$4,'Agency cashability'!$B$3:$U$5,2,0),0) -> 0 | OT27: =IF(AND(OT$3<>"",NY27<>0),HLOOKUP(OT$4,'Agency cashability'!$B$3:$U$5,2,0),0) -> 0 | OU27: =IF(AND(OU$3<>"",NZ27<>0),HLOOKUP(OU$4,'Agency cashability'!$B$3:$U$5,2,0),0) -> 0 | OV27: =IF(AND(OV$3<>"",OA27<>0),HLOOKUP(OV$4,'Agency cashability'!$B$3:$U$5,2,0),0) -> 0 | OW27: =IF(AND(OW$3<>"",OB27<>0),HLOOKUP(OW$4,'Agency cashability'!$B$3:$U$5,2,0),0) -> 0 | OX27: =IF(AND(OX$3<>"",OC27<>0),HLOOKUP(OX$4,'Agency cashability'!$B$3:$U$5,2,0),0) -> 0 | OY27: =IF(AND(OY$3<>"",OD27<>0),HLOOKUP(OY$4,'Agency cashability'!$B$3:$U$5,2,0),0) -> 0 | OZ27: =IF(AND(OZ$3<>"",OE27<>0),HLOOKUP(OZ$4,'Agency cashability'!$B$3:$U$5,2,0),0) -> 0 | PA27: =IF(AND(PA$3<>"",OF27<>0),HLOOKUP(PA$4,'Agency cashability'!$B$3:$U$5,2,0),0) -> 0 | PB27: =IF(AND(PB$3<>"",OG27<>0),HLOOKUP(PB$4,'Agency cashability'!$B$3:$U$5,2,0),0) -> 0 | PC27: =IF(AND(PC$3<>"",OH27<>0),HLOOKUP(PC$4,'Agency cashability'!$B$3:$U$5,2,0),0) -> 0 | PD27: =IF(AND(PD$3<>"",OI27<>0),HLOOKUP(PD$4,'Agency cashability'!$B$3:$U$5,2,0),0) -> 0 | PE27: =IF(AND(PE$3<>"",OJ27<>0),HLOOKUP(PE$4,'Agency cashability'!$B$3:$U$5,2,0),0) -> 0 | PG27: =IF(AND(PG$3<>"",NQ27<>0),HLOOKUP(PG$4,'Agency cashability'!$B$3:$U$5,3,0),0) -> 0 | PH27: =IF(AND(PH$3<>"",NR27<>0),HLOOKUP(PH$4,'Agency cashability'!$B$3:$U$5,3,0),0) -> 0.5 | PI27: =IF(AND(PI$3<>"",NS27<>0),HLOOKUP(PI$4,'Agency cashability'!$B$3:$U$5,3,0),0) -> 0.6 | PJ27: =IF(AND(PJ$3<>"",NT27<>0),HLOOKUP(PJ$4,'Agency cashability'!$B$3:$U$5,3,0),0) -> 0.5 | PK27: =IF(AND(PK$3<>"",NU27<>0),HLOOKUP(PK$4,'Agency cashability'!$B$3:$U$5,3,0),0) -> 0.5 | PL27: =IF(AND(PL$3<>"",NV27<>0),HLOOKUP(PL$4,'Agency cashability'!$B$3:$U$5,3,0),0) -> 0 | PM27: =IF(AND(PM$3<>"",NW27<>0),HLOOKUP(PM$4,'Agency cashability'!$B$3:$U$5,3,0),0) -> 0.5 | PN27: =IF(AND(PN$3<>"",NX27<>0),HLOOKUP(PN$4,'Agency cashability'!$B$3:$U$5,3,0),0) -> 0 | PO27: =IF(AND(PO$3<>"",NY27<>0),HLOOKUP(PO$4,'Agency cashability'!$B$3:$U$5,3,0),0) -> 0 | PP27: =IF(AND(PP$3<>"",NZ27<>0),HLOOKUP(PP$4,'Agency cashability'!$B$3:$U$5,3,0),0) -> 0 | PQ27: =IF(AND(PQ$3<>"",OA27<>0),HLOOKUP(PQ$4,'Agency cashability'!$B$3:$U$5,3,0),0) -> 0 | PR27: =IF(AND(PR$3<>"",OB27<>0),HLOOKUP(PR$4,'Agency cashability'!$B$3:$U$5,3,0),0) -> 0 | PS27: =IF(AND(PS$3<>"",OC27<>0),HLOOKUP(PS$4,'Agency cashability'!$B$3:$U$5,3,0),0) -> 0 | PT27: =IF(AND(PT$3<>"",OD27<>0),HLOOKUP(PT$4,'Agency cashability'!$B$3:$U$5,3,0),0) -> 0 | PU27: =IF(AND(PU$3<>"",OE27<>0),HLOOKUP(PU$4,'Agency cashability'!$B$3:$U$5,3,0),0) -> 0 | PV27: =IF(AND(PV$3<>"",OF27<>0),HLOOKUP(PV$4,'Agency cashability'!$B$3:$U$5,3,0),0) -> 0 | PW27: =IF(AND(PW$3<>"",OG27<>0),HLOOKUP(PW$4,'Agency cashability'!$B$3:$U$5,3,0),0) -> 0 | PX27: =IF(AND(PX$3<>"",OH27<>0),HLOOKUP(PX$4,'Agency cashability'!$B$3:$U$5,3,0),0) -> 0 | PY27: =IF(AND(PY$3<>"",OI27<>0),HLOOKUP(PY$4,'Agency cashability'!$B$3:$U$5,3,0),0) -> 0 | PZ27: =IF(AND(PZ$3<>"",OJ27<>0),HLOOKUP(PZ$4,'Agency cashability'!$B$3:$U$5,3,0),0) -> 0 | QB27: 0 | QC27: 0 | QD27: 0 | QE27: 0 | QF27: 0 | QG27: 0 | QH27: 0 | QI27: 0 | QJ27: 0 | QK27: 0 | QL27: 0 | QM27: 0 | QN27: 0 | QW27: =IF((QW$3<>""),OL27*QB27,"") -> 0 | QX27: 0 | QY27: 0 | QZ27: 0 | RA27: 0 | RB27: 0 | RC27: 0 | RD27: 0 | RE27: 0 | RF27: 0 | RG27: 0 | RH27: 0 | RI27: 0 | RT27: =IF((RT$3<>""),PG27*QB27,"") -> 0 | RU27: 0 | RV27: 0 | RW27: 0 | RX27: 0 | RY27: 0 | RZ27: 0 | SA27: 0 | SB27: 0 | SC27: 0 | SD27: 0 | SE27: 0 | SF27: 0
A28: B9m | B28: Reduced incidents of crime - commercial burglary | C28: No | D28: Reduced police, other criminal justice costs, health costs per actual crime (N.B. Use multipliers to convert from recorded crime or convictions) | E28: Police, CJS, NHS | R28: 2930 | S28: 2930 | T28: 12010 | U28: 510 | V28: 15450 | W28: 2016 | X28: =VLOOKUP(W28,'GDP Deflators'!$B$6:$D$106,3,FALSE) -> 88.19270512 | Y28: The Economic and Social cost of Crime, Second Edition (Home Office 2018) | AA28: Standard Rate | AB28: 0 | AC28: 0 | AD28: 0 | AE28: 0 | DP28: 0 | DQ28: 0 | DR28: 0 | DS28: 0 | DT28: 0 | DU28: 0 | DV28: 0 | DW28: 0 | DX28: 0 | DY28: 0 | GW28: 0 | GY28: 0 | GZ28: 0 | HA28: 0 | HB28: 0 | HC28: 0 | HD28: 0 | HE28: 0 | HF28: 0 | HG28: 0 | HH28: 0 | KF28: 0 | KH28: 0 | KI28: 0 | KJ28: 0 | KK28: 0 | KL28: 0 | KM28: 0 | KN28: 0 | KO28: 0 | KP28: 0 | KQ28: 0 | NO28: 0 | NQ28: =IF(NQ$3<>"",VLOOKUP($A28,'Agency percentages'!$A$6:$X$71,(3+MATCH(NQ$4,'Agency percentages'!$D$5:$W$5,0)),FALSE),"") -> 0 | NR28: =IF(NR$3<>"",VLOOKUP($A28,'Agency percentages'!$A$6:$X$71,(3+MATCH(NR$4,'Agency percentages'!$D$5:$W$5,0)),FALSE),"") -> 0.05460750853 | NS28: =IF(NS$3<>"",VLOOKUP($A28,'Agency percentages'!$A$6:$X$71,(3+MATCH(NS$4,'Agency percentages'!$D$5:$W$5,0)),FALSE),"") -> 0.180887372 | NT28: =IF(NT$3<>"",VLOOKUP($A28,'Agency percentages'!$A$6:$X$71,(3+MATCH(NT$4,'Agency percentages'!$D$5:$W$5,0)),FALSE),"") -> 0.1058020478 | NU28: =IF(NU$3<>"",VLOOKUP($A28,'Agency percentages'!$A$6:$X$71,(3+MATCH(NU$4,'Agency percentages'!$D$5:$W$5,0)),FALSE),"") -> 0.4948805461 | NV28: =IF(NV$3<>"",VLOOKUP($A28,'Agency percentages'!$A$6:$X$71,(3+MATCH(NV$4,'Agency percentages'!$D$5:$W$5,0)),FALSE),"") -> 0.09897610922 | NW28: =IF(NW$3<>"",VLOOKUP($A28,'Agency percentages'!$A$6:$X$71,(3+MATCH(NW$4,'Agency percentages'!$D$5:$W$5,0)),FALSE),"") -> 0.06484641638 | NX28: =IF(NX$3<>"",VLOOKUP($A28,'Agency percentages'!$A$6:$X$71,(3+MATCH(NX$4,'Agency percentages'!$D$5:$W$5,0)),FALSE),"") -> 0 | NY28: =IF(NY$3<>"",VLOOKUP($A28,'Agency percentages'!$A$6:$X$71,(3+MATCH(NY$4,'Agency percentages'!$D$5:$W$5,0)),FALSE),"") -> 0 | NZ28: =IF(NZ$3<>"",VLOOKUP($A28,'Agency percentages'!$A$6:$X$71,(3+MATCH(NZ$4,'Agency percentages'!$D$5:$W$5,0)),FALSE),"") -> 0 | OA28: =IF(OA$3<>"",VLOOKUP($A28,'Agency percentages'!$A$6:$X$71,(3+MATCH(OA$4,'Agency percentages'!$D$5:$W$5,0)),FALSE),"") -> 0 | OB28: =IF(OB$3<>"",VLOOKUP($A28,'Agency percentages'!$A$6:$X$71,(3+MATCH(OB$4,'Agency percentages'!$D$5:$W$5,0)),FALSE),"") -> 0 | OC28: =IF(OC$3<>"",VLOOKUP($A28,'Agency percentages'!$A$6:$X$71,(3+MATCH(OC$4,'Agency percentages'!$D$5:$W$5,0)),FALSE),"") -> 0 | OD28: =IF(OD$3<>"",VLOOKUP($A28,'Agency percentages'!$A$6:$X$71,(3+MATCH(OD$4,'Agency percentages'!$D$5:$W$5,0)),FALSE),"") ->  | OE28: =IF(OE$3<>"",VLOOKUP($A28,'Agency percentages'!$A$6:$X$71,(3+MATCH(OE$4,'Agency percentages'!$D$5:$W$5,0)),FALSE),"") ->  | OF28: =IF(OF$3<>"",VLOOKUP($A28,'Agency percentages'!$A$6:$X$71,(3+MATCH(OF$4,'Agency percentages'!$D$5:$W$5,0)),FALSE),"") ->  | OG28: =IF(OG$3<>"",VLOOKUP($A28,'Agency percentages'!$A$6:$X$71,(3+MATCH(OG$4,'Agency percentages'!$D$5:$W$5,0)),FALSE),"") ->  | OH28: =IF(OH$3<>"",VLOOKUP($A28,'Agency percentages'!$A$6:$X$71,(3+MATCH(OH$4,'Agency percentages'!$D$5:$W$5,0)),FALSE),"") ->  | OI28: =IF(OI$3<>"",VLOOKUP($A28,'Agency percentages'!$A$6:$X$71,(3+MATCH(OI$4,'Agency percentages'!$D$5:$W$5,0)),FALSE),"") ->  | OJ28: =IF(OJ$3<>"",VLOOKUP($A28,'Agency percentages'!$A$6:$X$71,(3+MATCH(OJ$4,'Agency percentages'!$D$5:$W$5,0)),FALSE),"") ->  | OL28: =IF(AND(OL$3<>"",NQ28<>0),HLOOKUP(OL$4,'Agency cashability'!$B$3:$U$5,2,0),0) -> 0 | OM28: =IF(AND(OM$3<>"",NR28<>0),HLOOKUP(OM$4,'Agency cashability'!$B$3:$U$5,2,0),0) -> 0.2 | ON28: =IF(AND(ON$3<>"",NS28<>0),HLOOKUP(ON$4,'Agency cashability'!$B$3:$U$5,2,0),0) -> 0.3 | OO28: =IF(AND(OO$3<>"",NT28<>0),HLOOKUP(OO$4,'Agency cashability'!$B$3:$U$5,2,0),0) -> 0.2 | OP28: =IF(AND(OP$3<>"",NU28<>0),HLOOKUP(OP$4,'Agency cashability'!$B$3:$U$5,2,0),0) -> 0.2 | OQ28: =IF(AND(OQ$3<>"",NV28<>0),HLOOKUP(OQ$4,'Agency cashability'!$B$3:$U$5,2,0),0) -> 0.2 | OR28: =IF(AND(OR$3<>"",NW28<>0),HLOOKUP(OR$4,'Agency cashability'!$B$3:$U$5,2,0),0) -> 0.2 | OS28: =IF(AND(OS$3<>"",NX28<>0),HLOOKUP(OS$4,'Agency cashability'!$B$3:$U$5,2,0),0) -> 0 | OT28: =IF(AND(OT$3<>"",NY28<>0),HLOOKUP(OT$4,'Agency cashability'!$B$3:$U$5,2,0),0) -> 0 | OU28: =IF(AND(OU$3<>"",NZ28<>0),HLOOKUP(OU$4,'Agency cashability'!$B$3:$U$5,2,0),0) -> 0 | OV28: =IF(AND(OV$3<>"",OA28<>0),HLOOKUP(OV$4,'Agency cashability'!$B$3:$U$5,2,0),0) -> 0 | OW28: =IF(AND(OW$3<>"",OB28<>0),HLOOKUP(OW$4,'Agency cashability'!$B$3:$U$5,2,0),0) -> 0 | OX28: =IF(AND(OX$3<>"",OC28<>0),HLOOKUP(OX$4,'Agency cashability'!$B$3:$U$5,2,0),0) -> 0 | OY28: =IF(AND(OY$3<>"",OD28<>0),HLOOKUP(OY$4,'Agency cashability'!$B$3:$U$5,2,0),0) -> 0 | OZ28: =IF(AND(OZ$3<>"",OE28<>0),HLOOKUP(OZ$4,'Agency cashability'!$B$3:$U$5,2,0),0) -> 0 | PA28: =IF(AND(PA$3<>"",OF28<>0),HLOOKUP(PA$4,'Agency cashability'!$B$3:$U$5,2,0),0) -> 0 | PB28: =IF(AND(PB$3<>"",OG28<>0),HLOOKUP(PB$4,'Agency cashability'!$B$3:$U$5,2,0),0) -> 0 | PC28: =IF(AND(PC$3<>"",OH28<>0),HLOOKUP(PC$4,'Agency cashability'!$B$3:$U$5,2,0),0) -> 0 | PD28: =IF(AND(PD$3<>"",OI28<>0),HLOOKUP(PD$4,'Agency cashability'!$B$3:$U$5,2,0),0) -> 0 | PE28: =IF(AND(PE$3<>"",OJ28<>0),HLOOKUP(PE$4,'Agency cashability'!$B$3:$U$5,2,0),0) -> 0 | PG28: =IF(AND(PG$3<>"",NQ28<>0),HLOOKUP(PG$4,'Agency cashability'!$B$3:$U$5,3,0),0) -> 0 | PH28: =IF(AND(PH$3<>"",NR28<>0),HLOOKUP(PH$4,'Agency cashability'!$B$3:$U$5,3,0),0) -> 0.5 | PI28: =IF(AND(PI$3<>"",NS28<>0),HLOOKUP(PI$4,'Agency cashability'!$B$3:$U$5,3,0),0) -> 0.6 | PJ28: =IF(AND(PJ$3<>"",NT28<>0),HLOOKUP(PJ$4,'Agency cashability'!$B$3:$U$5,3,0),0) -> 0.5 | PK28: =IF(AND(PK$3<>"",NU28<>0),HLOOKUP(PK$4,'Agency cashability'!$B$3:$U$5,3,0),0) -> 0.5 | PL28: =IF(AND(PL$3<>"",NV28<>0),HLOOKUP(PL$4,'Agency cashability'!$B$3:$U$5,3,0),0) -> 0.5 | PM28: =IF(AND(PM$3<>"",NW28<>0),HLOOKUP(PM$4,'Agency cashability'!$B$3:$U$5,3,0),0) -> 0.5 | PN28: =IF(AND(PN$3<>"",NX28<>0),HLOOKUP(PN$4,'Agency cashability'!$B$3:$U$5,3,0),0) -> 0 | PO28: =IF(AND(PO$3<>"",NY28<>0),HLOOKUP(PO$4,'Agency cashability'!$B$3:$U$5,3,0),0) -> 0 | PP28: =IF(AND(PP$3<>"",NZ28<>0),HLOOKUP(PP$4,'Agency cashability'!$B$3:$U$5,3,0),0) -> 0 | PQ28: =IF(AND(PQ$3<>"",OA28<>0),HLOOKUP(PQ$4,'Agency cashability'!$B$3:$U$5,3,0),0) -> 0 | PR28: =IF(AND(PR$3<>"",OB28<>0),HLOOKUP(PR$4,'Agency cashability'!$B$3:$U$5,3,0),0) -> 0 | PS28: =IF(AND(PS$3<>"",OC28<>0),HLOOKUP(PS$4,'Agency cashability'!$B$3:$U$5,3,0),0) -> 0 | PT28: =IF(AND(PT$3<>"",OD28<>0),HLOOKUP(PT$4,'Agency cashability'!$B$3:$U$5,3,0),0) -> 0 | PU28: =IF(AND(PU$3<>"",OE28<>0),HLOOKUP(PU$4,'Agency cashability'!$B$3:$U$5,3,0),0) -> 0 | PV28: =IF(AND(PV$3<>"",OF28<>0),HLOOKUP(PV$4,'Agency cashability'!$B$3:$U$5,3,0),0) -> 0 | PW28: =IF(AND(PW$3<>"",OG28<>0),HLOOKUP(PW$4,'Agency cashability'!$B$3:$U$5,3,0),0) -> 0 | PX28: =IF(AND(PX$3<>"",OH28<>0),HLOOKUP(PX$4,'Agency cashability'!$B$3:$U$5,3,0),0) -> 0 | PY28: =IF(AND(PY$3<>"",OI28<>0),HLOOKUP(PY$4,'Agency cashability'!$B$3:$U$5,3,0),0) -> 0 | PZ28: =IF(AND(PZ$3<>"",OJ28<>0),HLOOKUP(PZ$4,'Agency cashability'!$B$3:$U$5,3,0),0) -> 0 | QB28: 0 | QC28: 0 | QD28: 0 | QE28: 0 | QF28: 0 | QG28: 0 | QH28: 0 | QI28: 0 | QJ28: 0 | QK28: 0 | QL28: 0 | QM28: 0 | QN28: 0 | QW28: =IF((QW$3<>""),OL28*QB28,"") -> 0 | QX28: 0 | QY28: 0 | QZ28: 0 | RA28: 0 | RB28: 0 | RC28: 0 | RD28: 0 | RE28: 0 | RF28: 0 | RG28: 0 | RH28: 0 | RI28: 0 | RT28: =IF((RT$3<>""),PG28*QB28,"") -> 0 | RU28: 0 | RV28: 0 | RW28: 0 | RX28: 0 | RY28: 0 | RZ28: 0 | SA28: 0 | SB28: 0 | SC28: 0 | SD28: 0 | SE28: 0 | SF28: 0
A29: B9n | B29: Reduced incidents of crime - commercial robbery | C29: No | D29: Reduced police, other criminal justice costs, health costs per actual crime (N.B. Use multipliers to convert from recorded crime or convictions) | E29: Police, CJS, NHS | R29: 5300 | S29: 5300 | T29: 5530 | U29: 4170 | V29: 15000 | W29: 2016 | X29: =VLOOKUP(W29,'GDP Deflators'!$B$6:$D$106,3,FALSE) -> 88.19270512 | Y29: The Economic and Social cost of Crime, Second Edition (Home Office 2018) | AA29: Standard Rate | AB29: 0 | AC29: 0 | AD29: 0 | AE29: 0 | DP29: 0 | DQ29: 0 | DR29: 0 | DS29: 0 | DT29: 0 | DU29: 0 | DV29: 0 | DW29: 0 | DX29: 0 | DY29: 0 | GW29: 0 | GY29: 0 | GZ29: 0 | HA29: 0 | HB29: 0 | HC29: 0 | HD29: 0 | HE29: 0 | HF29: 0 | HG29: 0 | HH29: 0 | KF29: 0 | KH29: 0 | KI29: 0 | KJ29: 0 | KK29: 0 | KL29: 0 | KM29: 0 | KN29: 0 | KO29: 0 | KP29: 0 | KQ29: 0 | NO29: 0 | NQ29: =IF(NQ$3<>"",VLOOKUP($A29,'Agency percentages'!$A$6:$X$71,(3+MATCH(NQ$4,'Agency percentages'!$D$5:$W$5,0)),FALSE),"") -> 0 | NR29: =IF(NR$3<>"",VLOOKUP($A29,'Agency percentages'!$A$6:$X$71,(3+MATCH(NR$4,'Agency percentages'!$D$5:$W$5,0)),FALSE),"") -> 0.1134215501 | NS29: =IF(NS$3<>"",VLOOKUP($A29,'Agency percentages'!$A$6:$X$71,(3+MATCH(NS$4,'Agency percentages'!$D$5:$W$5,0)),FALSE),"") -> 0.190926276 | NT29: =IF(NT$3<>"",VLOOKUP($A29,'Agency percentages'!$A$6:$X$71,(3+MATCH(NT$4,'Agency percentages'!$D$5:$W$5,0)),FALSE),"") -> 0.03213610586 | NU29: =IF(NU$3<>"",VLOOKUP($A29,'Agency percentages'!$A$6:$X$71,(3+MATCH(NU$4,'Agency percentages'!$D$5:$W$5,0)),FALSE),"") -> 0.4442344045 | NV29: =IF(NV$3<>"",VLOOKUP($A29,'Agency percentages'!$A$6:$X$71,(3+MATCH(NV$4,'Agency percentages'!$D$5:$W$5,0)),FALSE),"") -> 0.179584121 | NW29: =IF(NW$3<>"",VLOOKUP($A29,'Agency percentages'!$A$6:$X$71,(3+MATCH(NW$4,'Agency percentages'!$D$5:$W$5,0)),FALSE),"") -> 0.03969754253 | NX29: =IF(NX$3<>"",VLOOKUP($A29,'Agency percentages'!$A$6:$X$71,(3+MATCH(NX$4,'Agency percentages'!$D$5:$W$5,0)),FALSE),"") -> 0 | NY29: =IF(NY$3<>"",VLOOKUP($A29,'Agency percentages'!$A$6:$X$71,(3+MATCH(NY$4,'Agency percentages'!$D$5:$W$5,0)),FALSE),"") -> 0 | NZ29: =IF(NZ$3<>"",VLOOKUP($A29,'Agency percentages'!$A$6:$X$71,(3+MATCH(NZ$4,'Agency percentages'!$D$5:$W$5,0)),FALSE),"") -> 0 | OA29: =IF(OA$3<>"",VLOOKUP($A29,'Agency percentages'!$A$6:$X$71,(3+MATCH(OA$4,'Agency percentages'!$D$5:$W$5,0)),FALSE),"") -> 0 | OB29: =IF(OB$3<>"",VLOOKUP($A29,'Agency percentages'!$A$6:$X$71,(3+MATCH(OB$4,'Agency percentages'!$D$5:$W$5,0)),FALSE),"") -> 0 | OC29: =IF(OC$3<>"",VLOOKUP($A29,'Agency percentages'!$A$6:$X$71,(3+MATCH(OC$4,'Agency percentages'!$D$5:$W$5,0)),FALSE),"") -> 0 | OD29: =IF(OD$3<>"",VLOOKUP($A29,'Agency percentages'!$A$6:$X$71,(3+MATCH(OD$4,'Agency percentages'!$D$5:$W$5,0)),FALSE),"") ->  | OE29: =IF(OE$3<>"",VLOOKUP($A29,'Agency percentages'!$A$6:$X$71,(3+MATCH(OE$4,'Agency percentages'!$D$5:$W$5,0)),FALSE),"") ->  | OF29: =IF(OF$3<>"",VLOOKUP($A29,'Agency percentages'!$A$6:$X$71,(3+MATCH(OF$4,'Agency percentages'!$D$5:$W$5,0)),FALSE),"") ->  | OG29: =IF(OG$3<>"",VLOOKUP($A29,'Agency percentages'!$A$6:$X$71,(3+MATCH(OG$4,'Agency percentages'!$D$5:$W$5,0)),FALSE),"") ->  | OH29: =IF(OH$3<>"",VLOOKUP($A29,'Agency percentages'!$A$6:$X$71,(3+MATCH(OH$4,'Agency percentages'!$D$5:$W$5,0)),FALSE),"") ->  | OI29: =IF(OI$3<>"",VLOOKUP($A29,'Agency percentages'!$A$6:$X$71,(3+MATCH(OI$4,'Agency percentages'!$D$5:$W$5,0)),FALSE),"") ->  | OJ29: =IF(OJ$3<>"",VLOOKUP($A29,'Agency percentages'!$A$6:$X$71,(3+MATCH(OJ$4,'Agency percentages'!$D$5:$W$5,0)),FALSE),"") ->  | OL29: =IF(AND(OL$3<>"",NQ29<>0),HLOOKUP(OL$4,'Agency cashability'!$B$3:$U$5,2,0),0) -> 0 | OM29: =IF(AND(OM$3<>"",NR29<>0),HLOOKUP(OM$4,'Agency cashability'!$B$3:$U$5,2,0),0) -> 0.2 | ON29: =IF(AND(ON$3<>"",NS29<>0),HLOOKUP(ON$4,'Agency cashability'!$B$3:$U$5,2,0),0) -> 0.3 | OO29: =IF(AND(OO$3<>"",NT29<>0),HLOOKUP(OO$4,'Agency cashability'!$B$3:$U$5,2,0),0) -> 0.2 | OP29: =IF(AND(OP$3<>"",NU29<>0),HLOOKUP(OP$4,'Agency cashability'!$B$3:$U$5,2,0),0) -> 0.2 | OQ29: =IF(AND(OQ$3<>"",NV29<>0),HLOOKUP(OQ$4,'Agency cashability'!$B$3:$U$5,2,0),0) -> 0.2 | OR29: =IF(AND(OR$3<>"",NW29<>0),HLOOKUP(OR$4,'Agency cashability'!$B$3:$U$5,2,0),0) -> 0.2 | OS29: =IF(AND(OS$3<>"",NX29<>0),HLOOKUP(OS$4,'Agency cashability'!$B$3:$U$5,2,0),0) -> 0 | OT29: =IF(AND(OT$3<>"",NY29<>0),HLOOKUP(OT$4,'Agency cashability'!$B$3:$U$5,2,0),0) -> 0 | OU29: =IF(AND(OU$3<>"",NZ29<>0),HLOOKUP(OU$4,'Agency cashability'!$B$3:$U$5,2,0),0) -> 0 | OV29: =IF(AND(OV$3<>"",OA29<>0),HLOOKUP(OV$4,'Agency cashability'!$B$3:$U$5,2,0),0) -> 0 | OW29: =IF(AND(OW$3<>"",OB29<>0),HLOOKUP(OW$4,'Agency cashability'!$B$3:$U$5,2,0),0) -> 0 | OX29: =IF(AND(OX$3<>"",OC29<>0),HLOOKUP(OX$4,'Agency cashability'!$B$3:$U$5,2,0),0) -> 0 | OY29: =IF(AND(OY$3<>"",OD29<>0),HLOOKUP(OY$4,'Agency cashability'!$B$3:$U$5,2,0),0) -> 0 | OZ29: =IF(AND(OZ$3<>"",OE29<>0),HLOOKUP(OZ$4,'Agency cashability'!$B$3:$U$5,2,0),0) -> 0 | PA29: =IF(AND(PA$3<>"",OF29<>0),HLOOKUP(PA$4,'Agency cashability'!$B$3:$U$5,2,0),0) -> 0 | PB29: =IF(AND(PB$3<>"",OG29<>0),HLOOKUP(PB$4,'Agency cashability'!$B$3:$U$5,2,0),0) -> 0 | PC29: =IF(AND(PC$3<>"",OH29<>0),HLOOKUP(PC$4,'Agency cashability'!$B$3:$U$5,2,0),0) -> 0 | PD29: =IF(AND(PD$3<>"",OI29<>0),HLOOKUP(PD$4,'Agency cashability'!$B$3:$U$5,2,0),0) -> 0 | PE29: =IF(AND(PE$3<>"",OJ29<>0),HLOOKUP(PE$4,'Agency cashability'!$B$3:$U$5,2,0),0) -> 0 | PG29: =IF(AND(PG$3<>"",NQ29<>0),HLOOKUP(PG$4,'Agency cashability'!$B$3:$U$5,3,0),0) -> 0 | PH29: =IF(AND(PH$3<>"",NR29<>0),HLOOKUP(PH$4,'Agency cashability'!$B$3:$U$5,3,0),0) -> 0.5 | PI29: =IF(AND(PI$3<>"",NS29<>0),HLOOKUP(PI$4,'Agency cashability'!$B$3:$U$5,3,0),0) -> 0.6 | PJ29: =IF(AND(PJ$3<>"",NT29<>0),HLOOKUP(PJ$4,'Agency cashability'!$B$3:$U$5,3,0),0) -> 0.5 | PK29: =IF(AND(PK$3<>"",NU29<>0),HLOOKUP(PK$4,'Agency cashability'!$B$3:$U$5,3,0),0) -> 0.5 | PL29: =IF(AND(PL$3<>"",NV29<>0),HLOOKUP(PL$4,'Agency cashability'!$B$3:$U$5,3,0),0) -> 0.5 | PM29: =IF(AND(PM$3<>"",NW29<>0),HLOOKUP(PM$4,'Agency cashability'!$B$3:$U$5,3,0),0) -> 0.5 | PN29: =IF(AND(PN$3<>"",NX29<>0),HLOOKUP(PN$4,'Agency cashability'!$B$3:$U$5,3,0),0) -> 0 | PO29: =IF(AND(PO$3<>"",NY29<>0),HLOOKUP(PO$4,'Agency cashability'!$B$3:$U$5,3,0),0) -> 0 | PP29: =IF(AND(PP$3<>"",NZ29<>0),HLOOKUP(PP$4,'Agency cashability'!$B$3:$U$5,3,0),0) -> 0 | PQ29: =IF(AND(PQ$3<>"",OA29<>0),HLOOKUP(PQ$4,'Agency cashability'!$B$3:$U$5,3,0),0) -> 0 | PR29: =IF(AND(PR$3<>"",OB29<>0),HLOOKUP(PR$4,'Agency cashability'!$B$3:$U$5,3,0),0) -> 0 | PS29: =IF(AND(PS$3<>"",OC29<>0),HLOOKUP(PS$4,'Agency cashability'!$B$3:$U$5,3,0),0) -> 0 | PT29: =IF(AND(PT$3<>"",OD29<>0),HLOOKUP(PT$4,'Agency cashability'!$B$3:$U$5,3,0),0) -> 0 | PU29: =IF(AND(PU$3<>"",OE29<>0),HLOOKUP(PU$4,'Agency cashability'!$B$3:$U$5,3,0),0) -> 0 | PV29: =IF(AND(PV$3<>"",OF29<>0),HLOOKUP(PV$4,'Agency cashability'!$B$3:$U$5,3,0),0) -> 0 | PW29: =IF(AND(PW$3<>"",OG29<>0),HLOOKUP(PW$4,'Agency cashability'!$B$3:$U$5,3,0),0) -> 0 | PX29: =IF(AND(PX$3<>"",OH29<>0),HLOOKUP(PX$4,'Agency cashability'!$B$3:$U$5,3,0),0) -> 0 | PY29: =IF(AND(PY$3<>"",OI29<>0),HLOOKUP(PY$4,'Agency cashability'!$B$3:$U$5,3,0),0) -> 0 | PZ29: =IF(AND(PZ$3<>"",OJ29<>0),HLOOKUP(PZ$4,'Agency cashability'!$B$3:$U$5,3,0),0) -> 0 | QB29: 0 | QC29: 0 | QD29: 0 | QE29: 0 | QF29: 0 | QG29: 0 | QH29: 0 | QI29: 0 | QJ29: 0 | QK29: 0 | QL29: 0 | QM29: 0 | QN29: 0 | QW29: =IF((QW$3<>""),OL29*QB29,"") -> 0 | QX29: 0 | QY29: 0 | QZ29: 0 | RA29: 0 | RB29: 0 | RC29: 0 | RD29: 0 | RE29: 0 | RF29: 0 | RG29: 0 | RH29: 0 | RI29: 0 | RT29: =IF((RT$3<>""),PG29*QB29,"") -> 0 | RU29: 0 | RV29: 0 | RW29: 0 | RX29: 0 | RY29: 0 | RZ29: 0 | SA29: 0 | SB29: 0 | SC29: 0 | SD29: 0 | SE29: 0 | SF29: 0
A30: B9o | B30: Reduced incidents of crime - commercial - theft of vehicle | C30: No | D30: Reduced police, other criminal justice costs, health costs per actual crime (N.B. Use multipliers to convert from recorded crime or convictions) | E30: Police, CJS, NHS | R30: 3910 | S30: 3910 | T30: 30910 | U30: 360 | V30: 35180 | W30: 2016 | X30: =VLOOKUP(W30,'GDP Deflators'!$B$6:$D$106,3,FALSE) -> 88.19270512 | Y30: The Economic and Social cost of Crime, Second Edition (Home Office 2018) | AA30: Standard Rate | AB30: 0 | AC30: 0 | AD30: 0 | AE30: 0 | DP30: 0 | DQ30: 0 | DR30: 0 | DS30: 0 | DT30: 0 | DU30: 0 | DV30: 0 | DW30: 0 | DX30: 0 | DY30: 0 | GW30: 0 | GY30: 0 | GZ30: 0 | HA30: 0 | HB30: 0 | HC30: 0 | HD30: 0 | HE30: 0 | HF30: 0 | HG30: 0 | HH30: 0 | KF30: 0 | KH30: 0 | KI30: 0 | KJ30: 0 | KK30: 0 | KL30: 0 | KM30: 0 | KN30: 0 | KO30: 0 | KP30: 0 | KQ30: 0 | NO30: 0 | NQ30: =IF(NQ$3<>"",VLOOKUP($A30,'Agency percentages'!$A$6:$X$71,(3+MATCH(NQ$4,'Agency percentages'!$D$5:$W$5,0)),FALSE),"") -> 0 | NR30: =IF(NR$3<>"",VLOOKUP($A30,'Agency percentages'!$A$6:$X$71,(3+MATCH(NR$4,'Agency percentages'!$D$5:$W$5,0)),FALSE),"") -> 0.002570694087 | NS30: =IF(NS$3<>"",VLOOKUP($A30,'Agency percentages'!$A$6:$X$71,(3+MATCH(NS$4,'Agency percentages'!$D$5:$W$5,0)),FALSE),"") -> 0.5218508997 | NT30: =IF(NT$3<>"",VLOOKUP($A30,'Agency percentages'!$A$6:$X$71,(3+MATCH(NT$4,'Agency percentages'!$D$5:$W$5,0)),FALSE),"") -> 0.07712082262 | NU30: =IF(NU$3<>"",VLOOKUP($A30,'Agency percentages'!$A$6:$X$71,(3+MATCH(NU$4,'Agency percentages'!$D$5:$W$5,0)),FALSE),"") -> 0.3316195373 | NV30: =IF(NV$3<>"",VLOOKUP($A30,'Agency percentages'!$A$6:$X$71,(3+MATCH(NV$4,'Agency percentages'!$D$5:$W$5,0)),FALSE),"") -> 0.03084832905 | NW30: =IF(NW$3<>"",VLOOKUP($A30,'Agency percentages'!$A$6:$X$71,(3+MATCH(NW$4,'Agency percentages'!$D$5:$W$5,0)),FALSE),"") -> 0.03598971722 | NX30: =IF(NX$3<>"",VLOOKUP($A30,'Agency percentages'!$A$6:$X$71,(3+MATCH(NX$4,'Agency percentages'!$D$5:$W$5,0)),FALSE),"") -> 0 | NY30: =IF(NY$3<>"",VLOOKUP($A30,'Agency percentages'!$A$6:$X$71,(3+MATCH(NY$4,'Agency percentages'!$D$5:$W$5,0)),FALSE),"") -> 0 | NZ30: =IF(NZ$3<>"",VLOOKUP($A30,'Agency percentages'!$A$6:$X$71,(3+MATCH(NZ$4,'Agency percentages'!$D$5:$W$5,0)),FALSE),"") -> 0 | OA30: =IF(OA$3<>"",VLOOKUP($A30,'Agency percentages'!$A$6:$X$71,(3+MATCH(OA$4,'Agency percentages'!$D$5:$W$5,0)),FALSE),"") -> 0 | OB30: =IF(OB$3<>"",VLOOKUP($A30,'Agency percentages'!$A$6:$X$71,(3+MATCH(OB$4,'Agency percentages'!$D$5:$W$5,0)),FALSE),"") -> 0 | OC30: =IF(OC$3<>"",VLOOKUP($A30,'Agency percentages'!$A$6:$X$71,(3+MATCH(OC$4,'Agency percentages'!$D$5:$W$5,0)),FALSE),"") -> 0 | OD30: =IF(OD$3<>"",VLOOKUP($A30,'Agency percentages'!$A$6:$X$71,(3+MATCH(OD$4,'Agency percentages'!$D$5:$W$5,0)),FALSE),"") ->  | OE30: =IF(OE$3<>"",VLOOKUP($A30,'Agency percentages'!$A$6:$X$71,(3+MATCH(OE$4,'Agency percentages'!$D$5:$W$5,0)),FALSE),"") ->  | OF30: =IF(OF$3<>"",VLOOKUP($A30,'Agency percentages'!$A$6:$X$71,(3+MATCH(OF$4,'Agency percentages'!$D$5:$W$5,0)),FALSE),"") ->  | OG30: =IF(OG$3<>"",VLOOKUP($A30,'Agency percentages'!$A$6:$X$71,(3+MATCH(OG$4,'Agency percentages'!$D$5:$W$5,0)),FALSE),"") ->  | OH30: =IF(OH$3<>"",VLOOKUP($A30,'Agency percentages'!$A$6:$X$71,(3+MATCH(OH$4,'Agency percentages'!$D$5:$W$5,0)),FALSE),"") ->  | OI30: =IF(OI$3<>"",VLOOKUP($A30,'Agency percentages'!$A$6:$X$71,(3+MATCH(OI$4,'Agency percentages'!$D$5:$W$5,0)),FALSE),"") ->  | OJ30: =IF(OJ$3<>"",VLOOKUP($A30,'Agency percentages'!$A$6:$X$71,(3+MATCH(OJ$4,'Agency percentages'!$D$5:$W$5,0)),FALSE),"") ->  | OL30: =IF(AND(OL$3<>"",NQ30<>0),HLOOKUP(OL$4,'Agency cashability'!$B$3:$U$5,2,0),0) -> 0 | OM30: =IF(AND(OM$3<>"",NR30<>0),HLOOKUP(OM$4,'Agency cashability'!$B$3:$U$5,2,0),0) -> 0.2 | ON30: =IF(AND(ON$3<>"",NS30<>0),HLOOKUP(ON$4,'Agency cashability'!$B$3:$U$5,2,0),0) -> 0.3 | OO30: =IF(AND(OO$3<>"",NT30<>0),HLOOKUP(OO$4,'Agency cashability'!$B$3:$U$5,2,0),0) -> 0.2 | OP30: =IF(AND(OP$3<>"",NU30<>0),HLOOKUP(OP$4,'Agency cashability'!$B$3:$U$5,2,0),0) -> 0.2 | OQ30: =IF(AND(OQ$3<>"",NV30<>0),HLOOKUP(OQ$4,'Agency cashability'!$B$3:$U$5,2,0),0) -> 0.2 | OR30: =IF(AND(OR$3<>"",NW30<>0),HLOOKUP(OR$4,'Agency cashability'!$B$3:$U$5,2,0),0) -> 0.2 | OS30: =IF(AND(OS$3<>"",NX30<>0),HLOOKUP(OS$4,'Agency cashability'!$B$3:$U$5,2,0),0) -> 0 | OT30: =IF(AND(OT$3<>"",NY30<>0),HLOOKUP(OT$4,'Agency cashability'!$B$3:$U$5,2,0),0) -> 0 | OU30: =IF(AND(OU$3<>"",NZ30<>0),HLOOKUP(OU$4,'Agency cashability'!$B$3:$U$5,2,0),0) -> 0 | OV30: =IF(AND(OV$3<>"",OA30<>0),HLOOKUP(OV$4,'Agency cashability'!$B$3:$U$5,2,0),0) -> 0 | OW30: =IF(AND(OW$3<>"",OB30<>0),HLOOKUP(OW$4,'Agency cashability'!$B$3:$U$5,2,0),0) -> 0 | OX30: =IF(AND(OX$3<>"",OC30<>0),HLOOKUP(OX$4,'Agency cashability'!$B$3:$U$5,2,0),0) -> 0 | OY30: =IF(AND(OY$3<>"",OD30<>0),HLOOKUP(OY$4,'Agency cashability'!$B$3:$U$5,2,0),0) -> 0 | OZ30: =IF(AND(OZ$3<>"",OE30<>0),HLOOKUP(OZ$4,'Agency cashability'!$B$3:$U$5,2,0),0) -> 0 | PA30: =IF(AND(PA$3<>"",OF30<>0),HLOOKUP(PA$4,'Agency cashability'!$B$3:$U$5,2,0),0) -> 0 | PB30: =IF(AND(PB$3<>"",OG30<>0),HLOOKUP(PB$4,'Agency cashability'!$B$3:$U$5,2,0),0) -> 0 | PC30: =IF(AND(PC$3<>"",OH30<>0),HLOOKUP(PC$4,'Agency cashability'!$B$3:$U$5,2,0),0) -> 0 | PD30: =IF(AND(PD$3<>"",OI30<>0),HLOOKUP(PD$4,'Agency cashability'!$B$3:$U$5,2,0),0) -> 0 | PE30: =IF(AND(PE$3<>"",OJ30<>0),HLOOKUP(PE$4,'Agency cashability'!$B$3:$U$5,2,0),0) -> 0 | PG30: =IF(AND(PG$3<>"",NQ30<>0),HLOOKUP(PG$4,'Agency cashability'!$B$3:$U$5,3,0),0) -> 0 | PH30: =IF(AND(PH$3<>"",NR30<>0),HLOOKUP(PH$4,'Agency cashability'!$B$3:$U$5,3,0),0) -> 0.5 | PI30: =IF(AND(PI$3<>"",NS30<>0),HLOOKUP(PI$4,'Agency cashability'!$B$3:$U$5,3,0),0) -> 0.6 | PJ30: =IF(AND(PJ$3<>"",NT30<>0),HLOOKUP(PJ$4,'Agency cashability'!$B$3:$U$5,3,0),0) -> 0.5 | PK30: =IF(AND(PK$3<>"",NU30<>0),HLOOKUP(PK$4,'Agency cashability'!$B$3:$U$5,3,0),0) -> 0.5 | PL30: =IF(AND(PL$3<>"",NV30<>0),HLOOKUP(PL$4,'Agency cashability'!$B$3:$U$5,3,0),0) -> 0.5 | PM30: =IF(AND(PM$3<>"",NW30<>0),HLOOKUP(PM$4,'Agency cashability'!$B$3:$U$5,3,0),0) -> 0.5 | PN30: =IF(AND(PN$3<>"",NX30<>0),HLOOKUP(PN$4,'Agency cashability'!$B$3:$U$5,3,0),0) -> 0 | PO30: =IF(AND(PO$3<>"",NY30<>0),HLOOKUP(PO$4,'Agency cashability'!$B$3:$U$5,3,0),0) -> 0 | PP30: =IF(AND(PP$3<>"",NZ30<>0),HLOOKUP(PP$4,'Agency cashability'!$B$3:$U$5,3,0),0) -> 0 | PQ30: =IF(AND(PQ$3<>"",OA30<>0),HLOOKUP(PQ$4,'Agency cashability'!$B$3:$U$5,3,0),0) -> 0 | PR30: =IF(AND(PR$3<>"",OB30<>0),HLOOKUP(PR$4,'Agency cashability'!$B$3:$U$5,3,0),0) -> 0 | PS30: =IF(AND(PS$3<>"",OC30<>0),HLOOKUP(PS$4,'Agency cashability'!$B$3:$U$5,3,0),0) -> 0 | PT30: =IF(AND(PT$3<>"",OD30<>0),HLOOKUP(PT$4,'Agency cashability'!$B$3:$U$5,3,0),0) -> 0 | PU30: =IF(AND(PU$3<>"",OE30<>0),HLOOKUP(PU$4,'Agency cashability'!$B$3:$U$5,3,0),0) -> 0 | PV30: =IF(AND(PV$3<>"",OF30<>0),HLOOKUP(PV$4,'Agency cashability'!$B$3:$U$5,3,0),0) -> 0 | PW30: =IF(AND(PW$3<>"",OG30<>0),HLOOKUP(PW$4,'Agency cashability'!$B$3:$U$5,3,0),0) -> 0 | PX30: =IF(AND(PX$3<>"",OH30<>0),HLOOKUP(PX$4,'Agency cashability'!$B$3:$U$5,3,0),0) -> 0 | PY30: =IF(AND(PY$3<>"",OI30<>0),HLOOKUP(PY$4,'Agency cashability'!$B$3:$U$5,3,0),0) -> 0 | PZ30: =IF(AND(PZ$3<>"",OJ30<>0),HLOOKUP(PZ$4,'Agency cashability'!$B$3:$U$5,3,0),0) -> 0 | QB30: 0 | QC30: 0 | QD30: 0 | QE30: 0 | QF30: 0 | QG30: 0 | QH30: 0 | QI30: 0 | QJ30: 0 | QK30: 0 | QL30: 0 | QM30: 0 | QN30: 0 | QW30: =IF((QW$3<>""),OL30*QB30,"") -> 0 | QX30: 0 | QY30: 0 | QZ30: 0 | RA30: 0 | RB30: 0 | RC30: 0 | RD30: 0 | RE30: 0 | RF30: 0 | RG30: 0 | RH30: 0 | RI30: 0 | RT30: =IF((RT$3<>""),PG30*QB30,"") -> 0 | RU30: 0 | RV30: 0 | RW30: 0 | RX30: 0 | RY30: 0 | RZ30: 0 | SA30: 0 | SB30: 0 | SC30: 0 | SD30: 0 | SE30: 0 | SF30: 0
A31: B9p | B31: Reduced incidents of crime - commercial - theft from vehicle | C31: No | D31: Reduced police, other criminal justice costs, health costs per actual crime (N.B. Use multipliers to convert from recorded crime or convictions) | E31: Police, CJS, NHS | R31: 180 | S31: 180 | T31: 1600 | U31: 100 | V31: 1880 | W31: 2016 | X31: =VLOOKUP(W31,'GDP Deflators'!$B$6:$D$106,3,FALSE) -> 88.19270512 | Y31: The Economic and Social cost of Crime, Second Edition (Home Office 2018) | AA31: Standard Rate | AB31: 0 | AC31: 0 | AD31: 0 | AE31: 0 | DP31: 0 | DQ31: 0 | DR31: 0 | DS31: 0 | DT31: 0 | DU31: 0 | DV31: 0 | DW31: 0 | DX31: 0 | DY31: 0 | GW31: 0 | GY31: 0 | GZ31: 0 | HA31: 0 | HB31: 0 | HC31: 0 | HD31: 0 | HE31: 0 | HF31: 0 | HG31: 0 | HH31: 0 | KF31: 0 | KH31: 0 | KI31: 0 | KJ31: 0 | KK31: 0 | KL31: 0 | KM31: 0 | KN31: 0 | KO31: 0 | KP31: 0 | KQ31: 0 | NO31: 0 | NQ31: =IF(NQ$3<>"",VLOOKUP($A31,'Agency percentages'!$A$6:$X$71,(3+MATCH(NQ$4,'Agency percentages'!$D$5:$W$5,0)),FALSE),"") -> 0 | NR31: =IF(NR$3<>"",VLOOKUP($A31,'Agency percentages'!$A$6:$X$71,(3+MATCH(NR$4,'Agency percentages'!$D$5:$W$5,0)),FALSE),"") -> 0 | NS31: =IF(NS$3<>"",VLOOKUP($A31,'Agency percentages'!$A$6:$X$71,(3+MATCH(NS$4,'Agency percentages'!$D$5:$W$5,0)),FALSE),"") -> 0.4444444444 | NT31: =IF(NT$3<>"",VLOOKUP($A31,'Agency percentages'!$A$6:$X$71,(3+MATCH(NT$4,'Agency percentages'!$D$5:$W$5,0)),FALSE),"") -> 0.1111111111 | NU31: =IF(NU$3<>"",VLOOKUP($A31,'Agency percentages'!$A$6:$X$71,(3+MATCH(NU$4,'Agency percentages'!$D$5:$W$5,0)),FALSE),"") -> 0.3333333333 | NV31: =IF(NV$3<>"",VLOOKUP($A31,'Agency percentages'!$A$6:$X$71,(3+MATCH(NV$4,'Agency percentages'!$D$5:$W$5,0)),FALSE),"") -> 0.05555555556 | NW31: =IF(NW$3<>"",VLOOKUP($A31,'Agency percentages'!$A$6:$X$71,(3+MATCH(NW$4,'Agency percentages'!$D$5:$W$5,0)),FALSE),"") -> 0.05555555556 | NX31: =IF(NX$3<>"",VLOOKUP($A31,'Agency percentages'!$A$6:$X$71,(3+MATCH(NX$4,'Agency percentages'!$D$5:$W$5,0)),FALSE),"") -> 0 | NY31: =IF(NY$3<>"",VLOOKUP($A31,'Agency percentages'!$A$6:$X$71,(3+MATCH(NY$4,'Agency percentages'!$D$5:$W$5,0)),FALSE),"") -> 0 | NZ31: =IF(NZ$3<>"",VLOOKUP($A31,'Agency percentages'!$A$6:$X$71,(3+MATCH(NZ$4,'Agency percentages'!$D$5:$W$5,0)),FALSE),"") -> 0 | OA31: =IF(OA$3<>"",VLOOKUP($A31,'Agency percentages'!$A$6:$X$71,(3+MATCH(OA$4,'Agency percentages'!$D$5:$W$5,0)),FALSE),"") -> 0 | OB31: =IF(OB$3<>"",VLOOKUP($A31,'Agency percentages'!$A$6:$X$71,(3+MATCH(OB$4,'Agency percentages'!$D$5:$W$5,0)),FALSE),"") -> 0 | OC31: =IF(OC$3<>"",VLOOKUP($A31,'Agency percentages'!$A$6:$X$71,(3+MATCH(OC$4,'Agency percentages'!$D$5:$W$5,0)),FALSE),"") -> 0 | OD31: =IF(OD$3<>"",VLOOKUP($A31,'Agency percentages'!$A$6:$X$71,(3+MATCH(OD$4,'Agency percentages'!$D$5:$W$5,0)),FALSE),"") ->  | OE31: =IF(OE$3<>"",VLOOKUP($A31,'Agency percentages'!$A$6:$X$71,(3+MATCH(OE$4,'Agency percentages'!$D$5:$W$5,0)),FALSE),"") ->  | OF31: =IF(OF$3<>"",VLOOKUP($A31,'Agency percentages'!$A$6:$X$71,(3+MATCH(OF$4,'Agency percentages'!$D$5:$W$5,0)),FALSE),"") ->  | OG31: =IF(OG$3<>"",VLOOKUP($A31,'Agency percentages'!$A$6:$X$71,(3+MATCH(OG$4,'Agency percentages'!$D$5:$W$5,0)),FALSE),"") ->  | OH31: =IF(OH$3<>"",VLOOKUP($A31,'Agency percentages'!$A$6:$X$71,(3+MATCH(OH$4,'Agency percentages'!$D$5:$W$5,0)),FALSE),"") ->  | OI31: =IF(OI$3<>"",VLOOKUP($A31,'Agency percentages'!$A$6:$X$71,(3+MATCH(OI$4,'Agency percentages'!$D$5:$W$5,0)),FALSE),"") ->  | OJ31: =IF(OJ$3<>"",VLOOKUP($A31,'Agency percentages'!$A$6:$X$71,(3+MATCH(OJ$4,'Agency percentages'!$D$5:$W$5,0)),FALSE),"") ->  | OL31: =IF(AND(OL$3<>"",NQ31<>0),HLOOKUP(OL$4,'Agency cashability'!$B$3:$U$5,2,0),0) -> 0 | OM31: =IF(AND(OM$3<>"",NR31<>0),HLOOKUP(OM$4,'Agency cashability'!$B$3:$U$5,2,0),0) -> 0 | ON31: =IF(AND(ON$3<>"",NS31<>0),HLOOKUP(ON$4,'Agency cashability'!$B$3:$U$5,2,0),0) -> 0.3 | OO31: =IF(AND(OO$3<>"",NT31<>0),HLOOKUP(OO$4,'Agency cashability'!$B$3:$U$5,2,0),0) -> 0.2 | OP31: =IF(AND(OP$3<>"",NU31<>0),HLOOKUP(OP$4,'Agency cashability'!$B$3:$U$5,2,0),0) -> 0.2 | OQ31: =IF(AND(OQ$3<>"",NV31<>0),HLOOKUP(OQ$4,'Agency cashability'!$B$3:$U$5,2,0),0) -> 0.2 | OR31: =IF(AND(OR$3<>"",NW31<>0),HLOOKUP(OR$4,'Agency cashability'!$B$3:$U$5,2,0),0) -> 0.2 | OS31: =IF(AND(OS$3<>"",NX31<>0),HLOOKUP(OS$4,'Agency cashability'!$B$3:$U$5,2,0),0) -> 0 | OT31: =IF(AND(OT$3<>"",NY31<>0),HLOOKUP(OT$4,'Agency cashability'!$B$3:$U$5,2,0),0) -> 0 | OU31: =IF(AND(OU$3<>"",NZ31<>0),HLOOKUP(OU$4,'Agency cashability'!$B$3:$U$5,2,0),0) -> 0 | OV31: =IF(AND(OV$3<>"",OA31<>0),HLOOKUP(OV$4,'Agency cashability'!$B$3:$U$5,2,0),0) -> 0 | OW31: =IF(AND(OW$3<>"",OB31<>0),HLOOKUP(OW$4,'Agency cashability'!$B$3:$U$5,2,0),0) -> 0 | OX31: =IF(AND(OX$3<>"",OC31<>0),HLOOKUP(OX$4,'Agency cashability'!$B$3:$U$5,2,0),0) -> 0 | OY31: =IF(AND(OY$3<>"",OD31<>0),HLOOKUP(OY$4,'Agency cashability'!$B$3:$U$5,2,0),0) -> 0 | OZ31: =IF(AND(OZ$3<>"",OE31<>0),HLOOKUP(OZ$4,'Agency cashability'!$B$3:$U$5,2,0),0) -> 0 | PA31: =IF(AND(PA$3<>"",OF31<>0),HLOOKUP(PA$4,'Agency cashability'!$B$3:$U$5,2,0),0) -> 0 | PB31: =IF(AND(PB$3<>"",OG31<>0),HLOOKUP(PB$4,'Agency cashability'!$B$3:$U$5,2,0),0) -> 0 | PC31: =IF(AND(PC$3<>"",OH31<>0),HLOOKUP(PC$4,'Agency cashability'!$B$3:$U$5,2,0),0) -> 0 | PD31: =IF(AND(PD$3<>"",OI31<>0),HLOOKUP(PD$4,'Agency cashability'!$B$3:$U$5,2,0),0) -> 0 | PE31: =IF(AND(PE$3<>"",OJ31<>0),HLOOKUP(PE$4,'Agency cashability'!$B$3:$U$5,2,0),0) -> 0 | PG31: =IF(AND(PG$3<>"",NQ31<>0),HLOOKUP(PG$4,'Agency cashability'!$B$3:$U$5,3,0),0) -> 0 | PH31: =IF(AND(PH$3<>"",NR31<>0),HLOOKUP(PH$4,'Agency cashability'!$B$3:$U$5,3,0),0) -> 0 | PI31: =IF(AND(PI$3<>"",NS31<>0),HLOOKUP(PI$4,'Agency cashability'!$B$3:$U$5,3,0),0) -> 0.6 | PJ31: =IF(AND(PJ$3<>"",NT31<>0),HLOOKUP(PJ$4,'Agency cashability'!$B$3:$U$5,3,0),0) -> 0.5 | PK31: =IF(AND(PK$3<>"",NU31<>0),HLOOKUP(PK$4,'Agency cashability'!$B$3:$U$5,3,0),0) -> 0.5 | PL31: =IF(AND(PL$3<>"",NV31<>0),HLOOKUP(PL$4,'Agency cashability'!$B$3:$U$5,3,0),0) -> 0.5 | PM31: =IF(AND(PM$3<>"",NW31<>0),HLOOKUP(PM$4,'Agency cashability'!$B$3:$U$5,3,0),0) -> 0.5 | PN31: =IF(AND(PN$3<>"",NX31<>0),HLOOKUP(PN$4,'Agency cashability'!$B$3:$U$5,3,0),0) -> 0 | PO31: =IF(AND(PO$3<>"",NY31<>0),HLOOKUP(PO$4,'Agency cashability'!$B$3:$U$5,3,0),0) -> 0 | PP31: =IF(AND(PP$3<>"",NZ31<>0),HLOOKUP(PP$4,'Agency cashability'!$B$3:$U$5,3,0),0) -> 0 | PQ31: =IF(AND(PQ$3<>"",OA31<>0),HLOOKUP(PQ$4,'Agency cashability'!$B$3:$U$5,3,0),0) -> 0 | PR31: =IF(AND(PR$3<>"",OB31<>0),HLOOKUP(PR$4,'Agency cashability'!$B$3:$U$5,3,0),0) -> 0 | PS31: =IF(AND(PS$3<>"",OC31<>0),HLOOKUP(PS$4,'Agency cashability'!$B$3:$U$5,3,0),0) -> 0 | PT31: =IF(AND(PT$3<>"",OD31<>0),HLOOKUP(PT$4,'Agency cashability'!$B$3:$U$5,3,0),0) -> 0 | PU31: =IF(AND(PU$3<>"",OE31<>0),HLOOKUP(PU$4,'Agency cashability'!$B$3:$U$5,3,0),0) -> 0 | PV31: =IF(AND(PV$3<>"",OF31<>0),HLOOKUP(PV$4,'Agency cashability'!$B$3:$U$5,3,0),0) -> 0 | PW31: =IF(AND(PW$3<>"",OG31<>0),HLOOKUP(PW$4,'Agency cashability'!$B$3:$U$5,3,0),0) -> 0 | PX31: =IF(AND(PX$3<>"",OH31<>0),HLOOKUP(PX$4,'Agency cashability'!$B$3:$U$5,3,0),0) -> 0 | PY31: =IF(AND(PY$3<>"",OI31<>0),HLOOKUP(PY$4,'Agency cashability'!$B$3:$U$5,3,0),0) -> 0 | PZ31: =IF(AND(PZ$3<>"",OJ31<>0),HLOOKUP(PZ$4,'Agency cashability'!$B$3:$U$5,3,0),0) -> 0 | QB31: 0 | QC31: 0 | QD31: 0 | QE31: 0 | QF31: 0 | QG31: 0 | QH31: 0 | QI31: 0 | QJ31: 0 | QK31: 0 | QL31: 0 | QM31: 0 | QN31: 0 | QW31: =IF((QW$3<>""),OL31*QB31,"") -> 0 | QX31: 0 | QY31: 0 | QZ31: 0 | RA31: 0 | RB31: 0 | RC31: 0 | RD31: 0 | RE31: 0 | RF31: 0 | RG31: 0 | RH31: 0 | RI31: 0 | RT31: =IF((RT$3<>""),PG31*QB31,"") -> 0 | RU31: 0 | RV31: 0 | RW31: 0 | RX31: 0 | RY31: 0 | RZ31: 0 | SA31: 0 | SB31: 0 | SC31: 0 | SD31: 0 | SE31: 0 | SF31: 0
A32: B9q | B32: Reduced incidents of crime - commercial theft | C32: No | D32: Reduced police, other criminal justice costs, health costs per actual crime (N.B. Use multipliers to convert from recorded crime or convictions) | E32: Police, CJS, NHS | R32: 240 | S32: 240 | T32: 720 | U32: 0 | V32: 960 | W32: 2016 | X32: =VLOOKUP(W32,'GDP Deflators'!$B$6:$D$106,3,FALSE) -> 88.19270512 | Y32: The Economic and Social cost of Crime, Second Edition (Home Office 2018) | AA32: Standard Rate | AB32: 0 | AC32: 0 | AD32: 0 | AE32: 0 | DP32: 0 | DQ32: 0 | DR32: 0 | DS32: 0 | DT32: 0 | DU32: 0 | DV32: 0 | DW32: 0 | DX32: 0 | DY32: 0 | GW32: 0 | GY32: 0 | GZ32: 0 | HA32: 0 | HB32: 0 | HC32: 0 | HD32: 0 | HE32: 0 | HF32: 0 | HG32: 0 | HH32: 0 | KF32: 0 | KH32: 0 | KI32: 0 | KJ32: 0 | KK32: 0 | KL32: 0 | KM32: 0 | KN32: 0 | KO32: 0 | KP32: 0 | KQ32: 0 | NO32: 0 | NQ32: =IF(NQ$3<>"",VLOOKUP($A32,'Agency percentages'!$A$6:$X$71,(3+MATCH(NQ$4,'Agency percentages'!$D$5:$W$5,0)),FALSE),"") -> 0 | NR32: =IF(NR$3<>"",VLOOKUP($A32,'Agency percentages'!$A$6:$X$71,(3+MATCH(NR$4,'Agency percentages'!$D$5:$W$5,0)),FALSE),"") -> 0 | NS32: =IF(NS$3<>"",VLOOKUP($A32,'Agency percentages'!$A$6:$X$71,(3+MATCH(NS$4,'Agency percentages'!$D$5:$W$5,0)),FALSE),"") -> 0.16 | NT32: =IF(NT$3<>"",VLOOKUP($A32,'Agency percentages'!$A$6:$X$71,(3+MATCH(NT$4,'Agency percentages'!$D$5:$W$5,0)),FALSE),"") -> 0.16 | NU32: =IF(NU$3<>"",VLOOKUP($A32,'Agency percentages'!$A$6:$X$71,(3+MATCH(NU$4,'Agency percentages'!$D$5:$W$5,0)),FALSE),"") -> 0.56 | NV32: =IF(NV$3<>"",VLOOKUP($A32,'Agency percentages'!$A$6:$X$71,(3+MATCH(NV$4,'Agency percentages'!$D$5:$W$5,0)),FALSE),"") -> 0.04 | NW32: =IF(NW$3<>"",VLOOKUP($A32,'Agency percentages'!$A$6:$X$71,(3+MATCH(NW$4,'Agency percentages'!$D$5:$W$5,0)),FALSE),"") -> 0.08 | NX32: =IF(NX$3<>"",VLOOKUP($A32,'Agency percentages'!$A$6:$X$71,(3+MATCH(NX$4,'Agency percentages'!$D$5:$W$5,0)),FALSE),"") -> 0 | NY32: =IF(NY$3<>"",VLOOKUP($A32,'Agency percentages'!$A$6:$X$71,(3+MATCH(NY$4,'Agency percentages'!$D$5:$W$5,0)),FALSE),"") -> 0 | NZ32: =IF(NZ$3<>"",VLOOKUP($A32,'Agency percentages'!$A$6:$X$71,(3+MATCH(NZ$4,'Agency percentages'!$D$5:$W$5,0)),FALSE),"") -> 0 | OA32: =IF(OA$3<>"",VLOOKUP($A32,'Agency percentages'!$A$6:$X$71,(3+MATCH(OA$4,'Agency percentages'!$D$5:$W$5,0)),FALSE),"") -> 0 | OB32: =IF(OB$3<>"",VLOOKUP($A32,'Agency percentages'!$A$6:$X$71,(3+MATCH(OB$4,'Agency percentages'!$D$5:$W$5,0)),FALSE),"") -> 0 | OC32: =IF(OC$3<>"",VLOOKUP($A32,'Agency percentages'!$A$6:$X$71,(3+MATCH(OC$4,'Agency percentages'!$D$5:$W$5,0)),FALSE),"") -> 0 | OD32: =IF(OD$3<>"",VLOOKUP($A32,'Agency percentages'!$A$6:$X$71,(3+MATCH(OD$4,'Agency percentages'!$D$5:$W$5,0)),FALSE),"") ->  | OE32: =IF(OE$3<>"",VLOOKUP($A32,'Agency percentages'!$A$6:$X$71,(3+MATCH(OE$4,'Agency percentages'!$D$5:$W$5,0)),FALSE),"") ->  | OF32: =IF(OF$3<>"",VLOOKUP($A32,'Agency percentages'!$A$6:$X$71,(3+MATCH(OF$4,'Agency percentages'!$D$5:$W$5,0)),FALSE),"") ->  | OG32: =IF(OG$3<>"",VLOOKUP($A32,'Agency percentages'!$A$6:$X$71,(3+MATCH(OG$4,'Agency percentages'!$D$5:$W$5,0)),FALSE),"") ->  | OH32: =IF(OH$3<>"",VLOOKUP($A32,'Agency percentages'!$A$6:$X$71,(3+MATCH(OH$4,'Agency percentages'!$D$5:$W$5,0)),FALSE),"") ->  | OI32: =IF(OI$3<>"",VLOOKUP($A32,'Agency percentages'!$A$6:$X$71,(3+MATCH(OI$4,'Agency percentages'!$D$5:$W$5,0)),FALSE),"") ->  | OJ32: =IF(OJ$3<>"",VLOOKUP($A32,'Agency percentages'!$A$6:$X$71,(3+MATCH(OJ$4,'Agency percentages'!$D$5:$W$5,0)),FALSE),"") ->  | OL32: =IF(AND(OL$3<>"",NQ32<>0),HLOOKUP(OL$4,'Agency cashability'!$B$3:$U$5,2,0),0) -> 0 | OM32: =IF(AND(OM$3<>"",NR32<>0),HLOOKUP(OM$4,'Agency cashability'!$B$3:$U$5,2,0),0) -> 0 | ON32: =IF(AND(ON$3<>"",NS32<>0),HLOOKUP(ON$4,'Agency cashability'!$B$3:$U$5,2,0),0) -> 0.3 | OO32: =IF(AND(OO$3<>"",NT32<>0),HLOOKUP(OO$4,'Agency cashability'!$B$3:$U$5,2,0),0) -> 0.2 | OP32: =IF(AND(OP$3<>"",NU32<>0),HLOOKUP(OP$4,'Agency cashability'!$B$3:$U$5,2,0),0) -> 0.2 | OQ32: =IF(AND(OQ$3<>"",NV32<>0),HLOOKUP(OQ$4,'Agency cashability'!$B$3:$U$5,2,0),0) -> 0.2 | OR32: =IF(AND(OR$3<>"",NW32<>0),HLOOKUP(OR$4,'Agency cashability'!$B$3:$U$5,2,0),0) -> 0.2 | OS32: =IF(AND(OS$3<>"",NX32<>0),HLOOKUP(OS$4,'Agency cashability'!$B$3:$U$5,2,0),0) -> 0 | OT32: =IF(AND(OT$3<>"",NY32<>0),HLOOKUP(OT$4,'Agency cashability'!$B$3:$U$5,2,0),0) -> 0 | OU32: =IF(AND(OU$3<>"",NZ32<>0),HLOOKUP(OU$4,'Agency cashability'!$B$3:$U$5,2,0),0) -> 0 | OV32: =IF(AND(OV$3<>"",OA32<>0),HLOOKUP(OV$4,'Agency cashability'!$B$3:$U$5,2,0),0) -> 0 | OW32: =IF(AND(OW$3<>"",OB32<>0),HLOOKUP(OW$4,'Agency cashability'!$B$3:$U$5,2,0),0) -> 0 | OX32: =IF(AND(OX$3<>"",OC32<>0),HLOOKUP(OX$4,'Agency cashability'!$B$3:$U$5,2,0),0) -> 0 | OY32: =IF(AND(OY$3<>"",OD32<>0),HLOOKUP(OY$4,'Agency cashability'!$B$3:$U$5,2,0),0) -> 0 | OZ32: =IF(AND(OZ$3<>"",OE32<>0),HLOOKUP(OZ$4,'Agency cashability'!$B$3:$U$5,2,0),0) -> 0 | PA32: =IF(AND(PA$3<>"",OF32<>0),HLOOKUP(PA$4,'Agency cashability'!$B$3:$U$5,2,0),0) -> 0 | PB32: =IF(AND(PB$3<>"",OG32<>0),HLOOKUP(PB$4,'Agency cashability'!$B$3:$U$5,2,0),0) -> 0 | PC32: =IF(AND(PC$3<>"",OH32<>0),HLOOKUP(PC$4,'Agency cashability'!$B$3:$U$5,2,0),0) -> 0 | PD32: =IF(AND(PD$3<>"",OI32<>0),HLOOKUP(PD$4,'Agency cashability'!$B$3:$U$5,2,0),0) -> 0 | PE32: =IF(AND(PE$3<>"",OJ32<>0),HLOOKUP(PE$4,'Agency cashability'!$B$3:$U$5,2,0),0) -> 0 | PG32: =IF(AND(PG$3<>"",NQ32<>0),HLOOKUP(PG$4,'Agency cashability'!$B$3:$U$5,3,0),0) -> 0 | PH32: =IF(AND(PH$3<>"",NR32<>0),HLOOKUP(PH$4,'Agency cashability'!$B$3:$U$5,3,0),0) -> 0 | PI32: =IF(AND(PI$3<>"",NS32<>0),HLOOKUP(PI$4,'Agency cashability'!$B$3:$U$5,3,0),0) -> 0.6 | PJ32: =IF(AND(PJ$3<>"",NT32<>0),HLOOKUP(PJ$4,'Agency cashability'!$B$3:$U$5,3,0),0) -> 0.5 | PK32: =IF(AND(PK$3<>"",NU32<>0),HLOOKUP(PK$4,'Agency cashability'!$B$3:$U$5,3,0),0) -> 0.5 | PL32: =IF(AND(PL$3<>"",NV32<>0),HLOOKUP(PL$4,'Agency cashability'!$B$3:$U$5,3,0),0) -> 0.5 | PM32: =IF(AND(PM$3<>"",NW32<>0),HLOOKUP(PM$4,'Agency cashability'!$B$3:$U$5,3,0),0) -> 0.5 | PN32: =IF(AND(PN$3<>"",NX32<>0),HLOOKUP(PN$4,'Agency cashability'!$B$3:$U$5,3,0),0) -> 0 | PO32: =IF(AND(PO$3<>"",NY32<>0),HLOOKUP(PO$4,'Agency cashability'!$B$3:$U$5,3,0),0) -> 0 | PP32: =IF(AND(PP$3<>"",NZ32<>0),HLOOKUP(PP$4,'Agency cashability'!$B$3:$U$5,3,0),0) -> 0 | PQ32: =IF(AND(PQ$3<>"",OA32<>0),HLOOKUP(PQ$4,'Agency cashability'!$B$3:$U$5,3,0),0) -> 0 | PR32: =IF(AND(PR$3<>"",OB32<>0),HLOOKUP(PR$4,'Agency cashability'!$B$3:$U$5,3,0),0) -> 0 | PS32: =IF(AND(PS$3<>"",OC32<>0),HLOOKUP(PS$4,'Agency cashability'!$B$3:$U$5,3,0),0) -> 0 | PT32: =IF(AND(PT$3<>"",OD32<>0),HLOOKUP(PT$4,'Agency cashability'!$B$3:$U$5,3,0),0) -> 0 | PU32: =IF(AND(PU$3<>"",OE32<>0),HLOOKUP(PU$4,'Agency cashability'!$B$3:$U$5,3,0),0) -> 0 | PV32: =IF(AND(PV$3<>"",OF32<>0),HLOOKUP(PV$4,'Agency cashability'!$B$3:$U$5,3,0),0) -> 0 | PW32: =IF(AND(PW$3<>"",OG32<>0),HLOOKUP(PW$4,'Agency cashability'!$B$3:$U$5,3,0),0) -> 0 | PX32: =IF(AND(PX$3<>"",OH32<>0),HLOOKUP(PX$4,'Agency cashability'!$B$3:$U$5,3,0),0) -> 0 | PY32: =IF(AND(PY$3<>"",OI32<>0),HLOOKUP(PY$4,'Agency cashability'!$B$3:$U$5,3,0),0) -> 0 | PZ32: =IF(AND(PZ$3<>"",OJ32<>0),HLOOKUP(PZ$4,'Agency cashability'!$B$3:$U$5,3,0),0) -> 0 | QB32: 0 | QC32: 0 | QD32: 0 | QE32: 0 | QF32: 0 | QG32: 0 | QH32: 0 | QI32: 0 | QJ32: 0 | QK32: 0 | QL32: 0 | QM32: 0 | QN32: 0 | QW32: =IF((QW$3<>""),OL32*QB32,"") -> 0 | QX32: 0 | QY32: 0 | QZ32: 0 | RA32: 0 | RB32: 0 | RC32: 0 | RD32: 0 | RE32: 0 | RF32: 0 | RG32: 0 | RH32: 0 | RI32: 0 | RR32: =SUM(QW32:RP32)/SUM(QB32:QU32) ->  | RT32: =IF((RT$3<>""),PG32*QB32,"") -> 0 | RU32: 0 | RV32: 0 | RW32: 0 | RX32: 0 | RY32: 0 | RZ32: 0 | SA32: 0 | SB32: 0 | SC32: 0 | SD32: 0 | SE32: 0 | SF32: 0 | SO32: =SUM(RT32:SM32)/SUM(QB32:QU32) -> 
A33: B9r | B33: Reduced incidents of crime - commercial arson | C33: No | D33: Reduced police, other criminal justice costs, health costs per actual crime (N.B. Use multipliers to convert from recorded crime or convictions) | E33: Police, CJS, NHS | R33: 5330 | S33: 5330 | T33: 4580 | U33: 1010 | V33: 10920 | W33: 2016 | X33: =VLOOKUP(W33,'GDP Deflators'!$B$6:$D$106,3,FALSE) -> 88.19270512 | Y33: The Economic and Social cost of Crime, Second Edition (Home Office 2018) | AA33: Standard Rate | AB33: 0 | AC33: 0 | AD33: 0 | AE33: 0 | DP33: 0 | DQ33: 0 | DR33: 0 | DS33: 0 | DT33: 0 | DU33: 0 | DV33: 0 | DW33: 0 | DX33: 0 | DY33: 0 | GW33: 0 | GY33: 0 | GZ33: 0 | HA33: 0 | HB33: 0 | HC33: 0 | HD33: 0 | HE33: 0 | HF33: 0 | HG33: 0 | HH33: 0 | KF33: 0 | KH33: 0 | KI33: 0 | KJ33: 0 | KK33: 0 | KL33: 0 | KM33: 0 | KN33: 0 | KO33: 0 | KP33: 0 | KQ33: 0 | NO33: 0 | NQ33: =IF(NQ$3<>"",VLOOKUP($A33,'Agency percentages'!$A$6:$X$71,(3+MATCH(NQ$4,'Agency percentages'!$D$5:$W$5,0)),FALSE),"") -> 0 | NR33: =IF(NR$3<>"",VLOOKUP($A33,'Agency percentages'!$A$6:$X$71,(3+MATCH(NR$4,'Agency percentages'!$D$5:$W$5,0)),FALSE),"") -> 0.06367041199 | NS33: =IF(NS$3<>"",VLOOKUP($A33,'Agency percentages'!$A$6:$X$71,(3+MATCH(NS$4,'Agency percentages'!$D$5:$W$5,0)),FALSE),"") -> 0.202247191 | NT33: =IF(NT$3<>"",VLOOKUP($A33,'Agency percentages'!$A$6:$X$71,(3+MATCH(NT$4,'Agency percentages'!$D$5:$W$5,0)),FALSE),"") -> 0.04119850187 | NU33: =IF(NU$3<>"",VLOOKUP($A33,'Agency percentages'!$A$6:$X$71,(3+MATCH(NU$4,'Agency percentages'!$D$5:$W$5,0)),FALSE),"") -> 0.4775280899 | NV33: =IF(NV$3<>"",VLOOKUP($A33,'Agency percentages'!$A$6:$X$71,(3+MATCH(NV$4,'Agency percentages'!$D$5:$W$5,0)),FALSE),"") -> 0.170411985 | NW33: =IF(NW$3<>"",VLOOKUP($A33,'Agency percentages'!$A$6:$X$71,(3+MATCH(NW$4,'Agency percentages'!$D$5:$W$5,0)),FALSE),"") -> 0.04307116105 | NX33: =IF(NX$3<>"",VLOOKUP($A33,'Agency percentages'!$A$6:$X$71,(3+MATCH(NX$4,'Agency percentages'!$D$5:$W$5,0)),FALSE),"") -> 0 | NY33: =IF(NY$3<>"",VLOOKUP($A33,'Agency percentages'!$A$6:$X$71,(3+MATCH(NY$4,'Agency percentages'!$D$5:$W$5,0)),FALSE),"") -> 0 | NZ33: =IF(NZ$3<>"",VLOOKUP($A33,'Agency percentages'!$A$6:$X$71,(3+MATCH(NZ$4,'Agency percentages'!$D$5:$W$5,0)),FALSE),"") -> 0 | OA33: =IF(OA$3<>"",VLOOKUP($A33,'Agency percentages'!$A$6:$X$71,(3+MATCH(OA$4,'Agency percentages'!$D$5:$W$5,0)),FALSE),"") -> 0 | OB33: =IF(OB$3<>"",VLOOKUP($A33,'Agency percentages'!$A$6:$X$71,(3+MATCH(OB$4,'Agency percentages'!$D$5:$W$5,0)),FALSE),"") -> 0.001872659176 | OC33: =IF(OC$3<>"",VLOOKUP($A33,'Agency percentages'!$A$6:$X$71,(3+MATCH(OC$4,'Agency percentages'!$D$5:$W$5,0)),FALSE),"") -> 0 | OD33: =IF(OD$3<>"",VLOOKUP($A33,'Agency percentages'!$A$6:$X$71,(3+MATCH(OD$4,'Agency percentages'!$D$5:$W$5,0)),FALSE),"") ->  | OE33: =IF(OE$3<>"",VLOOKUP($A33,'Agency percentages'!$A$6:$X$71,(3+MATCH(OE$4,'Agency percentages'!$D$5:$W$5,0)),FALSE),"") ->  | OF33: =IF(OF$3<>"",VLOOKUP($A33,'Agency percentages'!$A$6:$X$71,(3+MATCH(OF$4,'Agency percentages'!$D$5:$W$5,0)),FALSE),"") ->  | OG33: =IF(OG$3<>"",VLOOKUP($A33,'Agency percentages'!$A$6:$X$71,(3+MATCH(OG$4,'Agency percentages'!$D$5:$W$5,0)),FALSE),"") ->  | OH33: =IF(OH$3<>"",VLOOKUP($A33,'Agency percentages'!$A$6:$X$71,(3+MATCH(OH$4,'Agency percentages'!$D$5:$W$5,0)),FALSE),"") ->  | OI33: =IF(OI$3<>"",VLOOKUP($A33,'Agency percentages'!$A$6:$X$71,(3+MATCH(OI$4,'Agency percentages'!$D$5:$W$5,0)),FALSE),"") ->  | OJ33: =IF(OJ$3<>"",VLOOKUP($A33,'Agency percentages'!$A$6:$X$71,(3+MATCH(OJ$4,'Agency percentages'!$D$5:$W$5,0)),FALSE),"") ->  | OL33: =IF(AND(OL$3<>"",NQ33<>0),HLOOKUP(OL$4,'Agency cashability'!$B$3:$U$5,2,0),0) -> 0 | OM33: =IF(AND(OM$3<>"",NR33<>0),HLOOKUP(OM$4,'Agency cashability'!$B$3:$U$5,2,0),0) -> 0.2 | ON33: =IF(AND(ON$3<>"",NS33<>0),HLOOKUP(ON$4,'Agency cashability'!$B$3:$U$5,2,0),0) -> 0.3 | OO33: =IF(AND(OO$3<>"",NT33<>0),HLOOKUP(OO$4,'Agency cashability'!$B$3:$U$5,2,0),0) -> 0.2 | OP33: =IF(AND(OP$3<>"",NU33<>0),HLOOKUP(OP$4,'Agency cashability'!$B$3:$U$5,2,0),0) -> 0.2 | OQ33: =IF(AND(OQ$3<>"",NV33<>0),HLOOKUP(OQ$4,'Agency cashability'!$B$3:$U$5,2,0),0) -> 0.2 | OR33: =IF(AND(OR$3<>"",NW33<>0),HLOOKUP(OR$4,'Agency cashability'!$B$3:$U$5,2,0),0) -> 0.2 | OS33: =IF(AND(OS$3<>"",NX33<>0),HLOOKUP(OS$4,'Agency cashability'!$B$3:$U$5,2,0),0) -> 0 | OT33: =IF(AND(OT$3<>"",NY33<>0),HLOOKUP(OT$4,'Agency cashability'!$B$3:$U$5,2,0),0) -> 0 | OU33: =IF(AND(OU$3<>"",NZ33<>0),HLOOKUP(OU$4,'Agency cashability'!$B$3:$U$5,2,0),0) -> 0 | OV33: =IF(AND(OV$3<>"",OA33<>0),HLOOKUP(OV$4,'Agency cashability'!$B$3:$U$5,2,0),0) -> 0 | OW33: =IF(AND(OW$3<>"",OB33<>0),HLOOKUP(OW$4,'Agency cashability'!$B$3:$U$5,2,0),0) -> 0 | OX33: =IF(AND(OX$3<>"",OC33<>0),HLOOKUP(OX$4,'Agency cashability'!$B$3:$U$5,2,0),0) -> 0 | OY33: =IF(AND(OY$3<>"",OD33<>0),HLOOKUP(OY$4,'Agency cashability'!$B$3:$U$5,2,0),0) -> 0 | OZ33: =IF(AND(OZ$3<>"",OE33<>0),HLOOKUP(OZ$4,'Agency cashability'!$B$3:$U$5,2,0),0) -> 0 | PA33: =IF(AND(PA$3<>"",OF33<>0),HLOOKUP(PA$4,'Agency cashability'!$B$3:$U$5,2,0),0) -> 0 | PB33: =IF(AND(PB$3<>"",OG33<>0),HLOOKUP(PB$4,'Agency cashability'!$B$3:$U$5,2,0),0) -> 0 | PC33: =IF(AND(PC$3<>"",OH33<>0),HLOOKUP(PC$4,'Agency cashability'!$B$3:$U$5,2,0),0) -> 0 | PD33: =IF(AND(PD$3<>"",OI33<>0),HLOOKUP(PD$4,'Agency cashability'!$B$3:$U$5,2,0),0) -> 0 | PE33: =IF(AND(PE$3<>"",OJ33<>0),HLOOKUP(PE$4,'Agency cashability'!$B$3:$U$5,2,0),0) -> 0 | PG33: =IF(AND(PG$3<>"",NQ33<>0),HLOOKUP(PG$4,'Agency cashability'!$B$3:$U$5,3,0),0) -> 0 | PH33: =IF(AND(PH$3<>"",NR33<>0),HLOOKUP(PH$4,'Agency cashability'!$B$3:$U$5,3,0),0) -> 0.5 | PI33: =IF(AND(PI$3<>"",NS33<>0),HLOOKUP(PI$4,'Agency cashability'!$B$3:$U$5,3,0),0) -> 0.6 | PJ33: =IF(AND(PJ$3<>"",NT33<>0),HLOOKUP(PJ$4,'Agency cashability'!$B$3:$U$5,3,0),0) -> 0.5 | PK33: =IF(AND(PK$3<>"",NU33<>0),HLOOKUP(PK$4,'Agency cashability'!$B$3:$U$5,3,0),0) -> 0.5 | PL33: =IF(AND(PL$3<>"",NV33<>0),HLOOKUP(PL$4,'Agency cashability'!$B$3:$U$5,3,0),0) -> 0.5 | PM33: =IF(AND(PM$3<>"",NW33<>0),HLOOKUP(PM$4,'Agency cashability'!$B$3:$U$5,3,0),0) -> 0.5 | PN33: =IF(AND(PN$3<>"",NX33<>0),HLOOKUP(PN$4,'Agency cashability'!$B$3:$U$5,3,0),0) -> 0 | PO33: =IF(AND(PO$3<>"",NY33<>0),HLOOKUP(PO$4,'Agency cashability'!$B$3:$U$5,3,0),0) -> 0 | PP33: =IF(AND(PP$3<>"",NZ33<>0),HLOOKUP(PP$4,'Agency cashability'!$B$3:$U$5,3,0),0) -> 0 | PQ33: =IF(AND(PQ$3<>"",OA33<>0),HLOOKUP(PQ$4,'Agency cashability'!$B$3:$U$5,3,0),0) -> 0 | PR33: =IF(AND(PR$3<>"",OB33<>0),HLOOKUP(PR$4,'Agency cashability'!$B$3:$U$5,3,0),0) -> 0 | PS33: =IF(AND(PS$3<>"",OC33<>0),HLOOKUP(PS$4,'Agency cashability'!$B$3:$U$5,3,0),0) -> 0 | PT33: =IF(AND(PT$3<>"",OD33<>0),HLOOKUP(PT$4,'Agency cashability'!$B$3:$U$5,3,0),0) -> 0 | PU33: =IF(AND(PU$3<>"",OE33<>0),HLOOKUP(PU$4,'Agency cashability'!$B$3:$U$5,3,0),0) -> 0 | PV33: =IF(AND(PV$3<>"",OF33<>0),HLOOKUP(PV$4,'Agency cashability'!$B$3:$U$5,3,0),0) -> 0 | PW33: =IF(AND(PW$3<>"",OG33<>0),HLOOKUP(PW$4,'Agency cashability'!$B$3:$U$5,3,0),0) -> 0 | PX33: =IF(AND(PX$3<>"",OH33<>0),HLOOKUP(PX$4,'Agency cashability'!$B$3:$U$5,3,0),0) -> 0 | PY33: =IF(AND(PY$3<>"",OI33<>0),HLOOKUP(PY$4,'Agency cashability'!$B$3:$U$5,3,0),0) -> 0 | PZ33: =IF(AND(PZ$3<>"",OJ33<>0),HLOOKUP(PZ$4,'Agency cashability'!$B$3:$U$5,3,0),0) -> 0 | QB33: 0 | QC33: 0 | QD33: 0 | QE33: 0 | QF33: 0 | QG33: 0 | QH33: 0 | QI33: 0 | QJ33: 0 | QK33: 0 | QL33: 0 | QM33: 0 | QN33: 0 | QW33: =IF((QW$3<>""),OL33*QB33,"") -> 0 | QX33: 0 | QY33: 0 | QZ33: 0 | RA33: 0 | RB33: 0 | RC33: 0 | RD33: 0 | RE33: 0 | RF33: 0 | RG33: 0 | RH33: 0 | RI33: 0 | RT33: =IF((RT$3<>""),PG33*QB33,"") -> 0 | RU33: 0 | RV33: 0 | RW33: 0 | RX33: 0 | RY33: 0 | RZ33: 0 | SA33: 0 | SB33: 0 | SC33: 0 | SD33: 0 | SE33: 0 | SF33: 0
A34: B9s | B34: Reduced incidents of crime - commercial - other criminal damage | C34: No | D34: Reduced police, other criminal justice costs, health costs per actual crime (N.B. Use multipliers to convert from recorded crime or convictions) | E34: Police, CJS, NHS | R34: 540 | S34: 540 | T34: 810 | U34: 60 | V34: 1410 | W34: 2016 | X34: =VLOOKUP(W34,'GDP Deflators'!$B$6:$D$106,3,FALSE) -> 88.19270512 | Y34: The Economic and Social cost of Crime, Second Edition (Home Office 2018) | AA34: Standard Rate | AB34: =IF($C34="Yes",($H34*$J34*$L34*($N34-$P34)*R34*100*(1+$Z34)/$X34),0) -> 0 | AC34: 0 | AD34: =IF($C34="Yes",($H34*$J34*$L34*($N34-$P34)*U34*100*(1+$Z34)/$X34),0) -> 0 | AE34: =IF($C34="Yes",($H34*$J34*$L34*($N34-$P34)*V34*100*(1+$Z34)/$X34),0) -> 0 | DP34: =IF(DP$2<=time_frame,$AB34*AH34,"") -> 0 | DQ34: =IF(DQ$2<=time_frame,$AB34*AI34,"") -> 0 | DR34: =IF(DR$2<=time_frame,$AB34*AJ34,"") -> 0 | DS34: =IF(DS$2<=time_frame,$AB34*AK34,"") -> 0 | DT34: =IF(DT$2<=time_frame,$AB34*AL34,"") -> 0 | DU34: =IF(DU$2<=time_frame,$AB34*AM34,"") -> 0 | DV34: =IF(DV$2<=time_frame,$AB34*AN34,"") -> 0 | DW34: =IF(DW$2<=time_frame,$AB34*AO34,"") -> 0 | DX34: =IF(DX$2<=time_frame,$AB34*AP34,"") -> 0 | DY34: =IF(DY$2<=time_frame,$AB34*AQ34,"") -> 0 | DZ34: =IF(DZ$2<=time_frame,$AB34*AR34,"") ->  | EA34: =IF(EA$2<=time_frame,$AB34*AS34,"") ->  | EB34: =IF(EB$2<=time_frame,$AB34*AT34,"") ->  | EC34: =IF(EC$2<=time_frame,$AB34*AU34,"") ->  | ED34: =IF(ED$2<=time_frame,$AB34*AV34,"") ->  | EE34: =IF(EE$2<=time_frame,$AB34*AW34,"") ->  | EF34: =IF(EF$2<=time_frame,$AB34*AX34,"") ->  | EG34: =IF(EG$2<=time_frame,$AB34*AY34,"") ->  | EH34: =IF(EH$2<=time_frame,$AB34*AZ34,"") ->  | EI34: =IF(EI$2<=time_frame,$AB34*BA34,"") ->  | EJ34: =IF(EJ$2<=time_frame,$AB34*BB34,"") ->  | EK34: =IF(EK$2<=time_frame,$AB34*BC34,"") ->  | EL34: =IF(EL$2<=time_frame,$AB34*BD34,"") ->  | EM34: =IF(EM$2<=time_frame,$AB34*BE34,"") ->  | EN34: =IF(EN$2<=time_frame,$AB34*BF34,"") ->  | EO34: =IF(EO$2<=time_frame,$AB34*BG34,"") ->  | EP34: =IF(EP$2<=time_frame,$AB34*BH34,"") ->  | EQ34: =IF(EQ$2<=time_frame,$AB34*BI34,"") ->  | ER34: =IF(ER$2<=time_frame,$AB34*BJ34,"") ->  | ES34: =IF(ES$2<=time_frame,$AB34*BK34,"") ->  | ET34: =IF(ET$2<=time_frame,$AB34*BL34,"") ->  | EU34: =IF(EU$2<=time_frame,$AB34*BM34,"") ->  | EV34: =IF(EV$2<=time_frame,$AB34*BN34,"") ->  | EW34: =IF(EW$2<=time_frame,$AB34*BO34,"") ->  | EX34: =IF(EX$2<=time_frame,$AB34*BP34,"") ->  | EY34: =IF(EY$2<=time_frame,$AB34*BQ34,"") ->  | EZ34: =IF(EZ$2<=time_frame,$AB34*BR34,"") ->  | FA34: =IF(FA$2<=time_frame,$AB34*BS34,"") ->  | FB34: =IF(FB$2<=time_frame,$AB34*BT34,"") ->  | FC34: =IF(FC$2<=time_frame,$AB34*BU34,"") ->  | FD34: =IF(FD$2<=time_frame,$AB34*BV34,"") ->  | FE34: =IF(FE$2<=time_frame,$AB34*BW34,"") ->  | FF34: =IF(FF$2<=time_frame,$AB34*BX34,"") ->  | FG34: =IF(FG$2<=time_frame,$AB34*BY34,"") ->  | FH34: =IF(FH$2<=time_frame,$AB34*BZ34,"") ->  | FI34: =IF(FI$2<=time_frame,$AB34*CA34,"") ->  | FJ34: =IF(FJ$2<=time_frame,$AB34*CB34,"") ->  | FK34: =IF(FK$2<=time_frame,$AB34*CC34,"") ->  | FL34: =IF(FL$2<=time_frame,$AB34*CD34,"") ->  | FM34: =IF(FM$2<=time_frame,$AB34*CE34,"") ->  | FN34: =IF(FN$2<=time_frame,$AB34*CF34,"") ->  | FO34: =IF(FO$2<=time_frame,$AB34*CG34,"") ->  | FP34: =IF(FP$2<=time_frame,$AB34*CH34,"") ->  | FQ34: =IF(FQ$2<=time_frame,$AB34*CI34,"") ->  | FR34: =IF(FR$2<=time_frame,$AB34*CJ34,"") ->  | FS34: =IF(FS$2<=time_frame,$AB34*CK34,"") ->  | FT34: =IF(FT$2<=time_frame,$AB34*CL34,"") ->  | FU34: =IF(FU$2<=time_frame,$AB34*CM34,"") ->  | FV34: =IF(FV$2<=time_frame,$AB34*CN34,"") ->  | FW34: =IF(FW$2<=time_frame,$AB34*CO34,"") ->  | FX34: =IF(FX$2<=time_frame,$AB34*CP34,"") ->  | FY34: =IF(FY$2<=time_frame,$AB34*CQ34,"") ->  | FZ34: =IF(FZ$2<=time_frame,$AB34*CR34,"") ->  | GA34: =IF(GA$2<=time_frame,$AB34*CS34,"") ->  | GB34: =IF(GB$2<=time_frame,$AB34*CT34,"") ->  | GC34: =IF(GC$2<=time_frame,$AB34*CU34,"") ->  | GD34: =IF(GD$2<=time_frame,$AB34*CV34,"") ->  | GE34: =IF(GE$2<=time_frame,$AB34*CW34,"") ->  | GF34: =IF(GF$2<=time_frame,$AB34*CX34,"") ->  | GG34: =IF(GG$2<=time_frame,$AB34*CY34,"") ->  | GH34: =IF(GH$2<=time_frame,$AB34*CZ34,"") ->  | GI34: =IF(GI$2<=time_frame,$AB34*DA34,"") ->  | GJ34: =IF(GJ$2<=time_frame,$AB34*DB34,"") ->  | GK34: =IF(GK$2<=time_frame,$AB34*DC34,"") ->  | GL34: =IF(GL$2<=time_frame,$AB34*DD34,"") ->  | GM34: =IF(GM$2<=time_frame,$AB34*DE34,"") ->  | GN34: =IF(GN$2<=time_frame,$AB34*DF34,"") ->  | GO34: =IF(GO$2<=time_frame,$AB34*DG34,"") ->  | GP34: =IF(GP$2<=time_frame,$AB34*DH34,"") ->  | GQ34: =IF(GQ$2<=time_frame,$AB34*DI34,"") ->  | GR34: =IF(GR$2<=time_frame,$AB34*DJ34,"") ->  | GS34: =IF(GS$2<=time_frame,$AB34*DK34,"") ->  | GT34: =IF(GT$2<=time_frame,$AB34*DL34,"") ->  | GU34: =IF(GU$2<=time_frame,$AB34*DN34,"") ->  | GV34: =IF(GV$2<=time_frame,$AB34*DO34,"") ->  | GW34: =SUM(DP34:GU34) -> 0 | GY34: =IF(GY$2<=time_frame,$AC34*AH34,"") -> 0 | GZ34: =IF(GZ$2<=time_frame,$AC34*AI34,"") -> 0 | HA34: =IF(HA$2<=time_frame,$AC34*AJ34,"") -> 0 | HB34: =IF(HB$2<=time_frame,$AC34*AK34,"") -> 0 | HC34: =IF(HC$2<=time_frame,$AC34*AL34,"") -> 0 | HD34: =IF(HD$2<=time_frame,$AC34*AM34,"") -> 0 | HE34: =IF(HE$2<=time_frame,$AC34*AN34,"") -> 0 | HF34: =IF(HF$2<=time_frame,$AC34*AO34,"") -> 0 | HG34: =IF(HG$2<=time_frame,$AC34*AP34,"") -> 0 | HH34: =IF(HH$2<=time_frame,$AC34*AQ34,"") -> 0 | HI34: =IF(HI$2<=time_frame,$AC34*AR34,"") ->  | HJ34: =IF(HJ$2<=time_frame,$AC34*AS34,"") ->  | HK34: =IF(HK$2<=time_frame,$AC34*AT34,"") ->  | HL34: =IF(HL$2<=time_frame,$AC34*AU34,"") ->  | HM34: =IF(HM$2<=time_frame,$AC34*AV34,"") ->  | HN34: =IF(HN$2<=time_frame,$AC34*AW34,"") ->  | HO34: =IF(HO$2<=time_frame,$AC34*AX34,"") ->  | HP34: =IF(HP$2<=time_frame,$AC34*AY34,"") ->  | HQ34: =IF(HQ$2<=time_frame,$AC34*AZ34,"") ->  | HR34: =IF(HR$2<=time_frame,$AC34*BA34,"") ->  | HS34: =IF(HS$2<=time_frame,$AC34*BB34,"") ->  | HT34: =IF(HT$2<=time_frame,$AC34*BC34,"") ->  | HU34: =IF(HU$2<=time_frame,$AC34*BD34,"") ->  | HV34: =IF(HV$2<=time_frame,$AC34*BE34,"") ->  | HW34: =IF(HW$2<=time_frame,$AC34*BF34,"") ->  | HX34: =IF(HX$2<=time_frame,$AC34*BG34,"") ->  | HY34: =IF(HY$2<=time_frame,$AC34*BH34,"") ->  | HZ34: =IF(HZ$2<=time_frame,$AC34*BI34,"") ->  | IA34: =IF(IA$2<=time_frame,$AC34*BJ34,"") ->  | IB34: =IF(IB$2<=time_frame,$AC34*BK34,"") ->  | IC34: =IF(IC$2<=time_frame,$AC34*BL34,"") ->  | ID34: =IF(ID$2<=time_frame,$AC34*BM34,"") ->  | IE34: =IF(IE$2<=time_frame,$AC34*BN34,"") ->  | IF34: =IF(IF$2<=time_frame,$AC34*BO34,"") ->  | IG34: =IF(IG$2<=time_frame,$AC34*BP34,"") ->  | IH34: =IF(IH$2<=time_frame,$AC34*BQ34,"") ->  | II34: =IF(II$2<=time_frame,$AC34*BR34,"") ->  | IJ34: =IF(IJ$2<=time_frame,$AC34*BS34,"") ->  | IK34: =IF(IK$2<=time_frame,$AC34*BT34,"") ->  | IL34: =IF(IL$2<=time_frame,$AC34*BU34,"") ->  | IM34: =IF(IM$2<=time_frame,$AC34*BV34,"") ->  | IN34: =IF(IN$2<=time_frame,$AC34*BW34,"") ->  | IO34: =IF(IO$2<=time_frame,$AC34*BX34,"") ->  | IP34: =IF(IP$2<=time_frame,$AC34*BY34,"") ->  | IQ34: =IF(IQ$2<=time_frame,$AC34*BZ34,"") ->  | IR34: =IF(IR$2<=time_frame,$AC34*CA34,"") ->  | IS34: =IF(IS$2<=time_frame,$AC34*CB34,"") ->  | IT34: =IF(IT$2<=time_frame,$AC34*CC34,"") ->  | IU34: =IF(IU$2<=time_frame,$AC34*CD34,"") ->  | IV34: =IF(IV$2<=time_frame,$AC34*CE34,"") ->  | IW34: =IF(IW$2<=time_frame,$AC34*CF34,"") ->  | IX34: =IF(IX$2<=time_frame,$AC34*CG34,"") ->  | IY34: =IF(IY$2<=time_frame,$AC34*CH34,"") ->  | IZ34: =IF(IZ$2<=time_frame,$AC34*CI34,"") ->  | JA34: =IF(JA$2<=time_frame,$AC34*CJ34,"") ->  | JB34: =IF(JB$2<=time_frame,$AC34*CK34,"") ->  | JC34: =IF(JC$2<=time_frame,$AC34*CL34,"") ->  | JD34: =IF(JD$2<=time_frame,$AC34*CM34,"") ->  | JE34: =IF(JE$2<=time_frame,$AC34*CN34,"") ->  | JF34: =IF(JF$2<=time_frame,$AC34*CO34,"") ->  | JG34: =IF(JG$2<=time_frame,$AC34*CP34,"") ->  | JH34: =IF(JH$2<=time_frame,$AC34*CQ34,"") ->  | JI34: =IF(JI$2<=time_frame,$AC34*CR34,"") ->  | JJ34: =IF(JJ$2<=time_frame,$AC34*CS34,"") ->  | JK34: =IF(JK$2<=time_frame,$AC34*CT34,"") ->  | JL34: =IF(JL$2<=time_frame,$AC34*CU34,"") ->  | JM34: =IF(JM$2<=time_frame,$AC34*CV34,"") ->  | JN34: =IF(JN$2<=time_frame,$AC34*CW34,"") ->  | JO34: =IF(JO$2<=time_frame,$AC34*CX34,"") ->  | JP34: =IF(JP$2<=time_frame,$AC34*CY34,"") ->  | JQ34: =IF(JQ$2<=time_frame,$AC34*CZ34,"") ->  | JR34: =IF(JR$2<=time_frame,$AC34*DA34,"") ->  | JS34: =IF(JS$2<=time_frame,$AC34*DB34,"") ->  | JT34: =IF(JT$2<=time_frame,$AC34*DC34,"") ->  | JU34: =IF(JU$2<=time_frame,$AC34*DD34,"") ->  | JV34: =IF(JV$2<=time_frame,$AC34*DE34,"") ->  | JW34: =IF(JW$2<=time_frame,$AC34*DF34,"") ->  | JX34: =IF(JX$2<=time_frame,$AC34*DG34,"") ->  | JY34: =IF(JY$2<=time_frame,$AC34*DH34,"") ->  | JZ34: =IF(JZ$2<=time_frame,$AC34*DI34,"") ->  | KA34: =IF(KA$2<=time_frame,$AC34*DJ34,"") ->  | KB34: =IF(KB$2<=time_frame,$AC34*DK34,"") ->  | KC34: =IF(KC$2<=time_frame,$AC34*DL34,"") ->  | KD34: =IF(KD$2<=time_frame,$AC34*DN34,"") ->  | KE34: =IF(KE$2<=time_frame,$AC34*DO34,"") ->  | KF34: =SUM(GY34:KE34) -> 0 | KH34: =IF(KH$2<=time_frame,$AD34*AH34,"") -> 0 | KI34: =IF(KI$2<=time_frame,$AD34*AI34,"") -> 0 | KJ34: =IF(KJ$2<=time_frame,$AD34*AJ34,"") -> 0 | KK34: =IF(KK$2<=time_frame,$AD34*AK34,"") -> 0 | KL34: =IF(KL$2<=time_frame,$AD34*AL34,"") -> 0 | KM34: =IF(KM$2<=time_frame,$AD34*AM34,"") -> 0 | KN34: =IF(KN$2<=time_frame,$AD34*AN34,"") -> 0 | KO34: =IF(KO$2<=time_frame,$AD34*AO34,"") -> 0 | KP34: =IF(KP$2<=time_frame,$AD34*AP34,"") -> 0 | KQ34: =IF(KQ$2<=time_frame,$AD34*AQ34,"") -> 0 | KR34: =IF(KR$2<=time_frame,$AD34*AR34,"") ->  | KS34: =IF(KS$2<=time_frame,$AD34*AS34,"") ->  | KT34: =IF(KT$2<=time_frame,$AD34*AT34,"") ->  | KU34: =IF(KU$2<=time_frame,$AD34*AU34,"") ->  | KV34: =IF(KV$2<=time_frame,$AD34*AV34,"") ->  | KW34: =IF(KW$2<=time_frame,$AD34*AW34,"") ->  | KX34: =IF(KX$2<=time_frame,$AD34*AX34,"") ->  | KY34: =IF(KY$2<=time_frame,$AD34*AY34,"") ->  | KZ34: =IF(KZ$2<=time_frame,$AD34*AZ34,"") ->  | LA34: =IF(LA$2<=time_frame,$AD34*BA34,"") ->  | LB34: =IF(LB$2<=time_frame,$AD34*BB34,"") ->  | LC34: =IF(LC$2<=time_frame,$AD34*BC34,"") ->  | LD34: =IF(LD$2<=time_frame,$AD34*BD34,"") ->  | LE34: =IF(LE$2<=time_frame,$AD34*BE34,"") ->  | LF34: =IF(LF$2<=time_frame,$AD34*BF34,"") ->  | LG34: =IF(LG$2<=time_frame,$AD34*BG34,"") ->  | LH34: =IF(LH$2<=time_frame,$AD34*BH34,"") ->  | LI34: =IF(LI$2<=time_frame,$AD34*BI34,"") ->  | LJ34: =IF(LJ$2<=time_frame,$AD34*BJ34,"") ->  | LK34: =IF(LK$2<=time_frame,$AD34*BK34,"") ->  | LL34: =IF(LL$2<=time_frame,$AD34*BL34,"") ->  | LM34: =IF(LM$2<=time_frame,$AD34*BM34,"") ->  | LN34: =IF(LN$2<=time_frame,$AD34*BN34,"") ->  | LO34: =IF(LO$2<=time_frame,$AD34*BO34,"") ->  | LP34: =IF(LP$2<=time_frame,$AD34*BP34,"") ->  | LQ34: =IF(LQ$2<=time_frame,$AD34*BQ34,"") ->  | LR34: =IF(LR$2<=time_frame,$AD34*BR34,"") ->  | LS34: =IF(LS$2<=time_frame,$AD34*BS34,"") ->  | LT34: =IF(LT$2<=time_frame,$AD34*BT34,"") ->  | LU34: =IF(LU$2<=time_frame,$AD34*BU34,"") ->  | LV34: =IF(LV$2<=time_frame,$AD34*BV34,"") ->  | LW34: =IF(LW$2<=time_frame,$AD34*BW34,"") ->  | LX34: =IF(LX$2<=time_frame,$AD34*BX34,"") ->  | LY34: =IF(LY$2<=time_frame,$AD34*BY34,"") ->  | LZ34: =IF(LZ$2<=time_frame,$AD34*BZ34,"") ->  | MA34: =IF(MA$2<=time_frame,$AD34*CA34,"") ->  | MB34: =IF(MB$2<=time_frame,$AD34*CB34,"") ->  | MC34: =IF(MC$2<=time_frame,$AD34*CC34,"") ->  | MD34: =IF(MD$2<=time_frame,$AD34*CD34,"") ->  | ME34: =IF(ME$2<=time_frame,$AD34*CE34,"") ->  | MF34: =IF(MF$2<=time_frame,$AD34*CF34,"") ->  | MG34: =IF(MG$2<=time_frame,$AD34*CG34,"") ->  | MH34: =IF(MH$2<=time_frame,$AD34*CH34,"") ->  | MI34: =IF(MI$2<=time_frame,$AD34*CI34,"") ->  | MJ34: =IF(MJ$2<=time_frame,$AD34*CJ34,"") ->  | MK34: =IF(MK$2<=time_frame,$AD34*CK34,"") ->  | ML34: =IF(ML$2<=time_frame,$AD34*CL34,"") ->  | MM34: =IF(MM$2<=time_frame,$AD34*CM34,"") ->  | MN34: =IF(MN$2<=time_frame,$AD34*CN34,"") ->  | MO34: =IF(MO$2<=time_frame,$AD34*CO34,"") ->  | MP34: =IF(MP$2<=time_frame,$AD34*CP34,"") ->  | MQ34: =IF(MQ$2<=time_frame,$AD34*CQ34,"") ->  | MR34: =IF(MR$2<=time_frame,$AD34*CR34,"") ->  | MS34: =IF(MS$2<=time_frame,$AD34*CS34,"") ->  | MT34: =IF(MT$2<=time_frame,$AD34*CT34,"") ->  | MU34: =IF(MU$2<=time_frame,$AD34*CU34,"") ->  | MV34: =IF(MV$2<=time_frame,$AD34*CV34,"") ->  | MW34: =IF(MW$2<=time_frame,$AD34*CW34,"") ->  | MX34: =IF(MX$2<=time_frame,$AD34*CX34,"") ->  | MY34: =IF(MY$2<=time_frame,$AD34*CY34,"") ->  | MZ34: =IF(MZ$2<=time_frame,$AD34*CZ34,"") ->  | NA34: =IF(NA$2<=time_frame,$AD34*DA34,"") ->  | NB34: =IF(NB$2<=time_frame,$AD34*DB34,"") ->  | NC34: =IF(NC$2<=time_frame,$AD34*DC34,"") ->  | ND34: =IF(ND$2<=time_frame,$AD34*DD34,"") ->  | NE34: =IF(NE$2<=time_frame,$AD34*DE34,"") ->  | NF34: =IF(NF$2<=time_frame,$AD34*DF34,"") ->  | NG34: =IF(NG$2<=time_frame,$AD34*DG34,"") ->  | NH34: =IF(NH$2<=time_frame,$AD34*DH34,"") ->  | NI34: =IF(NI$2<=time_frame,$AD34*DI34,"") ->  | NJ34: =IF(NJ$2<=time_frame,$AD34*DJ34,"") ->  | NK34: =IF(NK$2<=time_frame,$AD34*DK34,"") ->  | NL34: =IF(NL$2<=time_frame,$AD34*DL34,"") ->  | NM34: =IF(NM$2<=time_frame,$AD34*DM34,"") ->  | NN34: =IF(NN$2<=time_frame,$AD34*DN34,"") ->  | NO34: =SUM(KH34:NN34) -> 0 | NQ34: =IF(NQ$3<>"",VLOOKUP($A34,'Agency percentages'!$A$6:$X$71,(3+MATCH(NQ$4,'Agency percentages'!$D$5:$W$5,0)),FALSE),"") -> 0 | NR34: =IF(NR$3<>"",VLOOKUP($A34,'Agency percentages'!$A$6:$X$71,(3+MATCH(NR$4,'Agency percentages'!$D$5:$W$5,0)),FALSE),"") -> 0.07272727273 | NS34: =IF(NS$3<>"",VLOOKUP($A34,'Agency percentages'!$A$6:$X$71,(3+MATCH(NS$4,'Agency percentages'!$D$5:$W$5,0)),FALSE),"") -> 0.2727272727 | NT34: =IF(NT$3<>"",VLOOKUP($A34,'Agency percentages'!$A$6:$X$71,(3+MATCH(NT$4,'Agency percentages'!$D$5:$W$5,0)),FALSE),"") -> 0.1090909091 | NU34: =IF(NU$3<>"",VLOOKUP($A34,'Agency percentages'!$A$6:$X$71,(3+MATCH(NU$4,'Agency percentages'!$D$5:$W$5,0)),FALSE),"") -> 0.4909090909 | NV34: =IF(NV$3<>"",VLOOKUP($A34,'Agency percentages'!$A$6:$X$71,(3+MATCH(NV$4,'Agency percentages'!$D$5:$W$5,0)),FALSE),"") -> 0 | NW34: =IF(NW$3<>"",VLOOKUP($A34,'Agency percentages'!$A$6:$X$71,(3+MATCH(NW$4,'Agency percentages'!$D$5:$W$5,0)),FALSE),"") -> 0.05454545455 | NX34: =IF(NX$3<>"",VLOOKUP($A34,'Agency percentages'!$A$6:$X$71,(3+MATCH(NX$4,'Agency percentages'!$D$5:$W$5,0)),FALSE),"") -> 0 | NY34: =IF(NY$3<>"",VLOOKUP($A34,'Agency percentages'!$A$6:$X$71,(3+MATCH(NY$4,'Agency percentages'!$D$5:$W$5,0)),FALSE),"") -> 0 | NZ34: =IF(NZ$3<>"",VLOOKUP($A34,'Agency percentages'!$A$6:$X$71,(3+MATCH(NZ$4,'Agency percentages'!$D$5:$W$5,0)),FALSE),"") -> 0 | OA34: =IF(OA$3<>"",VLOOKUP($A34,'Agency percentages'!$A$6:$X$71,(3+MATCH(OA$4,'Agency percentages'!$D$5:$W$5,0)),FALSE),"") -> 0 | OB34: =IF(OB$3<>"",VLOOKUP($A34,'Agency percentages'!$A$6:$X$71,(3+MATCH(OB$4,'Agency percentages'!$D$5:$W$5,0)),FALSE),"") -> 0 | OC34: =IF(OC$3<>"",VLOOKUP($A34,'Agency percentages'!$A$6:$X$71,(3+MATCH(OC$4,'Agency percentages'!$D$5:$W$5,0)),FALSE),"") -> 0 | OD34: =IF(OD$3<>"",VLOOKUP($A34,'Agency percentages'!$A$6:$X$71,(3+MATCH(OD$4,'Agency percentages'!$D$5:$W$5,0)),FALSE),"") ->  | OE34: =IF(OE$3<>"",VLOOKUP($A34,'Agency percentages'!$A$6:$X$71,(3+MATCH(OE$4,'Agency percentages'!$D$5:$W$5,0)),FALSE),"") ->  | OF34: =IF(OF$3<>"",VLOOKUP($A34,'Agency percentages'!$A$6:$X$71,(3+MATCH(OF$4,'Agency percentages'!$D$5:$W$5,0)),FALSE),"") ->  | OG34: =IF(OG$3<>"",VLOOKUP($A34,'Agency percentages'!$A$6:$X$71,(3+MATCH(OG$4,'Agency percentages'!$D$5:$W$5,0)),FALSE),"") ->  | OH34: =IF(OH$3<>"",VLOOKUP($A34,'Agency percentages'!$A$6:$X$71,(3+MATCH(OH$4,'Agency percentages'!$D$5:$W$5,0)),FALSE),"") ->  | OI34: =IF(OI$3<>"",VLOOKUP($A34,'Agency percentages'!$A$6:$X$71,(3+MATCH(OI$4,'Agency percentages'!$D$5:$W$5,0)),FALSE),"") ->  | OJ34: =IF(OJ$3<>"",VLOOKUP($A34,'Agency percentages'!$A$6:$X$71,(3+MATCH(OJ$4,'Agency percentages'!$D$5:$W$5,0)),FALSE),"") ->  | OL34: =IF(AND(OL$3<>"",NQ34<>0),HLOOKUP(OL$4,'Agency cashability'!$B$3:$U$5,2,0),0) -> 0 | OM34: =IF(AND(OM$3<>"",NR34<>0),HLOOKUP(OM$4,'Agency cashability'!$B$3:$U$5,2,0),0) -> 0.2 | ON34: =IF(AND(ON$3<>"",NS34<>0),HLOOKUP(ON$4,'Agency cashability'!$B$3:$U$5,2,0),0) -> 0.3 | OO34: =IF(AND(OO$3<>"",NT34<>0),HLOOKUP(OO$4,'Agency cashability'!$B$3:$U$5,2,0),0) -> 0.2 | OP34: =IF(AND(OP$3<>"",NU34<>0),HLOOKUP(OP$4,'Agency cashability'!$B$3:$U$5,2,0),0) -> 0.2 | OQ34: =IF(AND(OQ$3<>"",NV34<>0),HLOOKUP(OQ$4,'Agency cashability'!$B$3:$U$5,2,0),0) -> 0 | OR34: =IF(AND(OR$3<>"",NW34<>0),HLOOKUP(OR$4,'Agency cashability'!$B$3:$U$5,2,0),0) -> 0.2 | OS34: =IF(AND(OS$3<>"",NX34<>0),HLOOKUP(OS$4,'Agency cashability'!$B$3:$U$5,2,0),0) -> 0 | OT34: =IF(AND(OT$3<>"",NY34<>0),HLOOKUP(OT$4,'Agency cashability'!$B$3:$U$5,2,0),0) -> 0 | OU34: =IF(AND(OU$3<>"",NZ34<>0),HLOOKUP(OU$4,'Agency cashability'!$B$3:$U$5,2,0),0) -> 0 | OV34: =IF(AND(OV$3<>"",OA34<>0),HLOOKUP(OV$4,'Agency cashability'!$B$3:$U$5,2,0),0) -> 0 | OW34: =IF(AND(OW$3<>"",OB34<>0),HLOOKUP(OW$4,'Agency cashability'!$B$3:$U$5,2,0),0) -> 0 | OX34: =IF(AND(OX$3<>"",OC34<>0),HLOOKUP(OX$4,'Agency cashability'!$B$3:$U$5,2,0),0) -> 0 | OY34: =IF(AND(OY$3<>"",OD34<>0),HLOOKUP(OY$4,'Agency cashability'!$B$3:$U$5,2,0),0) -> 0 | OZ34: =IF(AND(OZ$3<>"",OE34<>0),HLOOKUP(OZ$4,'Agency cashability'!$B$3:$U$5,2,0),0) -> 0 | PA34: =IF(AND(PA$3<>"",OF34<>0),HLOOKUP(PA$4,'Agency cashability'!$B$3:$U$5,2,0),0) -> 0 | PB34: =IF(AND(PB$3<>"",OG34<>0),HLOOKUP(PB$4,'Agency cashability'!$B$3:$U$5,2,0),0) -> 0 | PC34: =IF(AND(PC$3<>"",OH34<>0),HLOOKUP(PC$4,'Agency cashability'!$B$3:$U$5,2,0),0) -> 0 | PD34: =IF(AND(PD$3<>"",OI34<>0),HLOOKUP(PD$4,'Agency cashability'!$B$3:$U$5,2,0),0) -> 0 | PE34: =IF(AND(PE$3<>"",OJ34<>0),HLOOKUP(PE$4,'Agency cashability'!$B$3:$U$5,2,0),0) -> 0 | PG34: =IF(AND(PG$3<>"",NQ34<>0),HLOOKUP(PG$4,'Agency cashability'!$B$3:$U$5,3,0),0) -> 0 | PH34: =IF(AND(PH$3<>"",NR34<>0),HLOOKUP(PH$4,'Agency cashability'!$B$3:$U$5,3,0),0) -> 0.5 | PI34: =IF(AND(PI$3<>"",NS34<>0),HLOOKUP(PI$4,'Agency cashability'!$B$3:$U$5,3,0),0) -> 0.6 | PJ34: =IF(AND(PJ$3<>"",NT34<>0),HLOOKUP(PJ$4,'Agency cashability'!$B$3:$U$5,3,0),0) -> 0.5 | PK34: =IF(AND(PK$3<>"",NU34<>0),HLOOKUP(PK$4,'Agency cashability'!$B$3:$U$5,3,0),0) -> 0.5 | PL34: =IF(AND(PL$3<>"",NV34<>0),HLOOKUP(PL$4,'Agency cashability'!$B$3:$U$5,3,0),0) -> 0 | PM34: =IF(AND(PM$3<>"",NW34<>0),HLOOKUP(PM$4,'Agency cashability'!$B$3:$U$5,3,0),0) -> 0.5 | PN34: =IF(AND(PN$3<>"",NX34<>0),HLOOKUP(PN$4,'Agency cashability'!$B$3:$U$5,3,0),0) -> 0 | PO34: =IF(AND(PO$3<>"",NY34<>0),HLOOKUP(PO$4,'Agency cashability'!$B$3:$U$5,3,0),0) -> 0 | PP34: =IF(AND(PP$3<>"",NZ34<>0),HLOOKUP(PP$4,'Agency cashability'!$B$3:$U$5,3,0),0) -> 0 | PQ34: =IF(AND(PQ$3<>"",OA34<>0),HLOOKUP(PQ$4,'Agency cashability'!$B$3:$U$5,3,0),0) -> 0 | PR34: =IF(AND(PR$3<>"",OB34<>0),HLOOKUP(PR$4,'Agency cashability'!$B$3:$U$5,3,0),0) -> 0 | PS34: =IF(AND(PS$3<>"",OC34<>0),HLOOKUP(PS$4,'Agency cashability'!$B$3:$U$5,3,0),0) -> 0 | PT34: =IF(AND(PT$3<>"",OD34<>0),HLOOKUP(PT$4,'Agency cashability'!$B$3:$U$5,3,0),0) -> 0 | PU34: =IF(AND(PU$3<>"",OE34<>0),HLOOKUP(PU$4,'Agency cashability'!$B$3:$U$5,3,0),0) -> 0 | PV34: =IF(AND(PV$3<>"",OF34<>0),HLOOKUP(PV$4,'Agency cashability'!$B$3:$U$5,3,0),0) -> 0 | PW34: =IF(AND(PW$3<>"",OG34<>0),HLOOKUP(PW$4,'Agency cashability'!$B$3:$U$5,3,0),0) -> 0 | PX34: =IF(AND(PX$3<>"",OH34<>0),HLOOKUP(PX$4,'Agency cashability'!$B$3:$U$5,3,0),0) -> 0 | PY34: =IF(AND(PY$3<>"",OI34<>0),HLOOKUP(PY$4,'Agency cashability'!$B$3:$U$5,3,0),0) -> 0 | PZ34: =IF(AND(PZ$3<>"",OJ34<>0),HLOOKUP(PZ$4,'Agency cashability'!$B$3:$U$5,3,0),0) -> 0 | QB34: =IF((QB$3<>""),NQ34*$GW34,"") -> 0 | QC34: =IF((QC$3<>""),NR34*$GW34,"") -> 0 | QD34: =IF((QD$3<>""),NS34*$GW34,"") -> 0 | QE34: =IF((QE$3<>""),NT34*$GW34,"") -> 0 | QF34: =IF((QF$3<>""),NU34*$GW34,"") -> 0 | QG34: =IF((QG$3<>""),NV34*$GW34,"") -> 0 | QH34: =IF((QH$3<>""),NW34*$GW34,"") -> 0 | QI34: =IF((QI$3<>""),NX34*$GW34,"") -> 0 | QJ34: =IF((QJ$3<>""),NY34*$GW34,"") -> 0 | QK34: =IF((QK$3<>""),NZ34*$GW34,"") -> 0 | QL34: =IF((QL$3<>""),OA34*$GW34,"") -> 0 | QM34: =IF((QM$3<>""),OB34*$GW34,"") -> 0 | QN34: =IF((QN$3<>""),OC34*$GW34,"") -> 0 | QO34: =IF((QO$3<>""),OD34*$GW34,"") ->  | QP34: =IF((QP$3<>""),OE34*$GW34,"") ->  | QQ34: =IF((QQ$3<>""),OF34*$GW34,"") ->  | QR34: =IF((QR$3<>""),OG34*$GW34,"") ->  | QS34: =IF((QS$3<>""),OH34*$GW34,"") ->  | QT34: =IF((QT$3<>""),OI34*$GW34,"") ->  | QU34: =IF((QU$3<>""),OJ34*$GW34,"") ->  | QW34: =IF((QW$3<>""),OL34*QB34,"") -> 0 | QX34: =IF((QX$3<>""),OM34*QC34,"") -> 0 | QY34: =IF((QY$3<>""),ON34*QD34,"") -> 0 | QZ34: =IF((QZ$3<>""),OO34*QE34,"") -> 0 | RA34: =IF((RA$3<>""),OP34*QF34,"") -> 0 | RB34: =IF((RB$3<>""),OQ34*QG34,"") -> 0 | RC34: =IF((RC$3<>""),OR34*QH34,"") -> 0 | RD34: =IF((RD$3<>""),OS34*QI34,"") -> 0 | RE34: =IF((RE$3<>""),OT34*QJ34,"") -> 0 | RF34: =IF((RF$3<>""),OU34*QK34,"") -> 0 | RG34: =IF((RG$3<>""),OV34*QL34,"") -> 0 | RH34: =IF((RH$3<>""),OW34*QM34,"") -> 0 | RI34: =IF((RI$3<>""),OX34*QN34,"") -> 0 | RJ34: =IF((RJ$3<>""),OY34*QO34,"") ->  | RK34: =IF((RK$3<>""),OZ34*QP34,"") ->  | RL34: =IF((RL$3<>""),PA34*QQ34,"") ->  | RM34: =IF((RM$3<>""),PB34*QR34,"") ->  | RN34: =IF((RN$3<>""),PC34*QS34,"") ->  | RO34: =IF((RO$3<>""),PD34*QT34,"") ->  | RP34: =IF((RP$3<>""),PE34*QU34,"") ->  | RR34: =SUM(QW34:RP34)/SUM(QB34:QU34) ->  | RT34: =IF((RT$3<>""),PG34*QB34,"") -> 0 | RU34: =IF((RU$3<>""),PH34*QC34,"") -> 0 | RV34: =IF((RV$3<>""),PI34*QD34,"") -> 0 | RW34: =IF((RW$3<>""),PJ34*QE34,"") -> 0 | RX34: =IF((RX$3<>""),PK34*QF34,"") -> 0 | RY34: =IF((RY$3<>""),PL34*QG34,"") -> 0 | RZ34: =IF((RZ$3<>""),PM34*QH34,"") -> 0 | SA34: =IF((SA$3<>""),PN34*QI34,"") -> 0 | SB34: =IF((SB$3<>""),PO34*QJ34,"") -> 0 | SC34: =IF((SC$3<>""),PP34*QK34,"") -> 0 | SD34: =IF((SD$3<>""),PQ34*QL34,"") -> 0 | SE34: =IF((SE$3<>""),PR34*QM34,"") -> 0 | SF34: =IF((SF$3<>""),PS34*QN34,"") -> 0 | SG34: =IF((SG$3<>""),PT34*QO34,"") ->  | SH34: =IF((SH$3<>""),PU34*QP34,"") ->  | SI34: =IF((SI$3<>""),PV34*QQ34,"") ->  | SJ34: =IF((SJ$3<>""),PW34*QR34,"") ->  | SK34: =IF((SK$3<>""),PX34*QS34,"") ->  | SL34: =IF((SL$3<>""),PY34*QT34,"") ->  | SM34: =IF((SM$3<>""),PZ34*QU34,"") ->  | SO34: =SUM(RT34:SM34)/SUM(QB34:QU34) -> 
A35: B9t | B35: Reduced incidents of crime - fraud | C35: No | D35: Reduced police, other criminal justice costs, health costs per actual crime (N.B. Use multipliers to convert from recorded crime or convictions) | E35: Police, CJS, NHS | R35: 300 | S35: =R35 -> 300 | T35: 780 | U35: 200 | V35: 1280 | W35: 2016 | X35: =VLOOKUP(W35,'GDP Deflators'!$B$6:$D$106,3,FALSE) -> 88.19270512 | Y35: The Economic and Social cost of Crime, Second Edition (Home Office 2018) | AA35: Standard Rate | AB35: 0 | AC35: 0 | AD35: 0 | AE35: 0 | DP35: 0 | DQ35: 0 | DR35: 0 | DS35: 0 | DT35: 0 | DU35: 0 | DV35: 0 | DW35: 0 | DX35: 0 | DY35: 0 | GW35: 0 | GY35: 0 | GZ35: 0 | HA35: 0 | HB35: 0 | HC35: 0 | HD35: 0 | HE35: 0 | HF35: 0 | HG35: 0 | HH35: 0 | KF35: 0 | KH35: 0 | KI35: 0 | KJ35: 0 | KK35: 0 | KL35: 0 | KM35: 0 | KN35: 0 | KO35: 0 | KP35: 0 | KQ35: 0 | NO35: 0 | NQ35: =IF(NQ$3<>"",VLOOKUP($A35,'Agency percentages'!$A$6:$X$71,(3+MATCH(NQ$4,'Agency percentages'!$D$5:$W$5,0)),FALSE),"") -> 0 | NR35: =IF(NR$3<>"",VLOOKUP($A35,'Agency percentages'!$A$6:$X$71,(3+MATCH(NR$4,'Agency percentages'!$D$5:$W$5,0)),FALSE),"") -> 0.2413793103 | NS35: =IF(NS$3<>"",VLOOKUP($A35,'Agency percentages'!$A$6:$X$71,(3+MATCH(NS$4,'Agency percentages'!$D$5:$W$5,0)),FALSE),"") -> 0.2068965517 | NT35: =IF(NT$3<>"",VLOOKUP($A35,'Agency percentages'!$A$6:$X$71,(3+MATCH(NT$4,'Agency percentages'!$D$5:$W$5,0)),FALSE),"") -> 0.03448275862 | NU35: =IF(NU$3<>"",VLOOKUP($A35,'Agency percentages'!$A$6:$X$71,(3+MATCH(NU$4,'Agency percentages'!$D$5:$W$5,0)),FALSE),"") -> 0.4827586207 | NV35: =IF(NV$3<>"",VLOOKUP($A35,'Agency percentages'!$A$6:$X$71,(3+MATCH(NV$4,'Agency percentages'!$D$5:$W$5,0)),FALSE),"") -> 0 | NW35: =IF(NW$3<>"",VLOOKUP($A35,'Agency percentages'!$A$6:$X$71,(3+MATCH(NW$4,'Agency percentages'!$D$5:$W$5,0)),FALSE),"") -> 0.03448275862 | NX35: =IF(NX$3<>"",VLOOKUP($A35,'Agency percentages'!$A$6:$X$71,(3+MATCH(NX$4,'Agency percentages'!$D$5:$W$5,0)),FALSE),"") -> 0 | NY35: =IF(NY$3<>"",VLOOKUP($A35,'Agency percentages'!$A$6:$X$71,(3+MATCH(NY$4,'Agency percentages'!$D$5:$W$5,0)),FALSE),"") -> 0 | NZ35: =IF(NZ$3<>"",VLOOKUP($A35,'Agency percentages'!$A$6:$X$71,(3+MATCH(NZ$4,'Agency percentages'!$D$5:$W$5,0)),FALSE),"") -> 0 | OA35: =IF(OA$3<>"",VLOOKUP($A35,'Agency percentages'!$A$6:$X$71,(3+MATCH(OA$4,'Agency percentages'!$D$5:$W$5,0)),FALSE),"") -> 0 | OB35: =IF(OB$3<>"",VLOOKUP($A35,'Agency percentages'!$A$6:$X$71,(3+MATCH(OB$4,'Agency percentages'!$D$5:$W$5,0)),FALSE),"") -> 0 | OC35: =IF(OC$3<>"",VLOOKUP($A35,'Agency percentages'!$A$6:$X$71,(3+MATCH(OC$4,'Agency percentages'!$D$5:$W$5,0)),FALSE),"") -> 0 | OD35: =IF(OD$3<>"",VLOOKUP($A35,'Agency percentages'!$A$6:$X$71,(3+MATCH(OD$4,'Agency percentages'!$D$5:$W$5,0)),FALSE),"") ->  | OE35: =IF(OE$3<>"",VLOOKUP($A35,'Agency percentages'!$A$6:$X$71,(3+MATCH(OE$4,'Agency percentages'!$D$5:$W$5,0)),FALSE),"") ->  | OF35: =IF(OF$3<>"",VLOOKUP($A35,'Agency percentages'!$A$6:$X$71,(3+MATCH(OF$4,'Agency percentages'!$D$5:$W$5,0)),FALSE),"") ->  | OG35: =IF(OG$3<>"",VLOOKUP($A35,'Agency percentages'!$A$6:$X$71,(3+MATCH(OG$4,'Agency percentages'!$D$5:$W$5,0)),FALSE),"") ->  | OH35: =IF(OH$3<>"",VLOOKUP($A35,'Agency percentages'!$A$6:$X$71,(3+MATCH(OH$4,'Agency percentages'!$D$5:$W$5,0)),FALSE),"") ->  | OI35: =IF(OI$3<>"",VLOOKUP($A35,'Agency percentages'!$A$6:$X$71,(3+MATCH(OI$4,'Agency percentages'!$D$5:$W$5,0)),FALSE),"") ->  | OJ35: =IF(OJ$3<>"",VLOOKUP($A35,'Agency percentages'!$A$6:$X$71,(3+MATCH(OJ$4,'Agency percentages'!$D$5:$W$5,0)),FALSE),"") ->  | OL35: =IF(AND(OL$3<>"",NQ35<>0),HLOOKUP(OL$4,'Agency cashability'!$B$3:$U$5,2,0),0) -> 0 | OM35: =IF(AND(OM$3<>"",NR35<>0),HLOOKUP(OM$4,'Agency cashability'!$B$3:$U$5,2,0),0) -> 0.2 | ON35: =IF(AND(ON$3<>"",NS35<>0),HLOOKUP(ON$4,'Agency cashability'!$B$3:$U$5,2,0),0) -> 0.3 | OO35: =IF(AND(OO$3<>"",NT35<>0),HLOOKUP(OO$4,'Agency cashability'!$B$3:$U$5,2,0),0) -> 0.2 | OP35: =IF(AND(OP$3<>"",NU35<>0),HLOOKUP(OP$4,'Agency cashability'!$B$3:$U$5,2,0),0) -> 0.2 | OQ35: =IF(AND(OQ$3<>"",NV35<>0),HLOOKUP(OQ$4,'Agency cashability'!$B$3:$U$5,2,0),0) -> 0 | OR35: =IF(AND(OR$3<>"",NW35<>0),HLOOKUP(OR$4,'Agency cashability'!$B$3:$U$5,2,0),0) -> 0.2 | OS35: =IF(AND(OS$3<>"",NX35<>0),HLOOKUP(OS$4,'Agency cashability'!$B$3:$U$5,2,0),0) -> 0 | OT35: =IF(AND(OT$3<>"",NY35<>0),HLOOKUP(OT$4,'Agency cashability'!$B$3:$U$5,2,0),0) -> 0 | OU35: =IF(AND(OU$3<>"",NZ35<>0),HLOOKUP(OU$4,'Agency cashability'!$B$3:$U$5,2,0),0) -> 0 | OV35: =IF(AND(OV$3<>"",OA35<>0),HLOOKUP(OV$4,'Agency cashability'!$B$3:$U$5,2,0),0) -> 0 | OW35: =IF(AND(OW$3<>"",OB35<>0),HLOOKUP(OW$4,'Agency cashability'!$B$3:$U$5,2,0),0) -> 0 | OX35: =IF(AND(OX$3<>"",OC35<>0),HLOOKUP(OX$4,'Agency cashability'!$B$3:$U$5,2,0),0) -> 0 | OY35: =IF(AND(OY$3<>"",OD35<>0),HLOOKUP(OY$4,'Agency cashability'!$B$3:$U$5,2,0),0) -> 0 | OZ35: =IF(AND(OZ$3<>"",OE35<>0),HLOOKUP(OZ$4,'Agency cashability'!$B$3:$U$5,2,0),0) -> 0 | PA35: =IF(AND(PA$3<>"",OF35<>0),HLOOKUP(PA$4,'Agency cashability'!$B$3:$U$5,2,0),0) -> 0 | PB35: =IF(AND(PB$3<>"",OG35<>0),HLOOKUP(PB$4,'Agency cashability'!$B$3:$U$5,2,0),0) -> 0 | PC35: =IF(AND(PC$3<>"",OH35<>0),HLOOKUP(PC$4,'Agency cashability'!$B$3:$U$5,2,0),0) -> 0 | PD35: =IF(AND(PD$3<>"",OI35<>0),HLOOKUP(PD$4,'Agency cashability'!$B$3:$U$5,2,0),0) -> 0 | PE35: =IF(AND(PE$3<>"",OJ35<>0),HLOOKUP(PE$4,'Agency cashability'!$B$3:$U$5,2,0),0) -> 0 | PG35: =IF(AND(PG$3<>"",NQ35<>0),HLOOKUP(PG$4,'Agency cashability'!$B$3:$U$5,3,0),0) -> 0 | PH35: =IF(AND(PH$3<>"",NR35<>0),HLOOKUP(PH$4,'Agency cashability'!$B$3:$U$5,3,0),0) -> 0.5 | PI35: =IF(AND(PI$3<>"",NS35<>0),HLOOKUP(PI$4,'Agency cashability'!$B$3:$U$5,3,0),0) -> 0.6 | PJ35: =IF(AND(PJ$3<>"",NT35<>0),HLOOKUP(PJ$4,'Agency cashability'!$B$3:$U$5,3,0),0) -> 0.5 | PK35: =IF(AND(PK$3<>"",NU35<>0),HLOOKUP(PK$4,'Agency cashability'!$B$3:$U$5,3,0),0) -> 0.5 | PL35: =IF(AND(PL$3<>"",NV35<>0),HLOOKUP(PL$4,'Agency cashability'!$B$3:$U$5,3,0),0) -> 0 | PM35: =IF(AND(PM$3<>"",NW35<>0),HLOOKUP(PM$4,'Agency cashability'!$B$3:$U$5,3,0),0) -> 0.5 | PN35: =IF(AND(PN$3<>"",NX35<>0),HLOOKUP(PN$4,'Agency cashability'!$B$3:$U$5,3,0),0) -> 0 | PO35: =IF(AND(PO$3<>"",NY35<>0),HLOOKUP(PO$4,'Agency cashability'!$B$3:$U$5,3,0),0) -> 0 | PP35: =IF(AND(PP$3<>"",NZ35<>0),HLOOKUP(PP$4,'Agency cashability'!$B$3:$U$5,3,0),0) -> 0 | PQ35: =IF(AND(PQ$3<>"",OA35<>0),HLOOKUP(PQ$4,'Agency cashability'!$B$3:$U$5,3,0),0) -> 0 | PR35: =IF(AND(PR$3<>"",OB35<>0),HLOOKUP(PR$4,'Agency cashability'!$B$3:$U$5,3,0),0) -> 0 | PS35: =IF(AND(PS$3<>"",OC35<>0),HLOOKUP(PS$4,'Agency cashability'!$B$3:$U$5,3,0),0) -> 0 | PT35: =IF(AND(PT$3<>"",OD35<>0),HLOOKUP(PT$4,'Agency cashability'!$B$3:$U$5,3,0),0) -> 0 | PU35: =IF(AND(PU$3<>"",OE35<>0),HLOOKUP(PU$4,'Agency cashability'!$B$3:$U$5,3,0),0) -> 0 | PV35: =IF(AND(PV$3<>"",OF35<>0),HLOOKUP(PV$4,'Agency cashability'!$B$3:$U$5,3,0),0) -> 0 | PW35: =IF(AND(PW$3<>"",OG35<>0),HLOOKUP(PW$4,'Agency cashability'!$B$3:$U$5,3,0),0) -> 0 | PX35: =IF(AND(PX$3<>"",OH35<>0),HLOOKUP(PX$4,'Agency cashability'!$B$3:$U$5,3,0),0) -> 0 | PY35: =IF(AND(PY$3<>"",OI35<>0),HLOOKUP(PY$4,'Agency cashability'!$B$3:$U$5,3,0),0) -> 0 | PZ35: =IF(AND(PZ$3<>"",OJ35<>0),HLOOKUP(PZ$4,'Agency cashability'!$B$3:$U$5,3,0),0) -> 0 | QB35: 0 | QC35: 0 | QD35: 0 | QE35: 0 | QF35: 0 | QG35: 0 | QH35: 0 | QI35: 0 | QJ35: 0 | QK35: 0 | QL35: 0 | QM35: 0 | QN35: 0 | QW35: =IF((QW$3<>""),OL35*QB35,"") -> 0 | QX35: 0 | QY35: 0 | QZ35: 0 | RA35: 0 | RB35: 0 | RC35: 0 | RD35: 0 | RE35: 0 | RF35: 0 | RG35: 0 | RH35: 0 | RI35: 0 | RT35: =IF((RT$3<>""),PG35*QB35,"") -> 0 | RU35: 0 | RV35: 0 | RW35: 0 | RX35: 0 | RY35: 0 | RZ35: 0 | SA35: 0 | SB35: 0 | SC35: 0 | SD35: 0 | SE35: 0 | SF35: 0
A36: B10 | B36: Housing evictions | C36: Yes | D36: Reduced costs of legal proceedings and repair of property | E36: Housing Provider | R36: 6680 | S36: =R36 -> 6680 | V36: 6680 | W36: 2010 | X36: =VLOOKUP(W36,'GDP Deflators'!$B$6:$D$106,3,FALSE) -> 80.45867339 | Y36: Research Briefing: Immediate costs to government of loss of home (Shelter 2012) | AA36: Standard Rate | AB36: 0 | AC36: 0 | AD36: 0 | AE36: 0 | DP36: 0 | DQ36: 0 | DR36: 0 | DS36: 0 | DT36: 0 | DU36: 0 | DV36: 0 | DW36: 0 | DX36: 0 | DY36: 0 | GW36: 0 | GY36: 0 | GZ36: 0 | HA36: 0 | HB36: 0 | HC36: 0 | HD36: 0 | HE36: 0 | HF36: 0 | HG36: 0 | HH36: 0 | KF36: 0 | KH36: 0 | KI36: 0 | KJ36: 0 | KK36: 0 | KL36: 0 | KM36: 0 | KN36: 0 | KO36: 0 | KP36: 0 | KQ36: 0 | NO36: 0 | NQ36: =IF(NQ$3<>"",VLOOKUP($A36,'Agency percentages'!$A$6:$X$71,(3+MATCH(NQ$4,'Agency percentages'!$D$5:$W$5,0)),FALSE),"") -> 0.1 | NR36: =IF(NR$3<>"",VLOOKUP($A36,'Agency percentages'!$A$6:$X$71,(3+MATCH(NR$4,'Agency percentages'!$D$5:$W$5,0)),FALSE),"") -> 0 | NS36: =IF(NS$3<>"",VLOOKUP($A36,'Agency percentages'!$A$6:$X$71,(3+MATCH(NS$4,'Agency percentages'!$D$5:$W$5,0)),FALSE),"") -> 0 | NT36: =IF(NT$3<>"",VLOOKUP($A36,'Agency percentages'!$A$6:$X$71,(3+MATCH(NT$4,'Agency percentages'!$D$5:$W$5,0)),FALSE),"") -> 0 | NU36: =IF(NU$3<>"",VLOOKUP($A36,'Agency percentages'!$A$6:$X$71,(3+MATCH(NU$4,'Agency percentages'!$D$5:$W$5,0)),FALSE),"") -> 0 | NV36: =IF(NV$3<>"",VLOOKUP($A36,'Agency percentages'!$A$6:$X$71,(3+MATCH(NV$4,'Agency percentages'!$D$5:$W$5,0)),FALSE),"") -> 0 | NW36: =IF(NW$3<>"",VLOOKUP($A36,'Agency percentages'!$A$6:$X$71,(3+MATCH(NW$4,'Agency percentages'!$D$5:$W$5,0)),FALSE),"") -> 0.03 | NX36: =IF(NX$3<>"",VLOOKUP($A36,'Agency percentages'!$A$6:$X$71,(3+MATCH(NX$4,'Agency percentages'!$D$5:$W$5,0)),FALSE),"") -> 0 | NY36: =IF(NY$3<>"",VLOOKUP($A36,'Agency percentages'!$A$6:$X$71,(3+MATCH(NY$4,'Agency percentages'!$D$5:$W$5,0)),FALSE),"") -> 0 | NZ36: =IF(NZ$3<>"",VLOOKUP($A36,'Agency percentages'!$A$6:$X$71,(3+MATCH(NZ$4,'Agency percentages'!$D$5:$W$5,0)),FALSE),"") -> 0 | OA36: =IF(OA$3<>"",VLOOKUP($A36,'Agency percentages'!$A$6:$X$71,(3+MATCH(OA$4,'Agency percentages'!$D$5:$W$5,0)),FALSE),"") -> 0.87 | OB36: =IF(OB$3<>"",VLOOKUP($A36,'Agency percentages'!$A$6:$X$71,(3+MATCH(OB$4,'Agency percentages'!$D$5:$W$5,0)),FALSE),"") -> 0 | OC36: =IF(OC$3<>"",VLOOKUP($A36,'Agency percentages'!$A$6:$X$71,(3+MATCH(OC$4,'Agency percentages'!$D$5:$W$5,0)),FALSE),"") -> 0 | OD36: =IF(OD$3<>"",VLOOKUP($A36,'Agency percentages'!$A$6:$X$71,(3+MATCH(OD$4,'Agency percentages'!$D$5:$W$5,0)),FALSE),"") ->  | OE36: =IF(OE$3<>"",VLOOKUP($A36,'Agency percentages'!$A$6:$X$71,(3+MATCH(OE$4,'Agency percentages'!$D$5:$W$5,0)),FALSE),"") ->  | OF36: =IF(OF$3<>"",VLOOKUP($A36,'Agency percentages'!$A$6:$X$71,(3+MATCH(OF$4,'Agency percentages'!$D$5:$W$5,0)),FALSE),"") ->  | OG36: =IF(OG$3<>"",VLOOKUP($A36,'Agency percentages'!$A$6:$X$71,(3+MATCH(OG$4,'Agency percentages'!$D$5:$W$5,0)),FALSE),"") ->  | OH36: =IF(OH$3<>"",VLOOKUP($A36,'Agency percentages'!$A$6:$X$71,(3+MATCH(OH$4,'Agency percentages'!$D$5:$W$5,0)),FALSE),"") ->  | OI36: =IF(OI$3<>"",VLOOKUP($A36,'Agency percentages'!$A$6:$X$71,(3+MATCH(OI$4,'Agency percentages'!$D$5:$W$5,0)),FALSE),"") ->  | OJ36: =IF(OJ$3<>"",VLOOKUP($A36,'Agency percentages'!$A$6:$X$71,(3+MATCH(OJ$4,'Agency percentages'!$D$5:$W$5,0)),FALSE),"") ->  | OL36: =IF(AND(OL$3<>"",NQ36<>0),HLOOKUP(OL$4,'Agency cashability'!$B$3:$U$5,2,0),0) -> 0.5 | OM36: =IF(AND(OM$3<>"",NR36<>0),HLOOKUP(OM$4,'Agency cashability'!$B$3:$U$5,2,0),0) -> 0 | ON36: =IF(AND(ON$3<>"",NS36<>0),HLOOKUP(ON$4,'Agency cashability'!$B$3:$U$5,2,0),0) -> 0 | OO36: =IF(AND(OO$3<>"",NT36<>0),HLOOKUP(OO$4,'Agency cashability'!$B$3:$U$5,2,0),0) -> 0 | OP36: =IF(AND(OP$3<>"",NU36<>0),HLOOKUP(OP$4,'Agency cashability'!$B$3:$U$5,2,0),0) -> 0 | OQ36: =IF(AND(OQ$3<>"",NV36<>0),HLOOKUP(OQ$4,'Agency cashability'!$B$3:$U$5,2,0),0) -> 0 | OR36: =IF(AND(OR$3<>"",NW36<>0),HLOOKUP(OR$4,'Agency cashability'!$B$3:$U$5,2,0),0) -> 0.2 | OS36: =IF(AND(OS$3<>"",NX36<>0),HLOOKUP(OS$4,'Agency cashability'!$B$3:$U$5,2,0),0) -> 0 | OT36: =IF(AND(OT$3<>"",NY36<>0),HLOOKUP(OT$4,'Agency cashability'!$B$3:$U$5,2,0),0) -> 0 | OU36: =IF(AND(OU$3<>"",NZ36<>0),HLOOKUP(OU$4,'Agency cashability'!$B$3:$U$5,2,0),0) -> 0 | OV36: =IF(AND(OV$3<>"",OA36<>0),HLOOKUP(OV$4,'Agency cashability'!$B$3:$U$5,2,0),0) -> 0.8 | OW36: =IF(AND(OW$3<>"",OB36<>0),HLOOKUP(OW$4,'Agency cashability'!$B$3:$U$5,2,0),0) -> 0 | OX36: =IF(AND(OX$3<>"",OC36<>0),HLOOKUP(OX$4,'Agency cashability'!$B$3:$U$5,2,0),0) -> 0 | OY36: =IF(AND(OY$3<>"",OD36<>0),HLOOKUP(OY$4,'Agency cashability'!$B$3:$U$5,2,0),0) -> 0 | OZ36: =IF(AND(OZ$3<>"",OE36<>0),HLOOKUP(OZ$4,'Agency cashability'!$B$3:$U$5,2,0),0) -> 0 | PA36: =IF(AND(PA$3<>"",OF36<>0),HLOOKUP(PA$4,'Agency cashability'!$B$3:$U$5,2,0),0) -> 0 | PB36: =IF(AND(PB$3<>"",OG36<>0),HLOOKUP(PB$4,'Agency cashability'!$B$3:$U$5,2,0),0) -> 0 | PC36: =IF(AND(PC$3<>"",OH36<>0),HLOOKUP(PC$4,'Agency cashability'!$B$3:$U$5,2,0),0) -> 0 | PD36: =IF(AND(PD$3<>"",OI36<>0),HLOOKUP(PD$4,'Agency cashability'!$B$3:$U$5,2,0),0) -> 0 | PE36: =IF(AND(PE$3<>"",OJ36<>0),HLOOKUP(PE$4,'Agency cashability'!$B$3:$U$5,2,0),0) -> 0 | PG36: =IF(AND(PG$3<>"",NQ36<>0),HLOOKUP(PG$4,'Agency cashability'!$B$3:$U$5,3,0),0) -> 0.9 | PH36: =IF(AND(PH$3<>"",NR36<>0),HLOOKUP(PH$4,'Agency cashability'!$B$3:$U$5,3,0),0) -> 0 | PI36: =IF(AND(PI$3<>"",NS36<>0),HLOOKUP(PI$4,'Agency cashability'!$B$3:$U$5,3,0),0) -> 0 | PJ36: =IF(AND(PJ$3<>"",NT36<>0),HLOOKUP(PJ$4,'Agency cashability'!$B$3:$U$5,3,0),0) -> 0 | PK36: =IF(AND(PK$3<>"",NU36<>0),HLOOKUP(PK$4,'Agency cashability'!$B$3:$U$5,3,0),0) -> 0 | PL36: =IF(AND(PL$3<>"",NV36<>0),HLOOKUP(PL$4,'Agency cashability'!$B$3:$U$5,3,0),0) -> 0 | PM36: =IF(AND(PM$3<>"",NW36<>0),HLOOKUP(PM$4,'Agency cashability'!$B$3:$U$5,3,0),0) -> 0.5 | PN36: =IF(AND(PN$3<>"",NX36<>0),HLOOKUP(PN$4,'Agency cashability'!$B$3:$U$5,3,0),0) -> 0 | PO36: =IF(AND(PO$3<>"",NY36<>0),HLOOKUP(PO$4,'Agency cashability'!$B$3:$U$5,3,0),0) -> 0 | PP36: =IF(AND(PP$3<>"",NZ36<>0),HLOOKUP(PP$4,'Agency cashability'!$B$3:$U$5,3,0),0) -> 0 | PQ36: =IF(AND(PQ$3<>"",OA36<>0),HLOOKUP(PQ$4,'Agency cashability'!$B$3:$U$5,3,0),0) -> 0.9 | PR36: =IF(AND(PR$3<>"",OB36<>0),HLOOKUP(PR$4,'Agency cashability'!$B$3:$U$5,3,0),0) -> 0 | PS36: =IF(AND(PS$3<>"",OC36<>0),HLOOKUP(PS$4,'Agency cashability'!$B$3:$U$5,3,0),0) -> 0 | PT36: =IF(AND(PT$3<>"",OD36<>0),HLOOKUP(PT$4,'Agency cashability'!$B$3:$U$5,3,0),0) -> 0 | PU36: =IF(AND(PU$3<>"",OE36<>0),HLOOKUP(PU$4,'Agency cashability'!$B$3:$U$5,3,0),0) -> 0 | PV36: =IF(AND(PV$3<>"",OF36<>0),HLOOKUP(PV$4,'Agency cashability'!$B$3:$U$5,3,0),0) -> 0 | PW36: =IF(AND(PW$3<>"",OG36<>0),HLOOKUP(PW$4,'Agency cashability'!$B$3:$U$5,3,0),0) -> 0 | PX36: =IF(AND(PX$3<>"",OH36<>0),HLOOKUP(PX$4,'Agency cashability'!$B$3:$U$5,3,0),0) -> 0 | PY36: =IF(AND(PY$3<>"",OI36<>0),HLOOKUP(PY$4,'Agency cashability'!$B$3:$U$5,3,0),0) -> 0 | PZ36: =IF(AND(PZ$3<>"",OJ36<>0),HLOOKUP(PZ$4,'Agency cashability'!$B$3:$U$5,3,0),0) -> 0 | QB36: 0 | QC36: 0 | QD36: 0 | QE36: 0 | QF36: 0 | QG36: 0 | QH36: 0 | QI36: 0 | QJ36: 0 | QK36: 0 | QL36: 0 | QM36: 0 | QN36: 0 | QW36: =IF((QW$3<>""),OL36*QB36,"") -> 0 | QX36: 0 | QY36: 0 | QZ36: 0 | RA36: 0 | RB36: 0 | RC36: 0 | RD36: 0 | RE36: 0 | RF36: 0 | RG36: 0 | RH36: 0 | RI36: 0 | RT36: =IF((RT$3<>""),PG36*QB36,"") -> 0 | RU36: 0 | RV36: 0 | RW36: 0 | RX36: 0 | RY36: 0 | RZ36: 0 | SA36: 0 | SB36: 0 | SC36: 0 | SD36: 0 | SE36: 0 | SF36: 0
